{"text_format":"1","workbook":"xlsx","n_sheets":17,"sheets":["Index","S.01.01.02","S.01.02.01","S.02.01.02","S.05.01.02","S.06.02.01","CRT_Filters","data","parameters","S.06.03.01","S.08.01.01","S.08.02.01","S.12.01.02","S.17.01.02","S.23.01.01","S.28.01.01","S.28.02.01"],"not_rendered":{"charts":0,"images":0,"macros":1,"external_links":2,"defined_names":602,"comments":0,"pivot_tables":0},"unopened":[],"bounds":{"document_bytes":16777216,"sheet_cells":100000,"rows_first":2000,"rows_last":500,"rows_between":2000,"halvings":0,"cell_chars":16384,"cell_head_chars":4096},"cells_cut":0,"cells_raw":0,"read":"whole","date_system":"1900"}

{"sheet":"Index","index":0,"n_rows":22,"n_cols":4,"rows_kept":22,"cut":false,"hidden":false,"merged":[[0,0,0,2],[1,0,1,2],[2,0,2,2],[3,0,3,2],[9,1,9,2],[20,1,20,2],[21,1,21,2],[8,1,8,2],[15,1,15,2],[16,1,16,2],[17,1,17,2],[18,1,18,2],[19,1,19,2],[10,1,10,2],[11,1,11,2],[12,1,12,2],[13,1,13,2],[14,1,14,2]]}
["RECEX - Solvency II"]
["RECEX customized for EIOPA Solvency II Tables: S.01.01.02.01, S.01.02.01.01, S.02.01.02.01, S.06.02.01"]
["DPM and Taxonomy 2.2.0 Hotfix (updated 24/11/2017)"]
["Comments to info@recex.eu"]
[]
["Module Name","Quarterly Reporting Solo (qrs)",null,"Arelle location"]
["Version","2.2.0 Hotfix (updated 24/11/2017)",null,"C:\\Program Files\\Arelle"]
[]
["Table Code","Table Label"]
["S.01.01.02","Content of the submission"]
["S.01.02.01","Basic Information - General"]
["S.02.01.02","Balance sheet"]
["S.05.01.02","Non-Life (direct business/accepted proportional reinsurance and accepted non-proportional reinsurance)"]
["S.06.02.01","Information on positions held"]
["S.06.03.01","Collective investment undertakings - look-through approach"]
["S.08.01.01","Information on positions held"]
["S.08.02.01","Information on positions held"]
["S.12.01.02","Life and Health SLT Technical Provisions"]
["S.17.01.02","Non-Life Technical Provisions"]
["S.23.01.01","Own funds"]
["S.28.01.01","Linear formula component for non-life insurance and reinsurance obligations"]
["S.28.02.01","MCR components"]

{"sheet":"S.01.01.02","index":1,"n_rows":20,"n_cols":5,"rows_kept":20,"cut":false,"hidden":false,"merged":[]}
["S.01.01.02"]
["Appendix I: Quantitative reporting templates"]
[]
["S.01.01.02.01"]
[]
["Content of the submission"]
[null,null,null,"C0010"]
[null,"Template Code - Template name"]
[null,"S.01.02.01 - Basic Information - General","R0010","Reported    {s2c_CN:x1}","Metric: Basic Information"]
[null,"S.02.01.02 - Balance sheet","R0030","Reported    {s2c_CN:x1}","Metric: Balance Sheet (Full scope individual)"]
[null,"S.05.01.02 - Premiums, claims and expenses by line of business","R0110","Not reported other reason    {s2c_CN:x2}","Metric: Premiums, claims and expenses by line of business (Individual)[210]"]
[null,"S.06.02.01 - List of assets","R0140","Reported    {s2c_CN:x1}","Metric: List of assets (Full scope individual)"]
[null,"S.06.03.01 - Collective investment undertakings - look-through approach","R0150","Not reported other reason    {s2c_CN:x2}","Metric: Collective investment undertakings - look-through approach (Individual)[210]"]
[null,"S.08.01.01 - Open derivatives","R0170","Not reported other reason    {s2c_CN:x2}","Metric: Open derivatives (Full scope individual)"]
[null,"S.08.02.01 - Derivatives Transactions","R0180","Not reported other reason    {s2c_CN:x2}","Metric: Derivatives Transactions (Individual)"]
[null,"S.12.01.02 - Life and Health SLT Technical Provisions","R0220","Not reported other reason    {s2c_CN:x2}","Metric: Life and Health SLT Technical Provisions (Full scope)"]
[null,"S.17.01.02 - Non-Life Technical Provisions","R0290","Not reported other reason    {s2c_CN:x2}","Metric: Non-Life Technical Provisions (Full scope)"]
[null,"S.23.01.01 - Own funds","R0410","Not reported other reason    {s2c_CN:x2}","Metric: Own funds (Full scope individual)[210]"]
[null,"S.28.01.01 - Minimum Capital Requirement - Only life or only non-life insurance or reinsurance activity","R0580","Not reported other reason    {s2c_CN:x2}","Metric: Minimum Capital Requirement - Only life or only non-life insurance or reinsurance activity"]
[null,"S.28.02.01 - Minimum Capital Requirement - Both life and non-life insurance activity","R0590","Not reported other reason    {s2c_CN:x2}","Metric: Minimum Capital Requirement - Both life and non-life insurance activity"]

{"sheet":"S.01.02.01","index":2,"n_rows":27,"n_cols":6,"rows_kept":27,"cut":false,"hidden":false,"merged":[]}
["S.01.02.01"]
["Basic Information - General"]
[]
["S.01.02.01.01"]
[]
["Basic Information - General"]
[]
[null,null,null,"C0010"]
[null,"Undertaking name","R0010","RECEX.eu test","Metric: String","TS/Legal name of undertaking"]
[null,"Undertaking identification code and type of code","R0020","LEI/969500X1Y8G7LA4DYS04","Metric: String","TS/Undertaking identification code"]
[null,"Type of undertaking","R0040","Undertakings pursuing both life and non-life insurance activity - article 73 (2)    {s2c_SE:x129}","Metric: Type of undertaking [220]"]
[null,"Country of authorisation","R0050","  POLAND    {s2c_GA:PL}","Metric: Country of authorisation [210]"]
[null,"Language of reporting","R0070","  Danish    {s2c_LA:da}","Metric: Language of reporting"]
[null,"Reporting submission date","R0080","2017-12-31","Metric: Date","TD/Reporting date"]
[null,"Financial year end","R0081","2017-12-31","Metric: Date","TD/Financial year end"]
[null,"Reporting reference date","R0090","2017-12-31","Metric: Date","TD/Reference date"]
[null,"Regular/Ad-hoc submission","R0100","Regular reporting    {s2c_CS:x35}","Metric: Regular/Ad-hoc submission (solo)"]
[null,"Currency used for reporting","R0110","  EUR    {s2c_CU:EUR}","Metric: Currency used for reporting (Full scope)"]
[null,"Accounting standards","R0120","Local GAAP    {s2c_AM:x50}","Metric: Accounting standards (Full scope)"]
[null,"Method of Calculation of the SCR","R0130","Full internal model    {s2c_AP:x1}","Metric: Method of Calculation of the SCR"]
[null,"Use of undertaking specific parameters","R0140","Don’t use undertaking specific parameters    {s2c_AP:x6}","Metric: Use of undertaking specific parameters (Individual)"]
[null,"Ring-fenced funds","R0150","Reporting activity by RFF    {s2c_PU:x4}","Metric: RFF (Full scope)"]
[null,"Matching adjustment","R0170","Use of matching adjustment    {s2c_PU:x51}","Metric: Matching Adjustment"]
[null,"Volatility adjustment","R0180","No use of volatility adjustment    {s2c_AP:x8}","Metric: Volatility adjustment"]
[null,"Transitional measure on the risk-free interest rate","R0190","Use of transitional measure on the risk-free interest rate    {s2c_AP:x9}","Metric: Transitional measure on the risk-free interest rate"]
[null,"Transitional measure on technical provisions","R0200","Use of transitional measure on technical provisions    {s2c_AP:x11}","Metric: Transitional measure on technical provisions"]
[null,"Initial submission or re-submission","R0210","Re-submission    {s2c_CS:x38}","Metric: Initial submission or re-submission"]

{"sheet":"S.02.01.02","index":3,"n_rows":95,"n_cols":11,"rows_kept":95,"cut":false,"hidden":false,"merged":[]}
["S.02.01.02"]
["Balance sheet"]
[]
["S.02.01.02.01"]
[]
["Balance sheet"]
[]
[null,null,"Solvency II value"]
[null,null,"C0010"]
["Assets"]
["Goodwill","R0010",null,null,null,"Metric: Monetary","BC/Assets",null,"AS/Goodwill","IO/Other than investment, own use, own instruments held directly and cash and cash equivalents"]
["Deferred acquisition costs","R0020",null,null,null,"Metric: Monetary","BC/Assets",null,"AS/Deferred acquisition costs","IO/Other than investment, own use, own instruments held directly and cash and cash equivalents"]
["Intangible assets","R0030",0,null,null,"Metric: Monetary","BC/Assets",null,"AS/Intangible other than goodwill and deferred acquisition costs","IO/Other than investment, own use, own instruments held directly and cash and cash equivalents"]
["Deferred tax assets","R0040",0,null,null,"Metric: Monetary","BC/Assets",null,"AS/Deferred tax","IO/Other than investment, own use, own instruments held directly and cash and cash equivalents"]
["Pension benefit surplus","R0050",0,null,null,"Metric: Monetary","BC/Assets",null,"AS/Pension benefit","IO/Other than investment, own use, own instruments held directly and cash and cash equivalents"]
["Property, plant & equipment held for own use","R0060",0,null,null,"Metric: Monetary","BC/Assets",null,"AS/Properties","IO/Own use"]
["Investments (other than assets held for index-linked and unit-linked contracts)","R0070",{"$f":"C18+C19+C20+C23+C28+C29+C30+C31","v":0},"BL/Neither unit-linked nor index-linked",null,"Metric: Monetary","BC/Assets",null,"AS/Property, plant and equipment, Cash, Derivatives, Bonds, Equity instruments, Participations and related undertakings, Deposits other than reinsurance deposits, Collective investments undertakings, Other investments","IO/Investment"]
["Property (other than for own use)","R0080",0,"BL/Neither unit-linked nor index-linked",null,"Metric: Monetary","BC/Assets",null,"AS/Properties","IO/Investment"]
["Holdings in related undertakings, including participations","R0090",0,"BL/Neither unit-linked nor index-linked",null,"Metric: Monetary","BC/Assets",null,"AS/Participations and related undertakings","IO/Investment"]
["Equities","R0100",{"$f":"C21+C22","v":0},"BL/Neither unit-linked nor index-linked",null,"Metric: Monetary","BC/Assets",null,"AS/Equity instruments","IO/Investment"]
["Equities - listed","R0110",0,"BL/Neither unit-linked nor index-linked",null,"Metric: Monetary","BC/Assets",null,"AS/Listed equity","IO/Investment"]
["Equities - unlisted","R0120",0,"BL/Neither unit-linked nor index-linked",null,"Metric: Monetary","BC/Assets",null,"AS/Unlisted equity","IO/Investment"]
["Bonds","R0130",{"$f":"SUM(C24:C27)","v":0},"BL/Neither unit-linked nor index-linked",null,"Metric: Monetary","BC/Assets",null,"AS/Bonds","IO/Investment"]
["Government Bonds","R0140",0,"BL/Neither unit-linked nor index-linked",null,"Metric: Monetary","BC/Assets",null,"AS/Government Bonds","IO/Investment"]
["Corporate Bonds","R0150",0,"BL/Neither unit-linked nor index-linked",null,"Metric: Monetary","BC/Assets",null,"AS/Corporate Bonds","IO/Investment"]
["Structured notes","R0160",0,"BL/Neither unit-linked nor index-linked",null,"Metric: Monetary","BC/Assets",null,"AS/Structured notes","IO/Investment"]
["Collateralised securities","R0170",0,"BL/Neither unit-linked nor index-linked",null,"Metric: Monetary","BC/Assets",null,"AS/Collateralised securities","IO/Investment"]
["Collective Investments Undertakings","R0180",0,"BL/Neither unit-linked nor index-linked",null,"Metric: Monetary","BC/Assets",null,"AS/Collective investments undertakings","IO/Investment"]
["Derivatives","R0190",0,"BL/Neither unit-linked nor index-linked",null,"Metric: Monetary","BC/Assets",null,"AS/Derivatives","IO/Investment"]
["Deposits other than cash equivalents","R0200",0,"BL/Neither unit-linked nor index-linked",null,"Metric: Monetary","BC/Assets",null,"AS/Deposits other than reinsurance deposits","IO/Investment"]
["Other investments","R0210",0,"BL/Neither unit-linked nor index-linked",null,"Metric: Monetary","BC/Assets",null,"AS/Other investments","IO/Investment"]
["Assets held for index-linked and unit-linked contracts","R0220",0,"BL/Unit-linked or index-linked",null,"Metric: Monetary","BC/Assets",null,"AS/Property, plant and equipment, Cash, Derivatives, Bonds, Equity instruments, Participations and related undertakings, Deposits other than reinsurance deposits, Collective investments undertakings, Other investments","IO/Investment"]
["Loans and mortgages","R0230",{"$f":"SUM(C34:C36)","v":0},"BL/Neither unit-linked nor index-linked",null,"Metric: Monetary","BC/Assets",null,"AS/Mortgages and loans","IO/Other than investment, own use, own instruments held directly and cash and cash equivalents"]
["Loans on policies","R0240",0,"BL/Neither unit-linked nor index-linked",null,"Metric: Monetary","BC/Assets",null,"AS/Loans on policies","IO/Other than investment, own use, own instruments held directly and cash and cash equivalents"]
["Loans and mortgages to individuals","R0250",0,"BL/Neither unit-linked nor index-linked",null,"Metric: Monetary","BC/Assets",null,"AS/Loans and mortgages to individuals","IO/Other than investment, own use, own instruments held directly and cash and cash equivalents"]
["Other loans and mortgages","R0260",0,"BL/Neither unit-linked nor index-linked",null,"Metric: Monetary","BC/Assets",null,"AS/Other loans and mortgages","IO/Other than investment, own use, own instruments held directly and cash and cash equivalents"]
["Reinsurance recoverables from:","R0270",{"$f":"C38+C41+C44","v":0},null,null,"Metric: Monetary","BC/Assets",null,"AS/Recoverables recognised for TP calculation","IO/Other than investment, own use, own instruments held directly and cash and cash equivalents","CC/Ceded"]
["Non-life and health similar to non-life","R0280",{"$f":"C39+C40","v":0},"BL/Non-life and Health non-SLT",null,"Metric: Monetary","BC/Assets",null,"AS/Recoverables recognised for TP calculation","IO/Other than investment, own use, own instruments held directly and cash and cash equivalents","CC/Ceded"]
["Non-life excluding health","R0290",0,"BL/Non-life",null,"Metric: Monetary","BC/Assets",null,"AS/Recoverables recognised for TP calculation","IO/Other than investment, own use, own instruments held directly and cash and cash equivalents","CC/Ceded"]
["Health similar to non-life","R0300",0,"BL/Health non-SLT",null,"Metric: Monetary","BC/Assets",null,"AS/Recoverables recognised for TP calculation","IO/Other than investment, own use, own instruments held directly and cash and cash equivalents","CC/Ceded"]
["Life and health similar to life, excluding health and index-linked and unit-linked","R0310",{"$f":"C42+C43","v":0},"BL/Life [other than unit-linked or index-linked]",null,"Metric: Monetary","BC/Assets",null,"AS/Recoverables recognised for TP calculation","IO/Other than investment, own use, own instruments held directly and cash and cash equivalents","CC/Ceded"]
["Health similar to life","R0320",0,"BL/Health SLT",null,"Metric: Monetary","BC/Assets",null,"AS/Recoverables recognised for TP calculation","IO/Other than investment, own use, own instruments held directly and cash and cash equivalents","CC/Ceded"]
["Life excluding health and index-linked and unit-linked","R0330",0,"BL/Life [other than Index-linked and unit-linked insurance and Health SLT]",null,"Metric: Monetary","BC/Assets",null,"AS/Recoverables recognised for TP calculation","IO/Other than investment, own use, own instruments held directly and cash and cash equivalents","CC/Ceded"]
["Life index-linked and unit-linked","R0340",0,"BL/Unit-linked or index-linked",null,"Metric: Monetary","BC/Assets",null,"AS/Recoverables recognised for TP calculation","IO/Other than investment, own use, own instruments held directly and cash and cash equivalents","CC/Ceded"]
["Deposits to cedants","R0350",0,"TB/Reinsurance accepted",null,"Metric: Monetary","BC/Assets",null,"AS/Reinsurance deposits","IO/Other than investment, own use, own instruments held directly and cash and cash equivalents"]
["Insurance and intermediaries receivables","R0360",0,null,null,"Metric: Monetary","BC/Assets",null,"AS/Receivables/payables [insurance/reinsurance accepted]","IO/Other than investment, own use, own instruments held directly and cash and cash equivalents"]
["Reinsurance receivables","R0370",0,null,null,"Metric: Monetary","BC/Assets",null,"AS/Receivables/payables [reinsurance ceded]","IO/Other than investment, own use, own instruments held directly and cash and cash equivalents","CC/Ceded"]
["Receivables (trade, not insurance)","R0380",0,null,null,"Metric: Monetary","BC/Assets",null,"AS/Receivables/payables [trade]","IO/Other than investment, own use, own instruments held directly and cash and cash equivalents"]
["Own shares (held directly)","R0390",0,null,null,"Metric: Monetary","BC/Assets",null,"AS/Shares","IO/Own instruments held directly"]
["Amounts due in respect of own fund items or initial fund called up but not yet paid in","R0400",0,null,null,"Metric: Monetary","BC/Assets",null,"AS/Due in respect of own fund items or initial fund called up but not yet paid in","IO/Other than investment, own use, own instruments held directly and cash and cash equivalents"]
["Cash and cash equivalents","R0410",0,null,null,"Metric: Monetary","BC/Assets",null,"AS/Cash and deposits","IO/Cash and cash equivalents"]
["Any other assets, not elsewhere shown","R0420",0,null,null,"Metric: Monetary","BC/Assets",null,"AS/Other than intangible, deferred tax, pension benefit, property, plant and equipment, financial, reinsurance deposits, receivables/payables, recoverables recognised for TP and due in respect of own fund items or initial fund called up but not yet paid in","IO/Other than investment, own use, own instruments held directly and cash and cash equivalents"]
["Total assets","R0500",{"$f":"C13+C14+C15+C16+C17+C32+C33+C37+C45+C46+C47+C48+C49+C50+C51+C52","v":0},null,null,"Metric: Monetary","BC/Assets"]
["Liabilities"]
["Technical provisions – non-life","R0510",{"$f":"C56+C60","v":0},"BL/Non-life and Health non-SLT",null,"Metric: Monetary","BC/Liability",null,"LB/Gross technical provisions [other than local GAAP specific]"]
["Technical provisions – non-life (excluding health)","R0520",{"$f":"SUM(C57:C59)","v":0},"BL/Non-life",null,"Metric: Monetary","BC/Liability",null,"LB/Gross technical provisions [other than local GAAP specific]"]
["Technical provisions calculated as a whole","R0530",0,"BL/Non-life","VL/Calculated as a whole","Metric: Monetary","BC/Liability",null,"LB/Gross technical provisions [other than local GAAP specific]"]
["Best Estimate","R0540",0,"BL/Non-life","VL/Best estimate","Metric: Monetary","BC/Liability",null,"LB/Gross technical provisions [other than local GAAP specific]"]
["Risk margin","R0550",0,"BL/Non-life","VL/Risk margin","Metric: Monetary","BC/Liability",null,"LB/Gross technical provisions [other than local GAAP specific]"]
["Technical provisions - health (similar to non-life)","R0560",{"$f":"SUM(C61:C63)","v":0},"BL/Health non-SLT",null,"Metric: Monetary","BC/Liability",null,"LB/Gross technical provisions [other than local GAAP specific]"]
["Technical provisions calculated as a whole","R0570",0,"BL/Health non-SLT","VL/Calculated as a whole","Metric: Monetary","BC/Liability",null,"LB/Gross technical provisions [other than local GAAP specific]"]
["Best Estimate","R0580",0,"BL/Health non-SLT","VL/Best estimate","Metric: Monetary","BC/Liability",null,"LB/Gross technical provisions [other than local GAAP specific]"]
["Risk margin","R0590",0,"BL/Health non-SLT","VL/Risk margin","Metric: Monetary","BC/Liability",null,"LB/Gross technical provisions [other than local GAAP specific]"]
["Technical provisions - life (excluding index-linked and unit-linked)","R0600",{"$f":"C65+C69","v":0},"BL/Life and Health SLT [other than unit-linked or index-linked]",null,"Metric: Monetary","BC/Liability",null,"LB/Gross technical provisions [other than local GAAP specific]"]
["Technical provisions - health (similar to life)","R0610",{"$f":"SUM(C66:C68)","v":0},"BL/Health SLT and annuities stemming from non-life insurance contracts and relating to health insurance obligations",null,"Metric: Monetary","BC/Liability",null,"LB/Gross technical provisions [other than local GAAP specific]"]
["Technical provisions calculated as a whole","R0620",0,"BL/Health SLT and annuities stemming from non-life insurance contracts and relating to health insurance obligations","VL/Calculated as a whole","Metric: Monetary","BC/Liability",null,"LB/Gross technical provisions [other than local GAAP specific]"]
["Best Estimate","R0630",0,"BL/Health SLT and annuities stemming from non-life insurance contracts and relating to health insurance obligations","VL/Best estimate","Metric: Monetary","BC/Liability",null,"LB/Gross technical provisions [other than local GAAP specific]"]
["Risk margin","R0640",0,"BL/Health SLT and annuities stemming from non-life insurance contracts and relating to health insurance obligations","VL/Risk margin","Metric: Monetary","BC/Liability",null,"LB/Gross technical provisions [other than local GAAP specific]"]
["Technical provisions – life (excluding health and index-linked and unit-linked)","R0650",{"$f":"SUM(C70:C72)","v":0},"BL/Life and annuities stemming from non-life insurance contracts and relating to insurance obligations other than health insurance obligations [other than unit-linked or index-linked]",null,"Metric: Monetary","BC/Liability",null,"LB/Gross technical provisions [other than local GAAP specific]"]
["Technical provisions calculated as a whole","R0660",0,"BL/Life and annuities stemming from non-life insurance contracts and relating to insurance obligations other than health insurance obligations [other than unit-linked or index-linked]","VL/Calculated as a whole","Metric: Monetary","BC/Liability",null,"LB/Gross technical provisions [other than local GAAP specific]"]
["Best Estimate","R0670",0,"BL/Life and annuities stemming from non-life insurance contracts and relating to insurance obligations other than health insurance obligations [other than unit-linked or index-linked]","VL/Best estimate","Metric: Monetary","BC/Liability",null,"LB/Gross technical provisions [other than local GAAP specific]"]
["Risk margin","R0680",0,"BL/Life and annuities stemming from non-life insurance contracts and relating to insurance obligations other than health insurance obligations [other than unit-linked or index-linked]","VL/Risk margin","Metric: Monetary","BC/Liability",null,"LB/Gross technical provisions [other than local GAAP specific]"]
["Technical provisions – index-linked and unit-linked","R0690",{"$f":"SUM(C74:C76)","v":0},"BL/Unit-linked or index-linked",null,"Metric: Monetary","BC/Liability",null,"LB/Gross technical provisions [other than local GAAP specific]"]
["Technical provisions calculated as a whole","R0700",0,"BL/Unit-linked or index-linked","VL/Calculated as a whole","Metric: Monetary","BC/Liability",null,"LB/Gross technical provisions [other than local GAAP specific]"]
["Best Estimate","R0710",0,"BL/Unit-linked or index-linked","VL/Best estimate","Metric: Monetary","BC/Liability",null,"LB/Gross technical provisions [other than local GAAP specific]"]
["Risk margin","R0720",0,"BL/Unit-linked or index-linked","VL/Risk margin","Metric: Monetary","BC/Liability",null,"LB/Gross technical provisions [other than local GAAP specific]"]
["Other technical provisions","R0730",null,null,null,"Metric: Monetary","BC/Liability",null,"LB/Gross technical provisions [local GAAP specific]"]
["Contingent liabilities","R0740",0,null,null,"Metric: Monetary","BC/Liability",null,"LB/Contingent"]
["Provisions other than technical provisions","R0750",0,null,null,"Metric: Monetary","BC/Liability",null,"LB/Provisions other than technical provisions"]
["Pension benefit obligations","R0760",0,null,null,"Metric: Monetary","BC/Liability",null,"LB/Pension benefit"]
["Deposits from reinsurers","R0770",0,null,null,"Metric: Monetary","BC/Liability",null,"LB/Reinsurance deposits","CC/Ceded"]
["Deferred tax liabilities","R0780",0,null,null,"Metric: Monetary","BC/Liability",null,"LB/Deferred tax"]
["Derivatives","R0790",0,null,null,"Metric: Monetary","BC/Liability",null,"LB/Derivatives"]
["Debts owed to credit institutions","R0800",0,null,null,"Metric: Monetary","BC/Liability",null,"LB/Debt instruments [not subordinated]. Debts owed to credit institutions"]
["Financial liabilities other than debts owed to credit institutions","R0810",0,null,null,"Metric: Monetary","BC/Liability",null,"LB/Debt instruments [not subordinated]. Financial liabilities other than debts owed to credit institutions"]
["Insurance & intermediaries payables","R0820",0,null,null,"Metric: Monetary","BC/Liability",null,"LB/Receivables/payables [insurance/reinsurance accepted]"]
["Reinsurance payables","R0830",0,null,null,"Metric: Monetary","BC/Liability",null,"LB/Receivables/payables [reinsurance ceded]","CC/Ceded"]
["Payables (trade, not insurance)","R0840",0,null,null,"Metric: Monetary","BC/Liability",null,"LB/Receivables/payables [trade]"]
["Subordinated liabilities","R0850",{"$f":"SUM(C90:C91)","v":0},null,null,"Metric: Monetary","BC/Liability",null,"LB/Subordinated debt instruments"]
["Subordinated liabilities not in Basic Own Funds","R0860",0,null,null,"Metric: Monetary","BC/Liability","BE/Other than basic own funds","LB/Subordinated debt instruments"]
["Subordinated liabilities in Basic Own Funds","R0870",0,null,null,"Metric: Monetary","BC/Liability","BE/Basic own funds","LB/Subordinated debt instruments"]
["Any other liabilities, not elsewhere shown","R0880",0,null,null,"Metric: Monetary","BC/Liability",null,"LB/Other than provisions, pension benefit, contingent, deferred tax, reinsurance deposit and financial"]
["Total liabilities","R0900",{"$f":"C55+C64+C73+C78+C79+C80+C81+C82+C83+C84+C85+C86+C87+C88+C89+C92","v":0},null,null,"Metric: Monetary","BC/Liability"]
["Excess of assets over liabilities","R1000",{"$f":"C53-C93","v":0},null,null,"Metric: Monetary","BC/Excess of assets over liabilities"]
[null,null,"VG/Solvency II"]

{"sheet":"S.05.01.02","index":4,"n_rows":74,"n_cols":26,"rows_kept":74,"cut":false,"hidden":false,"merged":[[10,2,10,13],[10,14,10,17],[10,18,11,18],[50,2,50,7],[50,8,50,9],[50,10,51,10]]}
["S.05.01.02"]
["Premiums, claims and expenses by line of business"]
[]
["S.05.01.02.01"]
["Z Axis:"]
["VG/Statutory accounts"]
["DI/Year to Date"]
[]
["Non-Life (direct business/accepted proportional reinsurance and accepted non-proportional reinsurance)"]
[]
[null,null,"Line of Business for: non-life insurance and reinsurance obligations (direct business and accepted proportional reinsurance)",null,null,null,null,null,null,null,null,null,null,null,"Line of Business for: accepted non-proportional reinsurance",null,null,null,"Total"]
[null,null,"Medical expense insurance","Income protection insurance","Workers' compensation insurance","Motor vehicle liability insurance","Other motor insurance","Marine, aviation and transport insurance","Fire and other damage to property insurance","General liability insurance","Credit and suretyship insurance","Legal expenses insurance","Assistance","Miscellaneous financial loss","Health","Casualty","Marine, aviation, transport","Property"]
[null,null,"C0010","C0020","C0030","C0040","C0050","C0060","C0070","C0080","C0090","C0100","C0110","C0120","C0130","C0140","C0150","C0160","C0200"]
["Premiums written"]
["Gross - Direct Business","R0110",null,null,null,null,null,null,null,null,null,null,null,null,null,null,null,null,null,"TB/Direct Business","IZ/Accepted during the period","Metric: Monetary","BC/Premiums written"]
["Gross - Proportional reinsurance accepted","R0120",null,null,null,null,null,null,null,null,null,null,null,null,null,null,null,null,null,"TB/Proportional reinsurance accepted","IZ/Accepted during the period","Metric: Monetary","BC/Premiums written"]
["Gross - Non-proportional reinsurance accepted","R0130",null,null,null,null,null,null,null,null,null,null,null,null,null,null,null,null,null,"TB/Non-proportional reinsurance accepted","IZ/Accepted during the period","Metric: Monetary","BC/Premiums written"]
["Reinsurers' share","R0140",null,null,null,null,null,null,null,null,null,null,null,null,null,null,null,null,null,null,"IZ/Accepted during the period","Metric: Monetary","BC/Premiums written",null,null,"CC/Ceded"]
["Net","R0200",null,null,null,null,null,null,null,null,null,null,null,null,null,null,null,null,null,null,"IZ/Accepted during the period","Metric: Monetary","BC/Premiums written",null,null,"CC/Not ceded"]
["Premiums earned"]
["Gross - Direct Business","R0210",null,null,null,null,null,null,null,null,null,null,null,null,null,null,null,null,null,"TB/Direct Business","IZ/Covered during the period","Metric: Monetary","BC/Premiums written"]
["Gross - Proportional reinsurance accepted","R0220",null,null,null,null,null,null,null,null,null,null,null,null,null,null,null,null,null,"TB/Proportional reinsurance accepted","IZ/Covered during the period","Metric: Monetary","BC/Premiums written"]
["Gross - Non-proportional reinsurance accepted","R0230",null,null,null,null,null,null,null,null,null,null,null,null,null,null,null,null,null,"TB/Non-proportional reinsurance accepted","IZ/Covered during the period","Metric: Monetary","BC/Premiums written"]
["Reinsurers' share","R0240",null,null,null,null,null,null,null,null,null,null,null,null,null,null,null,null,null,null,"IZ/Covered during the period","Metric: Monetary","BC/Premiums written",null,null,"CC/Ceded"]
["Net","R0300",null,null,null,null,null,null,null,null,null,null,null,null,null,null,null,null,null,null,"IZ/Covered during the period","Metric: Monetary","BC/Premiums written",null,null,"CC/Not ceded"]
["Claims incurred"]
["Gross - Direct Business","R0310",null,null,null,null,null,null,null,null,null,null,null,null,null,null,null,null,null,"TB/Direct Business",null,"Metric: Monetary","BC/Claims incurred",null,"AI/Other than salvages and subrogations"]
["Gross - Proportional reinsurance accepted","R0320",null,null,null,null,null,null,null,null,null,null,null,null,null,null,null,null,null,"TB/Proportional reinsurance accepted",null,"Metric: Monetary","BC/Claims incurred",null,"AI/Other than salvages and subrogations"]
["Gross - Non-proportional reinsurance accepted","R0330",null,null,null,null,null,null,null,null,null,null,null,null,null,null,null,null,null,"TB/Non-proportional reinsurance accepted",null,"Metric: Monetary","BC/Claims incurred",null,"AI/Other than salvages and subrogations"]
["Reinsurers' share","R0340",null,null,null,null,null,null,null,null,null,null,null,null,null,null,null,null,null,null,null,"Metric: Monetary","BC/Claims incurred",null,"AI/Other than salvages and subrogations","CC/Ceded"]
["Net","R0400",null,null,null,null,null,null,null,null,null,null,null,null,null,null,null,null,null,null,null,"Metric: Monetary","BC/Claims incurred",null,"AI/Other than salvages and subrogations","CC/Not ceded"]
["Changes in other technical provisions"]
["Gross - Direct Business","R0410",null,null,null,null,null,null,null,null,null,null,null,null,null,null,null,null,null,"TB/Direct Business",null,"Metric: Monetary","BC/Liability","LB/Gross technical provisions [local GAAP specific]"]
["Gross - Proportional reinsurance accepted","R0420",null,null,null,null,null,null,null,null,null,null,null,null,null,null,null,null,null,"TB/Proportional reinsurance accepted",null,"Metric: Monetary","BC/Liability","LB/Gross technical provisions [local GAAP specific]"]
["Gross - Non-proportional reinsurance accepted","R0430",null,null,null,null,null,null,null,null,null,null,null,null,null,null,null,null,null,"TB/Non-proportional reinsurance accepted",null,"Metric: Monetary","BC/Liability","LB/Gross technical provisions [local GAAP specific]"]
["Reinsurers' share","R0440",null,null,null,null,null,null,null,null,null,null,null,null,null,null,null,null,null,null,null,"Metric: Monetary","BC/Liability","LB/Gross technical provisions [local GAAP specific]",null,"CC/Ceded"]
["Net","R0500",null,null,null,null,null,null,null,null,null,null,null,null,null,null,null,null,null,null,null,"Metric: Monetary","BC/Liability","LB/Gross technical provisions [local GAAP specific]",null,"CC/Not ceded"]
["Expenses incurred","R0550",null,null,null,null,null,null,null,null,null,null,null,null,null,null,null,null,null,null,null,"Metric: Monetary","BC/Expenses","TE/Administration, investments management, claims management, acquisition and overhead",null,"CC/Not ceded"]
["Other expenses","R1200",null,null,null,null,null,null,null,null,null,null,null,null,null,null,null,null,null,null,null,"Metric: Monetary","BC/Expenses","TE/Other than administration, investments management, claims management, acquisition and overhead",null,"CC/Not ceded"]
["Total expenses","R1300",null,null,null,null,null,null,null,null,null,null,null,null,null,null,null,null,null,null,null,"Metric: Monetary","BC/Expenses",null,null,"CC/Not ceded"]
[null,null,"BL/Medical expense insurance [direct business and accepted proportional reinsurance]","BL/Income protection insurance [direct business and accepted proportional reinsurance]","BL/Workers' compensation insurance [direct business and accepted proportional reinsurance]","BL/Motor vehicle liability insurance [direct business and accepted proportional reinsurance]","BL/Other motor insurance [direct business and accepted proportional reinsurance]","BL/Marine, aviation and transport insurance [direct business and accepted proportional reinsurance]","BL/Fire and other damage to property insurance [direct business and accepted proportional reinsurance]","BL/General liability insurance [direct business and accepted proportional reinsurance]","BL/Credit and suretyship insurance [direct business and accepted proportional reinsurance]","BL/Legal expenses insurance [direct business and accepted proportional reinsurance]","BL/Assistance [direct business and accepted proportional reinsurance]","BL/Miscellaneous financial loss [direct business and accepted proportional reinsurance]","BL/Health [accepted non-proportional reinsurance]","BL/Casualty [accepted non-proportional reinsurance]","BL/Marine, aviation, transport [accepted non-proportional reinsurance]","BL/Property [accepted non-proportional reinsurance]","BL/Non-life and Health non-SLT"]
[]
[]
["S.05.01.02.02"]
["Z Axis:"]
["VG/Statutory accounts"]
["DI/Year to Date"]
[]
["Life"]
[]
[null,null,"Line of Business for: life insurance obligations",null,null,null,null,null,"Life reinsurance obligations",null,"Total"]
[null,null,"Health insurance","Insurance with profit participation","Index-linked and unit-linked insurance","Other life insurance","Annuities stemming from non-life insurance contracts and relating to health insurance obligations","Annuities stemming from non-life insurance contracts and relating to insurance obligations other than health insurance obligations","Health reinsurance","Life reinsurance"]
[null,null,"C0210","C0220","C0230","C0240","C0250","C0260","C0270","C0280","C0300"]
["Premiums written"]
["Gross","R1410",null,null,null,null,null,null,null,null,null,"IZ/Accepted during the period","Metric: Monetary","BC/Premiums written"]
["Reinsurers' share","R1420",null,null,null,null,null,null,null,null,null,"IZ/Accepted during the period","Metric: Monetary","BC/Premiums written",null,"CC/Ceded"]
["Net","R1500",null,null,null,null,null,null,null,null,null,"IZ/Accepted during the period","Metric: Monetary","BC/Premiums written",null,"CC/Not ceded"]
["Premiums earned"]
["Gross","R1510",null,null,null,null,null,null,null,null,null,"IZ/Covered during the period","Metric: Monetary","BC/Premiums written"]
["Reinsurers' share","R1520",null,null,null,null,null,null,null,null,null,"IZ/Covered during the period","Metric: Monetary","BC/Premiums written",null,"CC/Ceded"]
["Net","R1600",null,null,null,null,null,null,null,null,null,"IZ/Covered during the period","Metric: Monetary","BC/Premiums written",null,"CC/Not ceded"]
["Claims incurred"]
["Gross","R1610",null,null,null,null,null,null,null,null,null,null,"Metric: Monetary","BC/Claims incurred"]
["Reinsurers' share","R1620",null,null,null,null,null,null,null,null,null,null,"Metric: Monetary","BC/Claims incurred",null,"CC/Ceded"]
["Net","R1700",null,null,null,null,null,null,null,null,null,null,"Metric: Monetary","BC/Claims incurred",null,"CC/Not ceded"]
["Changes in other technical provisions"]
["Gross","R1710",null,null,null,null,null,null,null,null,null,null,"Metric: Monetary","BC/Liability","LB/Gross technical provisions [local GAAP specific]"]
["Reinsurers' share","R1720",null,null,null,null,null,null,null,null,null,null,"Metric: Monetary","BC/Liability","LB/Gross technical provisions [local GAAP specific]","CC/Ceded"]
["Net","R1800",null,null,null,null,null,null,null,null,null,null,"Metric: Monetary","BC/Liability","LB/Gross technical provisions [local GAAP specific]","CC/Not ceded"]
["Expenses incurred","R1900",null,null,null,null,null,null,null,null,null,null,"Metric: Monetary","BC/Expenses","TE/Administration, investments management, claims management, acquisition and overhead","CC/Not ceded"]
["Other expenses","R2500",null,null,null,null,null,null,null,null,null,null,"Metric: Monetary","BC/Expenses","TE/Other than administration, investments management, claims management, acquisition and overhead","CC/Not ceded"]
["Total expenses","R2600",null,null,null,null,null,null,null,null,null,null,"Metric: Monetary","BC/Expenses",null,"CC/Not ceded"]
[null,null,"BL/Health SLT","BL/Insurance with profit participation","BL/Unit-linked or index-linked","BL/Other life","BL/Annuities stemming from non-life insurance contracts and relating to health insurance obligations","BL/Annuities stemming from non-life insurance contracts and relating to insurance obligations other than health insurance obligations","BL/Health SLT and annuities stemming from non-life insurance contracts and relating to health insurance obligations","BL/Life and annuities stemming from non-life insurance contracts and relating to insurance obligations other than health insurance obligations","BL/Life and Health SLT"]
[null,null,"TB/Direct Business","TB/Direct Business","TB/Direct Business","TB/Direct Business","TB/Direct Business","TB/Direct Business","TB/Reinsurance accepted","TB/Reinsurance accepted"]

{"sheet":"S.06.02.01","index":5,"n_rows":31,"n_cols":20,"rows_kept":31,"cut":false,"hidden":false,"merged":[]}
["S.06.02.01"]
["List of assets"]
[]
["S.06.02.01.01"]
["Z Axis:"]
["SU/Assets other than derivatives and Assets held as collateral"]
[]
["Information on positions held"]
[]
["Line identification","Asset ID Code and Type of code","Fund number","Matching portfolio number","Portfolio","Asset held in unit linked and index linked contracts","Asset pledged as collateral","Country of custody","Custodian","Quantity","Par amount","Valuation method","Acquisition value","Total Solvency II amount","Accrued interest"]
["C0001","C0040","C0070","C0080","C0060","C0090","C0100","C0110","C0120","C0130","C0140","C0150","C0160","C0170","C0180"]
[1,"ISIN/US0378331005",1,1,"General [no split]    {s2c_PU:x3}","  Unit-linked or index-linked    {s2c_LB:x119}","Collateral pledged [CP]    {s2c_CG:x4}","  KAZAKHSTAN    {s2c_GA:KZ}","abc",0,0,"Adjusted equity methods - applicable for the valuation of participations [AEM]    {s2c_VM:x2}",0,0,0]
[2,"ISIN/US0378331005",1,1,"General [no split]    {s2c_PU:x3}","  Unit-linked or index-linked    {s2c_LB:x119}","Collateral pledged [CP]    {s2c_CG:x4}","  KAZAKHSTAN    {s2c_GA:KZ}","abc",0,0,"Adjusted equity methods - applicable for the valuation of participations [AEM]    {s2c_VM:x2}",0,0,0]
["*artificial key*|\"mandatory\"","*foreign key to S.06.02.01.02*|\"mandatory\"","\"optional\"","\"optional\"","Metric: Portfolio (investment, securities lending and repo)[210]","Metric: Held in unit linked and index linked funds","Metric: Asset pledged as collateral","Metric: Country of custody (including not applicable)","Metric: String","Metric: Decimal","Metric: Monetary","Metric: Valuation method (Full scope)","Metric: Monetary","Metric: Monetary","Metric: Monetary"]
["XA: S.06.02.zz.01 line identification","UI: URI","NF: Number of fund","MP: Matching portfolio number",null,null,null,null,"TS/Custodian","DC/Quantity","TA/Notional amount",null,"TA/Acquisition value","VG/Solvency II","VG/Accrued interests"]
[null,null,null,null,null,null,null,null,null,null,"BC/Assets",null,"BC/Assets","BC/Assets","BC/Assets"]
[null,null,null,null,null,null,null,null,null,null,"VG/Solvency II",null,"VG/Solvency II"]
[]
["S.06.02.01.02"]
["Z Axis:"]
["SU/Assets other than derivatives and Assets held as collateral"]
[]
["Information on assets"]
[]
["Asset ID Code and Type of code","Item Title","Issuer Name","Issuer Code and Type of code","Issuer Sector","Issuer Group","Issuer Group Code and Type of code","Issuer Country","Currency","CIC","Infrastructure investment","Holdings in related undertakings, including participations","External rating","Nominated ECAI","Credit quality step","Internal rating","Duration","Unit Solvency II price","Unit percentage of par amount Solvency II price","Maturity date"]
["C0040","C0190","C0200","C0210","C0230","C0240","C0250","C0270","C0280","C0290","C0300","C0310","C0320","C0330","C0340","C0350","C0360","C0370","C0380","C0390"]
["ISIN/US0378331005","abc","abc","None","           A1.1.1 - Growing of cereals (except rice), leguminous crops and oil seeds    {s2c_NC:A0111}","abc","None","  KAZAKHSTAN    {s2c_GA:KZ}","  EUR    {s2c_CU:EUR}","FR11","  Not an infrastructure investment    {s2c_MC:x200}","Not a participation    {s2c_PU:x16}","abc","Euler Hermes Rating GmbH (LEI code: 391200QXGLWHK9VK6V27)    {s2c_SE:x131}","Credit quality step 0    {s2c_BR:x22}","abc",0,0,0,"2017-12-31"]
["*natural key*|\"mandatory\"","Metric: String","Metric: String","Metric: String","Metric: Issuer sector - NACE","Metric: String","Metric: String","Metric: Issuer Country (including not applicable)","Metric: Original currency of exposure/transaction/instrument","Metric: String","Metric: Infrastructure investment [210]","Metric: Participation (Full scope Individual)","Metric: String","Metric: Nominated ECAI","Metric: Credit quality step (Full scope)","Metric: String","Metric: Decimal","Metric: Monetary","Metric: Pure","Metric: Date"]
["UI: URI","TS/Item title","TS/Name of issuer/seller/transferor/receiver/reinsurer/provider","TS/Issuer code",null,"TS/Issuer group","TS/Issuer group code",null,null,"TS/CIC code",null,null,"TS/External rating",null,null,"TS/Internal rating","DC/Residual modified duration","TA/Unit price","VG/Solvency II without accrued interests","TD/Maturity date"]
[null,null,null,null,null,null,null,null,null,null,null,null,null,null,null,null,null,"VG/Solvency II without accrued interests","PP/Percentage of par value"]
[null,null,null,null,null,null,null,null,null,null,null,null,null,null,null,null,null,"BC/Assets"]

{"sheet":"CRT_Filters","index":6,"n_rows":997,"n_cols":43,"rows_kept":997,"cut":false,"hidden":true,"merged":[]}
["Total/NA    {s2c_CU:x0}","Bankruptcy of the underlying or reference entity [B]    {s2c_LT:x4}","Life [split applicable]    {s2c_PU:x10}","Total/NA    {s2c_LB:x0}","Micro hedge [MI]    {s2c_PU:x12}","L [closed]    {s2c_MC:x162}","Credit quality step 0    {s2c_BR:x22}","L [open]    {s2c_MC:x163}","Quoted market price in active markets for the same assets or liabilities    {s2c_VM:x43}","Government Bonds    {s2c_MC:x175}","Not applicable/All geographical areas    {s2c_GA:x0}","Local    {s2c_CU:x1}","Total/NA    {s2c_NC:x0}","Not applicable/All geographical areas    {s2c_GA:x0}","Total/NA    {s2c_MC:x0}","Not a participation    {s2c_PU:x16}","Collateral pledged [CP]    {s2c_CG:x4}","Not applicable/All geographical areas    {s2c_GA:x0}","Quoted market price in active markets for the same assets    {s2c_VM:x86}","Undertakings pursuing both life and non-life insurance activity - article 73 (2)    {s2c_SE:x129}","Total/NA    {s2c_LA:x0}","Regular reporting    {s2c_CS:x35}","Total/NA    {s2c_CU:x0}","IFRS    {s2c_AM:x45}","Standard formula    {s2c_AP:x3}","Use of undertaking specific parameters    {s2c_AP:x5}","Reporting activity by RFF    {s2c_PU:x4}","Use of matching adjustment    {s2c_PU:x51}","Use of volatility adjustment    {s2c_AP:x7}","Use of transitional measure on the risk-free interest rate    {s2c_AP:x9}","Use of transitional measure on technical provisions    {s2c_AP:x11}","Initial submission    {s2c_CS:x37}","Reported    {s2c_CN:x1}","Reported    {s2c_CN:x1}","Reported    {s2c_CN:x1}","Reported    {s2c_CN:x1}","Reported    {s2c_CN:x1}","Reported    {s2c_CN:x1}","Reported    {s2c_CN:x1}","Reported    {s2c_CN:x1}","Reported    {s2c_CN:x1}","Reported    {s2c_CN:x1}","Euler Hermes Rating GmbH (LEI code: 391200QXGLWHK9VK6V27)    {s2c_SE:x131}"]
["  EUR    {s2c_CU:EUR}","Adverse fall in value of the underlying reference asset [F]    {s2c_LT:x2}","Non-life [split applicable]    {s2c_PU:x13}","  Unit-linked or index-linked    {s2c_LB:x119}","Macro hedge [MA]    {s2c_PU:x11}","S [closed]    {s2c_MC:x130}","Credit quality step 1    {s2c_BR:x23}","S [open]    {s2c_MC:x131}","Quoted market price in active markets for similar assets or liabilities    {s2c_VM:x42}","Corporate Bonds    {s2c_MC:x176}","  AFGHANISTAN    {s2c_GA:AF}","Foreign    {s2c_CU:x2}","  A - Agriculture, forestry and fishing    {s2c_NC:A}","  AFGHANISTAN    {s2c_GA:AF}","  Not an infrastructure investment    {s2c_MC:x200}","Is a participation    {s2c_PU:x85}","Collateral for reinsurance accepted [CR]    {s2c_CG:x2}","  AFGHANISTAN    {s2c_GA:AF}","Quoted market price in active markets for similar assets    {s2c_VM:x87}","Undertakings pursuing both life and non-life insurance activity - article 73 (5)    {s2c_SE:x130}","  Afar    {s2c_LA:aa}","Ad-hoc reporting    {s2c_CS:x36}","  EUR    {s2c_CU:EUR}","Local GAAP    {s2c_AM:x50}","Partial internal model    {s2c_AP:x2}","Don’t use undertaking specific parameters    {s2c_AP:x6}","Not reporting activity by RFF    {s2c_PU:x17}","No use of matching adjustment    {s2c_PU:x52}","No use of volatility adjustment    {s2c_AP:x8}","No use of transitional measure on the risk-free interest rate    {s2c_AP:x10}","No use of transitional measure on technical provisions    {s2c_AP:x12}","Re-submission    {s2c_CS:x38}",null,"Exempted under Article 35 (6) to (8)    {s2c_CN:x22}","Exempted under Article 35 (6) to (8)    {s2c_CN:x22}","Exempted under Article 35 (6) to (8)    {s2c_CN:x22}","Not reported as no Collective investment undertakings    {s2c_CN:x21}","Not reported o/a no derivative transactions    {s2c_CN:x3}","Not reported o/a no life and health SLT business    {s2c_CN:x4}","Not reported o/a no non-life business    {s2c_CN:x6}","Not reported as both life and non-life insurance or reinsurance activity    {s2c_CN:x61}","Not reported as only life or only non-life insurance or reinsurance activity or only reinsurance activity    {s2c_CN:x62}","Japan Credit Rating Agency Ltd (LEI code: 35380002378CEGMRVW86)    {s2c_SE:x132}"]
["  AED    {s2c_CU:AED}","Adverse change in credit rating of the underlying assets or entity [R]    {s2c_LT:x1}","Ring Fenced Funds    {s2c_PU:x96}","  Neither unit-linked nor index-linked    {s2c_LB:x91}","Matching assets and liabilities cash-flows used in the context of matching adjustment portfolios    {s2c_PU:x58}","FX-FL [closed]    {s2c_MC:x58}","Credit quality step 2    {s2c_BR:x24}","FX-FL [open]    {s2c_MC:x59}","Alternative valuation methods    {s2c_VM:x3}","Listed equity    {s2c_MC:x40}","  ÅLAND ISLANDS    {s2c_GA:AX}",null,"     A1 - Crop and animal production, hunting and related service activities    {s2c_NC:A01}","  ÅLAND ISLANDS    {s2c_GA:AX}","  Government Guarantee    {s2c_MC:x196}",null,"Collateral for securities borrowed [CB]    {s2c_CG:x3}","  ÅLAND ISLANDS    {s2c_GA:AX}","Alternative valuation methods    {s2c_VM:x3}","Life undertakings    {s2c_SE:x95}","  Abkhazian    {s2c_LA:ab}",null,"  AED    {s2c_CU:AED}",null,"Full internal model    {s2c_AP:x1}",null,null,null,null,null,null,null,null,"Not reported other reason    {s2c_CN:x2}","Not reported other reason    {s2c_CN:x2}","Not due as no material changes since quarterly submission    {s2c_CN:x23}","Not due in accordance with instructions of the template    {s2c_CN:x19}","Exempted under Article 35 (6) to (8)    {s2c_CN:x22}","Exempted under Article 35 (6) to (8)    {s2c_CN:x22}","Exempted under Article 35 (6) to (8)    {s2c_CN:x22}","Not reported other reason    {s2c_CN:x2}","Not reported other reason    {s2c_CN:x2}","BCRA-Credit Rating Agency AD (LEI code: 747800Z0IC3P66HTQ142)    {s2c_SE:x133}"]
["  AFN    {s2c_CU:AFN}","Novation [N]    {s2c_LT:x18}","Other internal funds    {s2c_PU:x57}",null,"Efficient portfolio management, other than “Matching assets and liabilities cash-flows used in the context of matching adjustment portfolios”    {s2c_PU:x59}","FX-FX [closed]    {s2c_MC:x60}","Credit quality step 3    {s2c_BR:x25}","FX-FX [open]    {s2c_MC:x61}","Market valuation according to article 9(4) of Delegated Regulation 2015/35    {s2c_VM:x88}","Unlisted equity    {s2c_MC:x41}","  ALBANIA    {s2c_GA:AL}",null,"        A1.1 - Growing of non-perennial crops    {s2c_NC:A011}","  ALBANIA    {s2c_GA:AL}","     Infrastructure non-qualifying: Government Guarantee [Government, Central bank, Regional government or local authority]    {s2c_MC:x253}",null,"Repos [R]    {s2c_CG:x22}","  ALBANIA    {s2c_GA:AL}","Adjusted equity methods - applicable for the valuation of participations [AEM]    {s2c_VM:x2}","Non-Life undertakings    {s2c_SE:x96}","  Avestan    {s2c_LA:ae}",null,"  AFN    {s2c_CU:AFN}",null,null,null,null,null,null,null,null,null,null,null,null,"Not reported other reason    {s2c_CN:x2}","Exempted under Article 35 (6) to (8)    {s2c_CN:x22}","Not due as no material changes since quarterly submission    {s2c_CN:x23}","Not reported other reason    {s2c_CN:x2}","Not reported other reason    {s2c_CN:x2}",null,null,"Creditreform Rating AG (LEI code: 391200PHL11KDUTTST66)    {s2c_SE:x134}"]
["  ALL    {s2c_CU:ALL}","Multiple events or a combination of events [M]    {s2c_LT:x16}","Shareholders' funds    {s2c_PU:x49}",null,null,"FL-FX [closed]    {s2c_MC:x55}","Credit quality step 4    {s2c_BR:x26}","FL-FX [open]    {s2c_MC:x56}",null,"Collective investments undertakings    {s2c_MC:x177}","  ALGERIA    {s2c_GA:DZ}",null,"           A1.1.1 - Growing of cereals (except rice), leguminous crops and oil seeds    {s2c_NC:A0111}","  ALGERIA    {s2c_GA:DZ}","     Infrastructure qualifying: Government Guarantee [Government, Central bank, Regional government or local authority]    {s2c_MC:x254}",null,"Not collateral    {s2c_CG:x15}","  ALGERIA    {s2c_GA:DZ}","IFRS equity methods - applicable for the valuation of participations [IEM]    {s2c_VM:x22}",null,"  Afrikaans    {s2c_LA:af}",null,"  ALL    {s2c_CU:ALL}",null,null,null,null,null,null,null,null,null,null,null,null,null,"Not due as no material changes since quarterly submission    {s2c_CN:x23}","Not reported other reason    {s2c_CN:x2}",null,null,null,null,"Scope Ratings AG (previously PSR Rating GmbH) (LEI code: 391200WU1EZUQFHDWE91)    {s2c_SE:x135}"]
["  AMD    {s2c_CU:AMD}","Other events [O]    {s2c_LT:x19}","General [no split]    {s2c_PU:x3}",null,null,"FL-FL [closed]    {s2c_MC:x53}","Credit quality step 5    {s2c_BR:x27}","FL-FL [open]    {s2c_MC:x54}",null,"Structured notes    {s2c_MC:x136}","  AMERICAN SAMOA    {s2c_GA:AS}",null,"           A1.1.2 - Growing of rice    {s2c_NC:A0112}","  AMERICAN SAMOA    {s2c_GA:AS}","  Government Supported including Public Finance initiative (PFI)    {s2c_MC:x197}",null,null,"  AMERICAN SAMOA    {s2c_GA:AS}","Market valuation according to article 9(4) of Delegated Regulation 2015/35    {s2c_VM:x88}",null,"  Akan    {s2c_LA:ak}",null,"  AMD    {s2c_CU:AMD}",null,null,null,null,null,null,null,null,null,null,null,null,null,"Not reported other reason    {s2c_CN:x2}",null,null,null,null,null,"ICAP Group SA (LEI code: 2138008U6LKT8VG2UK85)    {s2c_SE:x136}"]
["  ANG    {s2c_CU:ANG}","No unwind trigger    {s2c_LT:x25}",null,null,null,null,"Credit quality step 6    {s2c_BR:x28}",null,null,"Collateralised securities    {s2c_MC:x18}","  ANDORRA    {s2c_GA:AD}",null,"           A1.1.3 - Growing of vegetables and melons, roots and tubers    {s2c_NC:A0113}","  ANDORRA    {s2c_GA:AD}","     Infrastructure non-qualifying: Government Supported including Public Finance initiative [Government, Central bank, Regional government or local authority]    {s2c_MC:x255}",null,null,"  ANDORRA    {s2c_GA:AD}",null,null,"  Amharic    {s2c_LA:am}",null,"  ANG    {s2c_CU:ANG}",null,null,null,null,null,null,null,null,null,null,null,null,null,null,null,null,null,null,null,"GBB-Rating Gesellschaft für Bonitätsbeurteilung GmbH (LEI code: 391200OLWXCTKPADVV72)    {s2c_SE:x137}"]
["  AOA    {s2c_CU:AOA}",null,null,null,null,null,"No rating available    {s2c_BR:x29}",null,null,"Cash and deposits    {s2c_MC:x186}","  ANGOLA    {s2c_GA:AO}",null,"           A1.1.4 - Growing of sugar cane    {s2c_NC:A0114}","  ANGOLA    {s2c_GA:AO}","     Infrastructure qualifying: Government Supported including Public Finance initiative [Government, Central bank, Regional government or local authority]    {s2c_MC:x256}",null,null,"  ANGOLA    {s2c_GA:AO}",null,null,"  Aragonese    {s2c_LA:an}",null,"  AOA    {s2c_CU:AOA}",null,null,null,null,null,null,null,null,null,null,null,null,null,null,null,null,null,null,null,"ASSEKURATA Assekuranz Rating-Agentur GmbH (LEI code: 529900977LETWLJF3295)    {s2c_SE:x138}"]
["  ARS    {s2c_CU:ARS}",null,null,null,null,null,null,null,null,"Mortgages and loans    {s2c_MC:x81}","  ANGUILLA    {s2c_GA:AI}",null,"           A1.1.5 - Growing of tobacco    {s2c_NC:A0115}","  ANGUILLA    {s2c_GA:AI}","  Supranational Guarantee/Supported    {s2c_MC:x198}",null,null,"  ANTARCTICA    {s2c_GA:AQ}",null,null,"  Arabic    {s2c_LA:ar}",null,"  ARS    {s2c_CU:ARS}",null,null,null,null,null,null,null,null,null,null,null,null,null,null,null,null,null,null,null,"ARC Ratings, S.A. (previously Companhia Portuguesa de Rating, S.A) (LEI code: 213800OZNJQMV6UA7D79)    {s2c_SE:x139}"]
["  AUD    {s2c_CU:AUD}",null,null,null,null,null,null,null,null,"Properties    {s2c_MC:x115}","  ANTARCTICA    {s2c_GA:AQ}",null,"           A1.1.6 - Growing of fibre crops    {s2c_NC:A0116}","  ANTARCTICA    {s2c_GA:AQ}","     Infrastructure non-qualifying: Supranational Guarantee/Supported [ECB, Multilateral development bank, International organisation]    {s2c_MC:x257}",null,null,"  ANTIGUA AND BARBUDA    {s2c_GA:AG}",null,null,"  Assamese    {s2c_LA:as}",null,"  AUD    {s2c_CU:AUD}",null,null,null,null,null,null,null,null,null,null,null,null,null,null,null,null,null,null,null,"AM Best Europe-Rating Services Ltd. (AMBERS) (LEI code: 549300VO8J8E5IQV1T26)    {s2c_SE:x140}"]
["  AWG    {s2c_CU:AWG}",null,null,null,null,null,null,null,null,"Other investments    {s2c_MC:x179}","  ANTIGUA AND BARBUDA    {s2c_GA:AG}",null,"           A1.1.9 - Growing of other non-perennial crops    {s2c_NC:A0119}","  ANTIGUA AND BARBUDA    {s2c_GA:AG}","     Infrastructure qualifying: Supranational Guarantee/Supported [ECB, Multilateral development bank, International organisation]    {s2c_MC:x258}",null,null,"  ARGENTINA    {s2c_GA:AR}",null,null,"  Avaric    {s2c_LA:av}",null,"  AWG    {s2c_CU:AWG}",null,null,null,null,null,null,null,null,null,null,null,null,null,null,null,null,null,null,null,"DBRS Ratings Limited (LEI code: 5493008CGCDQLGT3EH93)    {s2c_SE:x141}"]
["  AZN    {s2c_CU:AZN}",null,null,null,null,null,null,null,null,"Futures    {s2c_MC:x34}","  ARGENTINA    {s2c_GA:AR}",null,"        A1.2 - Growing of perennial crops    {s2c_NC:A012}","  ARGENTINA    {s2c_GA:AR}","  Other infrastructure loans or investments    {s2c_MC:x199}",null,null,"  ARMENIA    {s2c_GA:AM}",null,null,"  Aymara    {s2c_LA:ay}",null,"  AZN    {s2c_CU:AZN}",null,null,null,null,null,null,null,null,null,null,null,null,null,null,null,null,null,null,null,"Fitch France S.A.S. (LEI code: 2138009Y4TCZT6QOJO69)    {s2c_SE:x142}"]
["  BAM    {s2c_CU:BAM}",null,null,null,null,null,null,null,null,"Call Options    {s2c_MC:x201}","  ARMENIA    {s2c_GA:AM}",null,"           A1.2.1 - Growing of grapes    {s2c_NC:A0121}","  ARMENIA    {s2c_GA:AM}","     Infrastructure non-qualifying: Other non-qualifying infrastructure loans or investments, not classified under the above categories    {s2c_MC:x259}",null,null,"  ARUBA    {s2c_GA:AW}",null,null,"  Azerbaijani    {s2c_LA:az}",null,"  BAM    {s2c_CU:BAM}",null,null,null,null,null,null,null,null,null,null,null,null,null,null,null,null,null,null,null,"Fitch Deutschland GmbH (LEI code: 213800JEMOT1H45VN340)    {s2c_SE:x143}"]
["  BBD    {s2c_CU:BBD}",null,null,null,null,null,null,null,null,"Put Options    {s2c_MC:x202}","  ARUBA    {s2c_GA:AW}",null,"           A1.2.2 - Growing of tropical and subtropical fruits    {s2c_NC:A0122}","  ARUBA    {s2c_GA:AW}","     Infrastructure qualifying: Other qualifying infrastructure investments, not classified in the above categories    {s2c_MC:x260}",null,null,"  AUSTRALIA    {s2c_GA:AU}",null,null,"  Bashkir    {s2c_LA:ba}",null,"  BBD    {s2c_CU:BBD}",null,null,null,null,null,null,null,null,null,null,null,null,null,null,null,null,null,null,null,"Fitch Italia S.p.A. (LEI code: 213800POJ9QSCHL3KR31)    {s2c_SE:x144}"]
["  BDT    {s2c_CU:BDT}",null,null,null,null,null,null,null,null,"Swaps    {s2c_MC:x150}","  AUSTRALIA    {s2c_GA:AU}",null,"           A1.2.3 - Growing of citrus fruits    {s2c_NC:A0123}","  AUSTRALIA    {s2c_GA:AU}","  European Long-Term Investment Fund    {s2c_MC:x262}",null,null,"  AUSTRIA    {s2c_GA:AT}",null,null,"  Belarusian    {s2c_LA:be}",null,"  BDT    {s2c_CU:BDT}",null,null,null,null,null,null,null,null,null,null,null,null,null,null,null,null,null,null,null,"Fitch Polska S.A. (LEI code: 213800RYJTJPW2WD5704)    {s2c_SE:x145}"]
["  BGN    {s2c_CU:BGN}",null,null,null,null,null,null,null,null,"Forwards    {s2c_MC:x33}","  AUSTRIA    {s2c_GA:AT}",null,"           A1.2.4 - Growing of pome fruits and stone fruits    {s2c_NC:A0124}","  AUSTRIA    {s2c_GA:AT}",null,null,null,"  AZERBAIJAN    {s2c_GA:AZ}",null,null,"  Bulgarian    {s2c_LA:bg}",null,"  BGN    {s2c_CU:BGN}",null,null,null,null,null,null,null,null,null,null,null,null,null,null,null,null,null,null,null,"Fitch Ratings España S.A.U. (LEI code: 213800RENFIIODKETE60)    {s2c_SE:x146}"]
["  BHD    {s2c_CU:BHD}",null,null,null,null,null,null,null,null,"Credit derivatives    {s2c_MC:x25}","  AZERBAIJAN    {s2c_GA:AZ}",null,"           A1.2.5 - Growing of other tree and bush fruits and nuts    {s2c_NC:A0125}","  AZERBAIJAN    {s2c_GA:AZ}",null,null,null,"  BAHAMAS    {s2c_GA:BS}",null,null,"  Bihari languages    {s2c_LA:bh}",null,"  BHD    {s2c_CU:BHD}",null,null,null,null,null,null,null,null,null,null,null,null,null,null,null,null,null,null,null,"Fitch Ratings Limited (LEI code: 2138009F8YAHVC8W3Q52)    {s2c_SE:x147}"]
["  BIF    {s2c_CU:BIF}",null,null,null,null,null,null,null,null,"Liabilities    {s2c_MC:x195}","  BAHAMAS    {s2c_GA:BS}",null,"           A1.2.6 - Growing of oleaginous fruits    {s2c_NC:A0126}","  BAHAMAS    {s2c_GA:BS}",null,null,null,"  BAHRAIN    {s2c_GA:BH}",null,null,"  Bislama    {s2c_LA:bi}",null,"  BIF    {s2c_CU:BIF}",null,null,null,null,null,null,null,null,null,null,null,null,null,null,null,null,null,null,null,"Fitch Ratings CIS Limited (LEI code: 213800B7528Q4DIF2G76)    {s2c_SE:x148}"]
["  BMD    {s2c_CU:BMD}",null,null,null,null,null,null,null,null,null,"  BAHRAIN    {s2c_GA:BH}",null,"           A1.2.7 - Growing of beverage crops    {s2c_NC:A0127}","  BAHRAIN    {s2c_GA:BH}",null,null,null,"  BANGLADESH    {s2c_GA:BD}",null,null,"  Bambara    {s2c_LA:bm}",null,"  BMD    {s2c_CU:BMD}",null,null,null,null,null,null,null,null,null,null,null,null,null,null,null,null,null,null,null,"Moody’s Investors Service Cyprus Ltd (LEI code: 549300V4LCOYCMNUVR81)    {s2c_SE:x149}"]
["  BND    {s2c_CU:BND}",null,null,null,null,null,null,null,null,null,"  BANGLADESH    {s2c_GA:BD}",null,"           A1.2.8 - Growing of spices, aromatic, drug and pharmaceutical crops    {s2c_NC:A0128}","  BANGLADESH    {s2c_GA:BD}",null,null,null,"  BARBADOS    {s2c_GA:BB}",null,null,"  Bengali    {s2c_LA:bn}",null,"  BND    {s2c_CU:BND}",null,null,null,null,null,null,null,null,null,null,null,null,null,null,null,null,null,null,null,"Moody’s France S.A.S. (LEI code: 549300EB2XQYRSE54F02)    {s2c_SE:x150}"]
["  BOB    {s2c_CU:BOB}",null,null,null,null,null,null,null,null,null,"  BARBADOS    {s2c_GA:BB}",null,"           A1.2.9 - Growing of other perennial crops    {s2c_NC:A0129}","  BARBADOS    {s2c_GA:BB}",null,null,null,"  BELARUS    {s2c_GA:BY}",null,null,"  Tibetan    {s2c_LA:bo}",null,"  BOB    {s2c_CU:BOB}",null,null,null,null,null,null,null,null,null,null,null,null,null,null,null,null,null,null,null,"Moody’s Deutschland GmbH (LEI code: 549300M5JMGHVTWYZH47)    {s2c_SE:x151}"]
["  BOV    {s2c_CU:BOV}",null,null,null,null,null,null,null,null,null,"  BELARUS    {s2c_GA:BY}",null,"        A1.3 - Plant propagation    {s2c_NC:A013}","  BELARUS    {s2c_GA:BY}",null,null,null,"  BELGIUM    {s2c_GA:BE}",null,null,"  Breton    {s2c_LA:br}",null,"  BOV    {s2c_CU:BOV}",null,null,null,null,null,null,null,null,null,null,null,null,null,null,null,null,null,null,null,"Moody’s Italia S.r.l. (LEI code: 549300GMXJ4QK70UOU68)    {s2c_SE:x152}"]
["  BRL    {s2c_CU:BRL}",null,null,null,null,null,null,null,null,null,"  BELGIUM    {s2c_GA:BE}",null,"           A1.3.0 - Plant propagation    {s2c_NC:A0130}","  BELGIUM    {s2c_GA:BE}",null,null,null,"  BELIZE    {s2c_GA:BZ}",null,null,"  Bosnian    {s2c_LA:bs}",null,"  BRL    {s2c_CU:BRL}",null,null,null,null,null,null,null,null,null,null,null,null,null,null,null,null,null,null,null,"Moody’s Investors Service España S.A. (LEI code: 5493005X59ILY4BGJK90)    {s2c_SE:x153}"]
["  BSD    {s2c_CU:BSD}",null,null,null,null,null,null,null,null,null,"  BELIZE    {s2c_GA:BZ}",null,"        A1.4 - Animal production    {s2c_NC:A014}","  BELIZE    {s2c_GA:BZ}",null,null,null,"  BENIN    {s2c_GA:BJ}",null,null,"  Catalan    {s2c_LA:ca}",null,"  BSD    {s2c_CU:BSD}",null,null,null,null,null,null,null,null,null,null,null,null,null,null,null,null,null,null,null,"Moody’s Investors Service Ltd (LEI code: 549300SM89WABHDNJ349)    {s2c_SE:x154}"]
["  BTN    {s2c_CU:BTN}",null,null,null,null,null,null,null,null,null,"  BENIN    {s2c_GA:BJ}",null,"           A1.4.1 - Raising of dairy cattle    {s2c_NC:A0141}","  BENIN    {s2c_GA:BJ}",null,null,null,"  BHUTAN    {s2c_GA:BT}",null,null,"  Chechen    {s2c_LA:ce}",null,"  BTN    {s2c_CU:BTN}",null,null,null,null,null,null,null,null,null,null,null,null,null,null,null,null,null,null,null,"S&P Global Ratings France SAS (LEI code: 54930035REY2YCDSBH09)    {s2c_SE:x155}"]
["  BWP    {s2c_CU:BWP}",null,null,null,null,null,null,null,null,null,"  BERMUDA    {s2c_GA:BM}",null,"           A1.4.2 - Raising of other cattle and buffaloes    {s2c_NC:A0142}","  BERMUDA    {s2c_GA:BM}",null,null,null,"  BOLIVIA, PLURINATIONAL STATE OF    {s2c_GA:BO}",null,null,"  Chamorro    {s2c_LA:ch}",null,"  BWP    {s2c_CU:BWP}",null,null,null,null,null,null,null,null,null,null,null,null,null,null,null,null,null,null,null,"S&P Global Ratings Italy S.R.L. (LEI code: 54930000NMOJ7ZBUQ063)    {s2c_SE:x156}"]
["  BYN    {s2c_CU:BYN}",null,null,null,null,null,null,null,null,null,"  BHUTAN    {s2c_GA:BT}",null,"           A1.4.3 - Raising of horses and other equines    {s2c_NC:A0143}","  BHUTAN    {s2c_GA:BT}",null,null,null,"  BONAIRE, SINT EUSTATIUS AND SABA    {s2c_GA:BQ}",null,null,"  Corsican    {s2c_LA:co}",null,"  BYN    {s2c_CU:BYN}",null,null,null,null,null,null,null,null,null,null,null,null,null,null,null,null,null,null,null,"Standard & Poor’s Credit Market Services Europe Limited (LEI code: 549300363WVTTH0TW460)    {s2c_SE:x157}"]
["  BYR    {s2c_CU:BYR}",null,null,null,null,null,null,null,null,null,"  BOLIVIA, PLURINATIONAL STATE OF    {s2c_GA:BO}",null,"           A1.4.4 - Raising of camels and camelids    {s2c_NC:A0144}","  BOLIVIA, PLURINATIONAL STATE OF    {s2c_GA:BO}",null,null,null,"  BOSNIA AND HERZEGOVINA    {s2c_GA:BA}",null,null,"  Cree    {s2c_LA:cr}",null,"  BYR    {s2c_CU:BYR}",null,null,null,null,null,null,null,null,null,null,null,null,null,null,null,null,null,null,null,"CRIF Ratings S.r.l. (previously CRIF S.p.a.) (LEI code: 8156001AB6A1D740F237)    {s2c_SE:x158}"]
["  BZD    {s2c_CU:BZD}",null,null,null,null,null,null,null,null,null,"  BONAIRE, SINT EUSTATIUS AND SABA    {s2c_GA:BQ}",null,"           A1.4.5 - Raising of sheep and goats    {s2c_NC:A0145}","  BONAIRE, SINT EUSTATIUS AND SABA    {s2c_GA:BQ}",null,null,null,"  BOTSWANA    {s2c_GA:BW}",null,null,"  Czech    {s2c_LA:cs}",null,"  BZD    {s2c_CU:BZD}",null,null,null,null,null,null,null,null,null,null,null,null,null,null,null,null,null,null,null,"Capital Intelligence Ratings Ltd (LEI code: 549300RE88OJP9J24Z18)    {s2c_SE:x159}"]
["  CAD    {s2c_CU:CAD}",null,null,null,null,null,null,null,null,null,"  BOSNIA AND HERZEGOVINA    {s2c_GA:BA}",null,"           A1.4.6 - Raising of swine/pigs    {s2c_NC:A0146}","  BOSNIA AND HERZEGOVINA    {s2c_GA:BA}",null,null,null,"  BOUVET ISLAND    {s2c_GA:BV}",null,null,"  Church Slavic    {s2c_LA:cu}",null,"  CAD    {s2c_CU:CAD}",null,null,null,null,null,null,null,null,null,null,null,null,null,null,null,null,null,null,null,"European Rating Agency, a.s. (LEI code: 097900BFME0000038276)    {s2c_SE:x160}"]
["  CDF    {s2c_CU:CDF}",null,null,null,null,null,null,null,null,null,"  BOTSWANA    {s2c_GA:BW}",null,"           A1.4.7 - Raising of poultry    {s2c_NC:A0147}","  BOTSWANA    {s2c_GA:BW}",null,null,null,"  BRAZIL    {s2c_GA:BR}",null,null,"  Chuvash    {s2c_LA:cv}",null,"  CDF    {s2c_CU:CDF}",null,null,null,null,null,null,null,null,null,null,null,null,null,null,null,null,null,null,null,"Axesor conocer para decidir SA (LEI code: 95980020140005900000)    {s2c_SE:x161}"]
["  CHE    {s2c_CU:CHE}",null,null,null,null,null,null,null,null,null,"  BOUVET ISLAND    {s2c_GA:BV}",null,"           A1.4.9 - Raising of other animals    {s2c_NC:A0149}","  BOUVET ISLAND    {s2c_GA:BV}",null,null,null,"  BRUNEI DARUSSALAM    {s2c_GA:BN}",null,null,"  Welsh    {s2c_LA:cy}",null,"  CHE    {s2c_CU:CHE}",null,null,null,null,null,null,null,null,null,null,null,null,null,null,null,null,null,null,null,"Cerved Rating Agency S.p.A. (previously CERVED Group S.p.A. ) (LEI code: 8156004AB6C992A99368)    {s2c_SE:x162}"]
["  CHF    {s2c_CU:CHF}",null,null,null,null,null,null,null,null,null,"  BRAZIL    {s2c_GA:BR}",null,"        A1.5 - Mixed farming    {s2c_NC:A015}","  BRAZIL    {s2c_GA:BR}",null,null,null,"  BULGARIA    {s2c_GA:BG}",null,null,"  Danish    {s2c_LA:da}",null,"  CHF    {s2c_CU:CHF}",null,null,null,null,null,null,null,null,null,null,null,null,null,null,null,null,null,null,null,"Kroll Bond Rating Agency (LEI code: 549300QYZ5CZYXTNZ676)    {s2c_SE:x163}"]
["  CHW    {s2c_CU:CHW}",null,null,null,null,null,null,null,null,null,"  BRITISH INDIAN OCEAN TERRITORY    {s2c_GA:IO}",null,"           A1.5.0 - Mixed farming    {s2c_NC:A0150}","  BRITISH INDIAN OCEAN TERRITORY    {s2c_GA:IO}",null,null,null,"  BURKINA FASO    {s2c_GA:BF}",null,null,"  German    {s2c_LA:de}",null,"  CHW    {s2c_CU:CHW}",null,null,null,null,null,null,null,null,null,null,null,null,null,null,null,null,null,null,null,"The Economist Intelligence Unit Ltd (LEI code: 213800Q7GRZWF95EWN10)    {s2c_SE:x164}"]
["  CLF    {s2c_CU:CLF}",null,null,null,null,null,null,null,null,null,"  BRUNEI DARUSSALAM    {s2c_GA:BN}",null,"        A1.6 - Support activities to agriculture and post-harvest crop activities    {s2c_NC:A016}","  BRUNEI DARUSSALAM    {s2c_GA:BN}",null,null,null,"  BURUNDI    {s2c_GA:BI}",null,null,"  Dhivehi    {s2c_LA:dv}",null,"  CLF    {s2c_CU:CLF}",null,null,null,null,null,null,null,null,null,null,null,null,null,null,null,null,null,null,null,"Dagong Europe Credit Rating Srl (Dagong Europe) (LEI code: 815600BF4FF53B7C6311)    {s2c_SE:x165}"]
["  CLP    {s2c_CU:CLP}",null,null,null,null,null,null,null,null,null,"  BULGARIA    {s2c_GA:BG}",null,"           A1.6.1 - Support activities for crop production    {s2c_NC:A0161}","  BULGARIA    {s2c_GA:BG}",null,null,null,"  CAMBODIA    {s2c_GA:KH}",null,null,"  Dzongkha    {s2c_LA:dz}",null,"  CLP    {s2c_CU:CLP}",null,null,null,null,null,null,null,null,null,null,null,null,null,null,null,null,null,null,null,"Spread Research (LEI code: 969500HB6BVM2UJDOC52)    {s2c_SE:x166}"]
["  CNY    {s2c_CU:CNY}",null,null,null,null,null,null,null,null,null,"  BURKINA FASO    {s2c_GA:BF}",null,"           A1.6.2 - Support activities for animal production    {s2c_NC:A0162}","  BURKINA FASO    {s2c_GA:BF}",null,null,null,"  CAMEROON    {s2c_GA:CM}",null,null,"  Ewe    {s2c_LA:ee}",null,"  CNY    {s2c_CU:CNY}",null,null,null,null,null,null,null,null,null,null,null,null,null,null,null,null,null,null,null,"EuroRating Sp. z o.o. (LEI code: 25940027QWS5GMO74O03)    {s2c_SE:x167}"]
["  COP    {s2c_CU:COP}",null,null,null,null,null,null,null,null,null,"  BURUNDI    {s2c_GA:BI}",null,"           A1.6.3 - Post-harvest crop activities    {s2c_NC:A0163}","  BURUNDI    {s2c_GA:BI}",null,null,null,"  CANADA    {s2c_GA:CA}",null,null,"  Modern Greek (1453-)    {s2c_LA:el}",null,"  COP    {s2c_CU:COP}",null,null,null,null,null,null,null,null,null,null,null,null,null,null,null,null,null,null,null,"HR Ratings de México, S.A. de C.V. (HR Ratings) (LEI code: 549300IFL3XJKTRHZ480)    {s2c_SE:x168}"]
["  COU    {s2c_CU:COU}",null,null,null,null,null,null,null,null,null,"  CAMBODIA    {s2c_GA:KH}",null,"           A1.6.4 - Seed processing for propagation    {s2c_NC:A0164}","  CAMBODIA    {s2c_GA:KH}",null,null,null,"  CAPE VERDE    {s2c_GA:CV}",null,null,"  English    {s2c_LA:en}",null,"  COU    {s2c_CU:COU}",null,null,null,null,null,null,null,null,null,null,null,null,null,null,null,null,null,null,null,"Moody’s Investors Service EMEA Ltd (LEI code: 54930009NU3JYS1HTT72)    {s2c_SE:x169}"]
["  CRC    {s2c_CU:CRC}",null,null,null,null,null,null,null,null,null,"  CAMEROON    {s2c_GA:CM}",null,"        A1.7 - Hunting, trapping and related service activities    {s2c_NC:A017}","  CAMEROON    {s2c_GA:CM}",null,null,null,"  CENTRAL AFRICAN REPUBLIC    {s2c_GA:CF}",null,null,"  Esperanto    {s2c_LA:eo}",null,"  CRC    {s2c_CU:CRC}",null,null,null,null,null,null,null,null,null,null,null,null,null,null,null,null,null,null,null,"Egan-Jones Ratings Co. (EJR) (LEI code: 54930016113PD33V1H31)    {s2c_SE:x170}"]
["  CUC    {s2c_CU:CUC}",null,null,null,null,null,null,null,null,null,"  CANADA    {s2c_GA:CA}",null,"           A1.7.0 - Hunting, trapping and related service activities    {s2c_NC:A0170}","  CANADA    {s2c_GA:CA}",null,null,null,"  CHAD    {s2c_GA:TD}",null,null,"  Spanish    {s2c_LA:es}",null,"  CUC    {s2c_CU:CUC}",null,null,null,null,null,null,null,null,null,null,null,null,null,null,null,null,null,null,null,"modeFinance S.r.l. (LEI code: 815600B85A94A0122614)    {s2c_SE:x171}"]
["  CUP    {s2c_CU:CUP}",null,null,null,null,null,null,null,null,null,"  CAPE VERDE    {s2c_GA:CV}",null,"     A2 - Forestry and logging    {s2c_NC:A02}","  CAPE VERDE    {s2c_GA:CV}",null,null,null,"  CHILE    {s2c_GA:CL}",null,null,"  Estonian    {s2c_LA:et}",null,"  CUP    {s2c_CU:CUP}",null,null,null,null,null,null,null,null,null,null,null,null,null,null,null,null,null,null,null,"INC Rating Sp. z o.o. (LEI code: 259400SUBF5EPOGK0983)    {s2c_SE:x172}"]
["  CVE    {s2c_CU:CVE}",null,null,null,null,null,null,null,null,null,"  CAYMAN ISLANDS    {s2c_GA:KY}",null,"        A2.1 - Silviculture and other forestry activities    {s2c_NC:A021}","  CAYMAN ISLANDS    {s2c_GA:KY}",null,null,null,"  CHINA    {s2c_GA:CN}",null,null,"  Basque    {s2c_LA:eu}",null,"  CVE    {s2c_CU:CVE}",null,null,null,null,null,null,null,null,null,null,null,null,null,null,null,null,null,null,null,"Rating-Agentur Expert RA GmbH (LEI code: 213800P3OOBSGWN2UE81)    {s2c_SE:x173}"]
["  CZK    {s2c_CU:CZK}",null,null,null,null,null,null,null,null,null,"  CENTRAL AFRICAN REPUBLIC    {s2c_GA:CF}",null,"           A2.1.0 - Silviculture and other forestry activities    {s2c_NC:A0210}","  CENTRAL AFRICAN REPUBLIC    {s2c_GA:CF}",null,null,null,"  CHRISTMAS ISLAND    {s2c_GA:CX}",null,null,"  Persian    {s2c_LA:fa}",null,"  CZK    {s2c_CU:CZK}",null,null,null,null,null,null,null,null,null,null,null,null,null,null,null,null,null,null,null,"Other nominated ECAI    {s2c_SE:x174}"]
["  DJF    {s2c_CU:DJF}",null,null,null,null,null,null,null,null,null,"  CHAD    {s2c_GA:TD}",null,"        A2.2 - Logging    {s2c_NC:A022}","  CHAD    {s2c_GA:TD}",null,null,null,"  COCOS (KEELING) ISLANDS    {s2c_GA:CC}",null,null,"  Fulah    {s2c_LA:ff}",null,"  DJF    {s2c_CU:DJF}",null,null,null,null,null,null,null,null,null,null,null,null,null,null,null,null,null,null,null,"    {s2c_SE:}"]
["  DKK    {s2c_CU:DKK}",null,null,null,null,null,null,null,null,null,"  CHILE    {s2c_GA:CL}",null,"           A2.2.0 - Logging    {s2c_NC:A0220}","  CHILE    {s2c_GA:CL}",null,null,null,"  COLOMBIA    {s2c_GA:CO}",null,null,"  Finnish    {s2c_LA:fi}",null,"  DKK    {s2c_CU:DKK}",null,null,null,null,null,null,null,null,null,null,null,null,null,null,null,null,null,null,null,"    {s2c_SE:}"]
["  DOP    {s2c_CU:DOP}",null,null,null,null,null,null,null,null,null,"  CHINA    {s2c_GA:CN}",null,"        A2.3 - Gathering of wild growing non-wood products    {s2c_NC:A023}","  CHINA    {s2c_GA:CN}",null,null,null,"  COMOROS    {s2c_GA:KM}",null,null,"  Fijian    {s2c_LA:fj}",null,"  DOP    {s2c_CU:DOP}",null,null,null,null,null,null,null,null,null,null,null,null,null,null,null,null,null,null,null,"    {s2c_SE:}"]
["  DZD    {s2c_CU:DZD}",null,null,null,null,null,null,null,null,null,"  CHRISTMAS ISLAND    {s2c_GA:CX}",null,"           A2.3.0 - Gathering of wild growing non-wood products    {s2c_NC:A0230}","  CHRISTMAS ISLAND    {s2c_GA:CX}",null,null,null,"  CONGO    {s2c_GA:CG}",null,null,"  Faroese    {s2c_LA:fo}",null,"  DZD    {s2c_CU:DZD}",null,null,null,null,null,null,null,null,null,null,null,null,null,null,null,null,null,null,null,"    {s2c_SE:}"]
["  EEK    {s2c_CU:EEK}",null,null,null,null,null,null,null,null,null,"  COCOS (KEELING) ISLANDS    {s2c_GA:CC}",null,"        A2.4 - Support services to forestry    {s2c_NC:A024}","  COCOS (KEELING) ISLANDS    {s2c_GA:CC}",null,null,null,"  CONGO, THE DEMOCRATIC REPUBLIC OF THE    {s2c_GA:CD}",null,null,"  French    {s2c_LA:fr}",null,"  EEK    {s2c_CU:EEK}",null,null,null,null,null,null,null,null,null,null,null,null,null,null,null,null,null,null,null,"    {s2c_SE:}"]
["  EGP    {s2c_CU:EGP}",null,null,null,null,null,null,null,null,null,"  COLOMBIA    {s2c_GA:CO}",null,"           A2.4.0 - Support services to forestry    {s2c_NC:A0240}","  COLOMBIA    {s2c_GA:CO}",null,null,null,"  COOK ISLANDS    {s2c_GA:CK}",null,null,"  Western Frisian    {s2c_LA:fy}",null,"  EGP    {s2c_CU:EGP}",null,null,null,null,null,null,null,null,null,null,null,null,null,null,null,null,null,null,null,"    {s2c_SE:}"]
["  ERN    {s2c_CU:ERN}",null,null,null,null,null,null,null,null,null,"  COMOROS    {s2c_GA:KM}",null,"     A3 - Fishing and aquaculture    {s2c_NC:A03}","  COMOROS    {s2c_GA:KM}",null,null,null,"  COSTA RICA    {s2c_GA:CR}",null,null,"  Irish    {s2c_LA:ga}",null,"  ERN    {s2c_CU:ERN}",null,null,null,null,null,null,null,null,null,null,null,null,null,null,null,null,null,null,null,"    {s2c_SE:}"]
["  ETB    {s2c_CU:ETB}",null,null,null,null,null,null,null,null,null,"  CONGO    {s2c_GA:CG}",null,"        A3.1 - Fishing    {s2c_NC:A031}","  CONGO    {s2c_GA:CG}",null,null,null,"  CÔTE D'IVOIRE    {s2c_GA:CI}",null,null,"  Scottish Gaelic    {s2c_LA:gd}",null,"  ETB    {s2c_CU:ETB}",null,null,null,null,null,null,null,null,null,null,null,null,null,null,null,null,null,null,null,"    {s2c_SE:}"]
["  FJD    {s2c_CU:FJD}",null,null,null,null,null,null,null,null,null,"  CONGO, THE DEMOCRATIC REPUBLIC OF THE    {s2c_GA:CD}",null,"           A3.1.1 - Marine fishing    {s2c_NC:A0311}","  CONGO, THE DEMOCRATIC REPUBLIC OF THE    {s2c_GA:CD}",null,null,null,"  CROATIA    {s2c_GA:HR}",null,null,"  Galician    {s2c_LA:gl}",null,"  FJD    {s2c_CU:FJD}",null,null,null,null,null,null,null,null,null,null,null,null,null,null,null,null,null,null,null,"    {s2c_SE:}"]
["  FKP    {s2c_CU:FKP}",null,null,null,null,null,null,null,null,null,"  COOK ISLANDS    {s2c_GA:CK}",null,"           A3.1.2 - Freshwater fishing    {s2c_NC:A0312}","  COOK ISLANDS    {s2c_GA:CK}",null,null,null,"  CUBA    {s2c_GA:CU}",null,null,"  Guarani    {s2c_LA:gn}",null,"  FKP    {s2c_CU:FKP}",null,null,null,null,null,null,null,null,null,null,null,null,null,null,null,null,null,null,null,"    {s2c_SE:}"]
["  GBP    {s2c_CU:GBP}",null,null,null,null,null,null,null,null,null,"  COSTA RICA    {s2c_GA:CR}",null,"        A3.2 - Aquaculture    {s2c_NC:A032}","  COSTA RICA    {s2c_GA:CR}",null,null,null,"  CURAÇAO    {s2c_GA:CW}",null,null,"  Gujarati    {s2c_LA:gu}",null,"  GBP    {s2c_CU:GBP}",null,null,null,null,null,null,null,null,null,null,null,null,null,null,null,null,null,null,null,"    {s2c_SE:}"]
["  GEL    {s2c_CU:GEL}",null,null,null,null,null,null,null,null,null,"  CÔTE D'IVOIRE    {s2c_GA:CI}",null,"           A3.2.1 - Marine aquaculture    {s2c_NC:A0321}","  CÔTE D'IVOIRE    {s2c_GA:CI}",null,null,null,"  CYPRUS    {s2c_GA:CY}",null,null,"  Manx    {s2c_LA:gv}",null,"  GEL    {s2c_CU:GEL}",null,null,null,null,null,null,null,null,null,null,null,null,null,null,null,null,null,null,null,"    {s2c_SE:}"]
["  GHS    {s2c_CU:GHS}",null,null,null,null,null,null,null,null,null,"  CROATIA    {s2c_GA:HR}",null,"           A3.2.2 - Freshwater aquaculture    {s2c_NC:A0322}","  CROATIA    {s2c_GA:HR}",null,null,null,"  CZECH REPUBLIC    {s2c_GA:CZ}",null,null,"  Hausa    {s2c_LA:ha}",null,"  GHS    {s2c_CU:GHS}",null,null,null,null,null,null,null,null,null,null,null,null,null,null,null,null,null,null,null,"    {s2c_SE:}"]
["  GIP    {s2c_CU:GIP}",null,null,null,null,null,null,null,null,null,"  CUBA    {s2c_GA:CU}",null,"  B - Mining and quarrying    {s2c_NC:B}","  CUBA    {s2c_GA:CU}",null,null,null,"  DENMARK    {s2c_GA:DK}",null,null,"  Hebrew    {s2c_LA:he}",null,"  GIP    {s2c_CU:GIP}",null,null,null,null,null,null,null,null,null,null,null,null,null,null,null,null,null,null,null,"    {s2c_SE:}"]
["  GMD    {s2c_CU:GMD}",null,null,null,null,null,null,null,null,null,"  CURAÇAO    {s2c_GA:CW}",null,"     B5 - Mining of coal and lignite    {s2c_NC:B05}","  CURAÇAO    {s2c_GA:CW}",null,null,null,"  DJIBOUTI    {s2c_GA:DJ}",null,null,"  Hindi    {s2c_LA:hi}",null,"  GMD    {s2c_CU:GMD}",null,null,null,null,null,null,null,null,null,null,null,null,null,null,null,null,null,null,null,"    {s2c_SE:}"]
["  GNF    {s2c_CU:GNF}",null,null,null,null,null,null,null,null,null,"  CYPRUS    {s2c_GA:CY}",null,"        B5.1 - Mining of hard coal    {s2c_NC:B051}","  CYPRUS    {s2c_GA:CY}",null,null,null,"  DOMINICA    {s2c_GA:DM}",null,null,"  Hiri Motu    {s2c_LA:ho}",null,"  GNF    {s2c_CU:GNF}",null,null,null,null,null,null,null,null,null,null,null,null,null,null,null,null,null,null,null,"    {s2c_SE:}"]
["  GTQ    {s2c_CU:GTQ}",null,null,null,null,null,null,null,null,null,"  CZECH REPUBLIC    {s2c_GA:CZ}",null,"           B5.1.0 - Mining of hard coal    {s2c_NC:B0510}","  CZECH REPUBLIC    {s2c_GA:CZ}",null,null,null,"  DOMINICAN REPUBLIC    {s2c_GA:DO}",null,null,"  Croatian    {s2c_LA:hr}",null,"  GTQ    {s2c_CU:GTQ}",null,null,null,null,null,null,null,null,null,null,null,null,null,null,null,null,null,null,null,"    {s2c_SE:}"]
["  GYD    {s2c_CU:GYD}",null,null,null,null,null,null,null,null,null,"  DENMARK    {s2c_GA:DK}",null,"        B5.2 - Mining of lignite    {s2c_NC:B052}","  DENMARK    {s2c_GA:DK}",null,null,null,"  ECUADOR    {s2c_GA:EC}",null,null,"  Haitian    {s2c_LA:ht}",null,"  GYD    {s2c_CU:GYD}",null,null,null,null,null,null,null,null,null,null,null,null,null,null,null,null,null,null,null,"    {s2c_SE:}"]
["  HKD    {s2c_CU:HKD}",null,null,null,null,null,null,null,null,null,"  DJIBOUTI    {s2c_GA:DJ}",null,"           B5.2.0 - Mining of lignite    {s2c_NC:B0520}","  DJIBOUTI    {s2c_GA:DJ}",null,null,null,"  EGYPT    {s2c_GA:EG}",null,null,"  Hungarian    {s2c_LA:hu}",null,"  HKD    {s2c_CU:HKD}",null,null,null,null,null,null,null,null,null,null,null,null,null,null,null,null,null,null,null,"    {s2c_SE:}"]
["  HNL    {s2c_CU:HNL}",null,null,null,null,null,null,null,null,null,"  DOMINICA    {s2c_GA:DM}",null,"     B6 - Extraction of crude petroleum and natural gas    {s2c_NC:B06}","  DOMINICA    {s2c_GA:DM}",null,null,null,"  EL SALVADOR    {s2c_GA:SV}",null,null,"  Armenian    {s2c_LA:hy}",null,"  HNL    {s2c_CU:HNL}",null,null,null,null,null,null,null,null,null,null,null,null,null,null,null,null,null,null,null,"    {s2c_SE:}"]
["  HRK    {s2c_CU:HRK}",null,null,null,null,null,null,null,null,null,"  DOMINICAN REPUBLIC    {s2c_GA:DO}",null,"        B6.1 - Extraction of crude petroleum    {s2c_NC:B061}","  DOMINICAN REPUBLIC    {s2c_GA:DO}",null,null,null,"  EQUATORIAL GUINEA    {s2c_GA:GQ}",null,null,"  Herero    {s2c_LA:hz}",null,"  HRK    {s2c_CU:HRK}",null,null,null,null,null,null,null,null,null,null,null,null,null,null,null,null,null,null,null,"    {s2c_SE:}"]
["  HTG    {s2c_CU:HTG}",null,null,null,null,null,null,null,null,null,"  ECUADOR    {s2c_GA:EC}",null,"           B6.1.0 - Extraction of crude petroleum    {s2c_NC:B0610}","  ECUADOR    {s2c_GA:EC}",null,null,null,"  ERITREA    {s2c_GA:ER}",null,null,"  Interlingua (International Auxiliary Language Association)    {s2c_LA:ia}",null,"  HTG    {s2c_CU:HTG}",null,null,null,null,null,null,null,null,null,null,null,null,null,null,null,null,null,null,null,"    {s2c_SE:}"]
["  HUF    {s2c_CU:HUF}",null,null,null,null,null,null,null,null,null,"  EGYPT    {s2c_GA:EG}",null,"        B6.2 - Extraction of natural gas    {s2c_NC:B062}","  EGYPT    {s2c_GA:EG}",null,null,null,"  ESTONIA    {s2c_GA:EE}",null,null,"  Indonesian    {s2c_LA:id}",null,"  HUF    {s2c_CU:HUF}",null,null,null,null,null,null,null,null,null,null,null,null,null,null,null,null,null,null,null,"    {s2c_SE:}"]
["  IDR    {s2c_CU:IDR}",null,null,null,null,null,null,null,null,null,"  EL SALVADOR    {s2c_GA:SV}",null,"           B6.2.0 - Extraction of natural gas    {s2c_NC:B0620}","  EL SALVADOR    {s2c_GA:SV}",null,null,null,"  ETHIOPIA    {s2c_GA:ET}",null,null,"  Interlingue    {s2c_LA:ie}",null,"  IDR    {s2c_CU:IDR}",null,null,null,null,null,null,null,null,null,null,null,null,null,null,null,null,null,null,null,"    {s2c_SE:}"]
["  ILS    {s2c_CU:ILS}",null,null,null,null,null,null,null,null,null,"  EQUATORIAL GUINEA    {s2c_GA:GQ}",null,"     B7 - Mining of metal ores    {s2c_NC:B07}","  EQUATORIAL GUINEA    {s2c_GA:GQ}",null,null,null,"  FAROE ISLANDS    {s2c_GA:FO}",null,null,"  Igbo    {s2c_LA:ig}",null,"  ILS    {s2c_CU:ILS}",null,null,null,null,null,null,null,null,null,null,null,null,null,null,null,null,null,null,null,"    {s2c_SE:}"]
["  INR    {s2c_CU:INR}",null,null,null,null,null,null,null,null,null,"  ERITREA    {s2c_GA:ER}",null,"        B7.1 - Mining of iron ores    {s2c_NC:B071}","  ERITREA    {s2c_GA:ER}",null,null,null,"  FIJI    {s2c_GA:FJ}",null,null,"  Sichuan Yi    {s2c_LA:ii}",null,"  INR    {s2c_CU:INR}",null,null,null,null,null,null,null,null,null,null,null,null,null,null,null,null,null,null,null,"    {s2c_SE:}"]
["  IQD    {s2c_CU:IQD}",null,null,null,null,null,null,null,null,null,"  ESTONIA    {s2c_GA:EE}",null,"           B7.1.0 - Mining of iron ores    {s2c_NC:B0710}","  ESTONIA    {s2c_GA:EE}",null,null,null,"  FINLAND    {s2c_GA:FI}",null,null,"  Inupiaq    {s2c_LA:ik}",null,"  IQD    {s2c_CU:IQD}",null,null,null,null,null,null,null,null,null,null,null,null,null,null,null,null,null,null,null,"    {s2c_SE:}"]
["  IRR    {s2c_CU:IRR}",null,null,null,null,null,null,null,null,null,"  ETHIOPIA    {s2c_GA:ET}",null,"        B7.2 - Mining of non-ferrous metal ores    {s2c_NC:B072}","  ETHIOPIA    {s2c_GA:ET}",null,null,null,"  FRANCE    {s2c_GA:FR}",null,null,"  Ido    {s2c_LA:io}",null,"  IRR    {s2c_CU:IRR}",null,null,null,null,null,null,null,null,null,null,null,null,null,null,null,null,null,null,null,"    {s2c_SE:}"]
["  ISK    {s2c_CU:ISK}",null,null,null,null,null,null,null,null,null,"  FALKLAND ISLANDS (MALVINAS)    {s2c_GA:FK}",null,"           B7.2.1 - Mining of uranium and thorium ores    {s2c_NC:B0721}","  FALKLAND ISLANDS (MALVINAS)    {s2c_GA:FK}",null,null,null,"  FRENCH GUIANA    {s2c_GA:GF}",null,null,"  Icelandic    {s2c_LA:is}",null,"  ISK    {s2c_CU:ISK}",null,null,null,null,null,null,null,null,null,null,null,null,null,null,null,null,null,null,null,"    {s2c_SE:}"]
["  JMD    {s2c_CU:JMD}",null,null,null,null,null,null,null,null,null,"  FAROE ISLANDS    {s2c_GA:FO}",null,"           B7.2.9 - Mining of other non-ferrous metal ores    {s2c_NC:B0729}","  FAROE ISLANDS    {s2c_GA:FO}",null,null,null,"  FRENCH POLYNESIA    {s2c_GA:PF}",null,null,"  Italian    {s2c_LA:it}",null,"  JMD    {s2c_CU:JMD}",null,null,null,null,null,null,null,null,null,null,null,null,null,null,null,null,null,null,null,"    {s2c_SE:}"]
["  JOD    {s2c_CU:JOD}",null,null,null,null,null,null,null,null,null,"  FIJI    {s2c_GA:FJ}",null,"     B8 - Other mining and quarrying    {s2c_NC:B08}","  FIJI    {s2c_GA:FJ}",null,null,null,"  FRENCH SOUTHERN TERRITORIES    {s2c_GA:TF}",null,null,"  Inuktitut    {s2c_LA:iu}",null,"  JOD    {s2c_CU:JOD}",null,null,null,null,null,null,null,null,null,null,null,null,null,null,null,null,null,null,null,"    {s2c_SE:}"]
["  JPY    {s2c_CU:JPY}",null,null,null,null,null,null,null,null,null,"  FINLAND    {s2c_GA:FI}",null,"        B8.1 - Quarrying of stone, sand and clay    {s2c_NC:B081}","  FINLAND    {s2c_GA:FI}",null,null,null,"  GABON    {s2c_GA:GA}",null,null,"  Japanese    {s2c_LA:ja}",null,"  JPY    {s2c_CU:JPY}",null,null,null,null,null,null,null,null,null,null,null,null,null,null,null,null,null,null,null,"    {s2c_SE:}"]
["  KES    {s2c_CU:KES}",null,null,null,null,null,null,null,null,null,"  FRANCE    {s2c_GA:FR}",null,"           B8.1.1 - Quarrying of ornamental and building stone, limestone, gypsum, chalk and slate    {s2c_NC:B0811}","  FRANCE    {s2c_GA:FR}",null,null,null,"  GAMBIA    {s2c_GA:GM}",null,null,"  Javanese    {s2c_LA:jv}",null,"  KES    {s2c_CU:KES}",null,null,null,null,null,null,null,null,null,null,null,null,null,null,null,null,null,null,null,"    {s2c_SE:}"]
["  KGS    {s2c_CU:KGS}",null,null,null,null,null,null,null,null,null,"  FRENCH GUIANA    {s2c_GA:GF}",null,"           B8.1.2 - Operation of gravel and sand pits; mining of clays and kaolin    {s2c_NC:B0812}","  FRENCH GUIANA    {s2c_GA:GF}",null,null,null,"  GEORGIA    {s2c_GA:GE}",null,null,"  Georgian    {s2c_LA:ka}",null,"  KGS    {s2c_CU:KGS}",null,null,null,null,null,null,null,null,null,null,null,null,null,null,null,null,null,null,null,"    {s2c_SE:}"]
["  KHR    {s2c_CU:KHR}",null,null,null,null,null,null,null,null,null,"  FRENCH POLYNESIA    {s2c_GA:PF}",null,"        B8.9 - Mining and quarrying n.e.c.    {s2c_NC:B089}","  FRENCH POLYNESIA    {s2c_GA:PF}",null,null,null,"  GERMANY    {s2c_GA:DE}",null,null,"  Kongo    {s2c_LA:kg}",null,"  KHR    {s2c_CU:KHR}",null,null,null,null,null,null,null,null,null,null,null,null,null,null,null,null,null,null,null,"    {s2c_SE:}"]
["  KMF    {s2c_CU:KMF}",null,null,null,null,null,null,null,null,null,"  FRENCH SOUTHERN TERRITORIES    {s2c_GA:TF}",null,"           B8.9.1 - Mining of chemical and fertiliser minerals    {s2c_NC:B0891}","  FRENCH SOUTHERN TERRITORIES    {s2c_GA:TF}",null,null,null,"  GHANA    {s2c_GA:GH}",null,null,"  Kikuyu    {s2c_LA:ki}",null,"  KMF    {s2c_CU:KMF}",null,null,null,null,null,null,null,null,null,null,null,null,null,null,null,null,null,null,null,"    {s2c_SE:}"]
["  KPW    {s2c_CU:KPW}",null,null,null,null,null,null,null,null,null,"  GABON    {s2c_GA:GA}",null,"           B8.9.2 - Extraction of peat    {s2c_NC:B0892}","  GABON    {s2c_GA:GA}",null,null,null,"  GREECE    {s2c_GA:GR}",null,null,"  Kuanyama    {s2c_LA:kj}",null,"  KPW    {s2c_CU:KPW}",null,null,null,null,null,null,null,null,null,null,null,null,null,null,null,null,null,null,null,"    {s2c_SE:}"]
["  KRW    {s2c_CU:KRW}",null,null,null,null,null,null,null,null,null,"  GAMBIA    {s2c_GA:GM}",null,"           B8.9.3 - Extraction of salt    {s2c_NC:B0893}","  GAMBIA    {s2c_GA:GM}",null,null,null,"  GREENLAND    {s2c_GA:GL}",null,null,"  Kazakh    {s2c_LA:kk}",null,"  KRW    {s2c_CU:KRW}",null,null,null,null,null,null,null,null,null,null,null,null,null,null,null,null,null,null,null,"    {s2c_SE:}"]
["  KWD    {s2c_CU:KWD}",null,null,null,null,null,null,null,null,null,"  GEORGIA    {s2c_GA:GE}",null,"           B8.9.9 - Other mining and quarrying n.e.c.    {s2c_NC:B0899}","  GEORGIA    {s2c_GA:GE}",null,null,null,"  GRENADA    {s2c_GA:GD}",null,null,"  Kalaallisut    {s2c_LA:kl}",null,"  KWD    {s2c_CU:KWD}",null,null,null,null,null,null,null,null,null,null,null,null,null,null,null,null,null,null,null,"    {s2c_SE:}"]
["  KYD    {s2c_CU:KYD}",null,null,null,null,null,null,null,null,null,"  GERMANY    {s2c_GA:DE}",null,"     B9 - Mining support service activities    {s2c_NC:B09}","  GERMANY    {s2c_GA:DE}",null,null,null,"  GUADELOUPE    {s2c_GA:GP}",null,null,"  Central Khmer    {s2c_LA:km}",null,"  KYD    {s2c_CU:KYD}",null,null,null,null,null,null,null,null,null,null,null,null,null,null,null,null,null,null,null,"    {s2c_SE:}"]
["  KZT    {s2c_CU:KZT}",null,null,null,null,null,null,null,null,null,"  GHANA    {s2c_GA:GH}",null,"        B9.1 - Support activities for petroleum and natural gas extraction    {s2c_NC:B091}","  GHANA    {s2c_GA:GH}",null,null,null,"  GUAM    {s2c_GA:GU}",null,null,"  Kannada    {s2c_LA:kn}",null,"  KZT    {s2c_CU:KZT}",null,null,null,null,null,null,null,null,null,null,null,null,null,null,null,null,null,null,null,"    {s2c_SE:}"]
["  LAK    {s2c_CU:LAK}",null,null,null,null,null,null,null,null,null,"  UNITED KINGDOM (GIBRALTAR)    {s2c_GA:GI}",null,"           B9.1.0 - Support activities for petroleum and natural gas extraction    {s2c_NC:B0910}","  UNITED KINGDOM (GIBRALTAR)    {s2c_GA:GI}",null,null,null,"  GUATEMALA    {s2c_GA:GT}",null,null,"  Korean    {s2c_LA:ko}",null,"  LAK    {s2c_CU:LAK}",null,null,null,null,null,null,null,null,null,null,null,null,null,null,null,null,null,null,null,"    {s2c_SE:}"]
["  LBP    {s2c_CU:LBP}",null,null,null,null,null,null,null,null,null,"  GREECE    {s2c_GA:GR}",null,"        B9.9 - Support activities for other mining and quarrying    {s2c_NC:B099}","  GREECE    {s2c_GA:GR}",null,null,null,"  GUERNSEY    {s2c_GA:GG}",null,null,"  Kanuri    {s2c_LA:kr}",null,"  LBP    {s2c_CU:LBP}",null,null,null,null,null,null,null,null,null,null,null,null,null,null,null,null,null,null,null,"    {s2c_SE:}"]
["  LKR    {s2c_CU:LKR}",null,null,null,null,null,null,null,null,null,"  GREENLAND    {s2c_GA:GL}",null,"           B9.9.0 - Support activities for other mining and quarrying    {s2c_NC:B0990}","  GREENLAND    {s2c_GA:GL}",null,null,null,"  GUINEA    {s2c_GA:GN}",null,null,"  Kashmiri    {s2c_LA:ks}",null,"  LKR    {s2c_CU:LKR}",null,null,null,null,null,null,null,null,null,null,null,null,null,null,null,null,null,null,null,"    {s2c_SE:}"]
["  LRD    {s2c_CU:LRD}",null,null,null,null,null,null,null,null,null,"  GRENADA    {s2c_GA:GD}",null,"  C - Manufacturing    {s2c_NC:C}","  GRENADA    {s2c_GA:GD}",null,null,null,"  GUINEA-BISSAU    {s2c_GA:GW}",null,null,"  Kurdish    {s2c_LA:ku}",null,"  LRD    {s2c_CU:LRD}",null,null,null,null,null,null,null,null,null,null,null,null,null,null,null,null,null,null,null,"    {s2c_SE:}"]
["  LSL    {s2c_CU:LSL}",null,null,null,null,null,null,null,null,null,"  GUADELOUPE    {s2c_GA:GP}",null,"     C10 - Manufacture of food products    {s2c_NC:C10}","  GUADELOUPE    {s2c_GA:GP}",null,null,null,"  GUYANA    {s2c_GA:GY}",null,null,"  Komi    {s2c_LA:kv}",null,"  LSL    {s2c_CU:LSL}",null,null,null,null,null,null,null,null,null,null,null,null,null,null,null,null,null,null,null,"    {s2c_SE:}"]
["  LTL    {s2c_CU:LTL}",null,null,null,null,null,null,null,null,null,"  GUAM    {s2c_GA:GU}",null,"        C10.1 - Processing and preserving of meat and production of meat products    {s2c_NC:C101}","  GUAM    {s2c_GA:GU}",null,null,null,"  HAITI    {s2c_GA:HT}",null,null,"  Cornish    {s2c_LA:kw}",null,"  LTL    {s2c_CU:LTL}",null,null,null,null,null,null,null,null,null,null,null,null,null,null,null,null,null,null,null,"    {s2c_SE:}"]
["  LVL    {s2c_CU:LVL}",null,null,null,null,null,null,null,null,null,"  GUATEMALA    {s2c_GA:GT}",null,"           C10.1.1 - Processing and preserving of meat    {s2c_NC:C1011}","  GUATEMALA    {s2c_GA:GT}",null,null,null,"  HEARD ISLAND AND MCDONALD ISLANDS    {s2c_GA:HM}",null,null,"  Kirghiz    {s2c_LA:ky}",null,"  LVL    {s2c_CU:LVL}",null,null,null,null,null,null,null,null,null,null,null,null,null,null,null,null,null,null,null,"    {s2c_SE:}"]
["  LYD    {s2c_CU:LYD}",null,null,null,null,null,null,null,null,null,"  GUERNSEY    {s2c_GA:GG}",null,"           C10.1.2 - Processing and preserving of poultry meat    {s2c_NC:C1012}","  GUERNSEY    {s2c_GA:GG}",null,null,null,"  HOLY SEE (VATICAN CITY STATE)    {s2c_GA:VA}",null,null,"  Luxembourgish    {s2c_LA:lb}",null,"  LYD    {s2c_CU:LYD}",null,null,null,null,null,null,null,null,null,null,null,null,null,null,null,null,null,null,null,"    {s2c_SE:}"]
["  MAD    {s2c_CU:MAD}",null,null,null,null,null,null,null,null,null,"  GUINEA    {s2c_GA:GN}",null,"           C10.1.3 - Production of meat and poultry meat products    {s2c_NC:C1013}","  GUINEA    {s2c_GA:GN}",null,null,null,"  HONDURAS    {s2c_GA:HN}",null,null,"  Ganda    {s2c_LA:lg}",null,"  MAD    {s2c_CU:MAD}",null,null,null,null,null,null,null,null,null,null,null,null,null,null,null,null,null,null,null,"    {s2c_SE:}"]
["  MDL    {s2c_CU:MDL}",null,null,null,null,null,null,null,null,null,"  GUINEA-BISSAU    {s2c_GA:GW}",null,"        C10.2 - Processing and preserving of fish, crustaceans and molluscs    {s2c_NC:C102}","  GUINEA-BISSAU    {s2c_GA:GW}",null,null,null,"  HONG KONG    {s2c_GA:HK}",null,null,"  Limburgan    {s2c_LA:li}",null,"  MDL    {s2c_CU:MDL}",null,null,null,null,null,null,null,null,null,null,null,null,null,null,null,null,null,null,null,"    {s2c_SE:}"]
["  MGA    {s2c_CU:MGA}",null,null,null,null,null,null,null,null,null,"  GUYANA    {s2c_GA:GY}",null,"           C10.2.0 - Processing and preserving of fish, crustaceans and molluscs    {s2c_NC:C1020}","  GUYANA    {s2c_GA:GY}",null,null,null,"  HUNGARY    {s2c_GA:HU}",null,null,"  Lingala    {s2c_LA:ln}",null,"  MGA    {s2c_CU:MGA}",null,null,null,null,null,null,null,null,null,null,null,null,null,null,null,null,null,null,null,"    {s2c_SE:}"]
["  MKD    {s2c_CU:MKD}",null,null,null,null,null,null,null,null,null,"  HAITI    {s2c_GA:HT}",null,"        C10.3 - Processing and preserving of fruit and vegetables    {s2c_NC:C103}","  HAITI    {s2c_GA:HT}",null,null,null,"  ICELAND    {s2c_GA:IS}",null,null,"  Lao    {s2c_LA:lo}",null,"  MKD    {s2c_CU:MKD}",null,null,null,null,null,null,null,null,null,null,null,null,null,null,null,null,null,null,null,"    {s2c_SE:}"]
["  MMK    {s2c_CU:MMK}",null,null,null,null,null,null,null,null,null,"  HEARD ISLAND AND MCDONALD ISLANDS    {s2c_GA:HM}",null,"           C10.3.1 - Processing and preserving of potatoes    {s2c_NC:C1031}","  HEARD ISLAND AND MCDONALD ISLANDS    {s2c_GA:HM}",null,null,null,"  INDIA    {s2c_GA:IN}",null,null,"  Lithuanian    {s2c_LA:lt}",null,"  MMK    {s2c_CU:MMK}",null,null,null,null,null,null,null,null,null,null,null,null,null,null,null,null,null,null,null,"    {s2c_SE:}"]
["  MNT    {s2c_CU:MNT}",null,null,null,null,null,null,null,null,null,"  HOLY SEE (VATICAN CITY STATE)    {s2c_GA:VA}",null,"           C10.3.2 - Manufacture of fruit and vegetable juice    {s2c_NC:C1032}","  HOLY SEE (VATICAN CITY STATE)    {s2c_GA:VA}",null,null,null,"  INDONESIA    {s2c_GA:ID}",null,null,"  Luba-Katanga    {s2c_LA:lu}",null,"  MNT    {s2c_CU:MNT}",null,null,null,null,null,null,null,null,null,null,null,null,null,null,null,null,null,null,null,"    {s2c_SE:}"]
["  MOP    {s2c_CU:MOP}",null,null,null,null,null,null,null,null,null,"  HONDURAS    {s2c_GA:HN}",null,"           C10.3.9 - Other processing and preserving of fruit and vegetables    {s2c_NC:C1039}","  HONDURAS    {s2c_GA:HN}",null,null,null,"  IRAN, ISLAMIC REPUBLIC OF    {s2c_GA:IR}",null,null,"  Latvian    {s2c_LA:lv}",null,"  MOP    {s2c_CU:MOP}",null,null,null,null,null,null,null,null,null,null,null,null,null,null,null,null,null,null,null,"    {s2c_SE:}"]
["  MRO    {s2c_CU:MRO}",null,null,null,null,null,null,null,null,null,"  HONG KONG    {s2c_GA:HK}",null,"        C10.4 - Manufacture of vegetable and animal oils and fats    {s2c_NC:C104}","  HONG KONG    {s2c_GA:HK}",null,null,null,"  IRAQ    {s2c_GA:IQ}",null,null,"  Malagasy    {s2c_LA:mg}",null,"  MRO    {s2c_CU:MRO}",null,null,null,null,null,null,null,null,null,null,null,null,null,null,null,null,null,null,null,"    {s2c_SE:}"]
["  MUR    {s2c_CU:MUR}",null,null,null,null,null,null,null,null,null,"  HUNGARY    {s2c_GA:HU}",null,"           C10.4.1 - Manufacture of oils and fats    {s2c_NC:C1041}","  HUNGARY    {s2c_GA:HU}",null,null,null,"  IRELAND    {s2c_GA:IE}",null,null,"  Marshallese    {s2c_LA:mh}",null,"  MUR    {s2c_CU:MUR}",null,null,null,null,null,null,null,null,null,null,null,null,null,null,null,null,null,null,null,"    {s2c_SE:}"]
["  MVR    {s2c_CU:MVR}",null,null,null,null,null,null,null,null,null,"  ICELAND    {s2c_GA:IS}",null,"           C10.4.2 - Manufacture of margarine and similar edible fats    {s2c_NC:C1042}","  ICELAND    {s2c_GA:IS}",null,null,null,"  ISLE OF MAN    {s2c_GA:IM}",null,null,"  Maori    {s2c_LA:mi}",null,"  MVR    {s2c_CU:MVR}",null,null,null,null,null,null,null,null,null,null,null,null,null,null,null,null,null,null,null,"    {s2c_SE:}"]
["  MWK    {s2c_CU:MWK}",null,null,null,null,null,null,null,null,null,"  INDIA    {s2c_GA:IN}",null,"        C10.5 - Manufacture of dairy products    {s2c_NC:C105}","  INDIA    {s2c_GA:IN}",null,null,null,"  ISRAEL    {s2c_GA:IL}",null,null,"  Macedonian    {s2c_LA:mk}",null,"  MWK    {s2c_CU:MWK}",null,null,null,null,null,null,null,null,null,null,null,null,null,null,null,null,null,null,null,"    {s2c_SE:}"]
["  MXN    {s2c_CU:MXN}",null,null,null,null,null,null,null,null,null,"  INDONESIA    {s2c_GA:ID}",null,"           C10.5.1 - Operation of dairies and cheese making    {s2c_NC:C1051}","  INDONESIA    {s2c_GA:ID}",null,null,null,"  ITALY    {s2c_GA:IT}",null,null,"  Malayalam    {s2c_LA:ml}",null,"  MXN    {s2c_CU:MXN}",null,null,null,null,null,null,null,null,null,null,null,null,null,null,null,null,null,null,null,"    {s2c_SE:}"]
["  MXV    {s2c_CU:MXV}",null,null,null,null,null,null,null,null,null,"  IRAN, ISLAMIC REPUBLIC OF    {s2c_GA:IR}",null,"           C10.5.2 - Manufacture of ice cream    {s2c_NC:C1052}","  IRAN, ISLAMIC REPUBLIC OF    {s2c_GA:IR}",null,null,null,"  JAMAICA    {s2c_GA:JM}",null,null,"  Mongolian    {s2c_LA:mn}",null,"  MXV    {s2c_CU:MXV}",null,null,null,null,null,null,null,null,null,null,null,null,null,null,null,null,null,null,null,"    {s2c_SE:}"]
["  MYR    {s2c_CU:MYR}",null,null,null,null,null,null,null,null,null,"  IRAQ    {s2c_GA:IQ}",null,"        C10.6 - Manufacture of grain mill products, starches and starch products    {s2c_NC:C106}","  IRAQ    {s2c_GA:IQ}",null,null,null,"  JAPAN    {s2c_GA:JP}",null,null,"  Marathi    {s2c_LA:mr}",null,"  MYR    {s2c_CU:MYR}",null,null,null,null,null,null,null,null,null,null,null,null,null,null,null,null,null,null,null,"    {s2c_SE:}"]
["  MZN    {s2c_CU:MZN}",null,null,null,null,null,null,null,null,null,"  IRELAND    {s2c_GA:IE}",null,"           C10.6.1 - Manufacture of grain mill products    {s2c_NC:C1061}","  IRELAND    {s2c_GA:IE}",null,null,null,"  JERSEY    {s2c_GA:JE}",null,null,"  Malay (macrolanguage)    {s2c_LA:ms}",null,"  MZN    {s2c_CU:MZN}",null,null,null,null,null,null,null,null,null,null,null,null,null,null,null,null,null,null,null,"    {s2c_SE:}"]
["  NAD    {s2c_CU:NAD}",null,null,null,null,null,null,null,null,null,"  ISLE OF MAN    {s2c_GA:IM}",null,"           C10.6.2 - Manufacture of starches and starch products    {s2c_NC:C1062}","  ISLE OF MAN    {s2c_GA:IM}",null,null,null,"  JORDAN    {s2c_GA:JO}",null,null,"  Maltese    {s2c_LA:mt}",null,"  NAD    {s2c_CU:NAD}",null,null,null,null,null,null,null,null,null,null,null,null,null,null,null,null,null,null,null,"    {s2c_SE:}"]
["  NGN    {s2c_CU:NGN}",null,null,null,null,null,null,null,null,null,"  ISRAEL    {s2c_GA:IL}",null,"        C10.7 - Manufacture of bakery and farinaceous products    {s2c_NC:C107}","  ISRAEL    {s2c_GA:IL}",null,null,null,"  KAZAKHSTAN    {s2c_GA:KZ}",null,null,"  Burmese    {s2c_LA:my}",null,"  NGN    {s2c_CU:NGN}",null,null,null,null,null,null,null,null,null,null,null,null,null,null,null,null,null,null,null,"    {s2c_SE:}"]
["  NIO    {s2c_CU:NIO}",null,null,null,null,null,null,null,null,null,"  ITALY    {s2c_GA:IT}",null,"           C10.7.1 - Manufacture of bread; manufacture of fresh pastry goods and cakes    {s2c_NC:C1071}","  ITALY    {s2c_GA:IT}",null,null,null,"  KENYA    {s2c_GA:KE}",null,null,"  Nauru    {s2c_LA:na}",null,"  NIO    {s2c_CU:NIO}",null,null,null,null,null,null,null,null,null,null,null,null,null,null,null,null,null,null,null,"    {s2c_SE:}"]
["  NOK    {s2c_CU:NOK}",null,null,null,null,null,null,null,null,null,"  JAMAICA    {s2c_GA:JM}",null,"           C10.7.2 - Manufacture of rusks and biscuits; manufacture of preserved pastry goods and cakes    {s2c_NC:C1072}","  JAMAICA    {s2c_GA:JM}",null,null,null,"  KIRIBATI    {s2c_GA:KI}",null,null,"  Norwegian Bokmål    {s2c_LA:nb}",null,"  NOK    {s2c_CU:NOK}",null,null,null,null,null,null,null,null,null,null,null,null,null,null,null,null,null,null,null,"    {s2c_SE:}"]
["  NPR    {s2c_CU:NPR}",null,null,null,null,null,null,null,null,null,"  JAPAN    {s2c_GA:JP}",null,"           C10.7.3 - Manufacture of macaroni, noodles, couscous and similar farinaceous products    {s2c_NC:C1073}","  JAPAN    {s2c_GA:JP}",null,null,null,"  KOREA, DEMOCRATIC PEOPLE'S REPUBLIC OF    {s2c_GA:KP}",null,null,"  North Ndebele    {s2c_LA:nd}",null,"  NPR    {s2c_CU:NPR}",null,null,null,null,null,null,null,null,null,null,null,null,null,null,null,null,null,null,null,"    {s2c_SE:}"]
["  NZD    {s2c_CU:NZD}",null,null,null,null,null,null,null,null,null,"  JERSEY    {s2c_GA:JE}",null,"        C10.8 - Manufacture of other food products    {s2c_NC:C108}","  JERSEY    {s2c_GA:JE}",null,null,null,"  KOREA, REPUBLIC OF    {s2c_GA:KR}",null,null,"  Nepali (macrolanguage)    {s2c_LA:ne}",null,"  NZD    {s2c_CU:NZD}",null,null,null,null,null,null,null,null,null,null,null,null,null,null,null,null,null,null,null,"    {s2c_SE:}"]
["  OMR    {s2c_CU:OMR}",null,null,null,null,null,null,null,null,null,"  JORDAN    {s2c_GA:JO}",null,"           C10.8.1 - Manufacture of sugar    {s2c_NC:C1081}","  JORDAN    {s2c_GA:JO}",null,null,null,"  KUWAIT    {s2c_GA:KW}",null,null,"  Ndonga    {s2c_LA:ng}",null,"  OMR    {s2c_CU:OMR}",null,null,null,null,null,null,null,null,null,null,null,null,null,null,null,null,null,null,null,"    {s2c_SE:}"]
["  PAB    {s2c_CU:PAB}",null,null,null,null,null,null,null,null,null,"  KAZAKHSTAN    {s2c_GA:KZ}",null,"           C10.8.2 - Manufacture of cocoa, chocolate and sugar confectionery    {s2c_NC:C1082}","  KAZAKHSTAN    {s2c_GA:KZ}",null,null,null,"  KYRGYZSTAN    {s2c_GA:KG}",null,null,"  Dutch    {s2c_LA:nl}",null,"  PAB    {s2c_CU:PAB}",null,null,null,null,null,null,null,null,null,null,null,null,null,null,null,null,null,null,null,"    {s2c_SE:}"]
["  PEN    {s2c_CU:PEN}",null,null,null,null,null,null,null,null,null,"  KENYA    {s2c_GA:KE}",null,"           C10.8.3 - Processing of tea and coffee    {s2c_NC:C1083}","  KENYA    {s2c_GA:KE}",null,null,null,"  LAO PEOPLE'S DEMOCRATIC REPUBLIC    {s2c_GA:LA}",null,null,"  Norwegian Nynorsk    {s2c_LA:nn}",null,"  PEN    {s2c_CU:PEN}",null,null,null,null,null,null,null,null,null,null,null,null,null,null,null,null,null,null,null,"    {s2c_SE:}"]
["  PGK    {s2c_CU:PGK}",null,null,null,null,null,null,null,null,null,"  KIRIBATI    {s2c_GA:KI}",null,"           C10.8.4 - Manufacture of condiments and seasonings    {s2c_NC:C1084}","  KIRIBATI    {s2c_GA:KI}",null,null,null,"  LATVIA    {s2c_GA:LV}",null,null,"  Norwegian    {s2c_LA:no}",null,"  PGK    {s2c_CU:PGK}",null,null,null,null,null,null,null,null,null,null,null,null,null,null,null,null,null,null,null,"    {s2c_SE:}"]
["  PHP    {s2c_CU:PHP}",null,null,null,null,null,null,null,null,null,"  KOREA, DEMOCRATIC PEOPLE'S REPUBLIC OF    {s2c_GA:KP}",null,"           C10.8.5 - Manufacture of prepared meals and dishes    {s2c_NC:C1085}","  KOREA, DEMOCRATIC PEOPLE'S REPUBLIC OF    {s2c_GA:KP}",null,null,null,"  LEBANON    {s2c_GA:LB}",null,null,"  South Ndebele    {s2c_LA:nr}",null,"  PHP    {s2c_CU:PHP}",null,null,null,null,null,null,null,null,null,null,null,null,null,null,null,null,null,null,null,"    {s2c_SE:}"]
["  PKR    {s2c_CU:PKR}",null,null,null,null,null,null,null,null,null,"  KOREA, REPUBLIC OF    {s2c_GA:KR}",null,"           C10.8.6 - Manufacture of homogenised food preparations and dietetic food    {s2c_NC:C1086}","  KOREA, REPUBLIC OF    {s2c_GA:KR}",null,null,null,"  LESOTHO    {s2c_GA:LS}",null,null,"  Navajo    {s2c_LA:nv}",null,"  PKR    {s2c_CU:PKR}",null,null,null,null,null,null,null,null,null,null,null,null,null,null,null,null,null,null,null,"    {s2c_SE:}"]
["  PLN    {s2c_CU:PLN}",null,null,null,null,null,null,null,null,null,"  KUWAIT    {s2c_GA:KW}",null,"           C10.8.9 - Manufacture of other food products n.e.c.    {s2c_NC:C1089}","  KUWAIT    {s2c_GA:KW}",null,null,null,"  LIBERIA    {s2c_GA:LR}",null,null,"  Nyanja    {s2c_LA:ny}",null,"  PLN    {s2c_CU:PLN}",null,null,null,null,null,null,null,null,null,null,null,null,null,null,null,null,null,null,null,"    {s2c_SE:}"]
["  PYG    {s2c_CU:PYG}",null,null,null,null,null,null,null,null,null,"  KYRGYZSTAN    {s2c_GA:KG}",null,"        C10.9 - Manufacture of prepared animal feeds    {s2c_NC:C109}","  KYRGYZSTAN    {s2c_GA:KG}",null,null,null,"  LIBYA    {s2c_GA:LY}",null,null,"  Occitan (post 1500)    {s2c_LA:oc}",null,"  PYG    {s2c_CU:PYG}",null,null,null,null,null,null,null,null,null,null,null,null,null,null,null,null,null,null,null,"    {s2c_SE:}"]
["  QAR    {s2c_CU:QAR}",null,null,null,null,null,null,null,null,null,"  LAO PEOPLE'S DEMOCRATIC REPUBLIC    {s2c_GA:LA}",null,"           C10.9.1 - Manufacture of prepared feeds for farm animals    {s2c_NC:C1091}","  LAO PEOPLE'S DEMOCRATIC REPUBLIC    {s2c_GA:LA}",null,null,null,"  LIECHTENSTEIN    {s2c_GA:LI}",null,null,"  Ojibwa    {s2c_LA:oj}",null,"  QAR    {s2c_CU:QAR}",null,null,null,null,null,null,null,null,null,null,null,null,null,null,null,null,null,null,null,"    {s2c_SE:}"]
["  RON    {s2c_CU:RON}",null,null,null,null,null,null,null,null,null,"  LATVIA    {s2c_GA:LV}",null,"           C10.9.2 - Manufacture of prepared pet foods    {s2c_NC:C1092}","  LATVIA    {s2c_GA:LV}",null,null,null,"  LITHUANIA    {s2c_GA:LT}",null,null,"  Oromo    {s2c_LA:om}",null,"  RON    {s2c_CU:RON}",null,null,null,null,null,null,null,null,null,null,null,null,null,null,null,null,null,null,null,"    {s2c_SE:}"]
["  RSD    {s2c_CU:RSD}",null,null,null,null,null,null,null,null,null,"  LEBANON    {s2c_GA:LB}",null,"     C11 - Manufacture of beverages    {s2c_NC:C11}","  LEBANON    {s2c_GA:LB}",null,null,null,"  LUXEMBOURG    {s2c_GA:LU}",null,null,"  Oriya (macrolanguage)    {s2c_LA:or}",null,"  RSD    {s2c_CU:RSD}",null,null,null,null,null,null,null,null,null,null,null,null,null,null,null,null,null,null,null,"    {s2c_SE:}"]
["  RUB    {s2c_CU:RUB}",null,null,null,null,null,null,null,null,null,"  LESOTHO    {s2c_GA:LS}",null,"        C11.0 - Manufacture of beverages    {s2c_NC:C110}","  LESOTHO    {s2c_GA:LS}",null,null,null,"  MACAO    {s2c_GA:MO}",null,null,"  Ossetian    {s2c_LA:os}",null,"  RUB    {s2c_CU:RUB}",null,null,null,null,null,null,null,null,null,null,null,null,null,null,null,null,null,null,null,"    {s2c_SE:}"]
["  RWF    {s2c_CU:RWF}",null,null,null,null,null,null,null,null,null,"  LIBERIA    {s2c_GA:LR}",null,"           C11.0.1 - Distilling, rectifying and blending of spirits    {s2c_NC:C1101}","  LIBERIA    {s2c_GA:LR}",null,null,null,"  MACEDONIA, THE FORMER YUGOSLAV REPUBLIC OF    {s2c_GA:MK}",null,null,"  Panjabi    {s2c_LA:pa}",null,"  RWF    {s2c_CU:RWF}",null,null,null,null,null,null,null,null,null,null,null,null,null,null,null,null,null,null,null,"    {s2c_SE:}"]
["  SAR    {s2c_CU:SAR}",null,null,null,null,null,null,null,null,null,"  LIBYA    {s2c_GA:LY}",null,"           C11.0.2 - Manufacture of wine from grape    {s2c_NC:C1102}","  LIBYA    {s2c_GA:LY}",null,null,null,"  MADAGASCAR    {s2c_GA:MG}",null,null,"  Pali    {s2c_LA:pi}",null,"  SAR    {s2c_CU:SAR}",null,null,null,null,null,null,null,null,null,null,null,null,null,null,null,null,null,null,null,"    {s2c_SE:}"]
["  SBD    {s2c_CU:SBD}",null,null,null,null,null,null,null,null,null,"  LIECHTENSTEIN    {s2c_GA:LI}",null,"           C11.0.3 - Manufacture of cider and other fruit wines    {s2c_NC:C1103}","  LIECHTENSTEIN    {s2c_GA:LI}",null,null,null,"  MALAWI    {s2c_GA:MW}",null,null,"  Polish    {s2c_LA:pl}",null,"  SBD    {s2c_CU:SBD}",null,null,null,null,null,null,null,null,null,null,null,null,null,null,null,null,null,null,null,"    {s2c_SE:}"]
["  SCR    {s2c_CU:SCR}",null,null,null,null,null,null,null,null,null,"  LITHUANIA    {s2c_GA:LT}",null,"           C11.0.4 - Manufacture of other non-distilled fermented beverages    {s2c_NC:C1104}","  LITHUANIA    {s2c_GA:LT}",null,null,null,"  MALAYSIA    {s2c_GA:MY}",null,null,"  Pushto    {s2c_LA:ps}",null,"  SCR    {s2c_CU:SCR}",null,null,null,null,null,null,null,null,null,null,null,null,null,null,null,null,null,null,null,"    {s2c_SE:}"]
["  SDG    {s2c_CU:SDG}",null,null,null,null,null,null,null,null,null,"  LUXEMBOURG    {s2c_GA:LU}",null,"           C11.0.5 - Manufacture of beer    {s2c_NC:C1105}","  LUXEMBOURG    {s2c_GA:LU}",null,null,null,"  MALDIVES    {s2c_GA:MV}",null,null,"  Portuguese    {s2c_LA:pt}",null,"  SDG    {s2c_CU:SDG}",null,null,null,null,null,null,null,null,null,null,null,null,null,null,null,null,null,null,null,"    {s2c_SE:}"]
["  SEK    {s2c_CU:SEK}",null,null,null,null,null,null,null,null,null,"  MACAO    {s2c_GA:MO}",null,"           C11.0.6 - Manufacture of malt    {s2c_NC:C1106}","  MACAO    {s2c_GA:MO}",null,null,null,"  MALI    {s2c_GA:ML}",null,null,"  Quechua    {s2c_LA:qu}",null,"  SEK    {s2c_CU:SEK}",null,null,null,null,null,null,null,null,null,null,null,null,null,null,null,null,null,null,null,"    {s2c_SE:}"]
["  SGD    {s2c_CU:SGD}",null,null,null,null,null,null,null,null,null,"  MACEDONIA, THE FORMER YUGOSLAV REPUBLIC OF    {s2c_GA:MK}",null,"           C11.0.7 - Manufacture of soft drinks; production of mineral waters and other bottled waters    {s2c_NC:C1107}","  MACEDONIA, THE FORMER YUGOSLAV REPUBLIC OF    {s2c_GA:MK}",null,null,null,"  MALTA    {s2c_GA:MT}",null,null,"  Romansh    {s2c_LA:rm}",null,"  SGD    {s2c_CU:SGD}",null,null,null,null,null,null,null,null,null,null,null,null,null,null,null,null,null,null,null,"    {s2c_SE:}"]
["  SHP    {s2c_CU:SHP}",null,null,null,null,null,null,null,null,null,"  MADAGASCAR    {s2c_GA:MG}",null,"     C12 - Manufacture of tobacco products    {s2c_NC:C12}","  MADAGASCAR    {s2c_GA:MG}",null,null,null,"  MARSHALL ISLANDS    {s2c_GA:MH}",null,null,"  Rundi    {s2c_LA:rn}",null,"  SHP    {s2c_CU:SHP}",null,null,null,null,null,null,null,null,null,null,null,null,null,null,null,null,null,null,null,"    {s2c_SE:}"]
["  SLL    {s2c_CU:SLL}",null,null,null,null,null,null,null,null,null,"  MALAWI    {s2c_GA:MW}",null,"        C12.0 - Manufacture of tobacco products    {s2c_NC:C120}","  MALAWI    {s2c_GA:MW}",null,null,null,"  MARTINIQUE    {s2c_GA:MQ}",null,null,"  Romanian    {s2c_LA:ro}",null,"  SLL    {s2c_CU:SLL}",null,null,null,null,null,null,null,null,null,null,null,null,null,null,null,null,null,null,null,"    {s2c_SE:}"]
["  SOS    {s2c_CU:SOS}",null,null,null,null,null,null,null,null,null,"  MALAYSIA    {s2c_GA:MY}",null,"           C12.0.0 - Manufacture of tobacco products    {s2c_NC:C1200}","  MALAYSIA    {s2c_GA:MY}",null,null,null,"  MAURITANIA    {s2c_GA:MR}",null,null,"  Russian    {s2c_LA:ru}",null,"  SOS    {s2c_CU:SOS}",null,null,null,null,null,null,null,null,null,null,null,null,null,null,null,null,null,null,null,"    {s2c_SE:}"]
["  SRD    {s2c_CU:SRD}",null,null,null,null,null,null,null,null,null,"  MALDIVES    {s2c_GA:MV}",null,"     C13 - Manufacture of textiles    {s2c_NC:C13}","  MALDIVES    {s2c_GA:MV}",null,null,null,"  MAURITIUS    {s2c_GA:MU}",null,null,"  Kinyarwanda    {s2c_LA:rw}",null,"  SRD    {s2c_CU:SRD}",null,null,null,null,null,null,null,null,null,null,null,null,null,null,null,null,null,null,null,"    {s2c_SE:}"]
["  SSP    {s2c_CU:SSP}",null,null,null,null,null,null,null,null,null,"  MALI    {s2c_GA:ML}",null,"        C13.1 - Preparation and spinning of textile fibres    {s2c_NC:C131}","  MALI    {s2c_GA:ML}",null,null,null,"  MAYOTTE    {s2c_GA:YT}",null,null,"  Sardinian    {s2c_LA:sc}",null,"  SSP    {s2c_CU:SSP}",null,null,null,null,null,null,null,null,null,null,null,null,null,null,null,null,null,null,null,"    {s2c_SE:}"]
["  STD    {s2c_CU:STD}",null,null,null,null,null,null,null,null,null,"  MALTA    {s2c_GA:MT}",null,"           C13.1.0 - Preparation and spinning of textile fibres    {s2c_NC:C1310}","  MALTA    {s2c_GA:MT}",null,null,null,"  MEXICO    {s2c_GA:MX}",null,null,"  Sindhi    {s2c_LA:sd}",null,"  STD    {s2c_CU:STD}",null,null,null,null,null,null,null,null,null,null,null,null,null,null,null,null,null,null,null,"    {s2c_SE:}"]
["  SVC    {s2c_CU:SVC}",null,null,null,null,null,null,null,null,null,"  MARSHALL ISLANDS    {s2c_GA:MH}",null,"        C13.2 - Weaving of textiles    {s2c_NC:C132}","  MARSHALL ISLANDS    {s2c_GA:MH}",null,null,null,"  MICRONESIA, FEDERATED STATES OF    {s2c_GA:FM}",null,null,"  Northern Sami    {s2c_LA:se}",null,"  SVC    {s2c_CU:SVC}",null,null,null,null,null,null,null,null,null,null,null,null,null,null,null,null,null,null,null,"    {s2c_SE:}"]
["  SYP    {s2c_CU:SYP}",null,null,null,null,null,null,null,null,null,"  MARTINIQUE    {s2c_GA:MQ}",null,"           C13.2.0 - Weaving of textiles    {s2c_NC:C1320}","  MARTINIQUE    {s2c_GA:MQ}",null,null,null,"  MOLDOVA, REPUBLIC OF    {s2c_GA:MD}",null,null,"  Sango    {s2c_LA:sg}",null,"  SYP    {s2c_CU:SYP}",null,null,null,null,null,null,null,null,null,null,null,null,null,null,null,null,null,null,null,"    {s2c_SE:}"]
["  SZL    {s2c_CU:SZL}",null,null,null,null,null,null,null,null,null,"  MAURITANIA    {s2c_GA:MR}",null,"        C13.3 - Finishing of textiles    {s2c_NC:C133}","  MAURITANIA    {s2c_GA:MR}",null,null,null,"  MONACO    {s2c_GA:MC}",null,null,"  Serbo-Croatian    {s2c_LA:sh}",null,"  SZL    {s2c_CU:SZL}",null,null,null,null,null,null,null,null,null,null,null,null,null,null,null,null,null,null,null,"    {s2c_SE:}"]
["  THB    {s2c_CU:THB}",null,null,null,null,null,null,null,null,null,"  MAURITIUS    {s2c_GA:MU}",null,"           C13.3.0 - Finishing of textiles    {s2c_NC:C1330}","  MAURITIUS    {s2c_GA:MU}",null,null,null,"  MONGOLIA    {s2c_GA:MN}",null,null,"  Sinhala    {s2c_LA:si}",null,"  THB    {s2c_CU:THB}",null,null,null,null,null,null,null,null,null,null,null,null,null,null,null,null,null,null,null,"    {s2c_SE:}"]
["  TJS    {s2c_CU:TJS}",null,null,null,null,null,null,null,null,null,"  MAYOTTE    {s2c_GA:YT}",null,"        C13.9 - Manufacture of other textiles    {s2c_NC:C139}","  MAYOTTE    {s2c_GA:YT}",null,null,null,"  MONTENEGRO    {s2c_GA:ME}",null,null,"  Slovak    {s2c_LA:sk}",null,"  TJS    {s2c_CU:TJS}",null,null,null,null,null,null,null,null,null,null,null,null,null,null,null,null,null,null,null,"    {s2c_SE:}"]
["  TMT    {s2c_CU:TMT}",null,null,null,null,null,null,null,null,null,"  MEXICO    {s2c_GA:MX}",null,"           C13.9.1 - Manufacture of knitted and crocheted fabrics    {s2c_NC:C1391}","  MEXICO    {s2c_GA:MX}",null,null,null,"  MOROCCO    {s2c_GA:MA}",null,null,"  Slovenian    {s2c_LA:sl}",null,"  TMT    {s2c_CU:TMT}",null,null,null,null,null,null,null,null,null,null,null,null,null,null,null,null,null,null,null,"    {s2c_SE:}"]
["  TND    {s2c_CU:TND}",null,null,null,null,null,null,null,null,null,"  MICRONESIA, FEDERATED STATES OF    {s2c_GA:FM}",null,"           C13.9.2 - Manufacture of made-up textile articles, except apparel    {s2c_NC:C1392}","  MICRONESIA, FEDERATED STATES OF    {s2c_GA:FM}",null,null,null,"  MOZAMBIQUE    {s2c_GA:MZ}",null,null,"  Samoan    {s2c_LA:sm}",null,"  TND    {s2c_CU:TND}",null,null,null,null,null,null,null,null,null,null,null,null,null,null,null,null,null,null,null,"    {s2c_SE:}"]
["  TOP    {s2c_CU:TOP}",null,null,null,null,null,null,null,null,null,"  MOLDOVA, REPUBLIC OF    {s2c_GA:MD}",null,"           C13.9.3 - Manufacture of carpets and rugs    {s2c_NC:C1393}","  MOLDOVA, REPUBLIC OF    {s2c_GA:MD}",null,null,null,"  MYANMAR    {s2c_GA:MM}",null,null,"  Shona    {s2c_LA:sn}",null,"  TOP    {s2c_CU:TOP}",null,null,null,null,null,null,null,null,null,null,null,null,null,null,null,null,null,null,null,"    {s2c_SE:}"]
["  TRY    {s2c_CU:TRY}",null,null,null,null,null,null,null,null,null,"  MONACO    {s2c_GA:MC}",null,"           C13.9.4 - Manufacture of cordage, rope, twine and netting    {s2c_NC:C1394}","  MONACO    {s2c_GA:MC}",null,null,null,"  NAMIBIA    {s2c_GA:NA}",null,null,"  Somali    {s2c_LA:so}",null,"  TRY    {s2c_CU:TRY}",null,null,null,null,null,null,null,null,null,null,null,null,null,null,null,null,null,null,null,"    {s2c_SE:}"]
["  TTD    {s2c_CU:TTD}",null,null,null,null,null,null,null,null,null,"  MONGOLIA    {s2c_GA:MN}",null,"           C13.9.5 - Manufacture of non-wovens and articles made from non-wovens, except apparel    {s2c_NC:C1395}","  MONGOLIA    {s2c_GA:MN}",null,null,null,"  NAURU    {s2c_GA:NR}",null,null,"  Albanian    {s2c_LA:sq}",null,"  TTD    {s2c_CU:TTD}",null,null,null,null,null,null,null,null,null,null,null,null,null,null,null,null,null,null,null,"    {s2c_SE:}"]
["  TWD    {s2c_CU:TWD}",null,null,null,null,null,null,null,null,null,"  MONTENEGRO    {s2c_GA:ME}",null,"           C13.9.6 - Manufacture of other technical and industrial textiles    {s2c_NC:C1396}","  MONTENEGRO    {s2c_GA:ME}",null,null,null,"  NEPAL    {s2c_GA:NP}",null,null,"  Serbian    {s2c_LA:sr}",null,"  TWD    {s2c_CU:TWD}",null,null,null,null,null,null,null,null,null,null,null,null,null,null,null,null,null,null,null,"    {s2c_SE:}"]
["  TZS    {s2c_CU:TZS}",null,null,null,null,null,null,null,null,null,"  MONTSERRAT    {s2c_GA:MS}",null,"           C13.9.9 - Manufacture of other textiles n.e.c.    {s2c_NC:C1399}","  MONTSERRAT    {s2c_GA:MS}",null,null,null,"  NETHERLANDS    {s2c_GA:NL}",null,null,"  Swati    {s2c_LA:ss}",null,"  TZS    {s2c_CU:TZS}",null,null,null,null,null,null,null,null,null,null,null,null,null,null,null,null,null,null,null,"    {s2c_SE:}"]
["  UAH    {s2c_CU:UAH}",null,null,null,null,null,null,null,null,null,"  MOROCCO    {s2c_GA:MA}",null,"     C14 - Manufacture of wearing apparel    {s2c_NC:C14}","  MOROCCO    {s2c_GA:MA}",null,null,null,"  NEW CALEDONIA    {s2c_GA:NC}",null,null,"  Southern Sotho    {s2c_LA:st}",null,"  UAH    {s2c_CU:UAH}",null,null,null,null,null,null,null,null,null,null,null,null,null,null,null,null,null,null,null,"    {s2c_SE:}"]
["  UGX    {s2c_CU:UGX}",null,null,null,null,null,null,null,null,null,"  MOZAMBIQUE    {s2c_GA:MZ}",null,"        C14.1 - Manufacture of wearing apparel, except fur apparel    {s2c_NC:C141}","  MOZAMBIQUE    {s2c_GA:MZ}",null,null,null,"  NEW ZEALAND    {s2c_GA:NZ}",null,null,"  Sundanese    {s2c_LA:su}",null,"  UGX    {s2c_CU:UGX}",null,null,null,null,null,null,null,null,null,null,null,null,null,null,null,null,null,null,null,"    {s2c_SE:}"]
["  USD    {s2c_CU:USD}",null,null,null,null,null,null,null,null,null,"  MYANMAR    {s2c_GA:MM}",null,"           C14.1.1 - Manufacture of leather clothes    {s2c_NC:C1411}","  MYANMAR    {s2c_GA:MM}",null,null,null,"  NICARAGUA    {s2c_GA:NI}",null,null,"  Swedish    {s2c_LA:sv}",null,"  USD    {s2c_CU:USD}",null,null,null,null,null,null,null,null,null,null,null,null,null,null,null,null,null,null,null,"    {s2c_SE:}"]
["  USN    {s2c_CU:USN}",null,null,null,null,null,null,null,null,null,"  NAMIBIA    {s2c_GA:NA}",null,"           C14.1.2 - Manufacture of workwear    {s2c_NC:C1412}","  NAMIBIA    {s2c_GA:NA}",null,null,null,"  NIGER    {s2c_GA:NE}",null,null,"  Swahili (macrolanguage)    {s2c_LA:sw}",null,"  USN    {s2c_CU:USN}",null,null,null,null,null,null,null,null,null,null,null,null,null,null,null,null,null,null,null,"    {s2c_SE:}"]
["  USS    {s2c_CU:USS}",null,null,null,null,null,null,null,null,null,"  NAURU    {s2c_GA:NR}",null,"           C14.1.3 - Manufacture of other outerwear    {s2c_NC:C1413}","  NAURU    {s2c_GA:NR}",null,null,null,"  NIGERIA    {s2c_GA:NG}",null,null,"  Tamil    {s2c_LA:ta}",null,"  USS    {s2c_CU:USS}",null,null,null,null,null,null,null,null,null,null,null,null,null,null,null,null,null,null,null,"    {s2c_SE:}"]
["  UYI    {s2c_CU:UYI}",null,null,null,null,null,null,null,null,null,"  NEPAL    {s2c_GA:NP}",null,"           C14.1.4 - Manufacture of underwear    {s2c_NC:C1414}","  NEPAL    {s2c_GA:NP}",null,null,null,"  NIUE    {s2c_GA:NU}",null,null,"  Telugu    {s2c_LA:te}",null,"  UYI    {s2c_CU:UYI}",null,null,null,null,null,null,null,null,null,null,null,null,null,null,null,null,null,null,null,"    {s2c_SE:}"]
["  UYU    {s2c_CU:UYU}",null,null,null,null,null,null,null,null,null,"  NETHERLANDS    {s2c_GA:NL}",null,"           C14.1.9 - Manufacture of other wearing apparel and accessories    {s2c_NC:C1419}","  NETHERLANDS    {s2c_GA:NL}",null,null,null,"  NORFOLK ISLAND    {s2c_GA:NF}",null,null,"  Tajik    {s2c_LA:tg}",null,"  UYU    {s2c_CU:UYU}",null,null,null,null,null,null,null,null,null,null,null,null,null,null,null,null,null,null,null,"    {s2c_SE:}"]
["  UZS    {s2c_CU:UZS}",null,null,null,null,null,null,null,null,null,"  NEW CALEDONIA    {s2c_GA:NC}",null,"        C14.2 - Manufacture of articles of fur    {s2c_NC:C142}","  NEW CALEDONIA    {s2c_GA:NC}",null,null,null,"  NORTHERN MARIANA ISLANDS    {s2c_GA:MP}",null,null,"  Thai    {s2c_LA:th}",null,"  UZS    {s2c_CU:UZS}",null,null,null,null,null,null,null,null,null,null,null,null,null,null,null,null,null,null,null,"    {s2c_SE:}"]
["  VEF    {s2c_CU:VEF}",null,null,null,null,null,null,null,null,null,"  NEW ZEALAND    {s2c_GA:NZ}",null,"           C14.2.0 - Manufacture of articles of fur    {s2c_NC:C1420}","  NEW ZEALAND    {s2c_GA:NZ}",null,null,null,"  NORWAY    {s2c_GA:NO}",null,null,"  Tigrinya    {s2c_LA:ti}",null,"  VEF    {s2c_CU:VEF}",null,null,null,null,null,null,null,null,null,null,null,null,null,null,null,null,null,null,null,"    {s2c_SE:}"]
["  VND    {s2c_CU:VND}",null,null,null,null,null,null,null,null,null,"  NICARAGUA    {s2c_GA:NI}",null,"        C14.3 - Manufacture of knitted and crocheted apparel    {s2c_NC:C143}","  NICARAGUA    {s2c_GA:NI}",null,null,null,"  OMAN    {s2c_GA:OM}",null,null,"  Turkmen    {s2c_LA:tk}",null,"  VND    {s2c_CU:VND}",null,null,null,null,null,null,null,null,null,null,null,null,null,null,null,null,null,null,null,"    {s2c_SE:}"]
["  VUV    {s2c_CU:VUV}",null,null,null,null,null,null,null,null,null,"  NIGER    {s2c_GA:NE}",null,"           C14.3.1 - Manufacture of knitted and crocheted hosiery    {s2c_NC:C1431}","  NIGER    {s2c_GA:NE}",null,null,null,"  PAKISTAN    {s2c_GA:PK}",null,null,"  Tagalog    {s2c_LA:tl}",null,"  VUV    {s2c_CU:VUV}",null,null,null,null,null,null,null,null,null,null,null,null,null,null,null,null,null,null,null,"    {s2c_SE:}"]
["  WST    {s2c_CU:WST}",null,null,null,null,null,null,null,null,null,"  NIGERIA    {s2c_GA:NG}",null,"           C14.3.9 - Manufacture of other knitted and crocheted apparel    {s2c_NC:C1439}","  NIGERIA    {s2c_GA:NG}",null,null,null,"  PALAU    {s2c_GA:PW}",null,null,"  Tswana    {s2c_LA:tn}",null,"  WST    {s2c_CU:WST}",null,null,null,null,null,null,null,null,null,null,null,null,null,null,null,null,null,null,null,"    {s2c_SE:}"]
["  XAF    {s2c_CU:XAF}",null,null,null,null,null,null,null,null,null,"  NIUE    {s2c_GA:NU}",null,"     C15 - Manufacture of leather and related products    {s2c_NC:C15}","  NIUE    {s2c_GA:NU}",null,null,null,"  PALESTINIAN TERRITORY, OCCUPIED    {s2c_GA:PS}",null,null,"  Tonga (Tonga Islands)    {s2c_LA:to}",null,"  XAF    {s2c_CU:XAF}",null,null,null,null,null,null,null,null,null,null,null,null,null,null,null,null,null,null,null,"    {s2c_SE:}"]
["  XAG    {s2c_CU:XAG}",null,null,null,null,null,null,null,null,null,"  NORFOLK ISLAND    {s2c_GA:NF}",null,"        C15.1 - Tanning and dressing of leather; manufacture of luggage, handbags, saddlery and harness; dressing and dyeing of fur    {s2c_NC:C151}","  NORFOLK ISLAND    {s2c_GA:NF}",null,null,null,"  PANAMA    {s2c_GA:PA}",null,null,"  Turkish    {s2c_LA:tr}",null,"  XAG    {s2c_CU:XAG}",null,null,null,null,null,null,null,null,null,null,null,null,null,null,null,null,null,null,null,"    {s2c_SE:}"]
["  XAU    {s2c_CU:XAU}",null,null,null,null,null,null,null,null,null,"  NORTHERN MARIANA ISLANDS    {s2c_GA:MP}",null,"           C15.1.1 - Tanning and dressing of leather; dressing and dyeing of fur    {s2c_NC:C1511}","  NORTHERN MARIANA ISLANDS    {s2c_GA:MP}",null,null,null,"  PAPUA NEW GUINEA    {s2c_GA:PG}",null,null,"  Tsonga    {s2c_LA:ts}",null,"  XAU    {s2c_CU:XAU}",null,null,null,null,null,null,null,null,null,null,null,null,null,null,null,null,null,null,null,"    {s2c_SE:}"]
["  XBA    {s2c_CU:XBA}",null,null,null,null,null,null,null,null,null,"  NORWAY    {s2c_GA:NO}",null,"           C15.1.2 - Manufacture of luggage, handbags and the like, saddlery and harness    {s2c_NC:C1512}","  NORWAY    {s2c_GA:NO}",null,null,null,"  PARAGUAY    {s2c_GA:PY}",null,null,"  Tatar    {s2c_LA:tt}",null,"  XBA    {s2c_CU:XBA}",null,null,null,null,null,null,null,null,null,null,null,null,null,null,null,null,null,null,null,"    {s2c_SE:}"]
["  XBB    {s2c_CU:XBB}",null,null,null,null,null,null,null,null,null,"  OMAN    {s2c_GA:OM}",null,"        C15.2 - Manufacture of footwear    {s2c_NC:C152}","  OMAN    {s2c_GA:OM}",null,null,null,"  PERU    {s2c_GA:PE}",null,null,"  Twi    {s2c_LA:tw}",null,"  XBB    {s2c_CU:XBB}",null,null,null,null,null,null,null,null,null,null,null,null,null,null,null,null,null,null,null,"    {s2c_SE:}"]
["  XBC    {s2c_CU:XBC}",null,null,null,null,null,null,null,null,null,"  PAKISTAN    {s2c_GA:PK}",null,"           C15.2.0 - Manufacture of footwear    {s2c_NC:C1520}","  PAKISTAN    {s2c_GA:PK}",null,null,null,"  PHILIPPINES    {s2c_GA:PH}",null,null,"  Tahitian    {s2c_LA:ty}",null,"  XBC    {s2c_CU:XBC}",null,null,null,null,null,null,null,null,null,null,null,null,null,null,null,null,null,null,null,"    {s2c_SE:}"]
["  XBD    {s2c_CU:XBD}",null,null,null,null,null,null,null,null,null,"  PALAU    {s2c_GA:PW}",null,"     C16 - Manufacture of wood and of products of wood and cork, except furniture; manufacture of articles of straw and plaiting materials    {s2c_NC:C16}","  PALAU    {s2c_GA:PW}",null,null,null,"  POLAND    {s2c_GA:PL}",null,null,"  Uighur    {s2c_LA:ug}",null,"  XBD    {s2c_CU:XBD}",null,null,null,null,null,null,null,null,null,null,null,null,null,null,null,null,null,null,null,"    {s2c_SE:}"]
["  XCD    {s2c_CU:XCD}",null,null,null,null,null,null,null,null,null,"  PALESTINIAN TERRITORY, OCCUPIED    {s2c_GA:PS}",null,"        C16.1 - Sawmilling and planing of wood    {s2c_NC:C161}","  PALESTINIAN TERRITORY, OCCUPIED    {s2c_GA:PS}",null,null,null,"  PORTUGAL    {s2c_GA:PT}",null,null,"  Ukrainian    {s2c_LA:uk}",null,"  XCD    {s2c_CU:XCD}",null,null,null,null,null,null,null,null,null,null,null,null,null,null,null,null,null,null,null,"    {s2c_SE:}"]
["  XDR    {s2c_CU:XDR}",null,null,null,null,null,null,null,null,null,"  PANAMA    {s2c_GA:PA}",null,"           C16.1.0 - Sawmilling and planing of wood    {s2c_NC:C1610}","  PANAMA    {s2c_GA:PA}",null,null,null,"  PUERTO RICO    {s2c_GA:PR}",null,null,"  Urdu    {s2c_LA:ur}",null,"  XDR    {s2c_CU:XDR}",null,null,null,null,null,null,null,null,null,null,null,null,null,null,null,null,null,null,null,"    {s2c_SE:}"]
["  XFU    {s2c_CU:XFU}",null,null,null,null,null,null,null,null,null,"  PAPUA NEW GUINEA    {s2c_GA:PG}",null,"        C16.2 - Manufacture of products of wood, cork, straw and plaiting materials    {s2c_NC:C162}","  PAPUA NEW GUINEA    {s2c_GA:PG}",null,null,null,"  QATAR    {s2c_GA:QA}",null,null,"  Uzbek    {s2c_LA:uz}",null,"  XFU    {s2c_CU:XFU}",null,null,null,null,null,null,null,null,null,null,null,null,null,null,null,null,null,null,null,"    {s2c_SE:}"]
["  XOF    {s2c_CU:XOF}",null,null,null,null,null,null,null,null,null,"  PARAGUAY    {s2c_GA:PY}",null,"           C16.2.1 - Manufacture of veneer sheets and wood-based panels    {s2c_NC:C1621}","  PARAGUAY    {s2c_GA:PY}",null,null,null,"  RÉUNION    {s2c_GA:RE}",null,null,"  Venda    {s2c_LA:ve}",null,"  XOF    {s2c_CU:XOF}",null,null,null,null,null,null,null,null,null,null,null,null,null,null,null,null,null,null,null,"    {s2c_SE:}"]
["  XPD    {s2c_CU:XPD}",null,null,null,null,null,null,null,null,null,"  PERU    {s2c_GA:PE}",null,"           C16.2.2 - Manufacture of assembled parquet floors    {s2c_NC:C1622}","  PERU    {s2c_GA:PE}",null,null,null,"  ROMANIA    {s2c_GA:RO}",null,null,"  Vietnamese    {s2c_LA:vi}",null,"  XPD    {s2c_CU:XPD}",null,null,null,null,null,null,null,null,null,null,null,null,null,null,null,null,null,null,null,"    {s2c_SE:}"]
["  XPF    {s2c_CU:XPF}",null,null,null,null,null,null,null,null,null,"  PHILIPPINES    {s2c_GA:PH}",null,"           C16.2.3 - Manufacture of other builders' carpentry and joinery    {s2c_NC:C1623}","  PHILIPPINES    {s2c_GA:PH}",null,null,null,"  RUSSIAN FEDERATION    {s2c_GA:RU}",null,null,"  Volapük    {s2c_LA:vo}",null,"  XPF    {s2c_CU:XPF}",null,null,null,null,null,null,null,null,null,null,null,null,null,null,null,null,null,null,null,"    {s2c_SE:}"]
["  XPT    {s2c_CU:XPT}",null,null,null,null,null,null,null,null,null,"  PITCAIRN    {s2c_GA:PN}",null,"           C16.2.4 - Manufacture of wooden containers    {s2c_NC:C1624}","  PITCAIRN    {s2c_GA:PN}",null,null,null,"  RWANDA    {s2c_GA:RW}",null,null,"  Walloon    {s2c_LA:wa}",null,"  XPT    {s2c_CU:XPT}",null,null,null,null,null,null,null,null,null,null,null,null,null,null,null,null,null,null,null,"    {s2c_SE:}"]
["  XSU    {s2c_CU:XSU}",null,null,null,null,null,null,null,null,null,"  POLAND    {s2c_GA:PL}",null,"           C16.2.9 - Manufacture of other products of wood; manufacture of articles of cork, straw and plaiting materials    {s2c_NC:C1629}","  POLAND    {s2c_GA:PL}",null,null,null,"  SAINT BARTHÉLEMY    {s2c_GA:BL}",null,null,"  Wolof    {s2c_LA:wo}",null,"  XSU    {s2c_CU:XSU}",null,null,null,null,null,null,null,null,null,null,null,null,null,null,null,null,null,null,null,"    {s2c_SE:}"]
["  XTS    {s2c_CU:XTS}",null,null,null,null,null,null,null,null,null,"  PORTUGAL    {s2c_GA:PT}",null,"     C17 - Manufacture of paper and paper products    {s2c_NC:C17}","  PORTUGAL    {s2c_GA:PT}",null,null,null,"  SAINT KITTS AND NEVIS    {s2c_GA:KN}",null,null,"  Xhosa    {s2c_LA:xh}",null,"  XTS    {s2c_CU:XTS}",null,null,null,null,null,null,null,null,null,null,null,null,null,null,null,null,null,null,null,"    {s2c_SE:}"]
["  XUA    {s2c_CU:XUA}",null,null,null,null,null,null,null,null,null,"  PUERTO RICO    {s2c_GA:PR}",null,"        C17.1 - Manufacture of pulp, paper and paperboard    {s2c_NC:C171}","  PUERTO RICO    {s2c_GA:PR}",null,null,null,"  SAINT LUCIA    {s2c_GA:LC}",null,null,"  Yiddish    {s2c_LA:yi}",null,"  XUA    {s2c_CU:XUA}",null,null,null,null,null,null,null,null,null,null,null,null,null,null,null,null,null,null,null,"    {s2c_SE:}"]
["  YER    {s2c_CU:YER}",null,null,null,null,null,null,null,null,null,"  QATAR    {s2c_GA:QA}",null,"           C17.1.1 - Manufacture of pulp    {s2c_NC:C1711}","  QATAR    {s2c_GA:QA}",null,null,null,"  SAINT MARTIN (FRENCH PART)    {s2c_GA:MF}",null,null,"  Yoruba    {s2c_LA:yo}",null,"  YER    {s2c_CU:YER}",null,null,null,null,null,null,null,null,null,null,null,null,null,null,null,null,null,null,null,"    {s2c_SE:}"]
["  ZAR    {s2c_CU:ZAR}",null,null,null,null,null,null,null,null,null,"  RÉUNION    {s2c_GA:RE}",null,"           C17.1.2 - Manufacture of paper and paperboard    {s2c_NC:C1712}","  RÉUNION    {s2c_GA:RE}",null,null,null,"  SAINT PIERRE AND MIQUELON    {s2c_GA:PM}",null,null,"  Zhuang    {s2c_LA:za}",null,"  ZAR    {s2c_CU:ZAR}",null,null,null,null,null,null,null,null,null,null,null,null,null,null,null,null,null,null,null,"    {s2c_SE:}"]
["  ZMK    {s2c_CU:ZMK}",null,null,null,null,null,null,null,null,null,"  ROMANIA    {s2c_GA:RO}",null,"        C17.2 - Manufacture of articles of paper and paperboard    {s2c_NC:C172}","  ROMANIA    {s2c_GA:RO}",null,null,null,"  SAINT VINCENT AND THE GRENADINES    {s2c_GA:VC}",null,null,"  Standard Moroccan Tamazight    {s2c_LA:zg}",null,"  ZMK    {s2c_CU:ZMK}",null,null,null,null,null,null,null,null,null,null,null,null,null,null,null,null,null,null,null,"    {s2c_SE:}"]
["  ZMW    {s2c_CU:ZMW}",null,null,null,null,null,null,null,null,null,"  RUSSIAN FEDERATION    {s2c_GA:RU}",null,"           C17.2.1 - Manufacture of corrugated paper and paperboard and of containers of paper and paperboard    {s2c_NC:C1721}","  RUSSIAN FEDERATION    {s2c_GA:RU}",null,null,null,"  SAMOA    {s2c_GA:WS}",null,null,"  Chinese    {s2c_LA:zh}",null,"  ZMW    {s2c_CU:ZMW}",null,null,null,null,null,null,null,null,null,null,null,null,null,null,null,null,null,null,null,"    {s2c_SE:}"]
["  ZWL    {s2c_CU:ZWL}",null,null,null,null,null,null,null,null,null,"  RWANDA    {s2c_GA:RW}",null,"           C17.2.2 - Manufacture of household and sanitary goods and of toilet requisites    {s2c_NC:C1722}","  RWANDA    {s2c_GA:RW}",null,null,null,"  SAN MARINO    {s2c_GA:SM}",null,null,"  Zulu    {s2c_LA:zu}",null,"  ZWL    {s2c_CU:ZWL}",null,null,null,null,null,null,null,null,null,null,null,null,null,null,null,null,null,null,null,"    {s2c_SE:}"]
[null,null,null,null,null,null,null,null,null,null,"  SAINT BARTHÉLEMY    {s2c_GA:BL}",null,"           C17.2.3 - Manufacture of paper stationery    {s2c_NC:C1723}","  SAINT BARTHÉLEMY    {s2c_GA:BL}",null,null,null,"  SAO TOME AND PRINCIPE    {s2c_GA:ST}",null,null,null,null,null,null,null,null,null,null,null,null,null,null,null,null,null,null,null,null,null,null,null,null,"    {s2c_SE:}"]
[null,null,null,null,null,null,null,null,null,null,"  SAINT HELENA, ASCENSION AND TRISTAN DA CUNHA    {s2c_GA:SH}",null,"           C17.2.4 - Manufacture of wallpaper    {s2c_NC:C1724}","  SAINT HELENA, ASCENSION AND TRISTAN DA CUNHA    {s2c_GA:SH}",null,null,null,"  SAUDI ARABIA    {s2c_GA:SA}",null,null,null,null,null,null,null,null,null,null,null,null,null,null,null,null,null,null,null,null,null,null,null,null,"    {s2c_SE:}"]
[null,null,null,null,null,null,null,null,null,null,"  SAINT KITTS AND NEVIS    {s2c_GA:KN}",null,"           C17.2.9 - Manufacture of other articles of paper and paperboard    {s2c_NC:C1729}","  SAINT KITTS AND NEVIS    {s2c_GA:KN}",null,null,null,"  SENEGAL    {s2c_GA:SN}",null,null,null,null,null,null,null,null,null,null,null,null,null,null,null,null,null,null,null,null,null,null,null,null,"    {s2c_SE:}"]
[null,null,null,null,null,null,null,null,null,null,"  SAINT LUCIA    {s2c_GA:LC}",null,"     C18 - Printing and reproduction of recorded media    {s2c_NC:C18}","  SAINT LUCIA    {s2c_GA:LC}",null,null,null,"  SERBIA    {s2c_GA:RS}",null,null,null,null,null,null,null,null,null,null,null,null,null,null,null,null,null,null,null,null,null,null,null,null,"    {s2c_SE:}"]
[null,null,null,null,null,null,null,null,null,null,"  SAINT MARTIN (FRENCH PART)    {s2c_GA:MF}",null,"        C18.1 - Printing and service activities related to printing    {s2c_NC:C181}","  SAINT MARTIN (FRENCH PART)    {s2c_GA:MF}",null,null,null,"  SEYCHELLES    {s2c_GA:SC}",null,null,null,null,null,null,null,null,null,null,null,null,null,null,null,null,null,null,null,null,null,null,null,null,"    {s2c_SE:}"]
[null,null,null,null,null,null,null,null,null,null,"  SAINT PIERRE AND MIQUELON    {s2c_GA:PM}",null,"           C18.1.1 - Printing of newspapers    {s2c_NC:C1811}","  SAINT PIERRE AND MIQUELON    {s2c_GA:PM}",null,null,null,"  SIERRA LEONE    {s2c_GA:SL}",null,null,null,null,null,null,null,null,null,null,null,null,null,null,null,null,null,null,null,null,null,null,null,null,"    {s2c_SE:}"]
[null,null,null,null,null,null,null,null,null,null,"  SAINT VINCENT AND THE GRENADINES    {s2c_GA:VC}",null,"           C18.1.2 - Other printing    {s2c_NC:C1812}","  SAINT VINCENT AND THE GRENADINES    {s2c_GA:VC}",null,null,null,"  SINGAPORE    {s2c_GA:SG}",null,null,null,null,null,null,null,null,null,null,null,null,null,null,null,null,null,null,null,null,null,null,null,null,"    {s2c_SE:}"]
[null,null,null,null,null,null,null,null,null,null,"  SAMOA    {s2c_GA:WS}",null,"           C18.1.3 - Pre-press and pre-media services    {s2c_NC:C1813}","  SAMOA    {s2c_GA:WS}",null,null,null,"  SINT MAARTEN (DUTCH PART)    {s2c_GA:SX}",null,null,null,null,null,null,null,null,null,null,null,null,null,null,null,null,null,null,null,null,null,null,null,null,"    {s2c_SE:}"]
[null,null,null,null,null,null,null,null,null,null,"  SAN MARINO    {s2c_GA:SM}",null,"           C18.1.4 - Binding and related services    {s2c_NC:C1814}","  SAN MARINO    {s2c_GA:SM}",null,null,null,"  SLOVAKIA    {s2c_GA:SK}",null,null,null,null,null,null,null,null,null,null,null,null,null,null,null,null,null,null,null,null,null,null,null,null,"    {s2c_SE:}"]
[null,null,null,null,null,null,null,null,null,null,"  SAO TOME AND PRINCIPE    {s2c_GA:ST}",null,"        C18.2 - Reproduction of recorded media    {s2c_NC:C182}","  SAO TOME AND PRINCIPE    {s2c_GA:ST}",null,null,null,"  SLOVENIA    {s2c_GA:SI}",null,null,null,null,null,null,null,null,null,null,null,null,null,null,null,null,null,null,null,null,null,null,null,null,"    {s2c_SE:}"]
[null,null,null,null,null,null,null,null,null,null,"  SAUDI ARABIA    {s2c_GA:SA}",null,"           C18.2.0 - Reproduction of recorded media    {s2c_NC:C1820}","  SAUDI ARABIA    {s2c_GA:SA}",null,null,null,"  SOLOMON ISLANDS    {s2c_GA:SB}",null,null,null,null,null,null,null,null,null,null,null,null,null,null,null,null,null,null,null,null,null,null,null,null,"    {s2c_SE:}"]
[null,null,null,null,null,null,null,null,null,null,"  SENEGAL    {s2c_GA:SN}",null,"     C19 - Manufacture of coke and refined petroleum products    {s2c_NC:C19}","  SENEGAL    {s2c_GA:SN}",null,null,null,"  SOMALIA    {s2c_GA:SO}",null,null,null,null,null,null,null,null,null,null,null,null,null,null,null,null,null,null,null,null,null,null,null,null,"    {s2c_SE:}"]
[null,null,null,null,null,null,null,null,null,null,"  SERBIA    {s2c_GA:RS}",null,"        C19.1 - Manufacture of coke oven products    {s2c_NC:C191}","  SERBIA    {s2c_GA:RS}",null,null,null,"  SOUTH AFRICA    {s2c_GA:ZA}",null,null,null,null,null,null,null,null,null,null,null,null,null,null,null,null,null,null,null,null,null,null,null,null,"    {s2c_SE:}"]
[null,null,null,null,null,null,null,null,null,null,"  SEYCHELLES    {s2c_GA:SC}",null,"           C19.1.0 - Manufacture of coke oven products    {s2c_NC:C1910}","  SEYCHELLES    {s2c_GA:SC}",null,null,null,"  SPAIN    {s2c_GA:ES}",null,null,null,null,null,null,null,null,null,null,null,null,null,null,null,null,null,null,null,null,null,null,null,null,"    {s2c_SE:}"]
[null,null,null,null,null,null,null,null,null,null,"  SIERRA LEONE    {s2c_GA:SL}",null,"        C19.2 - Manufacture of refined petroleum products    {s2c_NC:C192}","  SIERRA LEONE    {s2c_GA:SL}",null,null,null,"  SRI LANKA    {s2c_GA:LK}",null,null,null,null,null,null,null,null,null,null,null,null,null,null,null,null,null,null,null,null,null,null,null,null,"    {s2c_SE:}"]
[null,null,null,null,null,null,null,null,null,null,"  SINGAPORE    {s2c_GA:SG}",null,"           C19.2.0 - Manufacture of refined petroleum products    {s2c_NC:C1920}","  SINGAPORE    {s2c_GA:SG}",null,null,null,"  SUDAN    {s2c_GA:SD}",null,null,null,null,null,null,null,null,null,null,null,null,null,null,null,null,null,null,null,null,null,null,null,null,"    {s2c_SE:}"]
[null,null,null,null,null,null,null,null,null,null,"  SINT MAARTEN (DUTCH PART)    {s2c_GA:SX}",null,"     C20 - Manufacture of chemicals and chemical products    {s2c_NC:C20}","  SINT MAARTEN (DUTCH PART)    {s2c_GA:SX}",null,null,null,"  SURINAME    {s2c_GA:SR}",null,null,null,null,null,null,null,null,null,null,null,null,null,null,null,null,null,null,null,null,null,null,null,null,"    {s2c_SE:}"]
[null,null,null,null,null,null,null,null,null,null,"  SLOVAKIA    {s2c_GA:SK}",null,"        C20.1 - Manufacture of basic chemicals, fertilisers and nitrogen compounds, plastics and synthetic rubber in primary forms    {s2c_NC:C201}","  SLOVAKIA    {s2c_GA:SK}",null,null,null,"  SVALBARD AND JAN MAYEN    {s2c_GA:SJ}",null,null,null,null,null,null,null,null,null,null,null,null,null,null,null,null,null,null,null,null,null,null,null,null,"    {s2c_SE:}"]
[null,null,null,null,null,null,null,null,null,null,"  SLOVENIA    {s2c_GA:SI}",null,"           C20.1.1 - Manufacture of industrial gases    {s2c_NC:C2011}","  SLOVENIA    {s2c_GA:SI}",null,null,null,"  SWAZILAND    {s2c_GA:SZ}",null,null,null,null,null,null,null,null,null,null,null,null,null,null,null,null,null,null,null,null,null,null,null,null,"    {s2c_SE:}"]
[null,null,null,null,null,null,null,null,null,null,"  SOLOMON ISLANDS    {s2c_GA:SB}",null,"           C20.1.2 - Manufacture of dyes and pigments    {s2c_NC:C2012}","  SOLOMON ISLANDS    {s2c_GA:SB}",null,null,null,"  SWEDEN    {s2c_GA:SE}",null,null,null,null,null,null,null,null,null,null,null,null,null,null,null,null,null,null,null,null,null,null,null,null,"    {s2c_SE:}"]
[null,null,null,null,null,null,null,null,null,null,"  SOMALIA    {s2c_GA:SO}",null,"           C20.1.3 - Manufacture of other inorganic basic chemicals    {s2c_NC:C2013}","  SOMALIA    {s2c_GA:SO}",null,null,null,"  SWITZERLAND    {s2c_GA:CH}",null,null,null,null,null,null,null,null,null,null,null,null,null,null,null,null,null,null,null,null,null,null,null,null,"    {s2c_SE:}"]
[null,null,null,null,null,null,null,null,null,null,"  SOUTH AFRICA    {s2c_GA:ZA}",null,"           C20.1.4 - Manufacture of other organic basic chemicals    {s2c_NC:C2014}","  SOUTH AFRICA    {s2c_GA:ZA}",null,null,null,"  SYRIAN ARAB REPUBLIC    {s2c_GA:SY}",null,null,null,null,null,null,null,null,null,null,null,null,null,null,null,null,null,null,null,null,null,null,null,null,"    {s2c_SE:}"]
[null,null,null,null,null,null,null,null,null,null,"  SOUTH GEORGIA AND THE SOUTH SANDWICH ISLANDS    {s2c_GA:GS}",null,"           C20.1.5 - Manufacture of fertilisers and nitrogen compounds    {s2c_NC:C2015}","  SOUTH GEORGIA AND THE SOUTH SANDWICH ISLANDS    {s2c_GA:GS}",null,null,null,"  TAIWAN, PROVINCE OF CHINA    {s2c_GA:TW}",null,null,null,null,null,null,null,null,null,null,null,null,null,null,null,null,null,null,null,null,null,null,null,null,"    {s2c_SE:}"]
[null,null,null,null,null,null,null,null,null,null,"  SPAIN    {s2c_GA:ES}",null,"           C20.1.6 - Manufacture of plastics in primary forms    {s2c_NC:C2016}","  SOUTH SUDAN    {s2c_GA:SS}",null,null,null,"  TAJIKISTAN    {s2c_GA:TJ}",null,null,null,null,null,null,null,null,null,null,null,null,null,null,null,null,null,null,null,null,null,null,null,null,"    {s2c_SE:}"]
[null,null,null,null,null,null,null,null,null,null,"  SRI LANKA    {s2c_GA:LK}",null,"           C20.1.7 - Manufacture of synthetic rubber in primary forms    {s2c_NC:C2017}","  SPAIN    {s2c_GA:ES}",null,null,null,"  TANZANIA, UNITED REPUBLIC OF    {s2c_GA:TZ}",null,null,null,null,null,null,null,null,null,null,null,null,null,null,null,null,null,null,null,null,null,null,null,null,"    {s2c_SE:}"]
[null,null,null,null,null,null,null,null,null,null,"  SUDAN    {s2c_GA:SD}",null,"        C20.2 - Manufacture of pesticides and other agrochemical products    {s2c_NC:C202}","  SRI LANKA    {s2c_GA:LK}",null,null,null,"  THAILAND    {s2c_GA:TH}",null,null,null,null,null,null,null,null,null,null,null,null,null,null,null,null,null,null,null,null,null,null,null,null,"    {s2c_SE:}"]
[null,null,null,null,null,null,null,null,null,null,"  SURINAME    {s2c_GA:SR}",null,"           C20.2.0 - Manufacture of pesticides and other agrochemical products    {s2c_NC:C2020}","  SUDAN    {s2c_GA:SD}",null,null,null,"  TIMOR-LESTE    {s2c_GA:TL}",null,null,null,null,null,null,null,null,null,null,null,null,null,null,null,null,null,null,null,null,null,null,null,null,"    {s2c_SE:}"]
[null,null,null,null,null,null,null,null,null,null,"  SVALBARD AND JAN MAYEN    {s2c_GA:SJ}",null,"        C20.3 - Manufacture of paints, varnishes and similar coatings, printing ink and mastics    {s2c_NC:C203}","  SURINAME    {s2c_GA:SR}",null,null,null,"  TOGO    {s2c_GA:TG}",null,null,null,null,null,null,null,null,null,null,null,null,null,null,null,null,null,null,null,null,null,null,null,null,"    {s2c_SE:}"]
[null,null,null,null,null,null,null,null,null,null,"  SWAZILAND    {s2c_GA:SZ}",null,"           C20.3.0 - Manufacture of paints, varnishes and similar coatings, printing ink and mastics    {s2c_NC:C2030}","  SVALBARD AND JAN MAYEN    {s2c_GA:SJ}",null,null,null,"  TOKELAU    {s2c_GA:TK}",null,null,null,null,null,null,null,null,null,null,null,null,null,null,null,null,null,null,null,null,null,null,null,null,"    {s2c_SE:}"]
[null,null,null,null,null,null,null,null,null,null,"  SWEDEN    {s2c_GA:SE}",null,"        C20.4 - Manufacture of soap and detergents, cleaning and polishing preparations, perfumes and toilet preparations    {s2c_NC:C204}","  SWAZILAND    {s2c_GA:SZ}",null,null,null,"  TONGA    {s2c_GA:TO}",null,null,null,null,null,null,null,null,null,null,null,null,null,null,null,null,null,null,null,null,null,null,null,null,"    {s2c_SE:}"]
[null,null,null,null,null,null,null,null,null,null,"  SWITZERLAND    {s2c_GA:CH}",null,"           C20.4.1 - Manufacture of soap and detergents, cleaning and polishing preparations    {s2c_NC:C2041}","  SWEDEN    {s2c_GA:SE}",null,null,null,"  TRINIDAD AND TOBAGO    {s2c_GA:TT}",null,null,null,null,null,null,null,null,null,null,null,null,null,null,null,null,null,null,null,null,null,null,null,null,"    {s2c_SE:}"]
[null,null,null,null,null,null,null,null,null,null,"  SYRIAN ARAB REPUBLIC    {s2c_GA:SY}",null,"           C20.4.2 - Manufacture of perfumes and toilet preparations    {s2c_NC:C2042}","  SWITZERLAND    {s2c_GA:CH}",null,null,null,"  TUNISIA    {s2c_GA:TN}",null,null,null,null,null,null,null,null,null,null,null,null,null,null,null,null,null,null,null,null,null,null,null,null,"    {s2c_SE:}"]
[null,null,null,null,null,null,null,null,null,null,"  TAIWAN, PROVINCE OF CHINA    {s2c_GA:TW}",null,"        C20.5 - Manufacture of other chemical products    {s2c_NC:C205}","  SYRIAN ARAB REPUBLIC    {s2c_GA:SY}",null,null,null,"  TURKEY    {s2c_GA:TR}",null,null,null,null,null,null,null,null,null,null,null,null,null,null,null,null,null,null,null,null,null,null,null,null,"    {s2c_SE:}"]
[null,null,null,null,null,null,null,null,null,null,"  TAJIKISTAN    {s2c_GA:TJ}",null,"           C20.5.1 - Manufacture of explosives    {s2c_NC:C2051}","  TAIWAN, PROVINCE OF CHINA    {s2c_GA:TW}",null,null,null,"  TURKMENISTAN    {s2c_GA:TM}",null,null,null,null,null,null,null,null,null,null,null,null,null,null,null,null,null,null,null,null,null,null,null,null,"    {s2c_SE:}"]
[null,null,null,null,null,null,null,null,null,null,"  TANZANIA, UNITED REPUBLIC OF    {s2c_GA:TZ}",null,"           C20.5.2 - Manufacture of glues    {s2c_NC:C2052}","  TAJIKISTAN    {s2c_GA:TJ}",null,null,null,"  TUVALU    {s2c_GA:TV}",null,null,null,null,null,null,null,null,null,null,null,null,null,null,null,null,null,null,null,null,null,null,null,null,"    {s2c_SE:}"]
[null,null,null,null,null,null,null,null,null,null,"  THAILAND    {s2c_GA:TH}",null,"           C20.5.3 - Manufacture of essential oils    {s2c_NC:C2053}","  TANZANIA, UNITED REPUBLIC OF    {s2c_GA:TZ}",null,null,null,"  UGANDA    {s2c_GA:UG}",null,null,null,null,null,null,null,null,null,null,null,null,null,null,null,null,null,null,null,null,null,null,null,null,"    {s2c_SE:}"]
[null,null,null,null,null,null,null,null,null,null,"  TIMOR-LESTE    {s2c_GA:TL}",null,"           C20.5.9 - Manufacture of other chemical products n.e.c.    {s2c_NC:C2059}","  THAILAND    {s2c_GA:TH}",null,null,null,"  UKRAINE    {s2c_GA:UA}",null,null,null,null,null,null,null,null,null,null,null,null,null,null,null,null,null,null,null,null,null,null,null,null,"    {s2c_SE:}"]
[null,null,null,null,null,null,null,null,null,null,"  TOGO    {s2c_GA:TG}",null,"        C20.6 - Manufacture of man-made fibres    {s2c_NC:C206}","  TIMOR-LESTE    {s2c_GA:TL}",null,null,null,"  UNITED ARAB EMIRATES    {s2c_GA:AE}",null,null,null,null,null,null,null,null,null,null,null,null,null,null,null,null,null,null,null,null,null,null,null,null,"    {s2c_SE:}"]
[null,null,null,null,null,null,null,null,null,null,"  TOKELAU    {s2c_GA:TK}",null,"           C20.6.0 - Manufacture of man-made fibres    {s2c_NC:C2060}","  TOGO    {s2c_GA:TG}",null,null,null,"  UNITED KINGDOM    {s2c_GA:GB}",null,null,null,null,null,null,null,null,null,null,null,null,null,null,null,null,null,null,null,null,null,null,null,null,"    {s2c_SE:}"]
[null,null,null,null,null,null,null,null,null,null,"  TONGA    {s2c_GA:TO}",null,"     C21 - Manufacture of basic pharmaceutical products and pharmaceutical preparations    {s2c_NC:C21}","  TOKELAU    {s2c_GA:TK}",null,null,null,"     ANGUILLA    {s2c_GA:AI}",null,null,null,null,null,null,null,null,null,null,null,null,null,null,null,null,null,null,null,null,null,null,null,null,"    {s2c_SE:}"]
[null,null,null,null,null,null,null,null,null,null,"  TRINIDAD AND TOBAGO    {s2c_GA:TT}",null,"        C21.1 - Manufacture of basic pharmaceutical products    {s2c_NC:C211}","  TONGA    {s2c_GA:TO}",null,null,null,"     BERMUDA    {s2c_GA:BM}",null,null,null,null,null,null,null,null,null,null,null,null,null,null,null,null,null,null,null,null,null,null,null,null,"    {s2c_SE:}"]
[null,null,null,null,null,null,null,null,null,null,"  TUNISIA    {s2c_GA:TN}",null,"           C21.1.0 - Manufacture of basic pharmaceutical products    {s2c_NC:C2110}","  TRINIDAD AND TOBAGO    {s2c_GA:TT}",null,null,null,"     BRITISH INDIAN OCEAN TERRITORY    {s2c_GA:IO}",null,null,null,null,null,null,null,null,null,null,null,null,null,null,null,null,null,null,null,null,null,null,null,null,"    {s2c_SE:}"]
[null,null,null,null,null,null,null,null,null,null,"  TURKEY    {s2c_GA:TR}",null,"        C21.2 - Manufacture of pharmaceutical preparations    {s2c_NC:C212}","  TUNISIA    {s2c_GA:TN}",null,null,null,"     VIRGIN ISLANDS, BRITISH    {s2c_GA:VG}",null,null,null,null,null,null,null,null,null,null,null,null,null,null,null,null,null,null,null,null,null,null,null,null,"    {s2c_SE:}"]
[null,null,null,null,null,null,null,null,null,null,"  TURKMENISTAN    {s2c_GA:TM}",null,"           C21.2.0 - Manufacture of pharmaceutical preparations    {s2c_NC:C2120}","  TURKEY    {s2c_GA:TR}",null,null,null,"     CAYMAN ISLANDS    {s2c_GA:KY}",null,null,null,null,null,null,null,null,null,null,null,null,null,null,null,null,null,null,null,null,null,null,null,null,"    {s2c_SE:}"]
[null,null,null,null,null,null,null,null,null,null,"  TURKS AND CAICOS ISLANDS    {s2c_GA:TC}",null,"     C22 - Manufacture of rubber and plastic products    {s2c_NC:C22}","  TURKMENISTAN    {s2c_GA:TM}",null,null,null,"     FALKLAND ISLANDS (MALVINAS)    {s2c_GA:FK}",null,null,null,null,null,null,null,null,null,null,null,null,null,null,null,null,null,null,null,null,null,null,null,null,"    {s2c_SE:}"]
[null,null,null,null,null,null,null,null,null,null,"  TUVALU    {s2c_GA:TV}",null,"        C22.1 - Manufacture of rubber products    {s2c_NC:C221}","  TURKS AND CAICOS ISLANDS    {s2c_GA:TC}",null,null,null,"     UNITED KINGDOM (GIBRALTAR)    {s2c_GA:GI}",null,null,null,null,null,null,null,null,null,null,null,null,null,null,null,null,null,null,null,null,null,null,null,null,"    {s2c_SE:}"]
[null,null,null,null,null,null,null,null,null,null,"  UGANDA    {s2c_GA:UG}",null,"           C22.1.1 - Manufacture of rubber tyres and tubes; retreading and rebuilding of rubber tyres    {s2c_NC:C2211}","  TUVALU    {s2c_GA:TV}",null,null,null,"     MONTSERRAT    {s2c_GA:MS}",null,null,null,null,null,null,null,null,null,null,null,null,null,null,null,null,null,null,null,null,null,null,null,null,"    {s2c_SE:}"]
[null,null,null,null,null,null,null,null,null,null,"  UKRAINE    {s2c_GA:UA}",null,"           C22.1.9 - Manufacture of other rubber products    {s2c_NC:C2219}","  UGANDA    {s2c_GA:UG}",null,null,null,"     PITCAIRN    {s2c_GA:PN}",null,null,null,null,null,null,null,null,null,null,null,null,null,null,null,null,null,null,null,null,null,null,null,null,"    {s2c_SE:}"]
[null,null,null,null,null,null,null,null,null,null,"  UNITED ARAB EMIRATES    {s2c_GA:AE}",null,"        C22.2 - Manufacture of plastics products    {s2c_NC:C222}","  UKRAINE    {s2c_GA:UA}",null,null,null,"     SAINT HELENA, ASCENSION AND TRISTAN DA CUNHA    {s2c_GA:SH}",null,null,null,null,null,null,null,null,null,null,null,null,null,null,null,null,null,null,null,null,null,null,null,null,"    {s2c_SE:}"]
[null,null,null,null,null,null,null,null,null,null,"  UNITED KINGDOM    {s2c_GA:GB}",null,"           C22.2.1 - Manufacture of plastic plates, sheets, tubes and profiles    {s2c_NC:C2221}","  UNITED ARAB EMIRATES    {s2c_GA:AE}",null,null,null,"     SOUTH GEORGIA AND THE SOUTH SANDWICH ISLANDS    {s2c_GA:GS}",null,null,null,null,null,null,null,null,null,null,null,null,null,null,null,null,null,null,null,null,null,null,null,null,"    {s2c_SE:}"]
[null,null,null,null,null,null,null,null,null,null,"  UNITED STATES    {s2c_GA:US}",null,"           C22.2.2 - Manufacture of plastic packing goods    {s2c_NC:C2222}","  UNITED KINGDOM    {s2c_GA:GB}",null,null,null,"     TURKS AND CAICOS ISLANDS    {s2c_GA:TC}",null,null,null,null,null,null,null,null,null,null,null,null,null,null,null,null,null,null,null,null,null,null,null,null,"    {s2c_SE:}"]
[null,null,null,null,null,null,null,null,null,null,"  UNITED STATES MINOR OUTLYING ISLANDS    {s2c_GA:UM}",null,"           C22.2.3 - Manufacture of builders’ ware of plastic    {s2c_NC:C2223}","  UNITED STATES    {s2c_GA:US}",null,null,null,"  UNITED STATES    {s2c_GA:US}",null,null,null,null,null,null,null,null,null,null,null,null,null,null,null,null,null,null,null,null,null,null,null,null,"    {s2c_SE:}"]
[null,null,null,null,null,null,null,null,null,null,"  URUGUAY    {s2c_GA:UY}",null,"           C22.2.9 - Manufacture of other plastic products    {s2c_NC:C2229}","  UNITED STATES MINOR OUTLYING ISLANDS    {s2c_GA:UM}",null,null,null,"  UNITED STATES MINOR OUTLYING ISLANDS    {s2c_GA:UM}",null,null,null,null,null,null,null,null,null,null,null,null,null,null,null,null,null,null,null,null,null,null,null,null,"    {s2c_SE:}"]
[null,null,null,null,null,null,null,null,null,null,"  UZBEKISTAN    {s2c_GA:UZ}",null,"     C23 - Manufacture of other non-metallic mineral products    {s2c_NC:C23}","  URUGUAY    {s2c_GA:UY}",null,null,null,"  URUGUAY    {s2c_GA:UY}",null,null,null,null,null,null,null,null,null,null,null,null,null,null,null,null,null,null,null,null,null,null,null,null,"    {s2c_SE:}"]
[null,null,null,null,null,null,null,null,null,null,"  VANUATU    {s2c_GA:VU}",null,"        C23.1 - Manufacture of glass and glass products    {s2c_NC:C231}","  UZBEKISTAN    {s2c_GA:UZ}",null,null,null,"  UZBEKISTAN    {s2c_GA:UZ}",null,null,null,null,null,null,null,null,null,null,null,null,null,null,null,null,null,null,null,null,null,null,null,null,"    {s2c_SE:}"]
[null,null,null,null,null,null,null,null,null,null,"  VENEZUELA, BOLIVARIAN REPUBLIC OF    {s2c_GA:VE}",null,"           C23.1.1 - Manufacture of flat glass    {s2c_NC:C2311}","  VANUATU    {s2c_GA:VU}",null,null,null,"  VANUATU    {s2c_GA:VU}",null,null,null,null,null,null,null,null,null,null,null,null,null,null,null,null,null,null,null,null,null,null,null,null,"    {s2c_SE:}"]
[null,null,null,null,null,null,null,null,null,null,"  VIET NAM    {s2c_GA:VN}",null,"           C23.1.2 - Shaping and processing of flat glass    {s2c_NC:C2312}","  VENEZUELA, BOLIVARIAN REPUBLIC OF    {s2c_GA:VE}",null,null,null,"  VENEZUELA, BOLIVARIAN REPUBLIC OF    {s2c_GA:VE}",null,null,null,null,null,null,null,null,null,null,null,null,null,null,null,null,null,null,null,null,null,null,null,null,"    {s2c_SE:}"]
[null,null,null,null,null,null,null,null,null,null,"  VIRGIN ISLANDS, BRITISH    {s2c_GA:VG}",null,"           C23.1.3 - Manufacture of hollow glass    {s2c_NC:C2313}","  VIET NAM    {s2c_GA:VN}",null,null,null,"  VIET NAM    {s2c_GA:VN}",null,null,null,null,null,null,null,null,null,null,null,null,null,null,null,null,null,null,null,null,null,null,null,null,"    {s2c_SE:}"]
[null,null,null,null,null,null,null,null,null,null,"  VIRGIN ISLANDS, U.S.    {s2c_GA:VI}",null,"           C23.1.4 - Manufacture of glass fibres    {s2c_NC:C2314}","  VIRGIN ISLANDS, BRITISH    {s2c_GA:VG}",null,null,null,"  VIRGIN ISLANDS, U.S.    {s2c_GA:VI}",null,null,null,null,null,null,null,null,null,null,null,null,null,null,null,null,null,null,null,null,null,null,null,null,"    {s2c_SE:}"]
[null,null,null,null,null,null,null,null,null,null,"  WALLIS AND FUTUNA    {s2c_GA:WF}",null,"           C23.1.9 - Manufacture and processing of other glass, including technical glassware    {s2c_NC:C2319}","  VIRGIN ISLANDS, U.S.    {s2c_GA:VI}",null,null,null,"  WALLIS AND FUTUNA    {s2c_GA:WF}",null,null,null,null,null,null,null,null,null,null,null,null,null,null,null,null,null,null,null,null,null,null,null,null,"    {s2c_SE:}"]
[null,null,null,null,null,null,null,null,null,null,"  WESTERN SAHARA    {s2c_GA:EH}",null,"        C23.2 - Manufacture of refractory products    {s2c_NC:C232}","  WALLIS AND FUTUNA    {s2c_GA:WF}",null,null,null,"  WESTERN SAHARA    {s2c_GA:EH}",null,null,null,null,null,null,null,null,null,null,null,null,null,null,null,null,null,null,null,null,null,null,null,null,"    {s2c_SE:}"]
[null,null,null,null,null,null,null,null,null,null,"  YEMEN    {s2c_GA:YE}",null,"           C23.2.0 - Manufacture of refractory products    {s2c_NC:C2320}","  WESTERN SAHARA    {s2c_GA:EH}",null,null,null,"  YEMEN    {s2c_GA:YE}",null,null,null,null,null,null,null,null,null,null,null,null,null,null,null,null,null,null,null,null,null,null,null,null,"    {s2c_SE:}"]
[null,null,null,null,null,null,null,null,null,null,"  ZAMBIA    {s2c_GA:ZM}",null,"        C23.3 - Manufacture of clay building materials    {s2c_NC:C233}","  YEMEN    {s2c_GA:YE}",null,null,null,"  ZAMBIA    {s2c_GA:ZM}",null,null,null,null,null,null,null,null,null,null,null,null,null,null,null,null,null,null,null,null,null,null,null,null,"    {s2c_SE:}"]
[null,null,null,null,null,null,null,null,null,null,"  ZIMBABWE    {s2c_GA:ZW}",null,"           C23.3.1 - Manufacture of ceramic tiles and flags    {s2c_NC:C2331}","  ZAMBIA    {s2c_GA:ZM}",null,null,null,"  ZIMBABWE    {s2c_GA:ZW}",null,null,null,null,null,null,null,null,null,null,null,null,null,null,null,null,null,null,null,null,null,null,null,null,"    {s2c_SE:}"]
[null,null,null,null,null,null,null,null,null,null,"  European Union institutions    {s2c_GA:EU}",null,"           C23.3.2 - Manufacture of bricks, tiles and construction products, in baked clay    {s2c_NC:C2332}","  ZIMBABWE    {s2c_GA:ZW}",null,null,null,"  SOUTH SUDAN    {s2c_GA:SS}",null,null,null,null,null,null,null,null,null,null,null,null,null,null,null,null,null,null,null,null,null,null,null,null,"    {s2c_SE:}"]
[null,null,null,null,null,null,null,null,null,null,"  Other cases    {s2c_GA:XA}",null,"        C23.4 - Manufacture of other porcelain and ceramic products    {s2c_NC:C234}","  European Union institutions    {s2c_GA:EU}",null,null,null,null,null,null,null,null,null,null,null,null,null,null,null,null,null,null,null,null,null,null,null,null,null,null,null,null,"    {s2c_SE:}"]
[null,null,null,null,null,null,null,null,null,null,"  SOUTH SUDAN    {s2c_GA:SS}",null,"           C23.4.1 - Manufacture of ceramic household and ornamental articles    {s2c_NC:C2341}","  Other cases    {s2c_GA:XA}",null,null,null,null,null,null,null,null,null,null,null,null,null,null,null,null,null,null,null,null,null,null,null,null,null,null,null,null,"    {s2c_SE:}"]
[null,null,null,null,null,null,null,null,null,null,"  Aggregated countries due to application of threshold    {s2c_GA:AA}",null,"           C23.4.2 - Manufacture of ceramic sanitary fixtures    {s2c_NC:C2342}",null,null,null,null,null,null,null,null,null,null,null,null,null,null,null,null,null,null,null,null,null,null,null,null,null,null,null,null,null,"    {s2c_SE:}"]
[null,null,null,null,null,null,null,null,null,null,null,null,"           C23.4.3 - Manufacture of ceramic insulators and insulating fittings    {s2c_NC:C2343}",null,null,null,null,null,null,null,null,null,null,null,null,null,null,null,null,null,null,null,null,null,null,null,null,null,null,null,null,null,"    {s2c_SE:}"]
[null,null,null,null,null,null,null,null,null,null,null,null,"           C23.4.4 - Manufacture of other technical ceramic products    {s2c_NC:C2344}",null,null,null,null,null,null,null,null,null,null,null,null,null,null,null,null,null,null,null,null,null,null,null,null,null,null,null,null,null,"    {s2c_SE:}"]
[null,null,null,null,null,null,null,null,null,null,null,null,"           C23.4.9 - Manufacture of other ceramic products    {s2c_NC:C2349}",null,null,null,null,null,null,null,null,null,null,null,null,null,null,null,null,null,null,null,null,null,null,null,null,null,null,null,null,null,"    {s2c_SE:}"]
[null,null,null,null,null,null,null,null,null,null,null,null,"        C23.5 - Manufacture of cement, lime and plaster    {s2c_NC:C235}",null,null,null,null,null,null,null,null,null,null,null,null,null,null,null,null,null,null,null,null,null,null,null,null,null,null,null,null,null,"    {s2c_SE:}"]
[null,null,null,null,null,null,null,null,null,null,null,null,"           C23.5.1 - Manufacture of cement    {s2c_NC:C2351}",null,null,null,null,null,null,null,null,null,null,null,null,null,null,null,null,null,null,null,null,null,null,null,null,null,null,null,null,null,"    {s2c_SE:}"]
[null,null,null,null,null,null,null,null,null,null,null,null,"           C23.5.2 - Manufacture of lime and plaster    {s2c_NC:C2352}",null,null,null,null,null,null,null,null,null,null,null,null,null,null,null,null,null,null,null,null,null,null,null,null,null,null,null,null,null,"    {s2c_SE:}"]
[null,null,null,null,null,null,null,null,null,null,null,null,"        C23.6 - Manufacture of articles of concrete, cement and plaster    {s2c_NC:C236}",null,null,null,null,null,null,null,null,null,null,null,null,null,null,null,null,null,null,null,null,null,null,null,null,null,null,null,null,null,"    {s2c_SE:}"]
[null,null,null,null,null,null,null,null,null,null,null,null,"           C23.6.1 - Manufacture of concrete products for construction purposes    {s2c_NC:C2361}",null,null,null,null,null,null,null,null,null,null,null,null,null,null,null,null,null,null,null,null,null,null,null,null,null,null,null,null,null,"    {s2c_SE:}"]
[null,null,null,null,null,null,null,null,null,null,null,null,"           C23.6.2 - Manufacture of plaster products for construction purposes    {s2c_NC:C2362}",null,null,null,null,null,null,null,null,null,null,null,null,null,null,null,null,null,null,null,null,null,null,null,null,null,null,null,null,null,"    {s2c_SE:}"]
[null,null,null,null,null,null,null,null,null,null,null,null,"           C23.6.3 - Manufacture of ready-mixed concrete    {s2c_NC:C2363}",null,null,null,null,null,null,null,null,null,null,null,null,null,null,null,null,null,null,null,null,null,null,null,null,null,null,null,null,null,"    {s2c_SE:}"]
[null,null,null,null,null,null,null,null,null,null,null,null,"           C23.6.4 - Manufacture of mortars    {s2c_NC:C2364}",null,null,null,null,null,null,null,null,null,null,null,null,null,null,null,null,null,null,null,null,null,null,null,null,null,null,null,null,null,"    {s2c_SE:}"]
[null,null,null,null,null,null,null,null,null,null,null,null,"           C23.6.5 - Manufacture of fibre cement    {s2c_NC:C2365}",null,null,null,null,null,null,null,null,null,null,null,null,null,null,null,null,null,null,null,null,null,null,null,null,null,null,null,null,null,"    {s2c_SE:}"]
[null,null,null,null,null,null,null,null,null,null,null,null,"           C23.6.9 - Manufacture of other articles of concrete, plaster and cement    {s2c_NC:C2369}",null,null,null,null,null,null,null,null,null,null,null,null,null,null,null,null,null,null,null,null,null,null,null,null,null,null,null,null,null,"    {s2c_SE:}"]
[null,null,null,null,null,null,null,null,null,null,null,null,"        C23.7 - Cutting, shaping and finishing of stone    {s2c_NC:C237}",null,null,null,null,null,null,null,null,null,null,null,null,null,null,null,null,null,null,null,null,null,null,null,null,null,null,null,null,null,"    {s2c_SE:}"]
[null,null,null,null,null,null,null,null,null,null,null,null,"           C23.7.0 - Cutting, shaping and finishing of stone    {s2c_NC:C2370}",null,null,null,null,null,null,null,null,null,null,null,null,null,null,null,null,null,null,null,null,null,null,null,null,null,null,null,null,null,"    {s2c_SE:}"]
[null,null,null,null,null,null,null,null,null,null,null,null,"        C23.9 - Manufacture of abrasive products and non-metallic mineral products n.e.c.    {s2c_NC:C239}",null,null,null,null,null,null,null,null,null,null,null,null,null,null,null,null,null,null,null,null,null,null,null,null,null,null,null,null,null,"    {s2c_SE:}"]
[null,null,null,null,null,null,null,null,null,null,null,null,"           C23.9.1 - Production of abrasive products    {s2c_NC:C2391}",null,null,null,null,null,null,null,null,null,null,null,null,null,null,null,null,null,null,null,null,null,null,null,null,null,null,null,null,null,"    {s2c_SE:}"]
[null,null,null,null,null,null,null,null,null,null,null,null,"           C23.9.9 - Manufacture of other non-metallic mineral products n.e.c.    {s2c_NC:C2399}",null,null,null,null,null,null,null,null,null,null,null,null,null,null,null,null,null,null,null,null,null,null,null,null,null,null,null,null,null,"    {s2c_SE:}"]
[null,null,null,null,null,null,null,null,null,null,null,null,"     C24 - Manufacture of basic metals    {s2c_NC:C24}",null,null,null,null,null,null,null,null,null,null,null,null,null,null,null,null,null,null,null,null,null,null,null,null,null,null,null,null,null,"    {s2c_SE:}"]
[null,null,null,null,null,null,null,null,null,null,null,null,"        C24.1 - Manufacture of basic iron and steel and of ferro-alloys    {s2c_NC:C241}",null,null,null,null,null,null,null,null,null,null,null,null,null,null,null,null,null,null,null,null,null,null,null,null,null,null,null,null,null,"    {s2c_SE:}"]
[null,null,null,null,null,null,null,null,null,null,null,null,"           C24.1.0 - Manufacture of basic iron and steel and of ferro-alloys    {s2c_NC:C2410}",null,null,null,null,null,null,null,null,null,null,null,null,null,null,null,null,null,null,null,null,null,null,null,null,null,null,null,null,null,"    {s2c_SE:}"]
[null,null,null,null,null,null,null,null,null,null,null,null,"        C24.2 - Manufacture of tubes, pipes, hollow profiles and related fittings, of steel    {s2c_NC:C242}",null,null,null,null,null,null,null,null,null,null,null,null,null,null,null,null,null,null,null,null,null,null,null,null,null,null,null,null,null,"    {s2c_SE:}"]
[null,null,null,null,null,null,null,null,null,null,null,null,"           C24.2.0 - Manufacture of tubes, pipes, hollow profiles and related fittings, of steel    {s2c_NC:C2420}",null,null,null,null,null,null,null,null,null,null,null,null,null,null,null,null,null,null,null,null,null,null,null,null,null,null,null,null,null,"    {s2c_SE:}"]
[null,null,null,null,null,null,null,null,null,null,null,null,"        C24.3 - Manufacture of other products of first processing of steel    {s2c_NC:C243}",null,null,null,null,null,null,null,null,null,null,null,null,null,null,null,null,null,null,null,null,null,null,null,null,null,null,null,null,null,"    {s2c_SE:}"]
[null,null,null,null,null,null,null,null,null,null,null,null,"           C24.3.1 - Cold drawing of bars    {s2c_NC:C2431}",null,null,null,null,null,null,null,null,null,null,null,null,null,null,null,null,null,null,null,null,null,null,null,null,null,null,null,null,null,"    {s2c_SE:}"]
[null,null,null,null,null,null,null,null,null,null,null,null,"           C24.3.2 - Cold rolling of narrow strip    {s2c_NC:C2432}",null,null,null,null,null,null,null,null,null,null,null,null,null,null,null,null,null,null,null,null,null,null,null,null,null,null,null,null,null,"    {s2c_SE:}"]
[null,null,null,null,null,null,null,null,null,null,null,null,"           C24.3.3 - Cold forming or folding    {s2c_NC:C2433}",null,null,null,null,null,null,null,null,null,null,null,null,null,null,null,null,null,null,null,null,null,null,null,null,null,null,null,null,null,"    {s2c_SE:}"]
[null,null,null,null,null,null,null,null,null,null,null,null,"           C24.3.4 - Cold drawing of wire    {s2c_NC:C2434}",null,null,null,null,null,null,null,null,null,null,null,null,null,null,null,null,null,null,null,null,null,null,null,null,null,null,null,null,null,"    {s2c_SE:}"]
[null,null,null,null,null,null,null,null,null,null,null,null,"        C24.4 - Manufacture of basic precious and other non-ferrous metals    {s2c_NC:C244}",null,null,null,null,null,null,null,null,null,null,null,null,null,null,null,null,null,null,null,null,null,null,null,null,null,null,null,null,null,"    {s2c_SE:}"]
[null,null,null,null,null,null,null,null,null,null,null,null,"           C24.4.1 - Precious metals production    {s2c_NC:C2441}",null,null,null,null,null,null,null,null,null,null,null,null,null,null,null,null,null,null,null,null,null,null,null,null,null,null,null,null,null,"    {s2c_SE:}"]
[null,null,null,null,null,null,null,null,null,null,null,null,"           C24.4.2 - Aluminium production    {s2c_NC:C2442}",null,null,null,null,null,null,null,null,null,null,null,null,null,null,null,null,null,null,null,null,null,null,null,null,null,null,null,null,null,"    {s2c_SE:}"]
[null,null,null,null,null,null,null,null,null,null,null,null,"           C24.4.3 - Lead, zinc and tin production    {s2c_NC:C2443}",null,null,null,null,null,null,null,null,null,null,null,null,null,null,null,null,null,null,null,null,null,null,null,null,null,null,null,null,null,"    {s2c_SE:}"]
[null,null,null,null,null,null,null,null,null,null,null,null,"           C24.4.4 - Copper production    {s2c_NC:C2444}",null,null,null,null,null,null,null,null,null,null,null,null,null,null,null,null,null,null,null,null,null,null,null,null,null,null,null,null,null,"    {s2c_SE:}"]
[null,null,null,null,null,null,null,null,null,null,null,null,"           C24.4.5 - Other non-ferrous metal production    {s2c_NC:C2445}",null,null,null,null,null,null,null,null,null,null,null,null,null,null,null,null,null,null,null,null,null,null,null,null,null,null,null,null,null,"    {s2c_SE:}"]
[null,null,null,null,null,null,null,null,null,null,null,null,"           C24.4.6 - Processing of nuclear fuel    {s2c_NC:C2446}",null,null,null,null,null,null,null,null,null,null,null,null,null,null,null,null,null,null,null,null,null,null,null,null,null,null,null,null,null,"    {s2c_SE:}"]
[null,null,null,null,null,null,null,null,null,null,null,null,"        C24.5 - Casting of metals    {s2c_NC:C245}",null,null,null,null,null,null,null,null,null,null,null,null,null,null,null,null,null,null,null,null,null,null,null,null,null,null,null,null,null,"    {s2c_SE:}"]
[null,null,null,null,null,null,null,null,null,null,null,null,"           C24.5.1 - Casting of iron    {s2c_NC:C2451}",null,null,null,null,null,null,null,null,null,null,null,null,null,null,null,null,null,null,null,null,null,null,null,null,null,null,null,null,null,"    {s2c_SE:}"]
[null,null,null,null,null,null,null,null,null,null,null,null,"           C24.5.2 - Casting of steel    {s2c_NC:C2452}",null,null,null,null,null,null,null,null,null,null,null,null,null,null,null,null,null,null,null,null,null,null,null,null,null,null,null,null,null,"    {s2c_SE:}"]
[null,null,null,null,null,null,null,null,null,null,null,null,"           C24.5.3 - Casting of light metals    {s2c_NC:C2453}",null,null,null,null,null,null,null,null,null,null,null,null,null,null,null,null,null,null,null,null,null,null,null,null,null,null,null,null,null,"    {s2c_SE:}"]
[null,null,null,null,null,null,null,null,null,null,null,null,"           C24.5.4 - Casting of other non-ferrous metals    {s2c_NC:C2454}",null,null,null,null,null,null,null,null,null,null,null,null,null,null,null,null,null,null,null,null,null,null,null,null,null,null,null,null,null,"    {s2c_SE:}"]
[null,null,null,null,null,null,null,null,null,null,null,null,"     C25 - Manufacture of fabricated metal products, except machinery and equipment    {s2c_NC:C25}",null,null,null,null,null,null,null,null,null,null,null,null,null,null,null,null,null,null,null,null,null,null,null,null,null,null,null,null,null,"    {s2c_SE:}"]
[null,null,null,null,null,null,null,null,null,null,null,null,"        C25.1 - Manufacture of structural metal products    {s2c_NC:C251}",null,null,null,null,null,null,null,null,null,null,null,null,null,null,null,null,null,null,null,null,null,null,null,null,null,null,null,null,null,"    {s2c_SE:}"]
[null,null,null,null,null,null,null,null,null,null,null,null,"           C25.1.1 - Manufacture of metal structures and parts of structures    {s2c_NC:C2511}",null,null,null,null,null,null,null,null,null,null,null,null,null,null,null,null,null,null,null,null,null,null,null,null,null,null,null,null,null,"    {s2c_SE:}"]
[null,null,null,null,null,null,null,null,null,null,null,null,"           C25.1.2 - Manufacture of doors and windows of metal    {s2c_NC:C2512}",null,null,null,null,null,null,null,null,null,null,null,null,null,null,null,null,null,null,null,null,null,null,null,null,null,null,null,null,null,"    {s2c_SE:}"]
[null,null,null,null,null,null,null,null,null,null,null,null,"        C25.2 - Manufacture of tanks, reservoirs and containers of metal    {s2c_NC:C252}",null,null,null,null,null,null,null,null,null,null,null,null,null,null,null,null,null,null,null,null,null,null,null,null,null,null,null,null,null,"    {s2c_SE:}"]
[null,null,null,null,null,null,null,null,null,null,null,null,"           C25.2.1 - Manufacture of central heating radiators and boilers    {s2c_NC:C2521}",null,null,null,null,null,null,null,null,null,null,null,null,null,null,null,null,null,null,null,null,null,null,null,null,null,null,null,null,null,"    {s2c_SE:}"]
[null,null,null,null,null,null,null,null,null,null,null,null,"           C25.2.9 - Manufacture of other tanks, reservoirs and containers of metal    {s2c_NC:C2529}",null,null,null,null,null,null,null,null,null,null,null,null,null,null,null,null,null,null,null,null,null,null,null,null,null,null,null,null,null,"    {s2c_SE:}"]
[null,null,null,null,null,null,null,null,null,null,null,null,"        C25.3 - Manufacture of steam generators, except central heating hot water boilers    {s2c_NC:C253}",null,null,null,null,null,null,null,null,null,null,null,null,null,null,null,null,null,null,null,null,null,null,null,null,null,null,null,null,null,"    {s2c_SE:}"]
[null,null,null,null,null,null,null,null,null,null,null,null,"           C25.3.0 - Manufacture of steam generators, except central heating hot water boilers    {s2c_NC:C2530}",null,null,null,null,null,null,null,null,null,null,null,null,null,null,null,null,null,null,null,null,null,null,null,null,null,null,null,null,null,"    {s2c_SE:}"]
[null,null,null,null,null,null,null,null,null,null,null,null,"        C25.4 - Manufacture of weapons and ammunition    {s2c_NC:C254}",null,null,null,null,null,null,null,null,null,null,null,null,null,null,null,null,null,null,null,null,null,null,null,null,null,null,null,null,null,"    {s2c_SE:}"]
[null,null,null,null,null,null,null,null,null,null,null,null,"           C25.4.0 - Manufacture of weapons and ammunition    {s2c_NC:C2540}",null,null,null,null,null,null,null,null,null,null,null,null,null,null,null,null,null,null,null,null,null,null,null,null,null,null,null,null,null,"    {s2c_SE:}"]
[null,null,null,null,null,null,null,null,null,null,null,null,"        C25.5 - Forging, pressing, stamping and roll-forming of metal; powder metallurgy    {s2c_NC:C255}",null,null,null,null,null,null,null,null,null,null,null,null,null,null,null,null,null,null,null,null,null,null,null,null,null,null,null,null,null,"    {s2c_SE:}"]
[null,null,null,null,null,null,null,null,null,null,null,null,"           C25.5.0 - Forging, pressing, stamping and roll-forming of metal; powder metallurgy    {s2c_NC:C2550}",null,null,null,null,null,null,null,null,null,null,null,null,null,null,null,null,null,null,null,null,null,null,null,null,null,null,null,null,null,"    {s2c_SE:}"]
[null,null,null,null,null,null,null,null,null,null,null,null,"        C25.6 - Treatment and coating of metals; machining    {s2c_NC:C256}",null,null,null,null,null,null,null,null,null,null,null,null,null,null,null,null,null,null,null,null,null,null,null,null,null,null,null,null,null,"    {s2c_SE:}"]
[null,null,null,null,null,null,null,null,null,null,null,null,"           C25.6.1 - Treatment and coating of metals    {s2c_NC:C2561}",null,null,null,null,null,null,null,null,null,null,null,null,null,null,null,null,null,null,null,null,null,null,null,null,null,null,null,null,null,"    {s2c_SE:}"]
[null,null,null,null,null,null,null,null,null,null,null,null,"           C25.6.2 - Machining    {s2c_NC:C2562}",null,null,null,null,null,null,null,null,null,null,null,null,null,null,null,null,null,null,null,null,null,null,null,null,null,null,null,null,null,"    {s2c_SE:}"]
[null,null,null,null,null,null,null,null,null,null,null,null,"        C25.7 - Manufacture of cutlery, tools and general hardware    {s2c_NC:C257}",null,null,null,null,null,null,null,null,null,null,null,null,null,null,null,null,null,null,null,null,null,null,null,null,null,null,null,null,null,"    {s2c_SE:}"]
[null,null,null,null,null,null,null,null,null,null,null,null,"           C25.7.1 - Manufacture of cutlery    {s2c_NC:C2571}",null,null,null,null,null,null,null,null,null,null,null,null,null,null,null,null,null,null,null,null,null,null,null,null,null,null,null,null,null,"    {s2c_SE:}"]
[null,null,null,null,null,null,null,null,null,null,null,null,"           C25.7.2 - Manufacture of locks and hinges    {s2c_NC:C2572}",null,null,null,null,null,null,null,null,null,null,null,null,null,null,null,null,null,null,null,null,null,null,null,null,null,null,null,null,null,"    {s2c_SE:}"]
[null,null,null,null,null,null,null,null,null,null,null,null,"           C25.7.3 - Manufacture of tools    {s2c_NC:C2573}",null,null,null,null,null,null,null,null,null,null,null,null,null,null,null,null,null,null,null,null,null,null,null,null,null,null,null,null,null,"    {s2c_SE:}"]
[null,null,null,null,null,null,null,null,null,null,null,null,"        C25.9 - Manufacture of other fabricated metal products    {s2c_NC:C259}",null,null,null,null,null,null,null,null,null,null,null,null,null,null,null,null,null,null,null,null,null,null,null,null,null,null,null,null,null,"    {s2c_SE:}"]
[null,null,null,null,null,null,null,null,null,null,null,null,"           C25.9.1 - Manufacture of steel drums and similar containers    {s2c_NC:C2591}",null,null,null,null,null,null,null,null,null,null,null,null,null,null,null,null,null,null,null,null,null,null,null,null,null,null,null,null,null,"    {s2c_SE:}"]
[null,null,null,null,null,null,null,null,null,null,null,null,"           C25.9.2 - Manufacture of light metal packaging    {s2c_NC:C2592}",null,null,null,null,null,null,null,null,null,null,null,null,null,null,null,null,null,null,null,null,null,null,null,null,null,null,null,null,null,"    {s2c_SE:}"]
[null,null,null,null,null,null,null,null,null,null,null,null,"           C25.9.3 - Manufacture of wire products, chain and springs    {s2c_NC:C2593}",null,null,null,null,null,null,null,null,null,null,null,null,null,null,null,null,null,null,null,null,null,null,null,null,null,null,null,null,null,"    {s2c_SE:}"]
[null,null,null,null,null,null,null,null,null,null,null,null,"           C25.9.4 - Manufacture of fasteners and screw machine products    {s2c_NC:C2594}",null,null,null,null,null,null,null,null,null,null,null,null,null,null,null,null,null,null,null,null,null,null,null,null,null,null,null,null,null,"    {s2c_SE:}"]
[null,null,null,null,null,null,null,null,null,null,null,null,"           C25.9.9 - Manufacture of other fabricated metal products n.e.c.    {s2c_NC:C2599}",null,null,null,null,null,null,null,null,null,null,null,null,null,null,null,null,null,null,null,null,null,null,null,null,null,null,null,null,null,"    {s2c_SE:}"]
[null,null,null,null,null,null,null,null,null,null,null,null,"     C26 - Manufacture of computer, electronic and optical products    {s2c_NC:C26}",null,null,null,null,null,null,null,null,null,null,null,null,null,null,null,null,null,null,null,null,null,null,null,null,null,null,null,null,null,"    {s2c_SE:}"]
[null,null,null,null,null,null,null,null,null,null,null,null,"        C26.1 - Manufacture of electronic components and boards    {s2c_NC:C261}",null,null,null,null,null,null,null,null,null,null,null,null,null,null,null,null,null,null,null,null,null,null,null,null,null,null,null,null,null,"    {s2c_SE:}"]
[null,null,null,null,null,null,null,null,null,null,null,null,"           C26.1.1 - Manufacture of electronic components    {s2c_NC:C2611}",null,null,null,null,null,null,null,null,null,null,null,null,null,null,null,null,null,null,null,null,null,null,null,null,null,null,null,null,null,"    {s2c_SE:}"]
[null,null,null,null,null,null,null,null,null,null,null,null,"           C26.1.2 - Manufacture of loaded electronic boards    {s2c_NC:C2612}",null,null,null,null,null,null,null,null,null,null,null,null,null,null,null,null,null,null,null,null,null,null,null,null,null,null,null,null,null,"    {s2c_SE:}"]
[null,null,null,null,null,null,null,null,null,null,null,null,"        C26.2 - Manufacture of computers and peripheral equipment    {s2c_NC:C262}",null,null,null,null,null,null,null,null,null,null,null,null,null,null,null,null,null,null,null,null,null,null,null,null,null,null,null,null,null,"    {s2c_SE:}"]
[null,null,null,null,null,null,null,null,null,null,null,null,"           C26.2.0 - Manufacture of computers and peripheral equipment    {s2c_NC:C2620}",null,null,null,null,null,null,null,null,null,null,null,null,null,null,null,null,null,null,null,null,null,null,null,null,null,null,null,null,null,"    {s2c_SE:}"]
[null,null,null,null,null,null,null,null,null,null,null,null,"        C26.3 - Manufacture of communication equipment    {s2c_NC:C263}",null,null,null,null,null,null,null,null,null,null,null,null,null,null,null,null,null,null,null,null,null,null,null,null,null,null,null,null,null,"    {s2c_SE:}"]
[null,null,null,null,null,null,null,null,null,null,null,null,"           C26.3.0 - Manufacture of communication equipment    {s2c_NC:C2630}",null,null,null,null,null,null,null,null,null,null,null,null,null,null,null,null,null,null,null,null,null,null,null,null,null,null,null,null,null,"    {s2c_SE:}"]
[null,null,null,null,null,null,null,null,null,null,null,null,"        C26.4 - Manufacture of consumer electronics    {s2c_NC:C264}",null,null,null,null,null,null,null,null,null,null,null,null,null,null,null,null,null,null,null,null,null,null,null,null,null,null,null,null,null,"    {s2c_SE:}"]
[null,null,null,null,null,null,null,null,null,null,null,null,"           C26.4.0 - Manufacture of consumer electronics    {s2c_NC:C2640}",null,null,null,null,null,null,null,null,null,null,null,null,null,null,null,null,null,null,null,null,null,null,null,null,null,null,null,null,null,"    {s2c_SE:}"]
[null,null,null,null,null,null,null,null,null,null,null,null,"        C26.5 - Manufacture of instruments and appliances for measuring, testing and navigation; watches and clocks    {s2c_NC:C265}",null,null,null,null,null,null,null,null,null,null,null,null,null,null,null,null,null,null,null,null,null,null,null,null,null,null,null,null,null,"    {s2c_SE:}"]
[null,null,null,null,null,null,null,null,null,null,null,null,"           C26.5.1 - Manufacture of instruments and appliances for measuring, testing and navigation    {s2c_NC:C2651}",null,null,null,null,null,null,null,null,null,null,null,null,null,null,null,null,null,null,null,null,null,null,null,null,null,null,null,null,null,"    {s2c_SE:}"]
[null,null,null,null,null,null,null,null,null,null,null,null,"           C26.5.2 - Manufacture of watches and clocks    {s2c_NC:C2652}",null,null,null,null,null,null,null,null,null,null,null,null,null,null,null,null,null,null,null,null,null,null,null,null,null,null,null,null,null,"    {s2c_SE:}"]
[null,null,null,null,null,null,null,null,null,null,null,null,"        C26.6 - Manufacture of irradiation, electromedical and electrotherapeutic equipment    {s2c_NC:C266}",null,null,null,null,null,null,null,null,null,null,null,null,null,null,null,null,null,null,null,null,null,null,null,null,null,null,null,null,null,"    {s2c_SE:}"]
[null,null,null,null,null,null,null,null,null,null,null,null,"           C26.6.0 - Manufacture of irradiation, electromedical and electrotherapeutic equipment    {s2c_NC:C2660}",null,null,null,null,null,null,null,null,null,null,null,null,null,null,null,null,null,null,null,null,null,null,null,null,null,null,null,null,null,"    {s2c_SE:}"]
[null,null,null,null,null,null,null,null,null,null,null,null,"        C26.7 - Manufacture of optical instruments and photographic equipment    {s2c_NC:C267}",null,null,null,null,null,null,null,null,null,null,null,null,null,null,null,null,null,null,null,null,null,null,null,null,null,null,null,null,null,"    {s2c_SE:}"]
[null,null,null,null,null,null,null,null,null,null,null,null,"           C26.7.0 - Manufacture of optical instruments and photographic equipment    {s2c_NC:C2670}",null,null,null,null,null,null,null,null,null,null,null,null,null,null,null,null,null,null,null,null,null,null,null,null,null,null,null,null,null,"    {s2c_SE:}"]
[null,null,null,null,null,null,null,null,null,null,null,null,"        C26.8 - Manufacture of magnetic and optical media    {s2c_NC:C268}",null,null,null,null,null,null,null,null,null,null,null,null,null,null,null,null,null,null,null,null,null,null,null,null,null,null,null,null,null,"    {s2c_SE:}"]
[null,null,null,null,null,null,null,null,null,null,null,null,"           C26.8.0 - Manufacture of magnetic and optical media    {s2c_NC:C2680}",null,null,null,null,null,null,null,null,null,null,null,null,null,null,null,null,null,null,null,null,null,null,null,null,null,null,null,null,null,"    {s2c_SE:}"]
[null,null,null,null,null,null,null,null,null,null,null,null,"     C27 - Manufacture of electrical equipment    {s2c_NC:C27}",null,null,null,null,null,null,null,null,null,null,null,null,null,null,null,null,null,null,null,null,null,null,null,null,null,null,null,null,null,"    {s2c_SE:}"]
[null,null,null,null,null,null,null,null,null,null,null,null,"        C27.1 - Manufacture of electric motors, generators, transformers and electricity distribution and control apparatus    {s2c_NC:C271}",null,null,null,null,null,null,null,null,null,null,null,null,null,null,null,null,null,null,null,null,null,null,null,null,null,null,null,null,null,"    {s2c_SE:}"]
[null,null,null,null,null,null,null,null,null,null,null,null,"           C27.1.1 - Manufacture of electric motors, generators and transformers    {s2c_NC:C2711}",null,null,null,null,null,null,null,null,null,null,null,null,null,null,null,null,null,null,null,null,null,null,null,null,null,null,null,null,null,"    {s2c_SE:}"]
[null,null,null,null,null,null,null,null,null,null,null,null,"           C27.1.2 - Manufacture of electricity distribution and control apparatus    {s2c_NC:C2712}",null,null,null,null,null,null,null,null,null,null,null,null,null,null,null,null,null,null,null,null,null,null,null,null,null,null,null,null,null,"    {s2c_SE:}"]
[null,null,null,null,null,null,null,null,null,null,null,null,"        C27.2 - Manufacture of batteries and accumulators    {s2c_NC:C272}",null,null,null,null,null,null,null,null,null,null,null,null,null,null,null,null,null,null,null,null,null,null,null,null,null,null,null,null,null,"    {s2c_SE:}"]
[null,null,null,null,null,null,null,null,null,null,null,null,"           C27.2.0 - Manufacture of batteries and accumulators    {s2c_NC:C2720}",null,null,null,null,null,null,null,null,null,null,null,null,null,null,null,null,null,null,null,null,null,null,null,null,null,null,null,null,null,"    {s2c_SE:}"]
[null,null,null,null,null,null,null,null,null,null,null,null,"        C27.3 - Manufacture of wiring and wiring devices    {s2c_NC:C273}",null,null,null,null,null,null,null,null,null,null,null,null,null,null,null,null,null,null,null,null,null,null,null,null,null,null,null,null,null,"    {s2c_SE:}"]
[null,null,null,null,null,null,null,null,null,null,null,null,"           C27.3.1 - Manufacture of fibre optic cables    {s2c_NC:C2731}",null,null,null,null,null,null,null,null,null,null,null,null,null,null,null,null,null,null,null,null,null,null,null,null,null,null,null,null,null,"    {s2c_SE:}"]
[null,null,null,null,null,null,null,null,null,null,null,null,"           C27.3.2 - Manufacture of other electronic and electric wires and cables    {s2c_NC:C2732}",null,null,null,null,null,null,null,null,null,null,null,null,null,null,null,null,null,null,null,null,null,null,null,null,null,null,null,null,null,"    {s2c_SE:}"]
[null,null,null,null,null,null,null,null,null,null,null,null,"           C27.3.3 - Manufacture of wiring devices    {s2c_NC:C2733}",null,null,null,null,null,null,null,null,null,null,null,null,null,null,null,null,null,null,null,null,null,null,null,null,null,null,null,null,null,"    {s2c_SE:}"]
[null,null,null,null,null,null,null,null,null,null,null,null,"        C27.4 - Manufacture of electric lighting equipment    {s2c_NC:C274}",null,null,null,null,null,null,null,null,null,null,null,null,null,null,null,null,null,null,null,null,null,null,null,null,null,null,null,null,null,"    {s2c_SE:}"]
[null,null,null,null,null,null,null,null,null,null,null,null,"           C27.4.0 - Manufacture of electric lighting equipment    {s2c_NC:C2740}",null,null,null,null,null,null,null,null,null,null,null,null,null,null,null,null,null,null,null,null,null,null,null,null,null,null,null,null,null,"    {s2c_SE:}"]
[null,null,null,null,null,null,null,null,null,null,null,null,"        C27.5 - Manufacture of domestic appliances    {s2c_NC:C275}",null,null,null,null,null,null,null,null,null,null,null,null,null,null,null,null,null,null,null,null,null,null,null,null,null,null,null,null,null,"    {s2c_SE:}"]
[null,null,null,null,null,null,null,null,null,null,null,null,"           C27.5.1 - Manufacture of electric domestic appliances    {s2c_NC:C2751}",null,null,null,null,null,null,null,null,null,null,null,null,null,null,null,null,null,null,null,null,null,null,null,null,null,null,null,null,null,"    {s2c_SE:}"]
[null,null,null,null,null,null,null,null,null,null,null,null,"           C27.5.2 - Manufacture of non-electric domestic appliances    {s2c_NC:C2752}",null,null,null,null,null,null,null,null,null,null,null,null,null,null,null,null,null,null,null,null,null,null,null,null,null,null,null,null,null,"    {s2c_SE:}"]
[null,null,null,null,null,null,null,null,null,null,null,null,"        C27.9 - Manufacture of other electrical equipment    {s2c_NC:C279}",null,null,null,null,null,null,null,null,null,null,null,null,null,null,null,null,null,null,null,null,null,null,null,null,null,null,null,null,null,"    {s2c_SE:}"]
[null,null,null,null,null,null,null,null,null,null,null,null,"           C27.9.0 - Manufacture of other electrical equipment    {s2c_NC:C2790}",null,null,null,null,null,null,null,null,null,null,null,null,null,null,null,null,null,null,null,null,null,null,null,null,null,null,null,null,null,"    {s2c_SE:}"]
[null,null,null,null,null,null,null,null,null,null,null,null,"     C28 - Manufacture of machinery and equipment n.e.c.    {s2c_NC:C28}",null,null,null,null,null,null,null,null,null,null,null,null,null,null,null,null,null,null,null,null,null,null,null,null,null,null,null,null,null,"    {s2c_SE:}"]
[null,null,null,null,null,null,null,null,null,null,null,null,"        C28.1 - Manufacture of general-purpose machinery    {s2c_NC:C281}",null,null,null,null,null,null,null,null,null,null,null,null,null,null,null,null,null,null,null,null,null,null,null,null,null,null,null,null,null,"    {s2c_SE:}"]
[null,null,null,null,null,null,null,null,null,null,null,null,"           C28.1.1 - Manufacture of engines and turbines, except aircraft, vehicle and cycle engines    {s2c_NC:C2811}",null,null,null,null,null,null,null,null,null,null,null,null,null,null,null,null,null,null,null,null,null,null,null,null,null,null,null,null,null,"    {s2c_SE:}"]
[null,null,null,null,null,null,null,null,null,null,null,null,"           C28.1.2 - Manufacture of fluid power equipment    {s2c_NC:C2812}",null,null,null,null,null,null,null,null,null,null,null,null,null,null,null,null,null,null,null,null,null,null,null,null,null,null,null,null,null,"    {s2c_SE:}"]
[null,null,null,null,null,null,null,null,null,null,null,null,"           C28.1.3 - Manufacture of other pumps and compressors    {s2c_NC:C2813}",null,null,null,null,null,null,null,null,null,null,null,null,null,null,null,null,null,null,null,null,null,null,null,null,null,null,null,null,null,"    {s2c_SE:}"]
[null,null,null,null,null,null,null,null,null,null,null,null,"           C28.1.4 - Manufacture of other taps and valves    {s2c_NC:C2814}",null,null,null,null,null,null,null,null,null,null,null,null,null,null,null,null,null,null,null,null,null,null,null,null,null,null,null,null,null,"    {s2c_SE:}"]
[null,null,null,null,null,null,null,null,null,null,null,null,"           C28.1.5 - Manufacture of bearings, gears, gearing and driving elements    {s2c_NC:C2815}",null,null,null,null,null,null,null,null,null,null,null,null,null,null,null,null,null,null,null,null,null,null,null,null,null,null,null,null,null,"    {s2c_SE:}"]
[null,null,null,null,null,null,null,null,null,null,null,null,"        C28.2 - Manufacture of other general-purpose machinery    {s2c_NC:C282}",null,null,null,null,null,null,null,null,null,null,null,null,null,null,null,null,null,null,null,null,null,null,null,null,null,null,null,null,null,"    {s2c_SE:}"]
[null,null,null,null,null,null,null,null,null,null,null,null,"           C28.2.1 - Manufacture of ovens, furnaces and furnace burners    {s2c_NC:C2821}",null,null,null,null,null,null,null,null,null,null,null,null,null,null,null,null,null,null,null,null,null,null,null,null,null,null,null,null,null,"    {s2c_SE:}"]
[null,null,null,null,null,null,null,null,null,null,null,null,"           C28.2.2 - Manufacture of lifting and handling equipment    {s2c_NC:C2822}",null,null,null,null,null,null,null,null,null,null,null,null,null,null,null,null,null,null,null,null,null,null,null,null,null,null,null,null,null,"    {s2c_SE:}"]
[null,null,null,null,null,null,null,null,null,null,null,null,"           C28.2.3 - Manufacture of office machinery and equipment (except computers and peripheral equipment)    {s2c_NC:C2823}",null,null,null,null,null,null,null,null,null,null,null,null,null,null,null,null,null,null,null,null,null,null,null,null,null,null,null,null,null,"    {s2c_SE:}"]
[null,null,null,null,null,null,null,null,null,null,null,null,"           C28.2.4 - Manufacture of power-driven hand tools    {s2c_NC:C2824}",null,null,null,null,null,null,null,null,null,null,null,null,null,null,null,null,null,null,null,null,null,null,null,null,null,null,null,null,null,"    {s2c_SE:}"]
[null,null,null,null,null,null,null,null,null,null,null,null,"           C28.2.5 - Manufacture of non-domestic cooling and ventilation equipment    {s2c_NC:C2825}",null,null,null,null,null,null,null,null,null,null,null,null,null,null,null,null,null,null,null,null,null,null,null,null,null,null,null,null,null,"    {s2c_SE:}"]
[null,null,null,null,null,null,null,null,null,null,null,null,"           C28.2.9 - Manufacture of other general-purpose machinery n.e.c.    {s2c_NC:C2829}",null,null,null,null,null,null,null,null,null,null,null,null,null,null,null,null,null,null,null,null,null,null,null,null,null,null,null,null,null,"    {s2c_SE:}"]
[null,null,null,null,null,null,null,null,null,null,null,null,"        C28.3 - Manufacture of agricultural and forestry machinery    {s2c_NC:C283}",null,null,null,null,null,null,null,null,null,null,null,null,null,null,null,null,null,null,null,null,null,null,null,null,null,null,null,null,null,"    {s2c_SE:}"]
[null,null,null,null,null,null,null,null,null,null,null,null,"           C28.3.0 - Manufacture of agricultural and forestry machinery    {s2c_NC:C2830}",null,null,null,null,null,null,null,null,null,null,null,null,null,null,null,null,null,null,null,null,null,null,null,null,null,null,null,null,null,"    {s2c_SE:}"]
[null,null,null,null,null,null,null,null,null,null,null,null,"        C28.4 - Manufacture of metal forming machinery and machine tools    {s2c_NC:C284}",null,null,null,null,null,null,null,null,null,null,null,null,null,null,null,null,null,null,null,null,null,null,null,null,null,null,null,null,null,"    {s2c_SE:}"]
[null,null,null,null,null,null,null,null,null,null,null,null,"           C28.4.1 - Manufacture of metal forming machinery    {s2c_NC:C2841}",null,null,null,null,null,null,null,null,null,null,null,null,null,null,null,null,null,null,null,null,null,null,null,null,null,null,null,null,null,"    {s2c_SE:}"]
[null,null,null,null,null,null,null,null,null,null,null,null,"           C28.4.9 - Manufacture of other machine tools    {s2c_NC:C2849}",null,null,null,null,null,null,null,null,null,null,null,null,null,null,null,null,null,null,null,null,null,null,null,null,null,null,null,null,null,"    {s2c_SE:}"]
[null,null,null,null,null,null,null,null,null,null,null,null,"        C28.9 - Manufacture of other special-purpose machinery    {s2c_NC:C289}",null,null,null,null,null,null,null,null,null,null,null,null,null,null,null,null,null,null,null,null,null,null,null,null,null,null,null,null,null,"    {s2c_SE:}"]
[null,null,null,null,null,null,null,null,null,null,null,null,"           C28.9.1 - Manufacture of machinery for metallurgy    {s2c_NC:C2891}",null,null,null,null,null,null,null,null,null,null,null,null,null,null,null,null,null,null,null,null,null,null,null,null,null,null,null,null,null,"    {s2c_SE:}"]
[null,null,null,null,null,null,null,null,null,null,null,null,"           C28.9.2 - Manufacture of machinery for mining, quarrying and construction    {s2c_NC:C2892}",null,null,null,null,null,null,null,null,null,null,null,null,null,null,null,null,null,null,null,null,null,null,null,null,null,null,null,null,null,"    {s2c_SE:}"]
[null,null,null,null,null,null,null,null,null,null,null,null,"           C28.9.3 - Manufacture of machinery for food, beverage and tobacco processing    {s2c_NC:C2893}",null,null,null,null,null,null,null,null,null,null,null,null,null,null,null,null,null,null,null,null,null,null,null,null,null,null,null,null,null,"    {s2c_SE:}"]
[null,null,null,null,null,null,null,null,null,null,null,null,"           C28.9.4 - Manufacture of machinery for textile, apparel and leather production    {s2c_NC:C2894}",null,null,null,null,null,null,null,null,null,null,null,null,null,null,null,null,null,null,null,null,null,null,null,null,null,null,null,null,null,"    {s2c_SE:}"]
[null,null,null,null,null,null,null,null,null,null,null,null,"           C28.9.5 - Manufacture of machinery for paper and paperboard production    {s2c_NC:C2895}",null,null,null,null,null,null,null,null,null,null,null,null,null,null,null,null,null,null,null,null,null,null,null,null,null,null,null,null,null,"    {s2c_SE:}"]
[null,null,null,null,null,null,null,null,null,null,null,null,"           C28.9.6 - Manufacture of plastics and rubber machinery    {s2c_NC:C2896}",null,null,null,null,null,null,null,null,null,null,null,null,null,null,null,null,null,null,null,null,null,null,null,null,null,null,null,null,null,"    {s2c_SE:}"]
[null,null,null,null,null,null,null,null,null,null,null,null,"           C28.9.9 - Manufacture of other special-purpose machinery n.e.c.    {s2c_NC:C2899}",null,null,null,null,null,null,null,null,null,null,null,null,null,null,null,null,null,null,null,null,null,null,null,null,null,null,null,null,null,"    {s2c_SE:}"]
[null,null,null,null,null,null,null,null,null,null,null,null,"     C29 - Manufacture of motor vehicles, trailers and semi-trailers    {s2c_NC:C29}",null,null,null,null,null,null,null,null,null,null,null,null,null,null,null,null,null,null,null,null,null,null,null,null,null,null,null,null,null,"    {s2c_SE:}"]
[null,null,null,null,null,null,null,null,null,null,null,null,"        C29.1 - Manufacture of motor vehicles    {s2c_NC:C291}",null,null,null,null,null,null,null,null,null,null,null,null,null,null,null,null,null,null,null,null,null,null,null,null,null,null,null,null,null,"    {s2c_SE:}"]
[null,null,null,null,null,null,null,null,null,null,null,null,"           C29.1.0 - Manufacture of motor vehicles    {s2c_NC:C2910}",null,null,null,null,null,null,null,null,null,null,null,null,null,null,null,null,null,null,null,null,null,null,null,null,null,null,null,null,null,"    {s2c_SE:}"]
[null,null,null,null,null,null,null,null,null,null,null,null,"        C29.2 - Manufacture of bodies (coachwork) for motor vehicles; manufacture of trailers and semi-trailers    {s2c_NC:C292}",null,null,null,null,null,null,null,null,null,null,null,null,null,null,null,null,null,null,null,null,null,null,null,null,null,null,null,null,null,"    {s2c_SE:}"]
[null,null,null,null,null,null,null,null,null,null,null,null,"           C29.2.0 - Manufacture of bodies (coachwork) for motor vehicles; manufacture of trailers and semi-trailers    {s2c_NC:C2920}",null,null,null,null,null,null,null,null,null,null,null,null,null,null,null,null,null,null,null,null,null,null,null,null,null,null,null,null,null,"    {s2c_SE:}"]
[null,null,null,null,null,null,null,null,null,null,null,null,"        C29.3 - Manufacture of parts and accessories for motor vehicles    {s2c_NC:C293}",null,null,null,null,null,null,null,null,null,null,null,null,null,null,null,null,null,null,null,null,null,null,null,null,null,null,null,null,null,"    {s2c_SE:}"]
[null,null,null,null,null,null,null,null,null,null,null,null,"           C29.3.1 - Manufacture of electrical and electronic equipment for motor vehicles    {s2c_NC:C2931}",null,null,null,null,null,null,null,null,null,null,null,null,null,null,null,null,null,null,null,null,null,null,null,null,null,null,null,null,null,"    {s2c_SE:}"]
[null,null,null,null,null,null,null,null,null,null,null,null,"           C29.3.2 - Manufacture of other parts and accessories for motor vehicles    {s2c_NC:C2932}",null,null,null,null,null,null,null,null,null,null,null,null,null,null,null,null,null,null,null,null,null,null,null,null,null,null,null,null,null,"    {s2c_SE:}"]
[null,null,null,null,null,null,null,null,null,null,null,null,"     C30 - Manufacture of other transport equipment    {s2c_NC:C30}",null,null,null,null,null,null,null,null,null,null,null,null,null,null,null,null,null,null,null,null,null,null,null,null,null,null,null,null,null,"    {s2c_SE:}"]
[null,null,null,null,null,null,null,null,null,null,null,null,"        C30.1 - Building of ships and boats    {s2c_NC:C301}",null,null,null,null,null,null,null,null,null,null,null,null,null,null,null,null,null,null,null,null,null,null,null,null,null,null,null,null,null,"    {s2c_SE:}"]
[null,null,null,null,null,null,null,null,null,null,null,null,"           C30.1.1 - Building of ships and floating structures    {s2c_NC:C3011}",null,null,null,null,null,null,null,null,null,null,null,null,null,null,null,null,null,null,null,null,null,null,null,null,null,null,null,null,null,"    {s2c_SE:}"]
[null,null,null,null,null,null,null,null,null,null,null,null,"           C30.1.2 - Building of pleasure and sporting boats    {s2c_NC:C3012}",null,null,null,null,null,null,null,null,null,null,null,null,null,null,null,null,null,null,null,null,null,null,null,null,null,null,null,null,null,"    {s2c_SE:}"]
[null,null,null,null,null,null,null,null,null,null,null,null,"        C30.2 - Manufacture of railway locomotives and rolling stock    {s2c_NC:C302}",null,null,null,null,null,null,null,null,null,null,null,null,null,null,null,null,null,null,null,null,null,null,null,null,null,null,null,null,null,"    {s2c_SE:}"]
[null,null,null,null,null,null,null,null,null,null,null,null,"           C30.2.0 - Manufacture of railway locomotives and rolling stock    {s2c_NC:C3020}",null,null,null,null,null,null,null,null,null,null,null,null,null,null,null,null,null,null,null,null,null,null,null,null,null,null,null,null,null,"    {s2c_SE:}"]
[null,null,null,null,null,null,null,null,null,null,null,null,"        C30.3 - Manufacture of air and spacecraft and related machinery    {s2c_NC:C303}",null,null,null,null,null,null,null,null,null,null,null,null,null,null,null,null,null,null,null,null,null,null,null,null,null,null,null,null,null,"    {s2c_SE:}"]
[null,null,null,null,null,null,null,null,null,null,null,null,"           C30.3.0 - Manufacture of air and spacecraft and related machinery    {s2c_NC:C3030}",null,null,null,null,null,null,null,null,null,null,null,null,null,null,null,null,null,null,null,null,null,null,null,null,null,null,null,null,null,"    {s2c_SE:}"]
[null,null,null,null,null,null,null,null,null,null,null,null,"        C30.4 - Manufacture of military fighting vehicles    {s2c_NC:C304}",null,null,null,null,null,null,null,null,null,null,null,null,null,null,null,null,null,null,null,null,null,null,null,null,null,null,null,null,null,"    {s2c_SE:}"]
[null,null,null,null,null,null,null,null,null,null,null,null,"           C30.4.0 - Manufacture of military fighting vehicles    {s2c_NC:C3040}",null,null,null,null,null,null,null,null,null,null,null,null,null,null,null,null,null,null,null,null,null,null,null,null,null,null,null,null,null,"    {s2c_SE:}"]
[null,null,null,null,null,null,null,null,null,null,null,null,"        C30.9 - Manufacture of transport equipment n.e.c.    {s2c_NC:C309}",null,null,null,null,null,null,null,null,null,null,null,null,null,null,null,null,null,null,null,null,null,null,null,null,null,null,null,null,null,"    {s2c_SE:}"]
[null,null,null,null,null,null,null,null,null,null,null,null,"           C30.9.1 - Manufacture of motorcycles    {s2c_NC:C3091}",null,null,null,null,null,null,null,null,null,null,null,null,null,null,null,null,null,null,null,null,null,null,null,null,null,null,null,null,null,"    {s2c_SE:}"]
[null,null,null,null,null,null,null,null,null,null,null,null,"           C30.9.2 - Manufacture of bicycles and invalid carriages    {s2c_NC:C3092}",null,null,null,null,null,null,null,null,null,null,null,null,null,null,null,null,null,null,null,null,null,null,null,null,null,null,null,null,null,"    {s2c_SE:}"]
[null,null,null,null,null,null,null,null,null,null,null,null,"           C30.9.9 - Manufacture of other transport equipment n.e.c.    {s2c_NC:C3099}",null,null,null,null,null,null,null,null,null,null,null,null,null,null,null,null,null,null,null,null,null,null,null,null,null,null,null,null,null,"    {s2c_SE:}"]
[null,null,null,null,null,null,null,null,null,null,null,null,"     C31 - Manufacture of furniture    {s2c_NC:C31}",null,null,null,null,null,null,null,null,null,null,null,null,null,null,null,null,null,null,null,null,null,null,null,null,null,null,null,null,null,"    {s2c_SE:}"]
[null,null,null,null,null,null,null,null,null,null,null,null,"        C31.0 - Manufacture of furniture    {s2c_NC:C310}",null,null,null,null,null,null,null,null,null,null,null,null,null,null,null,null,null,null,null,null,null,null,null,null,null,null,null,null,null,"    {s2c_SE:}"]
[null,null,null,null,null,null,null,null,null,null,null,null,"           C31.0.1 - Manufacture of office and shop furniture    {s2c_NC:C3101}",null,null,null,null,null,null,null,null,null,null,null,null,null,null,null,null,null,null,null,null,null,null,null,null,null,null,null,null,null,"    {s2c_SE:}"]
[null,null,null,null,null,null,null,null,null,null,null,null,"           C31.0.2 - Manufacture of kitchen furniture    {s2c_NC:C3102}",null,null,null,null,null,null,null,null,null,null,null,null,null,null,null,null,null,null,null,null,null,null,null,null,null,null,null,null,null,"    {s2c_SE:}"]
[null,null,null,null,null,null,null,null,null,null,null,null,"           C31.0.3 - Manufacture of mattresses    {s2c_NC:C3103}",null,null,null,null,null,null,null,null,null,null,null,null,null,null,null,null,null,null,null,null,null,null,null,null,null,null,null,null,null,"    {s2c_SE:}"]
[null,null,null,null,null,null,null,null,null,null,null,null,"           C31.0.9 - Manufacture of other furniture    {s2c_NC:C3109}",null,null,null,null,null,null,null,null,null,null,null,null,null,null,null,null,null,null,null,null,null,null,null,null,null,null,null,null,null,"    {s2c_SE:}"]
[null,null,null,null,null,null,null,null,null,null,null,null,"     C32 - Other manufacturing    {s2c_NC:C32}",null,null,null,null,null,null,null,null,null,null,null,null,null,null,null,null,null,null,null,null,null,null,null,null,null,null,null,null,null,"    {s2c_SE:}"]
[null,null,null,null,null,null,null,null,null,null,null,null,"        C32.1 - Manufacture of jewellery, bijouterie and related articles    {s2c_NC:C321}",null,null,null,null,null,null,null,null,null,null,null,null,null,null,null,null,null,null,null,null,null,null,null,null,null,null,null,null,null,"    {s2c_SE:}"]
[null,null,null,null,null,null,null,null,null,null,null,null,"           C32.1.1 - Striking of coins    {s2c_NC:C3211}",null,null,null,null,null,null,null,null,null,null,null,null,null,null,null,null,null,null,null,null,null,null,null,null,null,null,null,null,null,"    {s2c_SE:}"]
[null,null,null,null,null,null,null,null,null,null,null,null,"           C32.1.2 - Manufacture of jewellery and related articles    {s2c_NC:C3212}",null,null,null,null,null,null,null,null,null,null,null,null,null,null,null,null,null,null,null,null,null,null,null,null,null,null,null,null,null,"    {s2c_SE:}"]
[null,null,null,null,null,null,null,null,null,null,null,null,"           C32.1.3 - Manufacture of imitation jewellery and related articles    {s2c_NC:C3213}",null,null,null,null,null,null,null,null,null,null,null,null,null,null,null,null,null,null,null,null,null,null,null,null,null,null,null,null,null,"    {s2c_SE:}"]
[null,null,null,null,null,null,null,null,null,null,null,null,"        C32.2 - Manufacture of musical instruments    {s2c_NC:C322}",null,null,null,null,null,null,null,null,null,null,null,null,null,null,null,null,null,null,null,null,null,null,null,null,null,null,null,null,null,"    {s2c_SE:}"]
[null,null,null,null,null,null,null,null,null,null,null,null,"           C32.2.0 - Manufacture of musical instruments    {s2c_NC:C3220}",null,null,null,null,null,null,null,null,null,null,null,null,null,null,null,null,null,null,null,null,null,null,null,null,null,null,null,null,null,"    {s2c_SE:}"]
[null,null,null,null,null,null,null,null,null,null,null,null,"        C32.3 - Manufacture of sports goods    {s2c_NC:C323}",null,null,null,null,null,null,null,null,null,null,null,null,null,null,null,null,null,null,null,null,null,null,null,null,null,null,null,null,null,"    {s2c_SE:}"]
[null,null,null,null,null,null,null,null,null,null,null,null,"           C32.3.0 - Manufacture of sports goods    {s2c_NC:C3230}",null,null,null,null,null,null,null,null,null,null,null,null,null,null,null,null,null,null,null,null,null,null,null,null,null,null,null,null,null,"    {s2c_SE:}"]
[null,null,null,null,null,null,null,null,null,null,null,null,"        C32.4 - Manufacture of games and toys    {s2c_NC:C324}",null,null,null,null,null,null,null,null,null,null,null,null,null,null,null,null,null,null,null,null,null,null,null,null,null,null,null,null,null,"    {s2c_SE:}"]
[null,null,null,null,null,null,null,null,null,null,null,null,"           C32.4.0 - Manufacture of games and toys    {s2c_NC:C3240}",null,null,null,null,null,null,null,null,null,null,null,null,null,null,null,null,null,null,null,null,null,null,null,null,null,null,null,null,null,"    {s2c_SE:}"]
[null,null,null,null,null,null,null,null,null,null,null,null,"        C32.5 - Manufacture of medical and dental instruments and supplies    {s2c_NC:C325}",null,null,null,null,null,null,null,null,null,null,null,null,null,null,null,null,null,null,null,null,null,null,null,null,null,null,null,null,null,"    {s2c_SE:}"]
[null,null,null,null,null,null,null,null,null,null,null,null,"           C32.5.0 - Manufacture of medical and dental instruments and supplies    {s2c_NC:C3250}",null,null,null,null,null,null,null,null,null,null,null,null,null,null,null,null,null,null,null,null,null,null,null,null,null,null,null,null,null,"    {s2c_SE:}"]
[null,null,null,null,null,null,null,null,null,null,null,null,"        C32.9 - Manufacturing n.e.c.    {s2c_NC:C329}",null,null,null,null,null,null,null,null,null,null,null,null,null,null,null,null,null,null,null,null,null,null,null,null,null,null,null,null,null,"    {s2c_SE:}"]
[null,null,null,null,null,null,null,null,null,null,null,null,"           C32.9.1 - Manufacture of brooms and brushes    {s2c_NC:C3291}",null,null,null,null,null,null,null,null,null,null,null,null,null,null,null,null,null,null,null,null,null,null,null,null,null,null,null,null,null,"    {s2c_SE:}"]
[null,null,null,null,null,null,null,null,null,null,null,null,"           C32.9.9 - Other manufacturing n.e.c.    {s2c_NC:C3299}",null,null,null,null,null,null,null,null,null,null,null,null,null,null,null,null,null,null,null,null,null,null,null,null,null,null,null,null,null,"    {s2c_SE:}"]
[null,null,null,null,null,null,null,null,null,null,null,null,"     C33 - Repair and installation of machinery and equipment    {s2c_NC:C33}",null,null,null,null,null,null,null,null,null,null,null,null,null,null,null,null,null,null,null,null,null,null,null,null,null,null,null,null,null,"    {s2c_SE:}"]
[null,null,null,null,null,null,null,null,null,null,null,null,"        C33.1 - Repair of fabricated metal products, machinery and equipment    {s2c_NC:C331}",null,null,null,null,null,null,null,null,null,null,null,null,null,null,null,null,null,null,null,null,null,null,null,null,null,null,null,null,null,"    {s2c_SE:}"]
[null,null,null,null,null,null,null,null,null,null,null,null,"           C33.1.1 - Repair of fabricated metal products    {s2c_NC:C3311}",null,null,null,null,null,null,null,null,null,null,null,null,null,null,null,null,null,null,null,null,null,null,null,null,null,null,null,null,null,"    {s2c_SE:}"]
[null,null,null,null,null,null,null,null,null,null,null,null,"           C33.1.2 - Repair of machinery    {s2c_NC:C3312}",null,null,null,null,null,null,null,null,null,null,null,null,null,null,null,null,null,null,null,null,null,null,null,null,null,null,null,null,null,"    {s2c_SE:}"]
[null,null,null,null,null,null,null,null,null,null,null,null,"           C33.1.3 - Repair of electronic and optical equipment    {s2c_NC:C3313}",null,null,null,null,null,null,null,null,null,null,null,null,null,null,null,null,null,null,null,null,null,null,null,null,null,null,null,null,null,"    {s2c_SE:}"]
[null,null,null,null,null,null,null,null,null,null,null,null,"           C33.1.4 - Repair of electrical equipment    {s2c_NC:C3314}",null,null,null,null,null,null,null,null,null,null,null,null,null,null,null,null,null,null,null,null,null,null,null,null,null,null,null,null,null,"    {s2c_SE:}"]
[null,null,null,null,null,null,null,null,null,null,null,null,"           C33.1.5 - Repair and maintenance of ships and boats    {s2c_NC:C3315}",null,null,null,null,null,null,null,null,null,null,null,null,null,null,null,null,null,null,null,null,null,null,null,null,null,null,null,null,null,"    {s2c_SE:}"]
[null,null,null,null,null,null,null,null,null,null,null,null,"           C33.1.6 - Repair and maintenance of aircraft and spacecraft    {s2c_NC:C3316}",null,null,null,null,null,null,null,null,null,null,null,null,null,null,null,null,null,null,null,null,null,null,null,null,null,null,null,null,null,"    {s2c_SE:}"]
[null,null,null,null,null,null,null,null,null,null,null,null,"           C33.1.7 - Repair and maintenance of other transport equipment    {s2c_NC:C3317}",null,null,null,null,null,null,null,null,null,null,null,null,null,null,null,null,null,null,null,null,null,null,null,null,null,null,null,null,null,"    {s2c_SE:}"]
[null,null,null,null,null,null,null,null,null,null,null,null,"           C33.1.9 - Repair of other equipment    {s2c_NC:C3319}",null,null,null,null,null,null,null,null,null,null,null,null,null,null,null,null,null,null,null,null,null,null,null,null,null,null,null,null,null,"    {s2c_SE:}"]
[null,null,null,null,null,null,null,null,null,null,null,null,"        C33.2 - Installation of industrial machinery and equipment    {s2c_NC:C332}",null,null,null,null,null,null,null,null,null,null,null,null,null,null,null,null,null,null,null,null,null,null,null,null,null,null,null,null,null,"    {s2c_SE:}"]
[null,null,null,null,null,null,null,null,null,null,null,null,"           C33.2.0 - Installation of industrial machinery and equipment    {s2c_NC:C3320}",null,null,null,null,null,null,null,null,null,null,null,null,null,null,null,null,null,null,null,null,null,null,null,null,null,null,null,null,null,"    {s2c_SE:}"]
[null,null,null,null,null,null,null,null,null,null,null,null,"  D - Electricity, gas, steam and air conditioning supply    {s2c_NC:D}",null,null,null,null,null,null,null,null,null,null,null,null,null,null,null,null,null,null,null,null,null,null,null,null,null,null,null,null,null,"    {s2c_SE:}"]
[null,null,null,null,null,null,null,null,null,null,null,null,"     D35 - Electricity, gas, steam and air conditioning supply    {s2c_NC:D35}",null,null,null,null,null,null,null,null,null,null,null,null,null,null,null,null,null,null,null,null,null,null,null,null,null,null,null,null,null,"    {s2c_SE:}"]
[null,null,null,null,null,null,null,null,null,null,null,null,"        D35.1 - Electric power generation, transmission and distribution    {s2c_NC:D351}",null,null,null,null,null,null,null,null,null,null,null,null,null,null,null,null,null,null,null,null,null,null,null,null,null,null,null,null,null,"    {s2c_SE:}"]
[null,null,null,null,null,null,null,null,null,null,null,null,"           D35.1.1 - Production of electricity    {s2c_NC:D3511}",null,null,null,null,null,null,null,null,null,null,null,null,null,null,null,null,null,null,null,null,null,null,null,null,null,null,null,null,null,"    {s2c_SE:}"]
[null,null,null,null,null,null,null,null,null,null,null,null,"           D35.1.2 - Transmission of electricity    {s2c_NC:D3512}",null,null,null,null,null,null,null,null,null,null,null,null,null,null,null,null,null,null,null,null,null,null,null,null,null,null,null,null,null,"    {s2c_SE:}"]
[null,null,null,null,null,null,null,null,null,null,null,null,"           D35.1.3 - Distribution of electricity    {s2c_NC:D3513}",null,null,null,null,null,null,null,null,null,null,null,null,null,null,null,null,null,null,null,null,null,null,null,null,null,null,null,null,null,"    {s2c_SE:}"]
[null,null,null,null,null,null,null,null,null,null,null,null,"           D35.1.4 - Trade of electricity    {s2c_NC:D3514}",null,null,null,null,null,null,null,null,null,null,null,null,null,null,null,null,null,null,null,null,null,null,null,null,null,null,null,null,null,"    {s2c_SE:}"]
[null,null,null,null,null,null,null,null,null,null,null,null,"        D35.2 - Manufacture of gas; distribution of gaseous fuels through mains    {s2c_NC:D352}",null,null,null,null,null,null,null,null,null,null,null,null,null,null,null,null,null,null,null,null,null,null,null,null,null,null,null,null,null,"    {s2c_SE:}"]
[null,null,null,null,null,null,null,null,null,null,null,null,"           D35.2.1 - Manufacture of gas    {s2c_NC:D3521}",null,null,null,null,null,null,null,null,null,null,null,null,null,null,null,null,null,null,null,null,null,null,null,null,null,null,null,null,null,"    {s2c_SE:}"]
[null,null,null,null,null,null,null,null,null,null,null,null,"           D35.2.2 - Distribution of gaseous fuels through mains    {s2c_NC:D3522}",null,null,null,null,null,null,null,null,null,null,null,null,null,null,null,null,null,null,null,null,null,null,null,null,null,null,null,null,null,"    {s2c_SE:}"]
[null,null,null,null,null,null,null,null,null,null,null,null,"           D35.2.3 - Trade of gas through mains    {s2c_NC:D3523}",null,null,null,null,null,null,null,null,null,null,null,null,null,null,null,null,null,null,null,null,null,null,null,null,null,null,null,null,null,"    {s2c_SE:}"]
[null,null,null,null,null,null,null,null,null,null,null,null,"        D35.3 - Steam and air conditioning supply    {s2c_NC:D353}",null,null,null,null,null,null,null,null,null,null,null,null,null,null,null,null,null,null,null,null,null,null,null,null,null,null,null,null,null,"    {s2c_SE:}"]
[null,null,null,null,null,null,null,null,null,null,null,null,"           D35.3.0 - Steam and air conditioning supply    {s2c_NC:D3530}",null,null,null,null,null,null,null,null,null,null,null,null,null,null,null,null,null,null,null,null,null,null,null,null,null,null,null,null,null,"    {s2c_SE:}"]
[null,null,null,null,null,null,null,null,null,null,null,null,"  E - Water supply; sewerage; waste managment and remediation activities    {s2c_NC:E}",null,null,null,null,null,null,null,null,null,null,null,null,null,null,null,null,null,null,null,null,null,null,null,null,null,null,null,null,null,"    {s2c_SE:}"]
[null,null,null,null,null,null,null,null,null,null,null,null,"     E36 - Water collection, treatment and supply    {s2c_NC:E36}",null,null,null,null,null,null,null,null,null,null,null,null,null,null,null,null,null,null,null,null,null,null,null,null,null,null,null,null,null,"    {s2c_SE:}"]
[null,null,null,null,null,null,null,null,null,null,null,null,"        E36.0 - Water collection, treatment and supply    {s2c_NC:E360}",null,null,null,null,null,null,null,null,null,null,null,null,null,null,null,null,null,null,null,null,null,null,null,null,null,null,null,null,null,"    {s2c_SE:}"]
[null,null,null,null,null,null,null,null,null,null,null,null,"           E36.0.0 - Water collection, treatment and supply    {s2c_NC:E3600}",null,null,null,null,null,null,null,null,null,null,null,null,null,null,null,null,null,null,null,null,null,null,null,null,null,null,null,null,null,"    {s2c_SE:}"]
[null,null,null,null,null,null,null,null,null,null,null,null,"     E37 - Sewerage    {s2c_NC:E37}",null,null,null,null,null,null,null,null,null,null,null,null,null,null,null,null,null,null,null,null,null,null,null,null,null,null,null,null,null,"    {s2c_SE:}"]
[null,null,null,null,null,null,null,null,null,null,null,null,"        E37.0 - Sewerage    {s2c_NC:E370}",null,null,null,null,null,null,null,null,null,null,null,null,null,null,null,null,null,null,null,null,null,null,null,null,null,null,null,null,null,"    {s2c_SE:}"]
[null,null,null,null,null,null,null,null,null,null,null,null,"           E37.0.0 - Sewerage    {s2c_NC:E3700}",null,null,null,null,null,null,null,null,null,null,null,null,null,null,null,null,null,null,null,null,null,null,null,null,null,null,null,null,null,"    {s2c_SE:}"]
[null,null,null,null,null,null,null,null,null,null,null,null,"     E38 - Waste collection, treatment and disposal activities; materials recovery    {s2c_NC:E38}",null,null,null,null,null,null,null,null,null,null,null,null,null,null,null,null,null,null,null,null,null,null,null,null,null,null,null,null,null,"    {s2c_SE:}"]
[null,null,null,null,null,null,null,null,null,null,null,null,"        E38.1 - Waste collection    {s2c_NC:E381}",null,null,null,null,null,null,null,null,null,null,null,null,null,null,null,null,null,null,null,null,null,null,null,null,null,null,null,null,null,"    {s2c_SE:}"]
[null,null,null,null,null,null,null,null,null,null,null,null,"           E38.1.1 - Collection of non-hazardous waste    {s2c_NC:E3811}",null,null,null,null,null,null,null,null,null,null,null,null,null,null,null,null,null,null,null,null,null,null,null,null,null,null,null,null,null,"    {s2c_SE:}"]
[null,null,null,null,null,null,null,null,null,null,null,null,"           E38.1.2 - Collection of hazardous waste    {s2c_NC:E3812}",null,null,null,null,null,null,null,null,null,null,null,null,null,null,null,null,null,null,null,null,null,null,null,null,null,null,null,null,null,"    {s2c_SE:}"]
[null,null,null,null,null,null,null,null,null,null,null,null,"        E38.2 - Waste treatment and disposal    {s2c_NC:E382}",null,null,null,null,null,null,null,null,null,null,null,null,null,null,null,null,null,null,null,null,null,null,null,null,null,null,null,null,null,"    {s2c_SE:}"]
[null,null,null,null,null,null,null,null,null,null,null,null,"           E38.2.1 - Treatment and disposal of non-hazardous waste    {s2c_NC:E3821}",null,null,null,null,null,null,null,null,null,null,null,null,null,null,null,null,null,null,null,null,null,null,null,null,null,null,null,null,null,"    {s2c_SE:}"]
[null,null,null,null,null,null,null,null,null,null,null,null,"           E38.2.2 - Treatment and disposal of hazardous waste    {s2c_NC:E3822}",null,null,null,null,null,null,null,null,null,null,null,null,null,null,null,null,null,null,null,null,null,null,null,null,null,null,null,null,null,"    {s2c_SE:}"]
[null,null,null,null,null,null,null,null,null,null,null,null,"        E38.3 - Materials recovery    {s2c_NC:E383}",null,null,null,null,null,null,null,null,null,null,null,null,null,null,null,null,null,null,null,null,null,null,null,null,null,null,null,null,null,"    {s2c_SE:}"]
[null,null,null,null,null,null,null,null,null,null,null,null,"           E38.3.1 - Dismantling of wrecks    {s2c_NC:E3831}",null,null,null,null,null,null,null,null,null,null,null,null,null,null,null,null,null,null,null,null,null,null,null,null,null,null,null,null,null,"    {s2c_SE:}"]
[null,null,null,null,null,null,null,null,null,null,null,null,"           E38.3.2 - Recovery of sorted materials    {s2c_NC:E3832}",null,null,null,null,null,null,null,null,null,null,null,null,null,null,null,null,null,null,null,null,null,null,null,null,null,null,null,null,null,"    {s2c_SE:}"]
[null,null,null,null,null,null,null,null,null,null,null,null,"     E39 - Remediation activities and other waste management services    {s2c_NC:E39}",null,null,null,null,null,null,null,null,null,null,null,null,null,null,null,null,null,null,null,null,null,null,null,null,null,null,null,null,null,"    {s2c_SE:}"]
[null,null,null,null,null,null,null,null,null,null,null,null,"        E39.0 - Remediation activities and other waste management services    {s2c_NC:E390}",null,null,null,null,null,null,null,null,null,null,null,null,null,null,null,null,null,null,null,null,null,null,null,null,null,null,null,null,null,"    {s2c_SE:}"]
[null,null,null,null,null,null,null,null,null,null,null,null,"           E39.0.0 - Remediation activities and other waste management services    {s2c_NC:E3900}",null,null,null,null,null,null,null,null,null,null,null,null,null,null,null,null,null,null,null,null,null,null,null,null,null,null,null,null,null,"    {s2c_SE:}"]
[null,null,null,null,null,null,null,null,null,null,null,null,"  F - Construction    {s2c_NC:F}",null,null,null,null,null,null,null,null,null,null,null,null,null,null,null,null,null,null,null,null,null,null,null,null,null,null,null,null,null,"    {s2c_SE:}"]
[null,null,null,null,null,null,null,null,null,null,null,null,"     F41 - Construction of buildings    {s2c_NC:F41}",null,null,null,null,null,null,null,null,null,null,null,null,null,null,null,null,null,null,null,null,null,null,null,null,null,null,null,null,null,"    {s2c_SE:}"]
[null,null,null,null,null,null,null,null,null,null,null,null,"        F41.1 - Development of building projects    {s2c_NC:F411}",null,null,null,null,null,null,null,null,null,null,null,null,null,null,null,null,null,null,null,null,null,null,null,null,null,null,null,null,null,"    {s2c_SE:}"]
[null,null,null,null,null,null,null,null,null,null,null,null,"           F41.1.0 - Development of building projects    {s2c_NC:F4110}",null,null,null,null,null,null,null,null,null,null,null,null,null,null,null,null,null,null,null,null,null,null,null,null,null,null,null,null,null,"    {s2c_SE:}"]
[null,null,null,null,null,null,null,null,null,null,null,null,"        F41.2 - Construction of residential and non-residential buildings    {s2c_NC:F412}",null,null,null,null,null,null,null,null,null,null,null,null,null,null,null,null,null,null,null,null,null,null,null,null,null,null,null,null,null,"    {s2c_SE:}"]
[null,null,null,null,null,null,null,null,null,null,null,null,"           F41.2.0 - Construction of residential and non-residential buildings    {s2c_NC:F4120}",null,null,null,null,null,null,null,null,null,null,null,null,null,null,null,null,null,null,null,null,null,null,null,null,null,null,null,null,null,"    {s2c_SE:}"]
[null,null,null,null,null,null,null,null,null,null,null,null,"     F42 - Civil engineering    {s2c_NC:F42}",null,null,null,null,null,null,null,null,null,null,null,null,null,null,null,null,null,null,null,null,null,null,null,null,null,null,null,null,null,"    {s2c_SE:}"]
[null,null,null,null,null,null,null,null,null,null,null,null,"        F42.1 - Construction of roads and railways    {s2c_NC:F421}",null,null,null,null,null,null,null,null,null,null,null,null,null,null,null,null,null,null,null,null,null,null,null,null,null,null,null,null,null,"    {s2c_SE:}"]
[null,null,null,null,null,null,null,null,null,null,null,null,"           F42.1.1 - Construction of roads and motorways    {s2c_NC:F4211}",null,null,null,null,null,null,null,null,null,null,null,null,null,null,null,null,null,null,null,null,null,null,null,null,null,null,null,null,null,"    {s2c_SE:}"]
[null,null,null,null,null,null,null,null,null,null,null,null,"           F42.1.2 - Construction of railways and underground railways    {s2c_NC:F4212}",null,null,null,null,null,null,null,null,null,null,null,null,null,null,null,null,null,null,null,null,null,null,null,null,null,null,null,null,null,"    {s2c_SE:}"]
[null,null,null,null,null,null,null,null,null,null,null,null,"           F42.1.3 - Construction of bridges and tunnels    {s2c_NC:F4213}",null,null,null,null,null,null,null,null,null,null,null,null,null,null,null,null,null,null,null,null,null,null,null,null,null,null,null,null,null,"    {s2c_SE:}"]
[null,null,null,null,null,null,null,null,null,null,null,null,"        F42.2 - Construction of utility projects    {s2c_NC:F422}",null,null,null,null,null,null,null,null,null,null,null,null,null,null,null,null,null,null,null,null,null,null,null,null,null,null,null,null,null,"    {s2c_SE:}"]
[null,null,null,null,null,null,null,null,null,null,null,null,"           F42.2.1 - Construction of utility projects for fluids    {s2c_NC:F4221}",null,null,null,null,null,null,null,null,null,null,null,null,null,null,null,null,null,null,null,null,null,null,null,null,null,null,null,null,null,"    {s2c_SE:}"]
[null,null,null,null,null,null,null,null,null,null,null,null,"           F42.2.2 - Construction of utility projects for electricity and telecommunications    {s2c_NC:F4222}",null,null,null,null,null,null,null,null,null,null,null,null,null,null,null,null,null,null,null,null,null,null,null,null,null,null,null,null,null,"    {s2c_SE:}"]
[null,null,null,null,null,null,null,null,null,null,null,null,"        F42.9 - Construction of other civil engineering projects    {s2c_NC:F429}",null,null,null,null,null,null,null,null,null,null,null,null,null,null,null,null,null,null,null,null,null,null,null,null,null,null,null,null,null,"    {s2c_SE:}"]
[null,null,null,null,null,null,null,null,null,null,null,null,"           F42.9.1 - Construction of water projects    {s2c_NC:F4291}",null,null,null,null,null,null,null,null,null,null,null,null,null,null,null,null,null,null,null,null,null,null,null,null,null,null,null,null,null,"    {s2c_SE:}"]
[null,null,null,null,null,null,null,null,null,null,null,null,"           F42.9.9 - Construction of other civil engineering projects n.e.c.    {s2c_NC:F4299}",null,null,null,null,null,null,null,null,null,null,null,null,null,null,null,null,null,null,null,null,null,null,null,null,null,null,null,null,null,"    {s2c_SE:}"]
[null,null,null,null,null,null,null,null,null,null,null,null,"     F43 - Specialised construction activities    {s2c_NC:F43}",null,null,null,null,null,null,null,null,null,null,null,null,null,null,null,null,null,null,null,null,null,null,null,null,null,null,null,null,null,"    {s2c_SE:}"]
[null,null,null,null,null,null,null,null,null,null,null,null,"        F43.1 - Demolition and site preparation    {s2c_NC:F431}",null,null,null,null,null,null,null,null,null,null,null,null,null,null,null,null,null,null,null,null,null,null,null,null,null,null,null,null,null,"    {s2c_SE:}"]
[null,null,null,null,null,null,null,null,null,null,null,null,"           F43.1.1 - Demolition    {s2c_NC:F4311}",null,null,null,null,null,null,null,null,null,null,null,null,null,null,null,null,null,null,null,null,null,null,null,null,null,null,null,null,null,"    {s2c_SE:}"]
[null,null,null,null,null,null,null,null,null,null,null,null,"           F43.1.2 - Site preparation    {s2c_NC:F4312}",null,null,null,null,null,null,null,null,null,null,null,null,null,null,null,null,null,null,null,null,null,null,null,null,null,null,null,null,null,"    {s2c_SE:}"]
[null,null,null,null,null,null,null,null,null,null,null,null,"           F43.1.3 - Test drilling and boring    {s2c_NC:F4313}",null,null,null,null,null,null,null,null,null,null,null,null,null,null,null,null,null,null,null,null,null,null,null,null,null,null,null,null,null,"    {s2c_SE:}"]
[null,null,null,null,null,null,null,null,null,null,null,null,"        F43.2 - Electrical, plumbing and other construction installation activities    {s2c_NC:F432}",null,null,null,null,null,null,null,null,null,null,null,null,null,null,null,null,null,null,null,null,null,null,null,null,null,null,null,null,null,"    {s2c_SE:}"]
[null,null,null,null,null,null,null,null,null,null,null,null,"           F43.2.1 - Electrical installation    {s2c_NC:F4321}",null,null,null,null,null,null,null,null,null,null,null,null,null,null,null,null,null,null,null,null,null,null,null,null,null,null,null,null,null,"    {s2c_SE:}"]
[null,null,null,null,null,null,null,null,null,null,null,null,"           F43.2.2 - Plumbing, heat and air-conditioning installation    {s2c_NC:F4322}",null,null,null,null,null,null,null,null,null,null,null,null,null,null,null,null,null,null,null,null,null,null,null,null,null,null,null,null,null,"    {s2c_SE:}"]
[null,null,null,null,null,null,null,null,null,null,null,null,"           F43.2.9 - Other construction installation    {s2c_NC:F4329}",null,null,null,null,null,null,null,null,null,null,null,null,null,null,null,null,null,null,null,null,null,null,null,null,null,null,null,null,null,"    {s2c_SE:}"]
[null,null,null,null,null,null,null,null,null,null,null,null,"        F43.3 - Building completion and finishing    {s2c_NC:F433}",null,null,null,null,null,null,null,null,null,null,null,null,null,null,null,null,null,null,null,null,null,null,null,null,null,null,null,null,null,"    {s2c_SE:}"]
[null,null,null,null,null,null,null,null,null,null,null,null,"           F43.3.1 - Plastering    {s2c_NC:F4331}",null,null,null,null,null,null,null,null,null,null,null,null,null,null,null,null,null,null,null,null,null,null,null,null,null,null,null,null,null,"    {s2c_SE:}"]
[null,null,null,null,null,null,null,null,null,null,null,null,"           F43.3.2 - Joinery installation    {s2c_NC:F4332}",null,null,null,null,null,null,null,null,null,null,null,null,null,null,null,null,null,null,null,null,null,null,null,null,null,null,null,null,null,"    {s2c_SE:}"]
[null,null,null,null,null,null,null,null,null,null,null,null,"           F43.3.3 - Floor and wall covering    {s2c_NC:F4333}",null,null,null,null,null,null,null,null,null,null,null,null,null,null,null,null,null,null,null,null,null,null,null,null,null,null,null,null,null,"    {s2c_SE:}"]
[null,null,null,null,null,null,null,null,null,null,null,null,"           F43.3.4 - Painting and glazing    {s2c_NC:F4334}",null,null,null,null,null,null,null,null,null,null,null,null,null,null,null,null,null,null,null,null,null,null,null,null,null,null,null,null,null,"    {s2c_SE:}"]
[null,null,null,null,null,null,null,null,null,null,null,null,"           F43.3.9 - Other building completion and finishing    {s2c_NC:F4339}",null,null,null,null,null,null,null,null,null,null,null,null,null,null,null,null,null,null,null,null,null,null,null,null,null,null,null,null,null,"    {s2c_SE:}"]
[null,null,null,null,null,null,null,null,null,null,null,null,"        F43.9 - Other specialised construction activities    {s2c_NC:F439}",null,null,null,null,null,null,null,null,null,null,null,null,null,null,null,null,null,null,null,null,null,null,null,null,null,null,null,null,null,"    {s2c_SE:}"]
[null,null,null,null,null,null,null,null,null,null,null,null,"           F43.9.1 - Roofing activities    {s2c_NC:F4391}",null,null,null,null,null,null,null,null,null,null,null,null,null,null,null,null,null,null,null,null,null,null,null,null,null,null,null,null,null,"    {s2c_SE:}"]
[null,null,null,null,null,null,null,null,null,null,null,null,"           F43.9.9 - Other specialised construction activities n.e.c.    {s2c_NC:F4399}",null,null,null,null,null,null,null,null,null,null,null,null,null,null,null,null,null,null,null,null,null,null,null,null,null,null,null,null,null,"    {s2c_SE:}"]
[null,null,null,null,null,null,null,null,null,null,null,null,"  G - Wholesale and retail trade; repair of motor vehicles and motorcycles    {s2c_NC:G}",null,null,null,null,null,null,null,null,null,null,null,null,null,null,null,null,null,null,null,null,null,null,null,null,null,null,null,null,null,"    {s2c_SE:}"]
[null,null,null,null,null,null,null,null,null,null,null,null,"     G45 - Wholesale and retail trade and repair of motor vehicles and motorcycles    {s2c_NC:G45}",null,null,null,null,null,null,null,null,null,null,null,null,null,null,null,null,null,null,null,null,null,null,null,null,null,null,null,null,null,"    {s2c_SE:}"]
[null,null,null,null,null,null,null,null,null,null,null,null,"        G45.1 - Sale of motor vehicles    {s2c_NC:G451}",null,null,null,null,null,null,null,null,null,null,null,null,null,null,null,null,null,null,null,null,null,null,null,null,null,null,null,null,null,"    {s2c_SE:}"]
[null,null,null,null,null,null,null,null,null,null,null,null,"           G45.1.1 - Sale of cars and light motor vehicles    {s2c_NC:G4511}",null,null,null,null,null,null,null,null,null,null,null,null,null,null,null,null,null,null,null,null,null,null,null,null,null,null,null,null,null,"    {s2c_SE:}"]
[null,null,null,null,null,null,null,null,null,null,null,null,"           G45.1.9 - Sale of other motor vehicles    {s2c_NC:G4519}",null,null,null,null,null,null,null,null,null,null,null,null,null,null,null,null,null,null,null,null,null,null,null,null,null,null,null,null,null,"    {s2c_SE:}"]
[null,null,null,null,null,null,null,null,null,null,null,null,"        G45.2 - Maintenance and repair of motor vehicles    {s2c_NC:G452}",null,null,null,null,null,null,null,null,null,null,null,null,null,null,null,null,null,null,null,null,null,null,null,null,null,null,null,null,null,"    {s2c_SE:}"]
[null,null,null,null,null,null,null,null,null,null,null,null,"           G45.2.0 - Maintenance and repair of motor vehicles    {s2c_NC:G4520}",null,null,null,null,null,null,null,null,null,null,null,null,null,null,null,null,null,null,null,null,null,null,null,null,null,null,null,null,null,"    {s2c_SE:}"]
[null,null,null,null,null,null,null,null,null,null,null,null,"        G45.3 - Sale of motor vehicle parts and accessories    {s2c_NC:G453}",null,null,null,null,null,null,null,null,null,null,null,null,null,null,null,null,null,null,null,null,null,null,null,null,null,null,null,null,null,"    {s2c_SE:}"]
[null,null,null,null,null,null,null,null,null,null,null,null,"           G45.3.1 - Wholesale trade of motor vehicle parts and accessories    {s2c_NC:G4531}",null,null,null,null,null,null,null,null,null,null,null,null,null,null,null,null,null,null,null,null,null,null,null,null,null,null,null,null,null,"    {s2c_SE:}"]
[null,null,null,null,null,null,null,null,null,null,null,null,"           G45.3.2 - Retail trade of motor vehicle parts and accessories    {s2c_NC:G4532}",null,null,null,null,null,null,null,null,null,null,null,null,null,null,null,null,null,null,null,null,null,null,null,null,null,null,null,null,null,"    {s2c_SE:}"]
[null,null,null,null,null,null,null,null,null,null,null,null,"        G45.4 - Sale, maintenance and repair of motorcycles and related parts and accessories    {s2c_NC:G454}",null,null,null,null,null,null,null,null,null,null,null,null,null,null,null,null,null,null,null,null,null,null,null,null,null,null,null,null,null,"    {s2c_SE:}"]
[null,null,null,null,null,null,null,null,null,null,null,null,"           G45.4.0 - Sale, maintenance and repair of motorcycles and related parts and accessories    {s2c_NC:G4540}",null,null,null,null,null,null,null,null,null,null,null,null,null,null,null,null,null,null,null,null,null,null,null,null,null,null,null,null,null,"    {s2c_SE:}"]
[null,null,null,null,null,null,null,null,null,null,null,null,"     G46 - Wholesale trade, except of motor vehicles and motorcycles    {s2c_NC:G46}",null,null,null,null,null,null,null,null,null,null,null,null,null,null,null,null,null,null,null,null,null,null,null,null,null,null,null,null,null,"    {s2c_SE:}"]
[null,null,null,null,null,null,null,null,null,null,null,null,"        G46.1 - Wholesale on a fee or contract basis    {s2c_NC:G461}",null,null,null,null,null,null,null,null,null,null,null,null,null,null,null,null,null,null,null,null,null,null,null,null,null,null,null,null,null,"    {s2c_SE:}"]
[null,null,null,null,null,null,null,null,null,null,null,null,"           G46.1.1 - Agents involved in the sale of agricultural raw materials, live animals, textile raw materials and semi-finished goods    {s2c_NC:G4611}",null,null,null,null,null,null,null,null,null,null,null,null,null,null,null,null,null,null,null,null,null,null,null,null,null,null,null,null,null,"    {s2c_SE:}"]
[null,null,null,null,null,null,null,null,null,null,null,null,"           G46.1.2 - Agents involved in the sale of fuels, ores, metals and industrial chemicals    {s2c_NC:G4612}",null,null,null,null,null,null,null,null,null,null,null,null,null,null,null,null,null,null,null,null,null,null,null,null,null,null,null,null,null,"    {s2c_SE:}"]
[null,null,null,null,null,null,null,null,null,null,null,null,"           G46.1.3 - Agents involved in the sale of timber and building materials    {s2c_NC:G4613}",null,null,null,null,null,null,null,null,null,null,null,null,null,null,null,null,null,null,null,null,null,null,null,null,null,null,null,null,null,"    {s2c_SE:}"]
[null,null,null,null,null,null,null,null,null,null,null,null,"           G46.1.4 - Agents involved in the sale of machinery, industrial equipment, ships and aircraft    {s2c_NC:G4614}",null,null,null,null,null,null,null,null,null,null,null,null,null,null,null,null,null,null,null,null,null,null,null,null,null,null,null,null,null,"    {s2c_SE:}"]
[null,null,null,null,null,null,null,null,null,null,null,null,"           G46.1.5 - Agents involved in the sale of furniture, household goods, hardware and ironmongery    {s2c_NC:G4615}",null,null,null,null,null,null,null,null,null,null,null,null,null,null,null,null,null,null,null,null,null,null,null,null,null,null,null,null,null,"    {s2c_SE:}"]
[null,null,null,null,null,null,null,null,null,null,null,null,"           G46.1.6 - Agents involved in the sale of textiles, clothing, fur, footwear and leather goods    {s2c_NC:G4616}",null,null,null,null,null,null,null,null,null,null,null,null,null,null,null,null,null,null,null,null,null,null,null,null,null,null,null,null,null,"    {s2c_SE:}"]
[null,null,null,null,null,null,null,null,null,null,null,null,"           G46.1.7 - Agents involved in the sale of food, beverages and tobacco    {s2c_NC:G4617}",null,null,null,null,null,null,null,null,null,null,null,null,null,null,null,null,null,null,null,null,null,null,null,null,null,null,null,null,null,"    {s2c_SE:}"]
[null,null,null,null,null,null,null,null,null,null,null,null,"           G46.1.8 - Agents specialised in the sale of other particular products    {s2c_NC:G4618}",null,null,null,null,null,null,null,null,null,null,null,null,null,null,null,null,null,null,null,null,null,null,null,null,null,null,null,null,null,"    {s2c_SE:}"]
[null,null,null,null,null,null,null,null,null,null,null,null,"           G46.1.9 - Agents involved in the sale of a variety of goods    {s2c_NC:G4619}",null,null,null,null,null,null,null,null,null,null,null,null,null,null,null,null,null,null,null,null,null,null,null,null,null,null,null,null,null,"    {s2c_SE:}"]
[null,null,null,null,null,null,null,null,null,null,null,null,"        G46.2 - Wholesale of agricultural raw materials and live animals    {s2c_NC:G462}",null,null,null,null,null,null,null,null,null,null,null,null,null,null,null,null,null,null,null,null,null,null,null,null,null,null,null,null,null,"    {s2c_SE:}"]
[null,null,null,null,null,null,null,null,null,null,null,null,"           G46.2.1 - Wholesale of grain, unmanufactured tobacco, seeds and animal feeds    {s2c_NC:G4621}",null,null,null,null,null,null,null,null,null,null,null,null,null,null,null,null,null,null,null,null,null,null,null,null,null,null,null,null,null,"    {s2c_SE:}"]
[null,null,null,null,null,null,null,null,null,null,null,null,"           G46.2.2 - Wholesale of flowers and plants    {s2c_NC:G4622}",null,null,null,null,null,null,null,null,null,null,null,null,null,null,null,null,null,null,null,null,null,null,null,null,null,null,null,null,null,"    {s2c_SE:}"]
[null,null,null,null,null,null,null,null,null,null,null,null,"           G46.2.3 - Wholesale of live animals    {s2c_NC:G4623}",null,null,null,null,null,null,null,null,null,null,null,null,null,null,null,null,null,null,null,null,null,null,null,null,null,null,null,null,null,"    {s2c_SE:}"]
[null,null,null,null,null,null,null,null,null,null,null,null,"           G46.2.4 - Wholesale of hides, skins and leather    {s2c_NC:G4624}",null,null,null,null,null,null,null,null,null,null,null,null,null,null,null,null,null,null,null,null,null,null,null,null,null,null,null,null,null,"    {s2c_SE:}"]
[null,null,null,null,null,null,null,null,null,null,null,null,"        G46.3 - Wholesale of food, beverages and tobacco    {s2c_NC:G463}",null,null,null,null,null,null,null,null,null,null,null,null,null,null,null,null,null,null,null,null,null,null,null,null,null,null,null,null,null,"    {s2c_SE:}"]
[null,null,null,null,null,null,null,null,null,null,null,null,"           G46.3.1 - Wholesale of fruit and vegetables    {s2c_NC:G4631}",null,null,null,null,null,null,null,null,null,null,null,null,null,null,null,null,null,null,null,null,null,null,null,null,null,null,null,null,null,"    {s2c_SE:}"]
[null,null,null,null,null,null,null,null,null,null,null,null,"           G46.3.2 - Wholesale of meat and meat products    {s2c_NC:G4632}",null,null,null,null,null,null,null,null,null,null,null,null,null,null,null,null,null,null,null,null,null,null,null,null,null,null,null,null,null,"    {s2c_SE:}"]
[null,null,null,null,null,null,null,null,null,null,null,null,"           G46.3.3 - Wholesale of dairy products, eggs and edible oils and fats    {s2c_NC:G4633}",null,null,null,null,null,null,null,null,null,null,null,null,null,null,null,null,null,null,null,null,null,null,null,null,null,null,null,null,null,"    {s2c_SE:}"]
[null,null,null,null,null,null,null,null,null,null,null,null,"           G46.3.4 - Wholesale of beverages    {s2c_NC:G4634}",null,null,null,null,null,null,null,null,null,null,null,null,null,null,null,null,null,null,null,null,null,null,null,null,null,null,null,null,null,"    {s2c_SE:}"]
[null,null,null,null,null,null,null,null,null,null,null,null,"           G46.3.5 - Wholesale of tobacco products    {s2c_NC:G4635}",null,null,null,null,null,null,null,null,null,null,null,null,null,null,null,null,null,null,null,null,null,null,null,null,null,null,null,null,null,"    {s2c_SE:}"]
[null,null,null,null,null,null,null,null,null,null,null,null,"           G46.3.6 - Wholesale of sugar and chocolate and sugar confectionery    {s2c_NC:G4636}",null,null,null,null,null,null,null,null,null,null,null,null,null,null,null,null,null,null,null,null,null,null,null,null,null,null,null,null,null,"    {s2c_SE:}"]
[null,null,null,null,null,null,null,null,null,null,null,null,"           G46.3.7 - Wholesale of coffee, tea, cocoa and spices    {s2c_NC:G4637}",null,null,null,null,null,null,null,null,null,null,null,null,null,null,null,null,null,null,null,null,null,null,null,null,null,null,null,null,null,"    {s2c_SE:}"]
[null,null,null,null,null,null,null,null,null,null,null,null,"           G46.3.8 - Wholesale of other food, including fish, crustaceans and molluscs    {s2c_NC:G4638}",null,null,null,null,null,null,null,null,null,null,null,null,null,null,null,null,null,null,null,null,null,null,null,null,null,null,null,null,null,"    {s2c_SE:}"]
[null,null,null,null,null,null,null,null,null,null,null,null,"           G46.3.9 - Non-specialised wholesale of food, beverages and tobacco    {s2c_NC:G4639}",null,null,null,null,null,null,null,null,null,null,null,null,null,null,null,null,null,null,null,null,null,null,null,null,null,null,null,null,null,"    {s2c_SE:}"]
[null,null,null,null,null,null,null,null,null,null,null,null,"        G46.4 - Wholesale of household goods    {s2c_NC:G464}",null,null,null,null,null,null,null,null,null,null,null,null,null,null,null,null,null,null,null,null,null,null,null,null,null,null,null,null,null,"    {s2c_SE:}"]
[null,null,null,null,null,null,null,null,null,null,null,null,"           G46.4.1 - Wholesale of textiles    {s2c_NC:G4641}",null,null,null,null,null,null,null,null,null,null,null,null,null,null,null,null,null,null,null,null,null,null,null,null,null,null,null,null,null,"    {s2c_SE:}"]
[null,null,null,null,null,null,null,null,null,null,null,null,"           G46.4.2 - Wholesale of clothing and footwear    {s2c_NC:G4642}",null,null,null,null,null,null,null,null,null,null,null,null,null,null,null,null,null,null,null,null,null,null,null,null,null,null,null,null,null,"    {s2c_SE:}"]
[null,null,null,null,null,null,null,null,null,null,null,null,"           G46.4.3 - Wholesale of electrical household appliances    {s2c_NC:G4643}",null,null,null,null,null,null,null,null,null,null,null,null,null,null,null,null,null,null,null,null,null,null,null,null,null,null,null,null,null,"    {s2c_SE:}"]
[null,null,null,null,null,null,null,null,null,null,null,null,"           G46.4.4 - Wholesale of china and glassware and cleaning materials    {s2c_NC:G4644}",null,null,null,null,null,null,null,null,null,null,null,null,null,null,null,null,null,null,null,null,null,null,null,null,null,null,null,null,null,"    {s2c_SE:}"]
[null,null,null,null,null,null,null,null,null,null,null,null,"           G46.4.5 - Wholesale of perfume and cosmetics    {s2c_NC:G4645}",null,null,null,null,null,null,null,null,null,null,null,null,null,null,null,null,null,null,null,null,null,null,null,null,null,null,null,null,null,"    {s2c_SE:}"]
[null,null,null,null,null,null,null,null,null,null,null,null,"           G46.4.6 - Wholesale of pharmaceutical goods    {s2c_NC:G4646}",null,null,null,null,null,null,null,null,null,null,null,null,null,null,null,null,null,null,null,null,null,null,null,null,null,null,null,null,null,"    {s2c_SE:}"]
[null,null,null,null,null,null,null,null,null,null,null,null,"           G46.4.7 - Wholesale of furniture, carpets and lighting equipment    {s2c_NC:G4647}",null,null,null,null,null,null,null,null,null,null,null,null,null,null,null,null,null,null,null,null,null,null,null,null,null,null,null,null,null,"    {s2c_SE:}"]
[null,null,null,null,null,null,null,null,null,null,null,null,"           G46.4.8 - Wholesale of watches and jewellery    {s2c_NC:G4648}",null,null,null,null,null,null,null,null,null,null,null,null,null,null,null,null,null,null,null,null,null,null,null,null,null,null,null,null,null,"    {s2c_SE:}"]
[null,null,null,null,null,null,null,null,null,null,null,null,"           G46.4.9 - Wholesale of other household goods    {s2c_NC:G4649}",null,null,null,null,null,null,null,null,null,null,null,null,null,null,null,null,null,null,null,null,null,null,null,null,null,null,null,null,null,"    {s2c_SE:}"]
[null,null,null,null,null,null,null,null,null,null,null,null,"        G46.5 - Wholesale of information and communication equipment    {s2c_NC:G465}",null,null,null,null,null,null,null,null,null,null,null,null,null,null,null,null,null,null,null,null,null,null,null,null,null,null,null,null,null,"    {s2c_SE:}"]
[null,null,null,null,null,null,null,null,null,null,null,null,"           G46.5.1 - Wholesale of computers, computer peripheral equipment and software    {s2c_NC:G4651}",null,null,null,null,null,null,null,null,null,null,null,null,null,null,null,null,null,null,null,null,null,null,null,null,null,null,null,null,null,"    {s2c_SE:}"]
[null,null,null,null,null,null,null,null,null,null,null,null,"           G46.5.2 - Wholesale of electronic and telecommunications equipment and parts    {s2c_NC:G4652}",null,null,null,null,null,null,null,null,null,null,null,null,null,null,null,null,null,null,null,null,null,null,null,null,null,null,null,null,null,"    {s2c_SE:}"]
[null,null,null,null,null,null,null,null,null,null,null,null,"        G46.6 - Wholesale of other machinery, equipment and supplies    {s2c_NC:G466}",null,null,null,null,null,null,null,null,null,null,null,null,null,null,null,null,null,null,null,null,null,null,null,null,null,null,null,null,null,"    {s2c_SE:}"]
[null,null,null,null,null,null,null,null,null,null,null,null,"           G46.6.1 - Wholesale of agricultural machinery, equipment and supplies    {s2c_NC:G4661}",null,null,null,null,null,null,null,null,null,null,null,null,null,null,null,null,null,null,null,null,null,null,null,null,null,null,null,null,null,"    {s2c_SE:}"]
[null,null,null,null,null,null,null,null,null,null,null,null,"           G46.6.2 - Wholesale of machine tools    {s2c_NC:G4662}",null,null,null,null,null,null,null,null,null,null,null,null,null,null,null,null,null,null,null,null,null,null,null,null,null,null,null,null,null,"    {s2c_SE:}"]
[null,null,null,null,null,null,null,null,null,null,null,null,"           G46.6.3 - Wholesale of mining, construction and civil engineering machinery    {s2c_NC:G4663}",null,null,null,null,null,null,null,null,null,null,null,null,null,null,null,null,null,null,null,null,null,null,null,null,null,null,null,null,null,"    {s2c_SE:}"]
[null,null,null,null,null,null,null,null,null,null,null,null,"           G46.6.4 - Wholesale of machinery for the textile industry and of sewing and knitting machines    {s2c_NC:G4664}",null,null,null,null,null,null,null,null,null,null,null,null,null,null,null,null,null,null,null,null,null,null,null,null,null,null,null,null,null,"    {s2c_SE:}"]
[null,null,null,null,null,null,null,null,null,null,null,null,"           G46.6.5 - Wholesale of office furniture    {s2c_NC:G4665}",null,null,null,null,null,null,null,null,null,null,null,null,null,null,null,null,null,null,null,null,null,null,null,null,null,null,null,null,null,"    {s2c_SE:}"]
[null,null,null,null,null,null,null,null,null,null,null,null,"           G46.6.6 - Wholesale of other office machinery and equipment    {s2c_NC:G4666}",null,null,null,null,null,null,null,null,null,null,null,null,null,null,null,null,null,null,null,null,null,null,null,null,null,null,null,null,null,"    {s2c_SE:}"]
[null,null,null,null,null,null,null,null,null,null,null,null,"           G46.6.9 - Wholesale of other machinery and equipment    {s2c_NC:G4669}",null,null,null,null,null,null,null,null,null,null,null,null,null,null,null,null,null,null,null,null,null,null,null,null,null,null,null,null,null,"    {s2c_SE:}"]
[null,null,null,null,null,null,null,null,null,null,null,null,"        G46.7 - Other specialised wholesale    {s2c_NC:G467}",null,null,null,null,null,null,null,null,null,null,null,null,null,null,null,null,null,null,null,null,null,null,null,null,null,null,null,null,null,"    {s2c_SE:}"]
[null,null,null,null,null,null,null,null,null,null,null,null,"           G46.7.1 - Wholesale of solid, liquid and gaseous fuels and related products    {s2c_NC:G4671}",null,null,null,null,null,null,null,null,null,null,null,null,null,null,null,null,null,null,null,null,null,null,null,null,null,null,null,null,null,"    {s2c_SE:}"]
[null,null,null,null,null,null,null,null,null,null,null,null,"           G46.7.2 - Wholesale of metals and metal ores    {s2c_NC:G4672}",null,null,null,null,null,null,null,null,null,null,null,null,null,null,null,null,null,null,null,null,null,null,null,null,null,null,null,null,null,"    {s2c_SE:}"]
[null,null,null,null,null,null,null,null,null,null,null,null,"           G46.7.3 - Wholesale of wood, construction materials and sanitary equipment    {s2c_NC:G4673}",null,null,null,null,null,null,null,null,null,null,null,null,null,null,null,null,null,null,null,null,null,null,null,null,null,null,null,null,null,"    {s2c_SE:}"]
[null,null,null,null,null,null,null,null,null,null,null,null,"           G46.7.4 - Wholesale of hardware, plumbing and heating equipment and supplies    {s2c_NC:G4674}",null,null,null,null,null,null,null,null,null,null,null,null,null,null,null,null,null,null,null,null,null,null,null,null,null,null,null,null,null,"    {s2c_SE:}"]
[null,null,null,null,null,null,null,null,null,null,null,null,"           G46.7.5 - Wholesale of chemical products    {s2c_NC:G4675}",null,null,null,null,null,null,null,null,null,null,null,null,null,null,null,null,null,null,null,null,null,null,null,null,null,null,null,null,null,"    {s2c_SE:}"]
[null,null,null,null,null,null,null,null,null,null,null,null,"           G46.7.6 - Wholesale of other intermediate products    {s2c_NC:G4676}",null,null,null,null,null,null,null,null,null,null,null,null,null,null,null,null,null,null,null,null,null,null,null,null,null,null,null,null,null,"    {s2c_SE:}"]
[null,null,null,null,null,null,null,null,null,null,null,null,"           G46.7.7 - Wholesale of waste and scrap    {s2c_NC:G4677}",null,null,null,null,null,null,null,null,null,null,null,null,null,null,null,null,null,null,null,null,null,null,null,null,null,null,null,null,null,"    {s2c_SE:}"]
[null,null,null,null,null,null,null,null,null,null,null,null,"        G46.9 - Non-specialised wholesale trade    {s2c_NC:G469}",null,null,null,null,null,null,null,null,null,null,null,null,null,null,null,null,null,null,null,null,null,null,null,null,null,null,null,null,null,"    {s2c_SE:}"]
[null,null,null,null,null,null,null,null,null,null,null,null,"           G46.9.0 - Non-specialised wholesale trade    {s2c_NC:G4690}",null,null,null,null,null,null,null,null,null,null,null,null,null,null,null,null,null,null,null,null,null,null,null,null,null,null,null,null,null,"    {s2c_SE:}"]
[null,null,null,null,null,null,null,null,null,null,null,null,"     G47 - Retail trade, except of motor vehicles and motorcycles    {s2c_NC:G47}",null,null,null,null,null,null,null,null,null,null,null,null,null,null,null,null,null,null,null,null,null,null,null,null,null,null,null,null,null,"    {s2c_SE:}"]
[null,null,null,null,null,null,null,null,null,null,null,null,"        G47.1 - Retail sale in non-specialised stores    {s2c_NC:G471}",null,null,null,null,null,null,null,null,null,null,null,null,null,null,null,null,null,null,null,null,null,null,null,null,null,null,null,null,null,"    {s2c_SE:}"]
[null,null,null,null,null,null,null,null,null,null,null,null,"           G47.1.1 - Retail sale in non-specialised stores with food, beverages or tobacco predominating    {s2c_NC:G4711}",null,null,null,null,null,null,null,null,null,null,null,null,null,null,null,null,null,null,null,null,null,null,null,null,null,null,null,null,null,"    {s2c_SE:}"]
[null,null,null,null,null,null,null,null,null,null,null,null,"           G47.1.9 - Other retail sale in non-specialised stores    {s2c_NC:G4719}",null,null,null,null,null,null,null,null,null,null,null,null,null,null,null,null,null,null,null,null,null,null,null,null,null,null,null,null,null,"    {s2c_SE:}"]
[null,null,null,null,null,null,null,null,null,null,null,null,"        G47.2 - Retail sale of food, beverages and tobacco in specialised stores    {s2c_NC:G472}",null,null,null,null,null,null,null,null,null,null,null,null,null,null,null,null,null,null,null,null,null,null,null,null,null,null,null,null,null,"    {s2c_SE:}"]
[null,null,null,null,null,null,null,null,null,null,null,null,"           G47.2.1 - Retail sale of fruit and vegetables in specialised stores    {s2c_NC:G4721}",null,null,null,null,null,null,null,null,null,null,null,null,null,null,null,null,null,null,null,null,null,null,null,null,null,null,null,null,null,"    {s2c_SE:}"]
[null,null,null,null,null,null,null,null,null,null,null,null,"           G47.2.2 - Retail sale of meat and meat products in specialised stores    {s2c_NC:G4722}",null,null,null,null,null,null,null,null,null,null,null,null,null,null,null,null,null,null,null,null,null,null,null,null,null,null,null,null,null,"    {s2c_SE:}"]
[null,null,null,null,null,null,null,null,null,null,null,null,"           G47.2.3 - Retail sale of fish, crustaceans and molluscs in specialised stores    {s2c_NC:G4723}",null,null,null,null,null,null,null,null,null,null,null,null,null,null,null,null,null,null,null,null,null,null,null,null,null,null,null,null,null,"    {s2c_SE:}"]
[null,null,null,null,null,null,null,null,null,null,null,null,"           G47.2.4 - Retail sale of bread, cakes, flour confectionery and sugar confectionery in specialised stores    {s2c_NC:G4724}",null,null,null,null,null,null,null,null,null,null,null,null,null,null,null,null,null,null,null,null,null,null,null,null,null,null,null,null,null,"    {s2c_SE:}"]
[null,null,null,null,null,null,null,null,null,null,null,null,"           G47.2.5 - Retail sale of beverages in specialised stores    {s2c_NC:G4725}",null,null,null,null,null,null,null,null,null,null,null,null,null,null,null,null,null,null,null,null,null,null,null,null,null,null,null,null,null,"    {s2c_SE:}"]
[null,null,null,null,null,null,null,null,null,null,null,null,"           G47.2.6 - Retail sale of tobacco products in specialised stores    {s2c_NC:G4726}",null,null,null,null,null,null,null,null,null,null,null,null,null,null,null,null,null,null,null,null,null,null,null,null,null,null,null,null,null,"    {s2c_SE:}"]
[null,null,null,null,null,null,null,null,null,null,null,null,"           G47.2.9 - Other retail sale of food in specialised stores    {s2c_NC:G4729}",null,null,null,null,null,null,null,null,null,null,null,null,null,null,null,null,null,null,null,null,null,null,null,null,null,null,null,null,null,"    {s2c_SE:}"]
[null,null,null,null,null,null,null,null,null,null,null,null,"        G47.3 - Retail sale of automotive fuel in specialised stores    {s2c_NC:G473}",null,null,null,null,null,null,null,null,null,null,null,null,null,null,null,null,null,null,null,null,null,null,null,null,null,null,null,null,null,"    {s2c_SE:}"]
[null,null,null,null,null,null,null,null,null,null,null,null,"           G47.3.0 - Retail sale of automotive fuel in specialised stores    {s2c_NC:G4730}",null,null,null,null,null,null,null,null,null,null,null,null,null,null,null,null,null,null,null,null,null,null,null,null,null,null,null,null,null,"    {s2c_SE:}"]
[null,null,null,null,null,null,null,null,null,null,null,null,"        G47.4 - Retail sale of information and communication equipment in specialised stores    {s2c_NC:G474}",null,null,null,null,null,null,null,null,null,null,null,null,null,null,null,null,null,null,null,null,null,null,null,null,null,null,null,null,null,"    {s2c_SE:}"]
[null,null,null,null,null,null,null,null,null,null,null,null,"           G47.4.1 - Retail sale of computers, peripheral units and software in specialised stores    {s2c_NC:G4741}",null,null,null,null,null,null,null,null,null,null,null,null,null,null,null,null,null,null,null,null,null,null,null,null,null,null,null,null,null,"    {s2c_SE:}"]
[null,null,null,null,null,null,null,null,null,null,null,null,"           G47.4.2 - Retail sale of telecommunications equipment in specialised stores    {s2c_NC:G4742}",null,null,null,null,null,null,null,null,null,null,null,null,null,null,null,null,null,null,null,null,null,null,null,null,null,null,null,null,null,"    {s2c_SE:}"]
[null,null,null,null,null,null,null,null,null,null,null,null,"           G47.4.3 - Retail sale of audio and video equipment in specialised stores    {s2c_NC:G4743}",null,null,null,null,null,null,null,null,null,null,null,null,null,null,null,null,null,null,null,null,null,null,null,null,null,null,null,null,null,"    {s2c_SE:}"]
[null,null,null,null,null,null,null,null,null,null,null,null,"        G47.5 - Retail sale of other household equipment in specialised stores    {s2c_NC:G475}",null,null,null,null,null,null,null,null,null,null,null,null,null,null,null,null,null,null,null,null,null,null,null,null,null,null,null,null,null,"    {s2c_SE:}"]
[null,null,null,null,null,null,null,null,null,null,null,null,"           G47.5.1 - Retail sale of textiles in specialised stores    {s2c_NC:G4751}",null,null,null,null,null,null,null,null,null,null,null,null,null,null,null,null,null,null,null,null,null,null,null,null,null,null,null,null,null,"    {s2c_SE:}"]
[null,null,null,null,null,null,null,null,null,null,null,null,"           G47.5.2 - Retail sale of hardware, paints and glass in specialised stores    {s2c_NC:G4752}",null,null,null,null,null,null,null,null,null,null,null,null,null,null,null,null,null,null,null,null,null,null,null,null,null,null,null,null,null,"    {s2c_SE:}"]
[null,null,null,null,null,null,null,null,null,null,null,null,"           G47.5.3 - Retail sale of carpets, rugs, wall and floor coverings in specialised stores    {s2c_NC:G4753}",null,null,null,null,null,null,null,null,null,null,null,null,null,null,null,null,null,null,null,null,null,null,null,null,null,null,null,null,null,"    {s2c_SE:}"]
[null,null,null,null,null,null,null,null,null,null,null,null,"           G47.5.4 - Retail sale of electrical household appliances in specialised stores    {s2c_NC:G4754}",null,null,null,null,null,null,null,null,null,null,null,null,null,null,null,null,null,null,null,null,null,null,null,null,null,null,null,null,null,"    {s2c_SE:}"]
[null,null,null,null,null,null,null,null,null,null,null,null,"           G47.5.9 - Retail sale of furniture, lighting equipment and other household articles in specialised stores    {s2c_NC:G4759}",null,null,null,null,null,null,null,null,null,null,null,null,null,null,null,null,null,null,null,null,null,null,null,null,null,null,null,null,null,"    {s2c_SE:}"]
[null,null,null,null,null,null,null,null,null,null,null,null,"        G47.6 - Retail sale of cultural and recreation goods in specialised stores    {s2c_NC:G476}",null,null,null,null,null,null,null,null,null,null,null,null,null,null,null,null,null,null,null,null,null,null,null,null,null,null,null,null,null,"    {s2c_SE:}"]
[null,null,null,null,null,null,null,null,null,null,null,null,"           G47.6.1 - Retail sale of books in specialised stores    {s2c_NC:G4761}",null,null,null,null,null,null,null,null,null,null,null,null,null,null,null,null,null,null,null,null,null,null,null,null,null,null,null,null,null,"    {s2c_SE:}"]
[null,null,null,null,null,null,null,null,null,null,null,null,"           G47.6.2 - Retail sale of newspapers and stationery in specialised stores    {s2c_NC:G4762}",null,null,null,null,null,null,null,null,null,null,null,null,null,null,null,null,null,null,null,null,null,null,null,null,null,null,null,null,null,"    {s2c_SE:}"]
[null,null,null,null,null,null,null,null,null,null,null,null,"           G47.6.3 - Retail sale of music and video recordings in specialised stores    {s2c_NC:G4763}",null,null,null,null,null,null,null,null,null,null,null,null,null,null,null,null,null,null,null,null,null,null,null,null,null,null,null,null,null,"    {s2c_SE:}"]
[null,null,null,null,null,null,null,null,null,null,null,null,"           G47.6.4 - Retail sale of sporting equipment in specialised stores    {s2c_NC:G4764}",null,null,null,null,null,null,null,null,null,null,null,null,null,null,null,null,null,null,null,null,null,null,null,null,null,null,null,null,null,"    {s2c_SE:}"]
[null,null,null,null,null,null,null,null,null,null,null,null,"           G47.6.5 - Retail sale of games and toys in specialised stores    {s2c_NC:G4765}",null,null,null,null,null,null,null,null,null,null,null,null,null,null,null,null,null,null,null,null,null,null,null,null,null,null,null,null,null,"    {s2c_SE:}"]
[null,null,null,null,null,null,null,null,null,null,null,null,"        G47.7 - Retail sale of other goods in specialised stores    {s2c_NC:G477}",null,null,null,null,null,null,null,null,null,null,null,null,null,null,null,null,null,null,null,null,null,null,null,null,null,null,null,null,null,"    {s2c_SE:}"]
[null,null,null,null,null,null,null,null,null,null,null,null,"           G47.7.1 - Retail sale of clothing in specialised stores    {s2c_NC:G4771}",null,null,null,null,null,null,null,null,null,null,null,null,null,null,null,null,null,null,null,null,null,null,null,null,null,null,null,null,null,"    {s2c_SE:}"]
[null,null,null,null,null,null,null,null,null,null,null,null,"           G47.7.2 - Retail sale of footwear and leather goods in specialised stores    {s2c_NC:G4772}",null,null,null,null,null,null,null,null,null,null,null,null,null,null,null,null,null,null,null,null,null,null,null,null,null,null,null,null,null,"    {s2c_SE:}"]
[null,null,null,null,null,null,null,null,null,null,null,null,"           G47.7.3 - Dispensing chemist in specialised stores    {s2c_NC:G4773}",null,null,null,null,null,null,null,null,null,null,null,null,null,null,null,null,null,null,null,null,null,null,null,null,null,null,null,null,null,"    {s2c_SE:}"]
[null,null,null,null,null,null,null,null,null,null,null,null,"           G47.7.4 - Retail sale of medical and orthopaedic goods in specialised stores    {s2c_NC:G4774}",null,null,null,null,null,null,null,null,null,null,null,null,null,null,null,null,null,null,null,null,null,null,null,null,null,null,null,null,null,"    {s2c_SE:}"]
[null,null,null,null,null,null,null,null,null,null,null,null,"           G47.7.5 - Retail sale of cosmetic and toilet articles in specialised stores    {s2c_NC:G4775}",null,null,null,null,null,null,null,null,null,null,null,null,null,null,null,null,null,null,null,null,null,null,null,null,null,null,null,null,null,"    {s2c_SE:}"]
[null,null,null,null,null,null,null,null,null,null,null,null,"           G47.7.6 - Retail sale of flowers, plants, seeds, fertilisers, pet animals and pet food in specialised stores    {s2c_NC:G4776}",null,null,null,null,null,null,null,null,null,null,null,null,null,null,null,null,null,null,null,null,null,null,null,null,null,null,null,null,null,"    {s2c_SE:}"]
[null,null,null,null,null,null,null,null,null,null,null,null,"           G47.7.7 - Retail sale of watches and jewellery in specialised stores    {s2c_NC:G4777}",null,null,null,null,null,null,null,null,null,null,null,null,null,null,null,null,null,null,null,null,null,null,null,null,null,null,null,null,null,"    {s2c_SE:}"]
[null,null,null,null,null,null,null,null,null,null,null,null,"           G47.7.8 - Other retail sale of new goods in specialised stores    {s2c_NC:G4778}",null,null,null,null,null,null,null,null,null,null,null,null,null,null,null,null,null,null,null,null,null,null,null,null,null,null,null,null,null,"    {s2c_SE:}"]
[null,null,null,null,null,null,null,null,null,null,null,null,"           G47.7.9 - Retail sale of second-hand goods in stores    {s2c_NC:G4779}",null,null,null,null,null,null,null,null,null,null,null,null,null,null,null,null,null,null,null,null,null,null,null,null,null,null,null,null,null,"    {s2c_SE:}"]
[null,null,null,null,null,null,null,null,null,null,null,null,"        G47.8 - Retail sale via stalls and markets    {s2c_NC:G478}",null,null,null,null,null,null,null,null,null,null,null,null,null,null,null,null,null,null,null,null,null,null,null,null,null,null,null,null,null,"    {s2c_SE:}"]
[null,null,null,null,null,null,null,null,null,null,null,null,"           G47.8.1 - Retail sale via stalls and markets of food, beverages and tobacco products    {s2c_NC:G4781}",null,null,null,null,null,null,null,null,null,null,null,null,null,null,null,null,null,null,null,null,null,null,null,null,null,null,null,null,null,"    {s2c_SE:}"]
[null,null,null,null,null,null,null,null,null,null,null,null,"           G47.8.2 - Retail sale via stalls and markets of textiles, clothing and footwear    {s2c_NC:G4782}",null,null,null,null,null,null,null,null,null,null,null,null,null,null,null,null,null,null,null,null,null,null,null,null,null,null,null,null,null,"    {s2c_SE:}"]
[null,null,null,null,null,null,null,null,null,null,null,null,"           G47.8.9 - Retail sale via stalls and markets of other goods    {s2c_NC:G4789}",null,null,null,null,null,null,null,null,null,null,null,null,null,null,null,null,null,null,null,null,null,null,null,null,null,null,null,null,null,"    {s2c_SE:}"]
[null,null,null,null,null,null,null,null,null,null,null,null,"        G47.9 - Retail trade not in stores, stalls or markets    {s2c_NC:G479}",null,null,null,null,null,null,null,null,null,null,null,null,null,null,null,null,null,null,null,null,null,null,null,null,null,null,null,null,null,"    {s2c_SE:}"]
[null,null,null,null,null,null,null,null,null,null,null,null,"           G47.9.1 - Retail sale via mail order houses or via Internet    {s2c_NC:G4791}",null,null,null,null,null,null,null,null,null,null,null,null,null,null,null,null,null,null,null,null,null,null,null,null,null,null,null,null,null,"    {s2c_SE:}"]
[null,null,null,null,null,null,null,null,null,null,null,null,"           G47.9.9 - Other retail sale not in stores, stalls or markets    {s2c_NC:G4799}",null,null,null,null,null,null,null,null,null,null,null,null,null,null,null,null,null,null,null,null,null,null,null,null,null,null,null,null,null,"    {s2c_SE:}"]
[null,null,null,null,null,null,null,null,null,null,null,null,"  H - Transporting and storage    {s2c_NC:H}",null,null,null,null,null,null,null,null,null,null,null,null,null,null,null,null,null,null,null,null,null,null,null,null,null,null,null,null,null,"    {s2c_SE:}"]
[null,null,null,null,null,null,null,null,null,null,null,null,"     H49 - Land transport and transport via pipelines    {s2c_NC:H49}",null,null,null,null,null,null,null,null,null,null,null,null,null,null,null,null,null,null,null,null,null,null,null,null,null,null,null,null,null,"    {s2c_SE:}"]
[null,null,null,null,null,null,null,null,null,null,null,null,"        H49.1 - Passenger rail transport, interurban    {s2c_NC:H491}",null,null,null,null,null,null,null,null,null,null,null,null,null,null,null,null,null,null,null,null,null,null,null,null,null,null,null,null,null,"    {s2c_SE:}"]
[null,null,null,null,null,null,null,null,null,null,null,null,"           H49.1.0 - Passenger rail transport, interurban    {s2c_NC:H4910}",null,null,null,null,null,null,null,null,null,null,null,null,null,null,null,null,null,null,null,null,null,null,null,null,null,null,null,null,null,"    {s2c_SE:}"]
[null,null,null,null,null,null,null,null,null,null,null,null,"        H49.2 - Freight rail transport    {s2c_NC:H492}",null,null,null,null,null,null,null,null,null,null,null,null,null,null,null,null,null,null,null,null,null,null,null,null,null,null,null,null,null,"    {s2c_SE:}"]
[null,null,null,null,null,null,null,null,null,null,null,null,"           H49.2.0 - Freight rail transport    {s2c_NC:H4920}",null,null,null,null,null,null,null,null,null,null,null,null,null,null,null,null,null,null,null,null,null,null,null,null,null,null,null,null,null,"    {s2c_SE:}"]
[null,null,null,null,null,null,null,null,null,null,null,null,"        H49.3 - Other passenger land transport    {s2c_NC:H493}",null,null,null,null,null,null,null,null,null,null,null,null,null,null,null,null,null,null,null,null,null,null,null,null,null,null,null,null,null,"    {s2c_SE:}"]
[null,null,null,null,null,null,null,null,null,null,null,null,"           H49.3.1 - Urban and suburban passenger land transport    {s2c_NC:H4931}",null,null,null,null,null,null,null,null,null,null,null,null,null,null,null,null,null,null,null,null,null,null,null,null,null,null,null,null,null,"    {s2c_SE:}"]
[null,null,null,null,null,null,null,null,null,null,null,null,"           H49.3.2 - Taxi operation    {s2c_NC:H4932}",null,null,null,null,null,null,null,null,null,null,null,null,null,null,null,null,null,null,null,null,null,null,null,null,null,null,null,null,null,"    {s2c_SE:}"]
[null,null,null,null,null,null,null,null,null,null,null,null,"           H49.3.9 - Other passenger land transport n.e.c.    {s2c_NC:H4939}",null,null,null,null,null,null,null,null,null,null,null,null,null,null,null,null,null,null,null,null,null,null,null,null,null,null,null,null,null,"    {s2c_SE:}"]
[null,null,null,null,null,null,null,null,null,null,null,null,"        H49.4 - Freight transport by road and removal services    {s2c_NC:H494}",null,null,null,null,null,null,null,null,null,null,null,null,null,null,null,null,null,null,null,null,null,null,null,null,null,null,null,null,null,"    {s2c_SE:}"]
[null,null,null,null,null,null,null,null,null,null,null,null,"           H49.4.1 - Freight transport by road    {s2c_NC:H4941}",null,null,null,null,null,null,null,null,null,null,null,null,null,null,null,null,null,null,null,null,null,null,null,null,null,null,null,null,null,"    {s2c_SE:}"]
[null,null,null,null,null,null,null,null,null,null,null,null,"           H49.4.2 - Removal services    {s2c_NC:H4942}",null,null,null,null,null,null,null,null,null,null,null,null,null,null,null,null,null,null,null,null,null,null,null,null,null,null,null,null,null,"    {s2c_SE:}"]
[null,null,null,null,null,null,null,null,null,null,null,null,"        H49.5 - Transport via pipeline    {s2c_NC:H495}",null,null,null,null,null,null,null,null,null,null,null,null,null,null,null,null,null,null,null,null,null,null,null,null,null,null,null,null,null,"    {s2c_SE:}"]
[null,null,null,null,null,null,null,null,null,null,null,null,"           H49.5.0 - Transport via pipeline    {s2c_NC:H4950}",null,null,null,null,null,null,null,null,null,null,null,null,null,null,null,null,null,null,null,null,null,null,null,null,null,null,null,null,null,"    {s2c_SE:}"]
[null,null,null,null,null,null,null,null,null,null,null,null,"     H50 - Water transport    {s2c_NC:H50}",null,null,null,null,null,null,null,null,null,null,null,null,null,null,null,null,null,null,null,null,null,null,null,null,null,null,null,null,null,"    {s2c_SE:}"]
[null,null,null,null,null,null,null,null,null,null,null,null,"        H50.1 - Sea and coastal passenger water transport    {s2c_NC:H501}",null,null,null,null,null,null,null,null,null,null,null,null,null,null,null,null,null,null,null,null,null,null,null,null,null,null,null,null,null,"    {s2c_SE:}"]
[null,null,null,null,null,null,null,null,null,null,null,null,"           H50.1.0 - Sea and coastal passenger water transport    {s2c_NC:H5010}",null,null,null,null,null,null,null,null,null,null,null,null,null,null,null,null,null,null,null,null,null,null,null,null,null,null,null,null,null,"    {s2c_SE:}"]
[null,null,null,null,null,null,null,null,null,null,null,null,"        H50.2 - Sea and coastal freight water transport    {s2c_NC:H502}",null,null,null,null,null,null,null,null,null,null,null,null,null,null,null,null,null,null,null,null,null,null,null,null,null,null,null,null,null,"    {s2c_SE:}"]
[null,null,null,null,null,null,null,null,null,null,null,null,"           H50.2.0 - Sea and coastal freight water transport    {s2c_NC:H5020}",null,null,null,null,null,null,null,null,null,null,null,null,null,null,null,null,null,null,null,null,null,null,null,null,null,null,null,null,null,"    {s2c_SE:}"]
[null,null,null,null,null,null,null,null,null,null,null,null,"        H50.3 - Inland passenger water transport    {s2c_NC:H503}",null,null,null,null,null,null,null,null,null,null,null,null,null,null,null,null,null,null,null,null,null,null,null,null,null,null,null,null,null,"    {s2c_SE:}"]
[null,null,null,null,null,null,null,null,null,null,null,null,"           H50.3.0 - Inland passenger water transport    {s2c_NC:H5030}",null,null,null,null,null,null,null,null,null,null,null,null,null,null,null,null,null,null,null,null,null,null,null,null,null,null,null,null,null,"    {s2c_SE:}"]
[null,null,null,null,null,null,null,null,null,null,null,null,"        H50.4 - Inland freight water transport    {s2c_NC:H504}",null,null,null,null,null,null,null,null,null,null,null,null,null,null,null,null,null,null,null,null,null,null,null,null,null,null,null,null,null,"    {s2c_SE:}"]
[null,null,null,null,null,null,null,null,null,null,null,null,"           H50.4.0 - Inland freight water transport    {s2c_NC:H5040}",null,null,null,null,null,null,null,null,null,null,null,null,null,null,null,null,null,null,null,null,null,null,null,null,null,null,null,null,null,"    {s2c_SE:}"]
[null,null,null,null,null,null,null,null,null,null,null,null,"     H51 - Air transport    {s2c_NC:H51}",null,null,null,null,null,null,null,null,null,null,null,null,null,null,null,null,null,null,null,null,null,null,null,null,null,null,null,null,null,"    {s2c_SE:}"]
[null,null,null,null,null,null,null,null,null,null,null,null,"        H51.1 - Passenger air transport    {s2c_NC:H511}",null,null,null,null,null,null,null,null,null,null,null,null,null,null,null,null,null,null,null,null,null,null,null,null,null,null,null,null,null,"    {s2c_SE:}"]
[null,null,null,null,null,null,null,null,null,null,null,null,"           H51.1.0 - Passenger air transport    {s2c_NC:H5110}",null,null,null,null,null,null,null,null,null,null,null,null,null,null,null,null,null,null,null,null,null,null,null,null,null,null,null,null,null,"    {s2c_SE:}"]
[null,null,null,null,null,null,null,null,null,null,null,null,"        H51.2 - Freight air transport and space transport    {s2c_NC:H512}",null,null,null,null,null,null,null,null,null,null,null,null,null,null,null,null,null,null,null,null,null,null,null,null,null,null,null,null,null,"    {s2c_SE:}"]
[null,null,null,null,null,null,null,null,null,null,null,null,"           H51.2.1 - Freight air transport    {s2c_NC:H5121}",null,null,null,null,null,null,null,null,null,null,null,null,null,null,null,null,null,null,null,null,null,null,null,null,null,null,null,null,null,"    {s2c_SE:}"]
[null,null,null,null,null,null,null,null,null,null,null,null,"           H51.2.2 - Space transport    {s2c_NC:H5122}",null,null,null,null,null,null,null,null,null,null,null,null,null,null,null,null,null,null,null,null,null,null,null,null,null,null,null,null,null,"    {s2c_SE:}"]
[null,null,null,null,null,null,null,null,null,null,null,null,"     H52 - Warehousing and support activities for transportation    {s2c_NC:H52}",null,null,null,null,null,null,null,null,null,null,null,null,null,null,null,null,null,null,null,null,null,null,null,null,null,null,null,null,null,"    {s2c_SE:}"]
[null,null,null,null,null,null,null,null,null,null,null,null,"        H52.1 - Warehousing and storage    {s2c_NC:H521}",null,null,null,null,null,null,null,null,null,null,null,null,null,null,null,null,null,null,null,null,null,null,null,null,null,null,null,null,null,"    {s2c_SE:}"]
[null,null,null,null,null,null,null,null,null,null,null,null,"           H52.1.0 - Warehousing and storage    {s2c_NC:H5210}",null,null,null,null,null,null,null,null,null,null,null,null,null,null,null,null,null,null,null,null,null,null,null,null,null,null,null,null,null,"    {s2c_SE:}"]
[null,null,null,null,null,null,null,null,null,null,null,null,"        H52.2 - Support activities for transportation    {s2c_NC:H522}",null,null,null,null,null,null,null,null,null,null,null,null,null,null,null,null,null,null,null,null,null,null,null,null,null,null,null,null,null,"    {s2c_SE:}"]
[null,null,null,null,null,null,null,null,null,null,null,null,"           H52.2.1 - Service activities incidental to land transportation    {s2c_NC:H5221}",null,null,null,null,null,null,null,null,null,null,null,null,null,null,null,null,null,null,null,null,null,null,null,null,null,null,null,null,null,"    {s2c_SE:}"]
[null,null,null,null,null,null,null,null,null,null,null,null,"           H52.2.2 - Service activities incidental to water transportation    {s2c_NC:H5222}",null,null,null,null,null,null,null,null,null,null,null,null,null,null,null,null,null,null,null,null,null,null,null,null,null,null,null,null,null,"    {s2c_SE:}"]
[null,null,null,null,null,null,null,null,null,null,null,null,"           H52.2.3 - Service activities incidental to air transportation    {s2c_NC:H5223}",null,null,null,null,null,null,null,null,null,null,null,null,null,null,null,null,null,null,null,null,null,null,null,null,null,null,null,null,null,"    {s2c_SE:}"]
[null,null,null,null,null,null,null,null,null,null,null,null,"           H52.2.4 - Cargo handling    {s2c_NC:H5224}",null,null,null,null,null,null,null,null,null,null,null,null,null,null,null,null,null,null,null,null,null,null,null,null,null,null,null,null,null,"    {s2c_SE:}"]
[null,null,null,null,null,null,null,null,null,null,null,null,"           H52.2.9 - Other transportation support activities    {s2c_NC:H5229}",null,null,null,null,null,null,null,null,null,null,null,null,null,null,null,null,null,null,null,null,null,null,null,null,null,null,null,null,null,"    {s2c_SE:}"]
[null,null,null,null,null,null,null,null,null,null,null,null,"     H53 - Postal and courier activities    {s2c_NC:H53}",null,null,null,null,null,null,null,null,null,null,null,null,null,null,null,null,null,null,null,null,null,null,null,null,null,null,null,null,null,"    {s2c_SE:}"]
[null,null,null,null,null,null,null,null,null,null,null,null,"        H53.1 - Postal activities under universal service obligation    {s2c_NC:H531}",null,null,null,null,null,null,null,null,null,null,null,null,null,null,null,null,null,null,null,null,null,null,null,null,null,null,null,null,null,"    {s2c_SE:}"]
[null,null,null,null,null,null,null,null,null,null,null,null,"           H53.1.0 - Postal activities under universal service obligation    {s2c_NC:H5310}",null,null,null,null,null,null,null,null,null,null,null,null,null,null,null,null,null,null,null,null,null,null,null,null,null,null,null,null,null,"    {s2c_SE:}"]
[null,null,null,null,null,null,null,null,null,null,null,null,"        H53.2 - Other postal and courier activities    {s2c_NC:H532}",null,null,null,null,null,null,null,null,null,null,null,null,null,null,null,null,null,null,null,null,null,null,null,null,null,null,null,null,null,"    {s2c_SE:}"]
[null,null,null,null,null,null,null,null,null,null,null,null,"           H53.2.0 - Other postal and courier activities    {s2c_NC:H5320}",null,null,null,null,null,null,null,null,null,null,null,null,null,null,null,null,null,null,null,null,null,null,null,null,null,null,null,null,null,"    {s2c_SE:}"]
[null,null,null,null,null,null,null,null,null,null,null,null,"  I - Accommodation and food service activities    {s2c_NC:I}",null,null,null,null,null,null,null,null,null,null,null,null,null,null,null,null,null,null,null,null,null,null,null,null,null,null,null,null,null,"    {s2c_SE:}"]
[null,null,null,null,null,null,null,null,null,null,null,null,"     I55 - Accommodation    {s2c_NC:I55}",null,null,null,null,null,null,null,null,null,null,null,null,null,null,null,null,null,null,null,null,null,null,null,null,null,null,null,null,null,"    {s2c_SE:}"]
[null,null,null,null,null,null,null,null,null,null,null,null,"        I55.1 - Hotels and similar accommodation    {s2c_NC:I551}",null,null,null,null,null,null,null,null,null,null,null,null,null,null,null,null,null,null,null,null,null,null,null,null,null,null,null,null,null,"    {s2c_SE:}"]
[null,null,null,null,null,null,null,null,null,null,null,null,"           I55.1.0 - Hotels and similar accommodation    {s2c_NC:I5510}",null,null,null,null,null,null,null,null,null,null,null,null,null,null,null,null,null,null,null,null,null,null,null,null,null,null,null,null,null,"    {s2c_SE:}"]
[null,null,null,null,null,null,null,null,null,null,null,null,"        I55.2 - Holiday and other short-stay accommodation    {s2c_NC:I552}",null,null,null,null,null,null,null,null,null,null,null,null,null,null,null,null,null,null,null,null,null,null,null,null,null,null,null,null,null,"    {s2c_SE:}"]
[null,null,null,null,null,null,null,null,null,null,null,null,"           I55.2.0 - Holiday and other short-stay accommodation    {s2c_NC:I5520}",null,null,null,null,null,null,null,null,null,null,null,null,null,null,null,null,null,null,null,null,null,null,null,null,null,null,null,null,null,"    {s2c_SE:}"]
[null,null,null,null,null,null,null,null,null,null,null,null,"        I55.3 - Camping grounds, recreational vehicle parks and trailer parks    {s2c_NC:I553}",null,null,null,null,null,null,null,null,null,null,null,null,null,null,null,null,null,null,null,null,null,null,null,null,null,null,null,null,null,"    {s2c_SE:}"]
[null,null,null,null,null,null,null,null,null,null,null,null,"           I55.3.0 - Camping grounds, recreational vehicle parks and trailer parks    {s2c_NC:I5530}",null,null,null,null,null,null,null,null,null,null,null,null,null,null,null,null,null,null,null,null,null,null,null,null,null,null,null,null,null,"    {s2c_SE:}"]
[null,null,null,null,null,null,null,null,null,null,null,null,"        I55.9 - Other accommodation    {s2c_NC:I559}",null,null,null,null,null,null,null,null,null,null,null,null,null,null,null,null,null,null,null,null,null,null,null,null,null,null,null,null,null,"    {s2c_SE:}"]
[null,null,null,null,null,null,null,null,null,null,null,null,"           I55.9.0 - Other accommodation    {s2c_NC:I5590}",null,null,null,null,null,null,null,null,null,null,null,null,null,null,null,null,null,null,null,null,null,null,null,null,null,null,null,null,null,"    {s2c_SE:}"]
[null,null,null,null,null,null,null,null,null,null,null,null,"     I56 - Food and beverage service activities    {s2c_NC:I56}",null,null,null,null,null,null,null,null,null,null,null,null,null,null,null,null,null,null,null,null,null,null,null,null,null,null,null,null,null,"    {s2c_SE:}"]
[null,null,null,null,null,null,null,null,null,null,null,null,"        I56.1 - Restaurants and mobile food service activities    {s2c_NC:I561}",null,null,null,null,null,null,null,null,null,null,null,null,null,null,null,null,null,null,null,null,null,null,null,null,null,null,null,null,null,"    {s2c_SE:}"]
[null,null,null,null,null,null,null,null,null,null,null,null,"           I56.1.0 - Restaurants and mobile food service activities    {s2c_NC:I5610}",null,null,null,null,null,null,null,null,null,null,null,null,null,null,null,null,null,null,null,null,null,null,null,null,null,null,null,null,null,"    {s2c_SE:}"]
[null,null,null,null,null,null,null,null,null,null,null,null,"        I56.2 - Event catering and other food service activities    {s2c_NC:I562}",null,null,null,null,null,null,null,null,null,null,null,null,null,null,null,null,null,null,null,null,null,null,null,null,null,null,null,null,null,"    {s2c_SE:}"]
[null,null,null,null,null,null,null,null,null,null,null,null,"           I56.2.1 - Event catering activities    {s2c_NC:I5621}",null,null,null,null,null,null,null,null,null,null,null,null,null,null,null,null,null,null,null,null,null,null,null,null,null,null,null,null,null,"    {s2c_SE:}"]
[null,null,null,null,null,null,null,null,null,null,null,null,"           I56.2.9 - Other food service activities    {s2c_NC:I5629}",null,null,null,null,null,null,null,null,null,null,null,null,null,null,null,null,null,null,null,null,null,null,null,null,null,null,null,null,null,"    {s2c_SE:}"]
[null,null,null,null,null,null,null,null,null,null,null,null,"        I56.3 - Beverage serving activities    {s2c_NC:I563}",null,null,null,null,null,null,null,null,null,null,null,null,null,null,null,null,null,null,null,null,null,null,null,null,null,null,null,null,null,"    {s2c_SE:}"]
[null,null,null,null,null,null,null,null,null,null,null,null,"           I56.3.0 - Beverage serving activities    {s2c_NC:I5630}",null,null,null,null,null,null,null,null,null,null,null,null,null,null,null,null,null,null,null,null,null,null,null,null,null,null,null,null,null,"    {s2c_SE:}"]
[null,null,null,null,null,null,null,null,null,null,null,null,"  J - Information and communication    {s2c_NC:J}",null,null,null,null,null,null,null,null,null,null,null,null,null,null,null,null,null,null,null,null,null,null,null,null,null,null,null,null,null,"    {s2c_SE:}"]
[null,null,null,null,null,null,null,null,null,null,null,null,"     J58 - Publishing activities    {s2c_NC:J58}",null,null,null,null,null,null,null,null,null,null,null,null,null,null,null,null,null,null,null,null,null,null,null,null,null,null,null,null,null,"    {s2c_SE:}"]
[null,null,null,null,null,null,null,null,null,null,null,null,"        J58.1 - Publishing of books, periodicals and other publishing activities    {s2c_NC:J581}",null,null,null,null,null,null,null,null,null,null,null,null,null,null,null,null,null,null,null,null,null,null,null,null,null,null,null,null,null,"    {s2c_SE:}"]
[null,null,null,null,null,null,null,null,null,null,null,null,"        J58.1.1 - Book publishing    {s2c_NC:J5811}",null,null,null,null,null,null,null,null,null,null,null,null,null,null,null,null,null,null,null,null,null,null,null,null,null,null,null,null,null,"    {s2c_SE:}"]
[null,null,null,null,null,null,null,null,null,null,null,null,"        J58.1.2 - Publishing of directories and mailing lists    {s2c_NC:J5812}",null,null,null,null,null,null,null,null,null,null,null,null,null,null,null,null,null,null,null,null,null,null,null,null,null,null,null,null,null,"    {s2c_SE:}"]
[null,null,null,null,null,null,null,null,null,null,null,null,"        J58.1.3 - Publishing of newspapers    {s2c_NC:J5813}",null,null,null,null,null,null,null,null,null,null,null,null,null,null,null,null,null,null,null,null,null,null,null,null,null,null,null,null,null,"    {s2c_SE:}"]
[null,null,null,null,null,null,null,null,null,null,null,null,"        J58.1.4 - Publishing of journals and periodicals    {s2c_NC:J5814}",null,null,null,null,null,null,null,null,null,null,null,null,null,null,null,null,null,null,null,null,null,null,null,null,null,null,null,null,null,"    {s2c_SE:}"]
[null,null,null,null,null,null,null,null,null,null,null,null,"        J58.1.9 - Other publishing activities    {s2c_NC:J5819}",null,null,null,null,null,null,null,null,null,null,null,null,null,null,null,null,null,null,null,null,null,null,null,null,null,null,null,null,null,"    {s2c_SE:}"]
[null,null,null,null,null,null,null,null,null,null,null,null,"        J58.2 - Software publishing    {s2c_NC:J582}",null,null,null,null,null,null,null,null,null,null,null,null,null,null,null,null,null,null,null,null,null,null,null,null,null,null,null,null,null,"    {s2c_SE:}"]
[null,null,null,null,null,null,null,null,null,null,null,null,"        J58.2.1 - Publishing of computer games    {s2c_NC:J5821}",null,null,null,null,null,null,null,null,null,null,null,null,null,null,null,null,null,null,null,null,null,null,null,null,null,null,null,null,null,"    {s2c_SE:}"]
[null,null,null,null,null,null,null,null,null,null,null,null,"        J58.2.9 - Other software publishing    {s2c_NC:J5829}",null,null,null,null,null,null,null,null,null,null,null,null,null,null,null,null,null,null,null,null,null,null,null,null,null,null,null,null,null,"    {s2c_SE:}"]
[null,null,null,null,null,null,null,null,null,null,null,null,"     J59 - Motion picture, video and television programme production, sound recording and music publishing activities    {s2c_NC:J59}",null,null,null,null,null,null,null,null,null,null,null,null,null,null,null,null,null,null,null,null,null,null,null,null,null,null,null,null,null,"    {s2c_SE:}"]
[null,null,null,null,null,null,null,null,null,null,null,null,"        J59.1 - Motion picture, video and television programme activities    {s2c_NC:J591}",null,null,null,null,null,null,null,null,null,null,null,null,null,null,null,null,null,null,null,null,null,null,null,null,null,null,null,null,null,"    {s2c_SE:}"]
[null,null,null,null,null,null,null,null,null,null,null,null,"        J59.1.1 - Motion picture, video and television programme production activities    {s2c_NC:J5911}",null,null,null,null,null,null,null,null,null,null,null,null,null,null,null,null,null,null,null,null,null,null,null,null,null,null,null,null,null,"    {s2c_SE:}"]
[null,null,null,null,null,null,null,null,null,null,null,null,"        J59.1.2 - Motion picture, video and television programme post-production activities    {s2c_NC:J5912}",null,null,null,null,null,null,null,null,null,null,null,null,null,null,null,null,null,null,null,null,null,null,null,null,null,null,null,null,null,"    {s2c_SE:}"]
[null,null,null,null,null,null,null,null,null,null,null,null,"        J59.1.3 - Motion picture, video and television programme distribution activities    {s2c_NC:J5913}",null,null,null,null,null,null,null,null,null,null,null,null,null,null,null,null,null,null,null,null,null,null,null,null,null,null,null,null,null,"    {s2c_SE:}"]
[null,null,null,null,null,null,null,null,null,null,null,null,"        J59.1.4 - Motion picture projection activities    {s2c_NC:J5914}",null,null,null,null,null,null,null,null,null,null,null,null,null,null,null,null,null,null,null,null,null,null,null,null,null,null,null,null,null,"    {s2c_SE:}"]
[null,null,null,null,null,null,null,null,null,null,null,null,"     J59.2 - Sound recording and music publishing activities    {s2c_NC:J592}",null,null,null,null,null,null,null,null,null,null,null,null,null,null,null,null,null,null,null,null,null,null,null,null,null,null,null,null,null,"    {s2c_SE:}"]
[null,null,null,null,null,null,null,null,null,null,null,null,"        J59.2.0 - Sound recording and music publishing activities    {s2c_NC:J5920}",null,null,null,null,null,null,null,null,null,null,null,null,null,null,null,null,null,null,null,null,null,null,null,null,null,null,null,null,null,"    {s2c_SE:}"]
[null,null,null,null,null,null,null,null,null,null,null,null,"     J60 - Programming and broadcasting activities    {s2c_NC:J60}",null,null,null,null,null,null,null,null,null,null,null,null,null,null,null,null,null,null,null,null,null,null,null,null,null,null,null,null,null,"    {s2c_SE:}"]
[null,null,null,null,null,null,null,null,null,null,null,null,"        J60.1 - Radio broadcasting    {s2c_NC:J601}",null,null,null,null,null,null,null,null,null,null,null,null,null,null,null,null,null,null,null,null,null,null,null,null,null,null,null,null,null,"    {s2c_SE:}"]
[null,null,null,null,null,null,null,null,null,null,null,null,"           J60.1.0 - Radio broadcasting    {s2c_NC:J6010}",null,null,null,null,null,null,null,null,null,null,null,null,null,null,null,null,null,null,null,null,null,null,null,null,null,null,null,null,null,"    {s2c_SE:}"]
[null,null,null,null,null,null,null,null,null,null,null,null,"        J60.2 - Television programming and broadcasting activities    {s2c_NC:J602}",null,null,null,null,null,null,null,null,null,null,null,null,null,null,null,null,null,null,null,null,null,null,null,null,null,null,null,null,null,"    {s2c_SE:}"]
[null,null,null,null,null,null,null,null,null,null,null,null,"           J60.2.0 - Television programming and broadcasting activities    {s2c_NC:J6020}",null,null,null,null,null,null,null,null,null,null,null,null,null,null,null,null,null,null,null,null,null,null,null,null,null,null,null,null,null,"    {s2c_SE:}"]
[null,null,null,null,null,null,null,null,null,null,null,null,"     J61 - Telecommunications    {s2c_NC:J61}",null,null,null,null,null,null,null,null,null,null,null,null,null,null,null,null,null,null,null,null,null,null,null,null,null,null,null,null,null,"    {s2c_SE:}"]
[null,null,null,null,null,null,null,null,null,null,null,null,"        J61.1 - Wired telecommunications activities    {s2c_NC:J611}",null,null,null,null,null,null,null,null,null,null,null,null,null,null,null,null,null,null,null,null,null,null,null,null,null,null,null,null,null,"    {s2c_SE:}"]
[null,null,null,null,null,null,null,null,null,null,null,null,"           J61.1.0 - Wired telecommunications activities    {s2c_NC:J6110}",null,null,null,null,null,null,null,null,null,null,null,null,null,null,null,null,null,null,null,null,null,null,null,null,null,null,null,null,null,"    {s2c_SE:}"]
[null,null,null,null,null,null,null,null,null,null,null,null,"        J61.2 - Wireless telecommunications activities    {s2c_NC:J612}",null,null,null,null,null,null,null,null,null,null,null,null,null,null,null,null,null,null,null,null,null,null,null,null,null,null,null,null,null,"    {s2c_SE:}"]
[null,null,null,null,null,null,null,null,null,null,null,null,"           J61.2.0 - Wireless telecommunications activities    {s2c_NC:J6120}",null,null,null,null,null,null,null,null,null,null,null,null,null,null,null,null,null,null,null,null,null,null,null,null,null,null,null,null,null,"    {s2c_SE:}"]
[null,null,null,null,null,null,null,null,null,null,null,null,"        J61.3 - Satellite telecommunications activities    {s2c_NC:J613}",null,null,null,null,null,null,null,null,null,null,null,null,null,null,null,null,null,null,null,null,null,null,null,null,null,null,null,null,null,"    {s2c_SE:}"]
[null,null,null,null,null,null,null,null,null,null,null,null,"           J61.3.0 - Satellite telecommunications activities    {s2c_NC:J6130}",null,null,null,null,null,null,null,null,null,null,null,null,null,null,null,null,null,null,null,null,null,null,null,null,null,null,null,null,null,"    {s2c_SE:}"]
[null,null,null,null,null,null,null,null,null,null,null,null,"        J61.9 - Other telecommunications activities    {s2c_NC:J619}",null,null,null,null,null,null,null,null,null,null,null,null,null,null,null,null,null,null,null,null,null,null,null,null,null,null,null,null,null,"    {s2c_SE:}"]
[null,null,null,null,null,null,null,null,null,null,null,null,"           J61.9.0 - Other telecommunications activities    {s2c_NC:J6190}",null,null,null,null,null,null,null,null,null,null,null,null,null,null,null,null,null,null,null,null,null,null,null,null,null,null,null,null,null,"    {s2c_SE:}"]
[null,null,null,null,null,null,null,null,null,null,null,null,"     J62 - Computer programming, consultancy and related activities    {s2c_NC:J62}",null,null,null,null,null,null,null,null,null,null,null,null,null,null,null,null,null,null,null,null,null,null,null,null,null,null,null,null,null,"    {s2c_SE:}"]
[null,null,null,null,null,null,null,null,null,null,null,null,"        J62.0 - Computer programming, consultancy and related activities    {s2c_NC:J620}",null,null,null,null,null,null,null,null,null,null,null,null,null,null,null,null,null,null,null,null,null,null,null,null,null,null,null,null,null,"    {s2c_SE:}"]
[null,null,null,null,null,null,null,null,null,null,null,null,"           J62.0.1 - Computer programming activities    {s2c_NC:J6201}",null,null,null,null,null,null,null,null,null,null,null,null,null,null,null,null,null,null,null,null,null,null,null,null,null,null,null,null,null,"    {s2c_SE:}"]
[null,null,null,null,null,null,null,null,null,null,null,null,"           J62.0.2 - Computer consultancy activities    {s2c_NC:J6202}",null,null,null,null,null,null,null,null,null,null,null,null,null,null,null,null,null,null,null,null,null,null,null,null,null,null,null,null,null,"    {s2c_SE:}"]
[null,null,null,null,null,null,null,null,null,null,null,null,"           J62.0.3 - Computer facilities management activities    {s2c_NC:J6203}",null,null,null,null,null,null,null,null,null,null,null,null,null,null,null,null,null,null,null,null,null,null,null,null,null,null,null,null,null,"    {s2c_SE:}"]
[null,null,null,null,null,null,null,null,null,null,null,null,"           J62.0.9 - Other information technology and computer service activities    {s2c_NC:J6209}",null,null,null,null,null,null,null,null,null,null,null,null,null,null,null,null,null,null,null,null,null,null,null,null,null,null,null,null,null,"    {s2c_SE:}"]
[null,null,null,null,null,null,null,null,null,null,null,null,"     J63 - Information service activities    {s2c_NC:J63}",null,null,null,null,null,null,null,null,null,null,null,null,null,null,null,null,null,null,null,null,null,null,null,null,null,null,null,null,null,"    {s2c_SE:}"]
[null,null,null,null,null,null,null,null,null,null,null,null,"        J63.1 - Data processing, hosting and related activities; web portals    {s2c_NC:J631}",null,null,null,null,null,null,null,null,null,null,null,null,null,null,null,null,null,null,null,null,null,null,null,null,null,null,null,null,null,"    {s2c_SE:}"]
[null,null,null,null,null,null,null,null,null,null,null,null,"           J63.1.1 - Data processing, hosting and related activities    {s2c_NC:J6311}",null,null,null,null,null,null,null,null,null,null,null,null,null,null,null,null,null,null,null,null,null,null,null,null,null,null,null,null,null,"    {s2c_SE:}"]
[null,null,null,null,null,null,null,null,null,null,null,null,"           J63.1.2 - Web portals    {s2c_NC:J6312}",null,null,null,null,null,null,null,null,null,null,null,null,null,null,null,null,null,null,null,null,null,null,null,null,null,null,null,null,null,"    {s2c_SE:}"]
[null,null,null,null,null,null,null,null,null,null,null,null,"        J63.9 - Other information service activities    {s2c_NC:J639}",null,null,null,null,null,null,null,null,null,null,null,null,null,null,null,null,null,null,null,null,null,null,null,null,null,null,null,null,null,"    {s2c_SE:}"]
[null,null,null,null,null,null,null,null,null,null,null,null,"           J63.9.1 - News agency activities    {s2c_NC:J6391}",null,null,null,null,null,null,null,null,null,null,null,null,null,null,null,null,null,null,null,null,null,null,null,null,null,null,null,null,null,"    {s2c_SE:}"]
[null,null,null,null,null,null,null,null,null,null,null,null,"           J63.9.9 - Other information service activities n.e.c.    {s2c_NC:J6399}",null,null,null,null,null,null,null,null,null,null,null,null,null,null,null,null,null,null,null,null,null,null,null,null,null,null,null,null,null,"    {s2c_SE:}"]
[null,null,null,null,null,null,null,null,null,null,null,null,"  K - Financial and insurance activities    {s2c_NC:K}",null,null,null,null,null,null,null,null,null,null,null,null,null,null,null,null,null,null,null,null,null,null,null,null,null,null,null,null,null,"    {s2c_SE:}"]
[null,null,null,null,null,null,null,null,null,null,null,null,"     K64 - Financial service activities, except insurance and pension funding    {s2c_NC:K64}",null,null,null,null,null,null,null,null,null,null,null,null,null,null,null,null,null,null,null,null,null,null,null,null,null,null,null,null,null,"    {s2c_SE:}"]
[null,null,null,null,null,null,null,null,null,null,null,null,"        K64.1 - Monetary intermediation    {s2c_NC:K641}",null,null,null,null,null,null,null,null,null,null,null,null,null,null,null,null,null,null,null,null,null,null,null,null,null,null,null,null,null,"    {s2c_SE:}"]
[null,null,null,null,null,null,null,null,null,null,null,null,"           K64.1.1 - Central banking    {s2c_NC:K6411}",null,null,null,null,null,null,null,null,null,null,null,null,null,null,null,null,null,null,null,null,null,null,null,null,null,null,null,null,null,"    {s2c_SE:}"]
[null,null,null,null,null,null,null,null,null,null,null,null,"           K64.1.9 - Other monetary intermediation    {s2c_NC:K6419}",null,null,null,null,null,null,null,null,null,null,null,null,null,null,null,null,null,null,null,null,null,null,null,null,null,null,null,null,null,"    {s2c_SE:}"]
[null,null,null,null,null,null,null,null,null,null,null,null,"        K64.2 - Activities of holding companies    {s2c_NC:K642}",null,null,null,null,null,null,null,null,null,null,null,null,null,null,null,null,null,null,null,null,null,null,null,null,null,null,null,null,null,"    {s2c_SE:}"]
[null,null,null,null,null,null,null,null,null,null,null,null,"           K64.2.0 - Activities of holding companies    {s2c_NC:K6420}",null,null,null,null,null,null,null,null,null,null,null,null,null,null,null,null,null,null,null,null,null,null,null,null,null,null,null,null,null,"    {s2c_SE:}"]
[null,null,null,null,null,null,null,null,null,null,null,null,"        K64.3 - Trusts, funds and similar financial entities    {s2c_NC:K643}",null,null,null,null,null,null,null,null,null,null,null,null,null,null,null,null,null,null,null,null,null,null,null,null,null,null,null,null,null,"    {s2c_SE:}"]
[null,null,null,null,null,null,null,null,null,null,null,null,"           K64.3.0 - Trusts, funds and similar financial entities    {s2c_NC:K6430}",null,null,null,null,null,null,null,null,null,null,null,null,null,null,null,null,null,null,null,null,null,null,null,null,null,null,null,null,null,"    {s2c_SE:}"]
[null,null,null,null,null,null,null,null,null,null,null,null,"        K64.9 - Other financial service activities, except insurance and pension funding    {s2c_NC:K649}",null,null,null,null,null,null,null,null,null,null,null,null,null,null,null,null,null,null,null,null,null,null,null,null,null,null,null,null,null,"    {s2c_SE:}"]
[null,null,null,null,null,null,null,null,null,null,null,null,"           K64.9.1 - Financial leasing    {s2c_NC:K6491}",null,null,null,null,null,null,null,null,null,null,null,null,null,null,null,null,null,null,null,null,null,null,null,null,null,null,null,null,null,"    {s2c_SE:}"]
[null,null,null,null,null,null,null,null,null,null,null,null,"           K64.9.2 - Other credit granting    {s2c_NC:K6492}",null,null,null,null,null,null,null,null,null,null,null,null,null,null,null,null,null,null,null,null,null,null,null,null,null,null,null,null,null,"    {s2c_SE:}"]
[null,null,null,null,null,null,null,null,null,null,null,null,"           K64.9.9 - Other financial service activities, except insurance and pension funding n.e.c.    {s2c_NC:K6499}",null,null,null,null,null,null,null,null,null,null,null,null,null,null,null,null,null,null,null,null,null,null,null,null,null,null,null,null,null,"    {s2c_SE:}"]
[null,null,null,null,null,null,null,null,null,null,null,null,"     K65 - Insurance, reinsurance and pension funding, except compulsory social security    {s2c_NC:K65}",null,null,null,null,null,null,null,null,null,null,null,null,null,null,null,null,null,null,null,null,null,null,null,null,null,null,null,null,null,"    {s2c_SE:}"]
[null,null,null,null,null,null,null,null,null,null,null,null,"        K65.1 - Insurance    {s2c_NC:K651}",null,null,null,null,null,null,null,null,null,null,null,null,null,null,null,null,null,null,null,null,null,null,null,null,null,null,null,null,null,"    {s2c_SE:}"]
[null,null,null,null,null,null,null,null,null,null,null,null,"           K65.1.1 - Life insurance    {s2c_NC:K6511}",null,null,null,null,null,null,null,null,null,null,null,null,null,null,null,null,null,null,null,null,null,null,null,null,null,null,null,null,null,"    {s2c_SE:}"]
[null,null,null,null,null,null,null,null,null,null,null,null,"           K65.1.2 - Non-life insurance    {s2c_NC:K6512}",null,null,null,null,null,null,null,null,null,null,null,null,null,null,null,null,null,null,null,null,null,null,null,null,null,null,null,null,null,"    {s2c_SE:}"]
[null,null,null,null,null,null,null,null,null,null,null,null,"        K65.2 - Reinsurance    {s2c_NC:K652}",null,null,null,null,null,null,null,null,null,null,null,null,null,null,null,null,null,null,null,null,null,null,null,null,null,null,null,null,null,"    {s2c_SE:}"]
[null,null,null,null,null,null,null,null,null,null,null,null,"           K65.2.0 - Reinsurance    {s2c_NC:K6520}",null,null,null,null,null,null,null,null,null,null,null,null,null,null,null,null,null,null,null,null,null,null,null,null,null,null,null,null,null,"    {s2c_SE:}"]
[null,null,null,null,null,null,null,null,null,null,null,null,"        K65.3 - Pension funding    {s2c_NC:K653}",null,null,null,null,null,null,null,null,null,null,null,null,null,null,null,null,null,null,null,null,null,null,null,null,null,null,null,null,null,"    {s2c_SE:}"]
[null,null,null,null,null,null,null,null,null,null,null,null,"           K65.3.0 - Pension funding    {s2c_NC:K6530}",null,null,null,null,null,null,null,null,null,null,null,null,null,null,null,null,null,null,null,null,null,null,null,null,null,null,null,null,null,"    {s2c_SE:}"]
[null,null,null,null,null,null,null,null,null,null,null,null,"     K66 - Activities auxiliary to financial services and insurance activities    {s2c_NC:K66}",null,null,null,null,null,null,null,null,null,null,null,null,null,null,null,null,null,null,null,null,null,null,null,null,null,null,null,null,null,"    {s2c_SE:}"]
[null,null,null,null,null,null,null,null,null,null,null,null,"        K66.1 - Activities auxiliary to financial services, except insurance and pension funding    {s2c_NC:K661}",null,null,null,null,null,null,null,null,null,null,null,null,null,null,null,null,null,null,null,null,null,null,null,null,null,null,null,null,null,"    {s2c_SE:}"]
[null,null,null,null,null,null,null,null,null,null,null,null,"           K66.1.1 - Administration of financial markets    {s2c_NC:K6611}",null,null,null,null,null,null,null,null,null,null,null,null,null,null,null,null,null,null,null,null,null,null,null,null,null,null,null,null,null,"    {s2c_SE:}"]
[null,null,null,null,null,null,null,null,null,null,null,null,"           K66.1.2 - Security and commodity contracts brokerage    {s2c_NC:K6612}",null,null,null,null,null,null,null,null,null,null,null,null,null,null,null,null,null,null,null,null,null,null,null,null,null,null,null,null,null,"    {s2c_SE:}"]
[null,null,null,null,null,null,null,null,null,null,null,null,"           K66.1.9 - Other activities auxiliary to financial services, except insurance and pension funding    {s2c_NC:K6619}",null,null,null,null,null,null,null,null,null,null,null,null,null,null,null,null,null,null,null,null,null,null,null,null,null,null,null,null,null,"    {s2c_SE:}"]
[null,null,null,null,null,null,null,null,null,null,null,null,"        K66.2 - Activities auxiliary to insurance and pension funding    {s2c_NC:K662}",null,null,null,null,null,null,null,null,null,null,null,null,null,null,null,null,null,null,null,null,null,null,null,null,null,null,null,null,null,"    {s2c_SE:}"]
[null,null,null,null,null,null,null,null,null,null,null,null,"           K66.2.1 - Risk and damage evaluation    {s2c_NC:K6621}",null,null,null,null,null,null,null,null,null,null,null,null,null,null,null,null,null,null,null,null,null,null,null,null,null,null,null,null,null,"    {s2c_SE:}"]
[null,null,null,null,null,null,null,null,null,null,null,null,"           K66.2.2 - Activities of insurance agents and brokers    {s2c_NC:K6622}",null,null,null,null,null,null,null,null,null,null,null,null,null,null,null,null,null,null,null,null,null,null,null,null,null,null,null,null,null,"    {s2c_SE:}"]
[null,null,null,null,null,null,null,null,null,null,null,null,"           K66.2.9 - Other activities auxiliary to insurance and pension funding    {s2c_NC:K6629}",null,null,null,null,null,null,null,null,null,null,null,null,null,null,null,null,null,null,null,null,null,null,null,null,null,null,null,null,null,"    {s2c_SE:}"]
[null,null,null,null,null,null,null,null,null,null,null,null,"        K66.3 - Fund management activities    {s2c_NC:K663}",null,null,null,null,null,null,null,null,null,null,null,null,null,null,null,null,null,null,null,null,null,null,null,null,null,null,null,null,null,"    {s2c_SE:}"]
[null,null,null,null,null,null,null,null,null,null,null,null,"           K66.3.0 - Fund management activities    {s2c_NC:K6630}",null,null,null,null,null,null,null,null,null,null,null,null,null,null,null,null,null,null,null,null,null,null,null,null,null,null,null,null,null,"    {s2c_SE:}"]
[null,null,null,null,null,null,null,null,null,null,null,null,"  L - Real estate activities    {s2c_NC:L}",null,null,null,null,null,null,null,null,null,null,null,null,null,null,null,null,null,null,null,null,null,null,null,null,null,null,null,null,null,"    {s2c_SE:}"]
[null,null,null,null,null,null,null,null,null,null,null,null,"     L68 - Real estate activities    {s2c_NC:L68}",null,null,null,null,null,null,null,null,null,null,null,null,null,null,null,null,null,null,null,null,null,null,null,null,null,null,null,null,null,"    {s2c_SE:}"]
[null,null,null,null,null,null,null,null,null,null,null,null,"        L68.1 - Buying and selling of own real estate    {s2c_NC:L681}",null,null,null,null,null,null,null,null,null,null,null,null,null,null,null,null,null,null,null,null,null,null,null,null,null,null,null,null,null,"    {s2c_SE:}"]
[null,null,null,null,null,null,null,null,null,null,null,null,"           L68.1.0 - Buying and selling of own real estate    {s2c_NC:L6810}",null,null,null,null,null,null,null,null,null,null,null,null,null,null,null,null,null,null,null,null,null,null,null,null,null,null,null,null,null,"    {s2c_SE:}"]
[null,null,null,null,null,null,null,null,null,null,null,null,"        L68.2 - Renting and operating of own or leased real estate    {s2c_NC:L682}",null,null,null,null,null,null,null,null,null,null,null,null,null,null,null,null,null,null,null,null,null,null,null,null,null,null,null,null,null,"    {s2c_SE:}"]
[null,null,null,null,null,null,null,null,null,null,null,null,"           L68.2.0 - Renting and operating of own or leased real estate    {s2c_NC:L6820}",null,null,null,null,null,null,null,null,null,null,null,null,null,null,null,null,null,null,null,null,null,null,null,null,null,null,null,null,null,"    {s2c_SE:}"]
[null,null,null,null,null,null,null,null,null,null,null,null,"        L68.3 - Real estate activities on a fee or contract basis    {s2c_NC:L683}",null,null,null,null,null,null,null,null,null,null,null,null,null,null,null,null,null,null,null,null,null,null,null,null,null,null,null,null,null,"    {s2c_SE:}"]
[null,null,null,null,null,null,null,null,null,null,null,null,"           L68.3.1 - Real estate agencies    {s2c_NC:L6831}",null,null,null,null,null,null,null,null,null,null,null,null,null,null,null,null,null,null,null,null,null,null,null,null,null,null,null,null,null,"    {s2c_SE:}"]
[null,null,null,null,null,null,null,null,null,null,null,null,"           L68.3.2 - Management of real estate on a fee or contract basis    {s2c_NC:L6832}",null,null,null,null,null,null,null,null,null,null,null,null,null,null,null,null,null,null,null,null,null,null,null,null,null,null,null,null,null,"    {s2c_SE:}"]
[null,null,null,null,null,null,null,null,null,null,null,null,"  M - Professional, scientific and technical activities    {s2c_NC:M}",null,null,null,null,null,null,null,null,null,null,null,null,null,null,null,null,null,null,null,null,null,null,null,null,null,null,null,null,null,"    {s2c_SE:}"]
[null,null,null,null,null,null,null,null,null,null,null,null,"     M69 - Legal and accounting activities    {s2c_NC:M69}",null,null,null,null,null,null,null,null,null,null,null,null,null,null,null,null,null,null,null,null,null,null,null,null,null,null,null,null,null,"    {s2c_SE:}"]
[null,null,null,null,null,null,null,null,null,null,null,null,"        M69.1 - Legal activities    {s2c_NC:M691}",null,null,null,null,null,null,null,null,null,null,null,null,null,null,null,null,null,null,null,null,null,null,null,null,null,null,null,null,null,"    {s2c_SE:}"]
[null,null,null,null,null,null,null,null,null,null,null,null,"           M69.1.0 - Legal activities    {s2c_NC:M6910}",null,null,null,null,null,null,null,null,null,null,null,null,null,null,null,null,null,null,null,null,null,null,null,null,null,null,null,null,null,"    {s2c_SE:}"]
[null,null,null,null,null,null,null,null,null,null,null,null,"        M69.2 - Accounting, bookkeeping and auditing activities; tax consultancy    {s2c_NC:M692}",null,null,null,null,null,null,null,null,null,null,null,null,null,null,null,null,null,null,null,null,null,null,null,null,null,null,null,null,null,"    {s2c_SE:}"]
[null,null,null,null,null,null,null,null,null,null,null,null,"           M69.2.0 - Accounting, bookkeeping and auditing activities; tax consultancy    {s2c_NC:M6920}",null,null,null,null,null,null,null,null,null,null,null,null,null,null,null,null,null,null,null,null,null,null,null,null,null,null,null,null,null,"    {s2c_SE:}"]
[null,null,null,null,null,null,null,null,null,null,null,null,"     M70 - Activities of head offices; management consultancy activities    {s2c_NC:M70}",null,null,null,null,null,null,null,null,null,null,null,null,null,null,null,null,null,null,null,null,null,null,null,null,null,null,null,null,null,"    {s2c_SE:}"]
[null,null,null,null,null,null,null,null,null,null,null,null,"        M70.1 - Activities of head offices    {s2c_NC:M701}",null,null,null,null,null,null,null,null,null,null,null,null,null,null,null,null,null,null,null,null,null,null,null,null,null,null,null,null,null,"    {s2c_SE:}"]
[null,null,null,null,null,null,null,null,null,null,null,null,"           M70.1.0 - Activities of head offices    {s2c_NC:M7010}",null,null,null,null,null,null,null,null,null,null,null,null,null,null,null,null,null,null,null,null,null,null,null,null,null,null,null,null,null,"    {s2c_SE:}"]
[null,null,null,null,null,null,null,null,null,null,null,null,"        M70.2 - Management consultancy activities    {s2c_NC:M702}",null,null,null,null,null,null,null,null,null,null,null,null,null,null,null,null,null,null,null,null,null,null,null,null,null,null,null,null,null,"    {s2c_SE:}"]
[null,null,null,null,null,null,null,null,null,null,null,null,"           M70.2.1 - Public relations and communication activities    {s2c_NC:M7021}",null,null,null,null,null,null,null,null,null,null,null,null,null,null,null,null,null,null,null,null,null,null,null,null,null,null,null,null,null,"    {s2c_SE:}"]
[null,null,null,null,null,null,null,null,null,null,null,null,"           M70.2.2 - Business and other management consultancy activities    {s2c_NC:M7022}",null,null,null,null,null,null,null,null,null,null,null,null,null,null,null,null,null,null,null,null,null,null,null,null,null,null,null,null,null,"    {s2c_SE:}"]
[null,null,null,null,null,null,null,null,null,null,null,null,"     M71 - Architectural and engineering activities; technical testing and analysis    {s2c_NC:M71}",null,null,null,null,null,null,null,null,null,null,null,null,null,null,null,null,null,null,null,null,null,null,null,null,null,null,null,null,null,"    {s2c_SE:}"]
[null,null,null,null,null,null,null,null,null,null,null,null,"        M71.1 - Architectural and engineering activities and related technical consultancy    {s2c_NC:M711}",null,null,null,null,null,null,null,null,null,null,null,null,null,null,null,null,null,null,null,null,null,null,null,null,null,null,null,null,null,"    {s2c_SE:}"]
[null,null,null,null,null,null,null,null,null,null,null,null,"           M71.1.1 - Architectural activities    {s2c_NC:M7111}",null,null,null,null,null,null,null,null,null,null,null,null,null,null,null,null,null,null,null,null,null,null,null,null,null,null,null,null,null,"    {s2c_SE:}"]
[null,null,null,null,null,null,null,null,null,null,null,null,"           M71.1.2 - Engineering activities and related technical consultancy    {s2c_NC:M7112}",null,null,null,null,null,null,null,null,null,null,null,null,null,null,null,null,null,null,null,null,null,null,null,null,null,null,null,null,null,"    {s2c_SE:}"]
[null,null,null,null,null,null,null,null,null,null,null,null,"        M71.2 - Technical testing and analysis    {s2c_NC:M712}",null,null,null,null,null,null,null,null,null,null,null,null,null,null,null,null,null,null,null,null,null,null,null,null,null,null,null,null,null,"    {s2c_SE:}"]
[null,null,null,null,null,null,null,null,null,null,null,null,"           M71.2.0 - Technical testing and analysis    {s2c_NC:M7120}",null,null,null,null,null,null,null,null,null,null,null,null,null,null,null,null,null,null,null,null,null,null,null,null,null,null,null,null,null,"    {s2c_SE:}"]
[null,null,null,null,null,null,null,null,null,null,null,null,"     M72 - Scientific research and development    {s2c_NC:M72}",null,null,null,null,null,null,null,null,null,null,null,null,null,null,null,null,null,null,null,null,null,null,null,null,null,null,null,null,null,"    {s2c_SE:}"]
[null,null,null,null,null,null,null,null,null,null,null,null,"        M72.1 - Research and experimental development on natural sciences and engineering    {s2c_NC:M721}",null,null,null,null,null,null,null,null,null,null,null,null,null,null,null,null,null,null,null,null,null,null,null,null,null,null,null,null,null,"    {s2c_SE:}"]
[null,null,null,null,null,null,null,null,null,null,null,null,"           M72.1.1 - Research and experimental development on biotechnology    {s2c_NC:M7211}",null,null,null,null,null,null,null,null,null,null,null,null,null,null,null,null,null,null,null,null,null,null,null,null,null,null,null,null,null,"    {s2c_SE:}"]
[null,null,null,null,null,null,null,null,null,null,null,null,"           M72.1.9 - Other research and experimental development on natural sciences and engineering    {s2c_NC:M7219}",null,null,null,null,null,null,null,null,null,null,null,null,null,null,null,null,null,null,null,null,null,null,null,null,null,null,null,null,null,"    {s2c_SE:}"]
[null,null,null,null,null,null,null,null,null,null,null,null,"        M72.2 - Research and experimental development on social sciences and humanities    {s2c_NC:M722}",null,null,null,null,null,null,null,null,null,null,null,null,null,null,null,null,null,null,null,null,null,null,null,null,null,null,null,null,null,"    {s2c_SE:}"]
[null,null,null,null,null,null,null,null,null,null,null,null,"           M72.2.0 - Research and experimental development on social sciences and humanities    {s2c_NC:M7220}",null,null,null,null,null,null,null,null,null,null,null,null,null,null,null,null,null,null,null,null,null,null,null,null,null,null,null,null,null,"    {s2c_SE:}"]
[null,null,null,null,null,null,null,null,null,null,null,null,"     M73 - Advertising and market research    {s2c_NC:M73}",null,null,null,null,null,null,null,null,null,null,null,null,null,null,null,null,null,null,null,null,null,null,null,null,null,null,null,null,null,"    {s2c_SE:}"]
[null,null,null,null,null,null,null,null,null,null,null,null,"        M73.1 - Advertising    {s2c_NC:M731}",null,null,null,null,null,null,null,null,null,null,null,null,null,null,null,null,null,null,null,null,null,null,null,null,null,null,null,null,null,"    {s2c_SE:}"]
[null,null,null,null,null,null,null,null,null,null,null,null,"           M73.1.1 - Advertising agencies    {s2c_NC:M7311}",null,null,null,null,null,null,null,null,null,null,null,null,null,null,null,null,null,null,null,null,null,null,null,null,null,null,null,null,null,"    {s2c_SE:}"]
[null,null,null,null,null,null,null,null,null,null,null,null,"           M73.1.2 - Media representation    {s2c_NC:M7312}",null,null,null,null,null,null,null,null,null,null,null,null,null,null,null,null,null,null,null,null,null,null,null,null,null,null,null,null,null,"    {s2c_SE:}"]
[null,null,null,null,null,null,null,null,null,null,null,null,"        M73.2 - Market research and public opinion polling    {s2c_NC:M732}",null,null,null,null,null,null,null,null,null,null,null,null,null,null,null,null,null,null,null,null,null,null,null,null,null,null,null,null,null,"    {s2c_SE:}"]
[null,null,null,null,null,null,null,null,null,null,null,null,"           M73.2.0 - Market research and public opinion polling    {s2c_NC:M7320}",null,null,null,null,null,null,null,null,null,null,null,null,null,null,null,null,null,null,null,null,null,null,null,null,null,null,null,null,null,"    {s2c_SE:}"]
[null,null,null,null,null,null,null,null,null,null,null,null,"     M74 - Other professional, scientific and technical activities    {s2c_NC:M74}",null,null,null,null,null,null,null,null,null,null,null,null,null,null,null,null,null,null,null,null,null,null,null,null,null,null,null,null,null,"    {s2c_SE:}"]
[null,null,null,null,null,null,null,null,null,null,null,null,"        M74.1 - Specialised design activities    {s2c_NC:M741}",null,null,null,null,null,null,null,null,null,null,null,null,null,null,null,null,null,null,null,null,null,null,null,null,null,null,null,null,null,"    {s2c_SE:}"]
[null,null,null,null,null,null,null,null,null,null,null,null,"           M74.1.0 - Specialised design activities    {s2c_NC:M7410}",null,null,null,null,null,null,null,null,null,null,null,null,null,null,null,null,null,null,null,null,null,null,null,null,null,null,null,null,null,"    {s2c_SE:}"]
[null,null,null,null,null,null,null,null,null,null,null,null,"        M74.2 - Photographic activities    {s2c_NC:M742}",null,null,null,null,null,null,null,null,null,null,null,null,null,null,null,null,null,null,null,null,null,null,null,null,null,null,null,null,null,"    {s2c_SE:}"]
[null,null,null,null,null,null,null,null,null,null,null,null,"           M74.2.0 - Photographic activities    {s2c_NC:M7420}",null,null,null,null,null,null,null,null,null,null,null,null,null,null,null,null,null,null,null,null,null,null,null,null,null,null,null,null,null,"    {s2c_SE:}"]
[null,null,null,null,null,null,null,null,null,null,null,null,"        M74.3 - Translation and interpretation activities    {s2c_NC:M743}",null,null,null,null,null,null,null,null,null,null,null,null,null,null,null,null,null,null,null,null,null,null,null,null,null,null,null,null,null,"    {s2c_SE:}"]
[null,null,null,null,null,null,null,null,null,null,null,null,"           M74.3.0 - Translation and interpretation activities    {s2c_NC:M7430}",null,null,null,null,null,null,null,null,null,null,null,null,null,null,null,null,null,null,null,null,null,null,null,null,null,null,null,null,null,"    {s2c_SE:}"]
[null,null,null,null,null,null,null,null,null,null,null,null,"        M74.9 - Other professional, scientific and technical activities n.e.c.    {s2c_NC:M749}",null,null,null,null,null,null,null,null,null,null,null,null,null,null,null,null,null,null,null,null,null,null,null,null,null,null,null,null,null,"    {s2c_SE:}"]
[null,null,null,null,null,null,null,null,null,null,null,null,"           M74.9.0 - Other professional, scientific and technical activities n.e.c.    {s2c_NC:M7490}",null,null,null,null,null,null,null,null,null,null,null,null,null,null,null,null,null,null,null,null,null,null,null,null,null,null,null,null,null,"    {s2c_SE:}"]
[null,null,null,null,null,null,null,null,null,null,null,null,"     M75 - Veterinary activities    {s2c_NC:M75}",null,null,null,null,null,null,null,null,null,null,null,null,null,null,null,null,null,null,null,null,null,null,null,null,null,null,null,null,null,"    {s2c_SE:}"]
[null,null,null,null,null,null,null,null,null,null,null,null,"        M75.0 - Veterinary activities    {s2c_NC:M750}",null,null,null,null,null,null,null,null,null,null,null,null,null,null,null,null,null,null,null,null,null,null,null,null,null,null,null,null,null,"    {s2c_SE:}"]
[null,null,null,null,null,null,null,null,null,null,null,null,"           M75.0.0 - Veterinary activities    {s2c_NC:M7500}",null,null,null,null,null,null,null,null,null,null,null,null,null,null,null,null,null,null,null,null,null,null,null,null,null,null,null,null,null,"    {s2c_SE:}"]
[null,null,null,null,null,null,null,null,null,null,null,null,"  N - Administrative and support service activities    {s2c_NC:N}",null,null,null,null,null,null,null,null,null,null,null,null,null,null,null,null,null,null,null,null,null,null,null,null,null,null,null,null,null,"    {s2c_SE:}"]
[null,null,null,null,null,null,null,null,null,null,null,null,"     N77 - Rental and leasing activities    {s2c_NC:N77}",null,null,null,null,null,null,null,null,null,null,null,null,null,null,null,null,null,null,null,null,null,null,null,null,null,null,null,null,null,"    {s2c_SE:}"]
[null,null,null,null,null,null,null,null,null,null,null,null,"        N77.1 - Renting and leasing of motor vehicles    {s2c_NC:N771}",null,null,null,null,null,null,null,null,null,null,null,null,null,null,null,null,null,null,null,null,null,null,null,null,null,null,null,null,null,"    {s2c_SE:}"]
[null,null,null,null,null,null,null,null,null,null,null,null,"           N77.1.1 - Renting and leasing of cars and light motor vehicles    {s2c_NC:N7711}",null,null,null,null,null,null,null,null,null,null,null,null,null,null,null,null,null,null,null,null,null,null,null,null,null,null,null,null,null,"    {s2c_SE:}"]
[null,null,null,null,null,null,null,null,null,null,null,null,"           N77.1.2 - Renting and leasing of trucks    {s2c_NC:N7712}",null,null,null,null,null,null,null,null,null,null,null,null,null,null,null,null,null,null,null,null,null,null,null,null,null,null,null,null,null,"    {s2c_SE:}"]
[null,null,null,null,null,null,null,null,null,null,null,null,"        N77.2 - Renting and leasing of personal and household goods    {s2c_NC:N772}",null,null,null,null,null,null,null,null,null,null,null,null,null,null,null,null,null,null,null,null,null,null,null,null,null,null,null,null,null,"    {s2c_SE:}"]
[null,null,null,null,null,null,null,null,null,null,null,null,"           N77.2.1 - Renting and leasing of recreational and sports goods    {s2c_NC:N7721}",null,null,null,null,null,null,null,null,null,null,null,null,null,null,null,null,null,null,null,null,null,null,null,null,null,null,null,null,null,"    {s2c_SE:}"]
[null,null,null,null,null,null,null,null,null,null,null,null,"           N77.2.2 - Renting of video tapes and disks    {s2c_NC:N7722}",null,null,null,null,null,null,null,null,null,null,null,null,null,null,null,null,null,null,null,null,null,null,null,null,null,null,null,null,null,"    {s2c_SE:}"]
[null,null,null,null,null,null,null,null,null,null,null,null,"           N77.2.9 - Renting and leasing of other personal and household goods    {s2c_NC:N7729}",null,null,null,null,null,null,null,null,null,null,null,null,null,null,null,null,null,null,null,null,null,null,null,null,null,null,null,null,null,"    {s2c_SE:}"]
[null,null,null,null,null,null,null,null,null,null,null,null,"        N77.3 - Renting and leasing of other machinery, equipment and tangible goods    {s2c_NC:N773}",null,null,null,null,null,null,null,null,null,null,null,null,null,null,null,null,null,null,null,null,null,null,null,null,null,null,null,null,null,"    {s2c_SE:}"]
[null,null,null,null,null,null,null,null,null,null,null,null,"           N77.3.1 - Renting and leasing of agricultural machinery and equipment    {s2c_NC:N7731}",null,null,null,null,null,null,null,null,null,null,null,null,null,null,null,null,null,null,null,null,null,null,null,null,null,null,null,null,null,"    {s2c_SE:}"]
[null,null,null,null,null,null,null,null,null,null,null,null,"           N77.3.2 - Renting and leasing of construction and civil engineering machinery and equipment    {s2c_NC:N7732}",null,null,null,null,null,null,null,null,null,null,null,null,null,null,null,null,null,null,null,null,null,null,null,null,null,null,null,null,null,"    {s2c_SE:}"]
[null,null,null,null,null,null,null,null,null,null,null,null,"           N77.3.3 - Renting and leasing of office machinery and equipment (including computers)    {s2c_NC:N7733}",null,null,null,null,null,null,null,null,null,null,null,null,null,null,null,null,null,null,null,null,null,null,null,null,null,null,null,null,null,"    {s2c_SE:}"]
[null,null,null,null,null,null,null,null,null,null,null,null,"           N77.3.4 - Renting and leasing of water transport equipment    {s2c_NC:N7734}",null,null,null,null,null,null,null,null,null,null,null,null,null,null,null,null,null,null,null,null,null,null,null,null,null,null,null,null,null,"    {s2c_SE:}"]
[null,null,null,null,null,null,null,null,null,null,null,null,"           N77.3.5 - Renting and leasing of air transport equipment    {s2c_NC:N7735}",null,null,null,null,null,null,null,null,null,null,null,null,null,null,null,null,null,null,null,null,null,null,null,null,null,null,null,null,null,"    {s2c_SE:}"]
[null,null,null,null,null,null,null,null,null,null,null,null,"           N77.3.9 - Renting and leasing of other machinery, equipment and tangible goods n.e.c.    {s2c_NC:N7739}",null,null,null,null,null,null,null,null,null,null,null,null,null,null,null,null,null,null,null,null,null,null,null,null,null,null,null,null,null,"    {s2c_SE:}"]
[null,null,null,null,null,null,null,null,null,null,null,null,"        N77.4 - Leasing of intellectual property and similar products, except copyrighted works    {s2c_NC:N774}",null,null,null,null,null,null,null,null,null,null,null,null,null,null,null,null,null,null,null,null,null,null,null,null,null,null,null,null,null,"    {s2c_SE:}"]
[null,null,null,null,null,null,null,null,null,null,null,null,"           N77.4.0 - Leasing of intellectual property and similar products, except copyrighted works    {s2c_NC:N7740}",null,null,null,null,null,null,null,null,null,null,null,null,null,null,null,null,null,null,null,null,null,null,null,null,null,null,null,null,null,"    {s2c_SE:}"]
[null,null,null,null,null,null,null,null,null,null,null,null,"     N78 - Employment activities    {s2c_NC:N78}",null,null,null,null,null,null,null,null,null,null,null,null,null,null,null,null,null,null,null,null,null,null,null,null,null,null,null,null,null,"    {s2c_SE:}"]
[null,null,null,null,null,null,null,null,null,null,null,null,"        N78.1 - Activities of employment placement agencies    {s2c_NC:N781}",null,null,null,null,null,null,null,null,null,null,null,null,null,null,null,null,null,null,null,null,null,null,null,null,null,null,null,null,null,"    {s2c_SE:}"]
[null,null,null,null,null,null,null,null,null,null,null,null,"           N78.1.0 - Activities of employment placement agencies    {s2c_NC:N7810}",null,null,null,null,null,null,null,null,null,null,null,null,null,null,null,null,null,null,null,null,null,null,null,null,null,null,null,null,null,"    {s2c_SE:}"]
[null,null,null,null,null,null,null,null,null,null,null,null,"        N78.2 - Temporary employment agency activities    {s2c_NC:N782}",null,null,null,null,null,null,null,null,null,null,null,null,null,null,null,null,null,null,null,null,null,null,null,null,null,null,null,null,null,"    {s2c_SE:}"]
[null,null,null,null,null,null,null,null,null,null,null,null,"           N78.2.0 - Temporary employment agency activities    {s2c_NC:N7820}",null,null,null,null,null,null,null,null,null,null,null,null,null,null,null,null,null,null,null,null,null,null,null,null,null,null,null,null,null,"    {s2c_SE:}"]
[null,null,null,null,null,null,null,null,null,null,null,null,"        N78.3 - Other human resources provision    {s2c_NC:N783}",null,null,null,null,null,null,null,null,null,null,null,null,null,null,null,null,null,null,null,null,null,null,null,null,null,null,null,null,null,"    {s2c_SE:}"]
[null,null,null,null,null,null,null,null,null,null,null,null,"           N78.3.0 - Other human resources provision    {s2c_NC:N7830}",null,null,null,null,null,null,null,null,null,null,null,null,null,null,null,null,null,null,null,null,null,null,null,null,null,null,null,null,null,"    {s2c_SE:}"]
[null,null,null,null,null,null,null,null,null,null,null,null,"     N79 - Travel agency, tour operator and other reservation service and related activities    {s2c_NC:N79}",null,null,null,null,null,null,null,null,null,null,null,null,null,null,null,null,null,null,null,null,null,null,null,null,null,null,null,null,null,"    {s2c_SE:}"]
[null,null,null,null,null,null,null,null,null,null,null,null,"        N79.1 - Travel agency and tour operator activities    {s2c_NC:N791}",null,null,null,null,null,null,null,null,null,null,null,null,null,null,null,null,null,null,null,null,null,null,null,null,null,null,null,null,null,"    {s2c_SE:}"]
[null,null,null,null,null,null,null,null,null,null,null,null,"           N79.1.1 - Travel agency activities    {s2c_NC:N7911}",null,null,null,null,null,null,null,null,null,null,null,null,null,null,null,null,null,null,null,null,null,null,null,null,null,null,null,null,null,"    {s2c_SE:}"]
[null,null,null,null,null,null,null,null,null,null,null,null,"           N79.1.2 - Tour operator activities    {s2c_NC:N7912}",null,null,null,null,null,null,null,null,null,null,null,null,null,null,null,null,null,null,null,null,null,null,null,null,null,null,null,null,null,"    {s2c_SE:}"]
[null,null,null,null,null,null,null,null,null,null,null,null,"        N79.9 - Other reservation service and related activities    {s2c_NC:N799}",null,null,null,null,null,null,null,null,null,null,null,null,null,null,null,null,null,null,null,null,null,null,null,null,null,null,null,null,null,"    {s2c_SE:}"]
[null,null,null,null,null,null,null,null,null,null,null,null,"           N79.9.0 - Other reservation service and related activities    {s2c_NC:N7990}",null,null,null,null,null,null,null,null,null,null,null,null,null,null,null,null,null,null,null,null,null,null,null,null,null,null,null,null,null,"    {s2c_SE:}"]
[null,null,null,null,null,null,null,null,null,null,null,null,"     N80 - Security and investigation activities    {s2c_NC:N80}",null,null,null,null,null,null,null,null,null,null,null,null,null,null,null,null,null,null,null,null,null,null,null,null,null,null,null,null,null,"    {s2c_SE:}"]
[null,null,null,null,null,null,null,null,null,null,null,null,"        N80.1 - Private security activities    {s2c_NC:N801}",null,null,null,null,null,null,null,null,null,null,null,null,null,null,null,null,null,null,null,null,null,null,null,null,null,null,null,null,null,"    {s2c_SE:}"]
[null,null,null,null,null,null,null,null,null,null,null,null,"           N80.1.0 - Private security activities    {s2c_NC:N8010}",null,null,null,null,null,null,null,null,null,null,null,null,null,null,null,null,null,null,null,null,null,null,null,null,null,null,null,null,null,"    {s2c_SE:}"]
[null,null,null,null,null,null,null,null,null,null,null,null,"        N80.2 - Security systems service activities    {s2c_NC:N802}",null,null,null,null,null,null,null,null,null,null,null,null,null,null,null,null,null,null,null,null,null,null,null,null,null,null,null,null,null,"    {s2c_SE:}"]
[null,null,null,null,null,null,null,null,null,null,null,null,"           N80.2.0 - Security systems service activities    {s2c_NC:N8020}",null,null,null,null,null,null,null,null,null,null,null,null,null,null,null,null,null,null,null,null,null,null,null,null,null,null,null,null,null,"    {s2c_SE:}"]
[null,null,null,null,null,null,null,null,null,null,null,null,"        N80.3 - Investigation activities    {s2c_NC:N803}",null,null,null,null,null,null,null,null,null,null,null,null,null,null,null,null,null,null,null,null,null,null,null,null,null,null,null,null,null,"    {s2c_SE:}"]
[null,null,null,null,null,null,null,null,null,null,null,null,"           N80.3.0 - Investigation activities    {s2c_NC:N8030}",null,null,null,null,null,null,null,null,null,null,null,null,null,null,null,null,null,null,null,null,null,null,null,null,null,null,null,null,null,"    {s2c_SE:}"]
[null,null,null,null,null,null,null,null,null,null,null,null,"     N81 - Services to buildings and landscape activities    {s2c_NC:N81}",null,null,null,null,null,null,null,null,null,null,null,null,null,null,null,null,null,null,null,null,null,null,null,null,null,null,null,null,null,"    {s2c_SE:}"]
[null,null,null,null,null,null,null,null,null,null,null,null,"        N81.1 - Combined facilities support activities    {s2c_NC:N811}",null,null,null,null,null,null,null,null,null,null,null,null,null,null,null,null,null,null,null,null,null,null,null,null,null,null,null,null,null,"    {s2c_SE:}"]
[null,null,null,null,null,null,null,null,null,null,null,null,"           N81.1.0 - Combined facilities support activities    {s2c_NC:N8110}",null,null,null,null,null,null,null,null,null,null,null,null,null,null,null,null,null,null,null,null,null,null,null,null,null,null,null,null,null,"    {s2c_SE:}"]
[null,null,null,null,null,null,null,null,null,null,null,null,"        N81.2 - Cleaning activities    {s2c_NC:N812}",null,null,null,null,null,null,null,null,null,null,null,null,null,null,null,null,null,null,null,null,null,null,null,null,null,null,null,null,null,"    {s2c_SE:}"]
[null,null,null,null,null,null,null,null,null,null,null,null,"           N81.2.1 - General cleaning of buildings    {s2c_NC:N8121}",null,null,null,null,null,null,null,null,null,null,null,null,null,null,null,null,null,null,null,null,null,null,null,null,null,null,null,null,null,"    {s2c_SE:}"]
[null,null,null,null,null,null,null,null,null,null,null,null,"           N81.2.2 - Other building and industrial cleaning activities    {s2c_NC:N8122}",null,null,null,null,null,null,null,null,null,null,null,null,null,null,null,null,null,null,null,null,null,null,null,null,null,null,null,null,null,"    {s2c_SE:}"]
[null,null,null,null,null,null,null,null,null,null,null,null,"           N81.2.9 - Other cleaning activities    {s2c_NC:N8129}",null,null,null,null,null,null,null,null,null,null,null,null,null,null,null,null,null,null,null,null,null,null,null,null,null,null,null,null,null,"    {s2c_SE:}"]
[null,null,null,null,null,null,null,null,null,null,null,null,"        N81.3 - Landscape service activities    {s2c_NC:N813}",null,null,null,null,null,null,null,null,null,null,null,null,null,null,null,null,null,null,null,null,null,null,null,null,null,null,null,null,null,"    {s2c_SE:}"]
[null,null,null,null,null,null,null,null,null,null,null,null,"           N81.3.0 - Landscape service activities    {s2c_NC:N8130}",null,null,null,null,null,null,null,null,null,null,null,null,null,null,null,null,null,null,null,null,null,null,null,null,null,null,null,null,null,"    {s2c_SE:}"]
[null,null,null,null,null,null,null,null,null,null,null,null,"     N82 - Office administrative, office support and other business support activities    {s2c_NC:N82}",null,null,null,null,null,null,null,null,null,null,null,null,null,null,null,null,null,null,null,null,null,null,null,null,null,null,null,null,null,"    {s2c_SE:}"]
[null,null,null,null,null,null,null,null,null,null,null,null,"        N82.1 - Office administrative and support activities    {s2c_NC:N821}",null,null,null,null,null,null,null,null,null,null,null,null,null,null,null,null,null,null,null,null,null,null,null,null,null,null,null,null,null,"    {s2c_SE:}"]
[null,null,null,null,null,null,null,null,null,null,null,null,"           N82.1.1 - Combined office administrative service activities    {s2c_NC:N8211}",null,null,null,null,null,null,null,null,null,null,null,null,null,null,null,null,null,null,null,null,null,null,null,null,null,null,null,null,null,"    {s2c_SE:}"]
[null,null,null,null,null,null,null,null,null,null,null,null,"           N82.1.9 - Photocopying, document preparation and other specialised office support activities    {s2c_NC:N8219}",null,null,null,null,null,null,null,null,null,null,null,null,null,null,null,null,null,null,null,null,null,null,null,null,null,null,null,null,null,"    {s2c_SE:}"]
[null,null,null,null,null,null,null,null,null,null,null,null,"        N82.2 - Activities of call centres    {s2c_NC:N822}",null,null,null,null,null,null,null,null,null,null,null,null,null,null,null,null,null,null,null,null,null,null,null,null,null,null,null,null,null,"    {s2c_SE:}"]
[null,null,null,null,null,null,null,null,null,null,null,null,"           N82.2.0 - Activities of call centres    {s2c_NC:N8220}",null,null,null,null,null,null,null,null,null,null,null,null,null,null,null,null,null,null,null,null,null,null,null,null,null,null,null,null,null,"    {s2c_SE:}"]
[null,null,null,null,null,null,null,null,null,null,null,null,"        N82.3 - Organisation of conventions and trade shows    {s2c_NC:N823}",null,null,null,null,null,null,null,null,null,null,null,null,null,null,null,null,null,null,null,null,null,null,null,null,null,null,null,null,null,"    {s2c_SE:}"]
[null,null,null,null,null,null,null,null,null,null,null,null,"           N82.3.0 - Organisation of conventions and trade shows    {s2c_NC:N8230}",null,null,null,null,null,null,null,null,null,null,null,null,null,null,null,null,null,null,null,null,null,null,null,null,null,null,null,null,null,"    {s2c_SE:}"]
[null,null,null,null,null,null,null,null,null,null,null,null,"        N82.9 - Business support service activities n.e.c.    {s2c_NC:N829}",null,null,null,null,null,null,null,null,null,null,null,null,null,null,null,null,null,null,null,null,null,null,null,null,null,null,null,null,null,"    {s2c_SE:}"]
[null,null,null,null,null,null,null,null,null,null,null,null,"           N82.9.1 - Activities of collection agencies and credit bureaus    {s2c_NC:N8291}",null,null,null,null,null,null,null,null,null,null,null,null,null,null,null,null,null,null,null,null,null,null,null,null,null,null,null,null,null,"    {s2c_SE:}"]
[null,null,null,null,null,null,null,null,null,null,null,null,"           N82.9.2 - Packaging activities    {s2c_NC:N8292}",null,null,null,null,null,null,null,null,null,null,null,null,null,null,null,null,null,null,null,null,null,null,null,null,null,null,null,null,null,"    {s2c_SE:}"]
[null,null,null,null,null,null,null,null,null,null,null,null,"           N82.9.9 - Other business support service activities n.e.c.    {s2c_NC:N8299}",null,null,null,null,null,null,null,null,null,null,null,null,null,null,null,null,null,null,null,null,null,null,null,null,null,null,null,null,null,"    {s2c_SE:}"]
[null,null,null,null,null,null,null,null,null,null,null,null,"  O - Public administration and defence; compulsory social security    {s2c_NC:O}",null,null,null,null,null,null,null,null,null,null,null,null,null,null,null,null,null,null,null,null,null,null,null,null,null,null,null,null,null,"    {s2c_SE:}"]
[null,null,null,null,null,null,null,null,null,null,null,null,"     O84 - Public administration and defence; compulsory social security    {s2c_NC:O84}",null,null,null,null,null,null,null,null,null,null,null,null,null,null,null,null,null,null,null,null,null,null,null,null,null,null,null,null,null,"    {s2c_SE:}"]
[null,null,null,null,null,null,null,null,null,null,null,null,"        O84.1 - Administration of the State and the economic and social policy of the community    {s2c_NC:O841}",null,null,null,null,null,null,null,null,null,null,null,null,null,null,null,null,null,null,null,null,null,null,null,null,null,null,null,null,null,"    {s2c_SE:}"]
[null,null,null,null,null,null,null,null,null,null,null,null,"           O84.1.1 - General public administration activities    {s2c_NC:O8411}",null,null,null,null,null,null,null,null,null,null,null,null,null,null,null,null,null,null,null,null,null,null,null,null,null,null,null,null,null,"    {s2c_SE:}"]
[null,null,null,null,null,null,null,null,null,null,null,null,"           O84.1.2 - Regulation of the activities of providing health care, education, cultural services and other social services, excluding social security    {s2c_NC:O8412}",null,null,null,null,null,null,null,null,null,null,null,null,null,null,null,null,null,null,null,null,null,null,null,null,null,null,null,null,null,"    {s2c_SE:}"]
[null,null,null,null,null,null,null,null,null,null,null,null,"           O84.1.3 - Regulation of and contribution to more efficient operation of businesses    {s2c_NC:O8413}",null,null,null,null,null,null,null,null,null,null,null,null,null,null,null,null,null,null,null,null,null,null,null,null,null,null,null,null,null,"    {s2c_SE:}"]
[null,null,null,null,null,null,null,null,null,null,null,null,"        O84.2 - Provision of services to the community as a whole    {s2c_NC:O842}",null,null,null,null,null,null,null,null,null,null,null,null,null,null,null,null,null,null,null,null,null,null,null,null,null,null,null,null,null,"    {s2c_SE:}"]
[null,null,null,null,null,null,null,null,null,null,null,null,"           O84.2.1 - Foreign affairs    {s2c_NC:O8421}",null,null,null,null,null,null,null,null,null,null,null,null,null,null,null,null,null,null,null,null,null,null,null,null,null,null,null,null,null,"    {s2c_SE:}"]
[null,null,null,null,null,null,null,null,null,null,null,null,"           O84.2.2 - Defence activities    {s2c_NC:O8422}",null,null,null,null,null,null,null,null,null,null,null,null,null,null,null,null,null,null,null,null,null,null,null,null,null,null,null,null,null,"    {s2c_SE:}"]
[null,null,null,null,null,null,null,null,null,null,null,null,"           O84.2.3 - Justice and judicial activities    {s2c_NC:O8423}",null,null,null,null,null,null,null,null,null,null,null,null,null,null,null,null,null,null,null,null,null,null,null,null,null,null,null,null,null,"    {s2c_SE:}"]
[null,null,null,null,null,null,null,null,null,null,null,null,"           O84.2.4 - Public order and safety activities    {s2c_NC:O8424}",null,null,null,null,null,null,null,null,null,null,null,null,null,null,null,null,null,null,null,null,null,null,null,null,null,null,null,null,null,"    {s2c_SE:}"]
[null,null,null,null,null,null,null,null,null,null,null,null,"           O84.2.5 - Fire service activities    {s2c_NC:O8425}",null,null,null,null,null,null,null,null,null,null,null,null,null,null,null,null,null,null,null,null,null,null,null,null,null,null,null,null,null,"    {s2c_SE:}"]
[null,null,null,null,null,null,null,null,null,null,null,null,"        O84.3 - Compulsory social security activities    {s2c_NC:O843}",null,null,null,null,null,null,null,null,null,null,null,null,null,null,null,null,null,null,null,null,null,null,null,null,null,null,null,null,null,"    {s2c_SE:}"]
[null,null,null,null,null,null,null,null,null,null,null,null,"           O84.3.0 - Compulsory social security activities    {s2c_NC:O8430}",null,null,null,null,null,null,null,null,null,null,null,null,null,null,null,null,null,null,null,null,null,null,null,null,null,null,null,null,null,"    {s2c_SE:}"]
[null,null,null,null,null,null,null,null,null,null,null,null,"  P - Education    {s2c_NC:P}",null,null,null,null,null,null,null,null,null,null,null,null,null,null,null,null,null,null,null,null,null,null,null,null,null,null,null,null,null,"    {s2c_SE:}"]
[null,null,null,null,null,null,null,null,null,null,null,null,"     P85 - Education    {s2c_NC:P85}",null,null,null,null,null,null,null,null,null,null,null,null,null,null,null,null,null,null,null,null,null,null,null,null,null,null,null,null,null,"    {s2c_SE:}"]
[null,null,null,null,null,null,null,null,null,null,null,null,"        P85.1 - Pre-primary education    {s2c_NC:P851}",null,null,null,null,null,null,null,null,null,null,null,null,null,null,null,null,null,null,null,null,null,null,null,null,null,null,null,null,null,"    {s2c_SE:}"]
[null,null,null,null,null,null,null,null,null,null,null,null,"           P85.1.0 - Pre-primary education    {s2c_NC:P8510}",null,null,null,null,null,null,null,null,null,null,null,null,null,null,null,null,null,null,null,null,null,null,null,null,null,null,null,null,null,"    {s2c_SE:}"]
[null,null,null,null,null,null,null,null,null,null,null,null,"        P85.2 - Primary education    {s2c_NC:P852}",null,null,null,null,null,null,null,null,null,null,null,null,null,null,null,null,null,null,null,null,null,null,null,null,null,null,null,null,null,"    {s2c_SE:}"]
[null,null,null,null,null,null,null,null,null,null,null,null,"           P85.2.0 - Primary education    {s2c_NC:P8520}",null,null,null,null,null,null,null,null,null,null,null,null,null,null,null,null,null,null,null,null,null,null,null,null,null,null,null,null,null,"    {s2c_SE:}"]
[null,null,null,null,null,null,null,null,null,null,null,null,"        P85.3 - Secondary education    {s2c_NC:P853}",null,null,null,null,null,null,null,null,null,null,null,null,null,null,null,null,null,null,null,null,null,null,null,null,null,null,null,null,null,"    {s2c_SE:}"]
[null,null,null,null,null,null,null,null,null,null,null,null,"           P85.3.1 - General secondary education    {s2c_NC:P8531}",null,null,null,null,null,null,null,null,null,null,null,null,null,null,null,null,null,null,null,null,null,null,null,null,null,null,null,null,null,"    {s2c_SE:}"]
[null,null,null,null,null,null,null,null,null,null,null,null,"           P85.3.2 - Technical and vocational secondary education    {s2c_NC:P8532}",null,null,null,null,null,null,null,null,null,null,null,null,null,null,null,null,null,null,null,null,null,null,null,null,null,null,null,null,null,"    {s2c_SE:}"]
[null,null,null,null,null,null,null,null,null,null,null,null,"        P85.4 - Higher education    {s2c_NC:P854}",null,null,null,null,null,null,null,null,null,null,null,null,null,null,null,null,null,null,null,null,null,null,null,null,null,null,null,null,null,"    {s2c_SE:}"]
[null,null,null,null,null,null,null,null,null,null,null,null,"           P85.4.1 - Post-secondary non-tertiary education    {s2c_NC:P8541}",null,null,null,null,null,null,null,null,null,null,null,null,null,null,null,null,null,null,null,null,null,null,null,null,null,null,null,null,null,"    {s2c_SE:}"]
[null,null,null,null,null,null,null,null,null,null,null,null,"           P85.4.2 - Tertiary education    {s2c_NC:P8542}",null,null,null,null,null,null,null,null,null,null,null,null,null,null,null,null,null,null,null,null,null,null,null,null,null,null,null,null,null,"    {s2c_SE:}"]
[null,null,null,null,null,null,null,null,null,null,null,null,"        P85.5 - Other education    {s2c_NC:P855}",null,null,null,null,null,null,null,null,null,null,null,null,null,null,null,null,null,null,null,null,null,null,null,null,null,null,null,null,null,"    {s2c_SE:}"]
[null,null,null,null,null,null,null,null,null,null,null,null,"           P85.5.1 - Sports and recreation education    {s2c_NC:P8551}",null,null,null,null,null,null,null,null,null,null,null,null,null,null,null,null,null,null,null,null,null,null,null,null,null,null,null,null,null,"    {s2c_SE:}"]
[null,null,null,null,null,null,null,null,null,null,null,null,"           P85.5.2 - Cultural education    {s2c_NC:P8552}",null,null,null,null,null,null,null,null,null,null,null,null,null,null,null,null,null,null,null,null,null,null,null,null,null,null,null,null,null,"    {s2c_SE:}"]
[null,null,null,null,null,null,null,null,null,null,null,null,"           P85.5.3 - Driving school activities    {s2c_NC:P8553}",null,null,null,null,null,null,null,null,null,null,null,null,null,null,null,null,null,null,null,null,null,null,null,null,null,null,null,null,null,"    {s2c_SE:}"]
[null,null,null,null,null,null,null,null,null,null,null,null,"           P85.5.9 - Other education n.e.c.    {s2c_NC:P8559}",null,null,null,null,null,null,null,null,null,null,null,null,null,null,null,null,null,null,null,null,null,null,null,null,null,null,null,null,null,"    {s2c_SE:}"]
[null,null,null,null,null,null,null,null,null,null,null,null,"        P85.6 - Educational support activities    {s2c_NC:P856}",null,null,null,null,null,null,null,null,null,null,null,null,null,null,null,null,null,null,null,null,null,null,null,null,null,null,null,null,null,"    {s2c_SE:}"]
[null,null,null,null,null,null,null,null,null,null,null,null,"           P85.6.0 - Educational support activities    {s2c_NC:P8560}",null,null,null,null,null,null,null,null,null,null,null,null,null,null,null,null,null,null,null,null,null,null,null,null,null,null,null,null,null,"    {s2c_SE:}"]
[null,null,null,null,null,null,null,null,null,null,null,null,"  Q - Human health and social work activities    {s2c_NC:Q}",null,null,null,null,null,null,null,null,null,null,null,null,null,null,null,null,null,null,null,null,null,null,null,null,null,null,null,null,null,"    {s2c_SE:}"]
[null,null,null,null,null,null,null,null,null,null,null,null,"     Q86 - Human health activities    {s2c_NC:Q86}",null,null,null,null,null,null,null,null,null,null,null,null,null,null,null,null,null,null,null,null,null,null,null,null,null,null,null,null,null,"    {s2c_SE:}"]
[null,null,null,null,null,null,null,null,null,null,null,null,"        Q86.1 - Hospital activities    {s2c_NC:Q861}",null,null,null,null,null,null,null,null,null,null,null,null,null,null,null,null,null,null,null,null,null,null,null,null,null,null,null,null,null,"    {s2c_SE:}"]
[null,null,null,null,null,null,null,null,null,null,null,null,"           Q86.1.0 - Hospital activities    {s2c_NC:Q8610}",null,null,null,null,null,null,null,null,null,null,null,null,null,null,null,null,null,null,null,null,null,null,null,null,null,null,null,null,null,"    {s2c_SE:}"]
[null,null,null,null,null,null,null,null,null,null,null,null,"        Q86.2 - Medical and dental practice activities    {s2c_NC:Q862}",null,null,null,null,null,null,null,null,null,null,null,null,null,null,null,null,null,null,null,null,null,null,null,null,null,null,null,null,null,"    {s2c_SE:}"]
[null,null,null,null,null,null,null,null,null,null,null,null,"           Q86.2.1 - General medical practice activities    {s2c_NC:Q8621}",null,null,null,null,null,null,null,null,null,null,null,null,null,null,null,null,null,null,null,null,null,null,null,null,null,null,null,null,null,"    {s2c_SE:}"]
[null,null,null,null,null,null,null,null,null,null,null,null,"           Q86.2.2 - Specialist medical practice activities    {s2c_NC:Q8622}",null,null,null,null,null,null,null,null,null,null,null,null,null,null,null,null,null,null,null,null,null,null,null,null,null,null,null,null,null,"    {s2c_SE:}"]
[null,null,null,null,null,null,null,null,null,null,null,null,"           Q86.2.3 - Dental practice activities    {s2c_NC:Q8623}",null,null,null,null,null,null,null,null,null,null,null,null,null,null,null,null,null,null,null,null,null,null,null,null,null,null,null,null,null,"    {s2c_SE:}"]
[null,null,null,null,null,null,null,null,null,null,null,null,"        Q86.9 - Other human health activities    {s2c_NC:Q869}",null,null,null,null,null,null,null,null,null,null,null,null,null,null,null,null,null,null,null,null,null,null,null,null,null,null,null,null,null,"    {s2c_SE:}"]
[null,null,null,null,null,null,null,null,null,null,null,null,"           Q86.9.0 - Other human health activities    {s2c_NC:Q8690}",null,null,null,null,null,null,null,null,null,null,null,null,null,null,null,null,null,null,null,null,null,null,null,null,null,null,null,null,null,"    {s2c_SE:}"]
[null,null,null,null,null,null,null,null,null,null,null,null,"     Q87 - Residential care activities    {s2c_NC:Q87}",null,null,null,null,null,null,null,null,null,null,null,null,null,null,null,null,null,null,null,null,null,null,null,null,null,null,null,null,null,"    {s2c_SE:}"]
[null,null,null,null,null,null,null,null,null,null,null,null,"        Q87.1 - Residential nursing care activities    {s2c_NC:Q871}",null,null,null,null,null,null,null,null,null,null,null,null,null,null,null,null,null,null,null,null,null,null,null,null,null,null,null,null,null,"    {s2c_SE:}"]
[null,null,null,null,null,null,null,null,null,null,null,null,"           Q87.1.0 - Residential nursing care activities    {s2c_NC:Q8710}",null,null,null,null,null,null,null,null,null,null,null,null,null,null,null,null,null,null,null,null,null,null,null,null,null,null,null,null,null,"    {s2c_SE:}"]
[null,null,null,null,null,null,null,null,null,null,null,null,"        Q87.2 - Residential care activities for mental retardation, mental health and substance abuse    {s2c_NC:Q872}",null,null,null,null,null,null,null,null,null,null,null,null,null,null,null,null,null,null,null,null,null,null,null,null,null,null,null,null,null,"    {s2c_SE:}"]
[null,null,null,null,null,null,null,null,null,null,null,null,"           Q87.2.0 - Residential care activities for mental retardation, mental health and substance abuse    {s2c_NC:Q8720}",null,null,null,null,null,null,null,null,null,null,null,null,null,null,null,null,null,null,null,null,null,null,null,null,null,null,null,null,null,"    {s2c_SE:}"]
[null,null,null,null,null,null,null,null,null,null,null,null,"        Q87.3 - Residential care activities for the elderly and disabled    {s2c_NC:Q873}",null,null,null,null,null,null,null,null,null,null,null,null,null,null,null,null,null,null,null,null,null,null,null,null,null,null,null,null,null,"    {s2c_SE:}"]
[null,null,null,null,null,null,null,null,null,null,null,null,"           Q87.3.0 - Residential care activities for the elderly and disabled    {s2c_NC:Q8730}",null,null,null,null,null,null,null,null,null,null,null,null,null,null,null,null,null,null,null,null,null,null,null,null,null,null,null,null,null,"    {s2c_SE:}"]
[null,null,null,null,null,null,null,null,null,null,null,null,"        Q87.9 - Other residential care activities    {s2c_NC:Q879}",null,null,null,null,null,null,null,null,null,null,null,null,null,null,null,null,null,null,null,null,null,null,null,null,null,null,null,null,null,"    {s2c_SE:}"]
[null,null,null,null,null,null,null,null,null,null,null,null,"           Q87.9.0 - Other residential care activities    {s2c_NC:Q8790}",null,null,null,null,null,null,null,null,null,null,null,null,null,null,null,null,null,null,null,null,null,null,null,null,null,null,null,null,null,"    {s2c_SE:}"]
[null,null,null,null,null,null,null,null,null,null,null,null,"     Q88 - Social work activities without accommodation    {s2c_NC:Q88}",null,null,null,null,null,null,null,null,null,null,null,null,null,null,null,null,null,null,null,null,null,null,null,null,null,null,null,null,null,"    {s2c_SE:}"]
[null,null,null,null,null,null,null,null,null,null,null,null,"        Q88.1 - Social work activities without accommodation for the elderly and disabled    {s2c_NC:Q881}",null,null,null,null,null,null,null,null,null,null,null,null,null,null,null,null,null,null,null,null,null,null,null,null,null,null,null,null,null,"    {s2c_SE:}"]
[null,null,null,null,null,null,null,null,null,null,null,null,"           Q88.1.0 - Social work activities without accommodation for the elderly and disabled    {s2c_NC:Q8810}",null,null,null,null,null,null,null,null,null,null,null,null,null,null,null,null,null,null,null,null,null,null,null,null,null,null,null,null,null,"    {s2c_SE:}"]
[null,null,null,null,null,null,null,null,null,null,null,null,"        Q88.9 - Other social work activities without accommodation    {s2c_NC:Q889}",null,null,null,null,null,null,null,null,null,null,null,null,null,null,null,null,null,null,null,null,null,null,null,null,null,null,null,null,null,"    {s2c_SE:}"]
[null,null,null,null,null,null,null,null,null,null,null,null,"           Q88.9.1 - Child day-care activities    {s2c_NC:Q8891}",null,null,null,null,null,null,null,null,null,null,null,null,null,null,null,null,null,null,null,null,null,null,null,null,null,null,null,null,null,"    {s2c_SE:}"]
[null,null,null,null,null,null,null,null,null,null,null,null,"           Q88.9.9 - Other social work activities without accommodation n.e.c.    {s2c_NC:Q8899}",null,null,null,null,null,null,null,null,null,null,null,null,null,null,null,null,null,null,null,null,null,null,null,null,null,null,null,null,null,"    {s2c_SE:}"]
[null,null,null,null,null,null,null,null,null,null,null,null,"  R - Arts, entertainment and recreation    {s2c_NC:R}",null,null,null,null,null,null,null,null,null,null,null,null,null,null,null,null,null,null,null,null,null,null,null,null,null,null,null,null,null,"    {s2c_SE:}"]
[null,null,null,null,null,null,null,null,null,null,null,null,"     R90 - Creative, arts and entertainment activities    {s2c_NC:R90}",null,null,null,null,null,null,null,null,null,null,null,null,null,null,null,null,null,null,null,null,null,null,null,null,null,null,null,null,null,"    {s2c_SE:}"]
[null,null,null,null,null,null,null,null,null,null,null,null,"        R90.0 - Creative, arts and entertainment activities    {s2c_NC:R900}",null,null,null,null,null,null,null,null,null,null,null,null,null,null,null,null,null,null,null,null,null,null,null,null,null,null,null,null,null,"    {s2c_SE:}"]
[null,null,null,null,null,null,null,null,null,null,null,null,"           R90.0.1 - Performing arts    {s2c_NC:R9001}",null,null,null,null,null,null,null,null,null,null,null,null,null,null,null,null,null,null,null,null,null,null,null,null,null,null,null,null,null,"    {s2c_SE:}"]
[null,null,null,null,null,null,null,null,null,null,null,null,"           R90.0.2 - Support activities to performing arts    {s2c_NC:R9002}",null,null,null,null,null,null,null,null,null,null,null,null,null,null,null,null,null,null,null,null,null,null,null,null,null,null,null,null,null,"    {s2c_SE:}"]
[null,null,null,null,null,null,null,null,null,null,null,null,"           R90.0.3 - Artistic creation    {s2c_NC:R9003}",null,null,null,null,null,null,null,null,null,null,null,null,null,null,null,null,null,null,null,null,null,null,null,null,null,null,null,null,null,"    {s2c_SE:}"]
[null,null,null,null,null,null,null,null,null,null,null,null,"           R90.0.4 - Operation of arts facilities    {s2c_NC:R9004}",null,null,null,null,null,null,null,null,null,null,null,null,null,null,null,null,null,null,null,null,null,null,null,null,null,null,null,null,null,"    {s2c_SE:}"]
[null,null,null,null,null,null,null,null,null,null,null,null,"     R91 - Libraries, archives, museums and other cultural activities    {s2c_NC:R91}",null,null,null,null,null,null,null,null,null,null,null,null,null,null,null,null,null,null,null,null,null,null,null,null,null,null,null,null,null,"    {s2c_SE:}"]
[null,null,null,null,null,null,null,null,null,null,null,null,"        R91.0 - Libraries, archives, museums and other cultural activities    {s2c_NC:R910}",null,null,null,null,null,null,null,null,null,null,null,null,null,null,null,null,null,null,null,null,null,null,null,null,null,null,null,null,null,"    {s2c_SE:}"]
[null,null,null,null,null,null,null,null,null,null,null,null,"           R91.0.1 - Library and archives activities    {s2c_NC:R9101}",null,null,null,null,null,null,null,null,null,null,null,null,null,null,null,null,null,null,null,null,null,null,null,null,null,null,null,null,null,"    {s2c_SE:}"]
[null,null,null,null,null,null,null,null,null,null,null,null,"           R91.0.2 - Museums activities    {s2c_NC:R9102}",null,null,null,null,null,null,null,null,null,null,null,null,null,null,null,null,null,null,null,null,null,null,null,null,null,null,null,null,null,"    {s2c_SE:}"]
[null,null,null,null,null,null,null,null,null,null,null,null,"           R91.0.3 - Operation of historical sites and buildings and similar visitor attractions    {s2c_NC:R9103}",null,null,null,null,null,null,null,null,null,null,null,null,null,null,null,null,null,null,null,null,null,null,null,null,null,null,null,null,null,"    {s2c_SE:}"]
[null,null,null,null,null,null,null,null,null,null,null,null,"           R91.0.4 - Botanical and zoological gardens and nature reserves activities    {s2c_NC:R9104}",null,null,null,null,null,null,null,null,null,null,null,null,null,null,null,null,null,null,null,null,null,null,null,null,null,null,null,null,null,"    {s2c_SE:}"]
[null,null,null,null,null,null,null,null,null,null,null,null,"     R92 - Gambling and betting activities    {s2c_NC:R92}",null,null,null,null,null,null,null,null,null,null,null,null,null,null,null,null,null,null,null,null,null,null,null,null,null,null,null,null,null,"    {s2c_SE:}"]
[null,null,null,null,null,null,null,null,null,null,null,null,"        R92.0 - Gambling and betting activities    {s2c_NC:R920}",null,null,null,null,null,null,null,null,null,null,null,null,null,null,null,null,null,null,null,null,null,null,null,null,null,null,null,null,null,"    {s2c_SE:}"]
[null,null,null,null,null,null,null,null,null,null,null,null,"           R92.0.0 - Gambling and betting activities    {s2c_NC:R9200}",null,null,null,null,null,null,null,null,null,null,null,null,null,null,null,null,null,null,null,null,null,null,null,null,null,null,null,null,null,"    {s2c_SE:}"]
[null,null,null,null,null,null,null,null,null,null,null,null,"     R93 - Sports activities and amusement and recreation activities    {s2c_NC:R93}",null,null,null,null,null,null,null,null,null,null,null,null,null,null,null,null,null,null,null,null,null,null,null,null,null,null,null,null,null,"    {s2c_SE:}"]
[null,null,null,null,null,null,null,null,null,null,null,null,"        R93.1 - Sports activities    {s2c_NC:R931}",null,null,null,null,null,null,null,null,null,null,null,null,null,null,null,null,null,null,null,null,null,null,null,null,null,null,null,null,null,"    {s2c_SE:}"]
[null,null,null,null,null,null,null,null,null,null,null,null,"           R93.1.1 - Operation of sports facilities    {s2c_NC:R9311}",null,null,null,null,null,null,null,null,null,null,null,null,null,null,null,null,null,null,null,null,null,null,null,null,null,null,null,null,null,"    {s2c_SE:}"]
[null,null,null,null,null,null,null,null,null,null,null,null,"           R93.1.2 - Activities of sport clubs    {s2c_NC:R9312}",null,null,null,null,null,null,null,null,null,null,null,null,null,null,null,null,null,null,null,null,null,null,null,null,null,null,null,null,null,"    {s2c_SE:}"]
[null,null,null,null,null,null,null,null,null,null,null,null,"           R93.1.3 - Fitness facilities    {s2c_NC:R9313}",null,null,null,null,null,null,null,null,null,null,null,null,null,null,null,null,null,null,null,null,null,null,null,null,null,null,null,null,null,"    {s2c_SE:}"]
[null,null,null,null,null,null,null,null,null,null,null,null,"           R93.1.9 - Other sports activities    {s2c_NC:R9319}",null,null,null,null,null,null,null,null,null,null,null,null,null,null,null,null,null,null,null,null,null,null,null,null,null,null,null,null,null,"    {s2c_SE:}"]
[null,null,null,null,null,null,null,null,null,null,null,null,"        R93.2 - Amusement and recreation activities    {s2c_NC:R932}",null,null,null,null,null,null,null,null,null,null,null,null,null,null,null,null,null,null,null,null,null,null,null,null,null,null,null,null,null,"    {s2c_SE:}"]
[null,null,null,null,null,null,null,null,null,null,null,null,"           R93.2.1 - Activities of amusement parks and theme parks    {s2c_NC:R9321}",null,null,null,null,null,null,null,null,null,null,null,null,null,null,null,null,null,null,null,null,null,null,null,null,null,null,null,null,null,"    {s2c_SE:}"]
[null,null,null,null,null,null,null,null,null,null,null,null,"           R93.2.9 - Other amusement and recreation activities    {s2c_NC:R9329}",null,null,null,null,null,null,null,null,null,null,null,null,null,null,null,null,null,null,null,null,null,null,null,null,null,null,null,null,null,"    {s2c_SE:}"]
[null,null,null,null,null,null,null,null,null,null,null,null,"  S - Other services activities    {s2c_NC:S}",null,null,null,null,null,null,null,null,null,null,null,null,null,null,null,null,null,null,null,null,null,null,null,null,null,null,null,null,null,"    {s2c_SE:}"]
[null,null,null,null,null,null,null,null,null,null,null,null,"     S94 - Activities of membership organisations    {s2c_NC:S94}",null,null,null,null,null,null,null,null,null,null,null,null,null,null,null,null,null,null,null,null,null,null,null,null,null,null,null,null,null,"    {s2c_SE:}"]
[null,null,null,null,null,null,null,null,null,null,null,null,"        S94.1 - Activities of business, employers and professional membership organisations    {s2c_NC:S941}",null,null,null,null,null,null,null,null,null,null,null,null,null,null,null,null,null,null,null,null,null,null,null,null,null,null,null,null,null,"    {s2c_SE:}"]
[null,null,null,null,null,null,null,null,null,null,null,null,"           S94.1.1 - Activities of business and employers membership organisations    {s2c_NC:S9411}",null,null,null,null,null,null,null,null,null,null,null,null,null,null,null,null,null,null,null,null,null,null,null,null,null,null,null,null,null,"    {s2c_SE:}"]
[null,null,null,null,null,null,null,null,null,null,null,null,"           S94.1.2 - Activities of professional membership organisations    {s2c_NC:S9412}",null,null,null,null,null,null,null,null,null,null,null,null,null,null,null,null,null,null,null,null,null,null,null,null,null,null,null,null,null,"    {s2c_SE:}"]
[null,null,null,null,null,null,null,null,null,null,null,null,"        S94.2 - Activities of trade unions    {s2c_NC:S942}",null,null,null,null,null,null,null,null,null,null,null,null,null,null,null,null,null,null,null,null,null,null,null,null,null,null,null,null,null,"    {s2c_SE:}"]
[null,null,null,null,null,null,null,null,null,null,null,null,"           S94.2.0 - Activities of trade unions    {s2c_NC:S9420}",null,null,null,null,null,null,null,null,null,null,null,null,null,null,null,null,null,null,null,null,null,null,null,null,null,null,null,null,null,"    {s2c_SE:}"]
[null,null,null,null,null,null,null,null,null,null,null,null,"        S94.9 - Activities of other membership organisations    {s2c_NC:S949}",null,null,null,null,null,null,null,null,null,null,null,null,null,null,null,null,null,null,null,null,null,null,null,null,null,null,null,null,null,"    {s2c_SE:}"]
[null,null,null,null,null,null,null,null,null,null,null,null,"           S94.9.1 - Activities of religious organisations    {s2c_NC:S9491}",null,null,null,null,null,null,null,null,null,null,null,null,null,null,null,null,null,null,null,null,null,null,null,null,null,null,null,null,null,"    {s2c_SE:}"]
[null,null,null,null,null,null,null,null,null,null,null,null,"           S94.9.2 - Activities of political organisations    {s2c_NC:S9492}",null,null,null,null,null,null,null,null,null,null,null,null,null,null,null,null,null,null,null,null,null,null,null,null,null,null,null,null,null,"    {s2c_SE:}"]
[null,null,null,null,null,null,null,null,null,null,null,null,"           S94.9.9 - Activities of other membership organisations n.e.c.    {s2c_NC:S9499}",null,null,null,null,null,null,null,null,null,null,null,null,null,null,null,null,null,null,null,null,null,null,null,null,null,null,null,null,null,"    {s2c_SE:}"]
[null,null,null,null,null,null,null,null,null,null,null,null,"     S95 - Repair of computers and personal and household goods    {s2c_NC:S95}",null,null,null,null,null,null,null,null,null,null,null,null,null,null,null,null,null,null,null,null,null,null,null,null,null,null,null,null,null,"    {s2c_SE:}"]
[null,null,null,null,null,null,null,null,null,null,null,null,"        S95.1 - Repair of computers and communication equipment    {s2c_NC:S951}",null,null,null,null,null,null,null,null,null,null,null,null,null,null,null,null,null,null,null,null,null,null,null,null,null,null,null,null,null,"    {s2c_SE:}"]
[null,null,null,null,null,null,null,null,null,null,null,null,"           S95.1.1 - Repair of computers and peripheral equipment    {s2c_NC:S9511}",null,null,null,null,null,null,null,null,null,null,null,null,null,null,null,null,null,null,null,null,null,null,null,null,null,null,null,null,null,"    {s2c_SE:}"]
[null,null,null,null,null,null,null,null,null,null,null,null,"           S95.1.2 - Repair of communication equipment    {s2c_NC:S9512}",null,null,null,null,null,null,null,null,null,null,null,null,null,null,null,null,null,null,null,null,null,null,null,null,null,null,null,null,null,"    {s2c_SE:}"]
[null,null,null,null,null,null,null,null,null,null,null,null,"        S95.2 - Repair of personal and household goods    {s2c_NC:S952}",null,null,null,null,null,null,null,null,null,null,null,null,null,null,null,null,null,null,null,null,null,null,null,null,null,null,null,null,null,"    {s2c_SE:}"]
[null,null,null,null,null,null,null,null,null,null,null,null,"           S95.2.1 - Repair of consumer electronics    {s2c_NC:S9521}",null,null,null,null,null,null,null,null,null,null,null,null,null,null,null,null,null,null,null,null,null,null,null,null,null,null,null,null,null,"    {s2c_SE:}"]
[null,null,null,null,null,null,null,null,null,null,null,null,"           S95.2.2 - Repair of household appliances and home and garden equipment    {s2c_NC:S9522}",null,null,null,null,null,null,null,null,null,null,null,null,null,null,null,null,null,null,null,null,null,null,null,null,null,null,null,null,null,"    {s2c_SE:}"]
[null,null,null,null,null,null,null,null,null,null,null,null,"           S95.2.3 - Repair of footwear and leather goods    {s2c_NC:S9523}",null,null,null,null,null,null,null,null,null,null,null,null,null,null,null,null,null,null,null,null,null,null,null,null,null,null,null,null,null,"    {s2c_SE:}"]
[null,null,null,null,null,null,null,null,null,null,null,null,"           S95.2.4 - Repair of furniture and home furnishings    {s2c_NC:S9524}",null,null,null,null,null,null,null,null,null,null,null,null,null,null,null,null,null,null,null,null,null,null,null,null,null,null,null,null,null,"    {s2c_SE:}"]
[null,null,null,null,null,null,null,null,null,null,null,null,"           S95.2.5 - Repair of watches, clocks and jewellery    {s2c_NC:S9525}",null,null,null,null,null,null,null,null,null,null,null,null,null,null,null,null,null,null,null,null,null,null,null,null,null,null,null,null,null,"    {s2c_SE:}"]
[null,null,null,null,null,null,null,null,null,null,null,null,"           S95.2.9 - Repair of other personal and household goods    {s2c_NC:S9529}",null,null,null,null,null,null,null,null,null,null,null,null,null,null,null,null,null,null,null,null,null,null,null,null,null,null,null,null,null,"    {s2c_SE:}"]
[null,null,null,null,null,null,null,null,null,null,null,null,"     S96 - Other personal service activities    {s2c_NC:S96}",null,null,null,null,null,null,null,null,null,null,null,null,null,null,null,null,null,null,null,null,null,null,null,null,null,null,null,null,null,"    {s2c_SE:}"]
[null,null,null,null,null,null,null,null,null,null,null,null,"        S96.0 - Other personal service activities    {s2c_NC:S960}",null,null,null,null,null,null,null,null,null,null,null,null,null,null,null,null,null,null,null,null,null,null,null,null,null,null,null,null,null,"    {s2c_SE:}"]
[null,null,null,null,null,null,null,null,null,null,null,null,"           S96.0.1 - Washing and (dry-)cleaning of textile and fur products    {s2c_NC:S9601}",null,null,null,null,null,null,null,null,null,null,null,null,null,null,null,null,null,null,null,null,null,null,null,null,null,null,null,null,null,"    {s2c_SE:}"]
[null,null,null,null,null,null,null,null,null,null,null,null,"           S96.0.2 - Hairdressing and other beauty treatment    {s2c_NC:S9602}",null,null,null,null,null,null,null,null,null,null,null,null,null,null,null,null,null,null,null,null,null,null,null,null,null,null,null,null,null,"    {s2c_SE:}"]
[null,null,null,null,null,null,null,null,null,null,null,null,"           S96.0.3 - Funeral and related activities    {s2c_NC:S9603}",null,null,null,null,null,null,null,null,null,null,null,null,null,null,null,null,null,null,null,null,null,null,null,null,null,null,null,null,null,"    {s2c_SE:}"]
[null,null,null,null,null,null,null,null,null,null,null,null,"           S96.0.4 - Physical well-being activities    {s2c_NC:S9604}",null,null,null,null,null,null,null,null,null,null,null,null,null,null,null,null,null,null,null,null,null,null,null,null,null,null,null,null,null,"    {s2c_SE:}"]
[null,null,null,null,null,null,null,null,null,null,null,null,"           S96.0.9 - Other personal service activities n.e.c.    {s2c_NC:S9609}",null,null,null,null,null,null,null,null,null,null,null,null,null,null,null,null,null,null,null,null,null,null,null,null,null,null,null,null,null,"    {s2c_SE:}"]
[null,null,null,null,null,null,null,null,null,null,null,null,"  T - Activities of households as employers; undifferentiated goods - and services - producing activities of households for own use    {s2c_NC:T}",null,null,null,null,null,null,null,null,null,null,null,null,null,null,null,null,null,null,null,null,null,null,null,null,null,null,null,null,null,"    {s2c_SE:}"]
[null,null,null,null,null,null,null,null,null,null,null,null,"     T97 - Activities of households as employers of domestic personnel    {s2c_NC:T97}",null,null,null,null,null,null,null,null,null,null,null,null,null,null,null,null,null,null,null,null,null,null,null,null,null,null,null,null,null,"    {s2c_SE:}"]
[null,null,null,null,null,null,null,null,null,null,null,null,"        T97.0 - Activities of households as employers of domestic personnel    {s2c_NC:T970}",null,null,null,null,null,null,null,null,null,null,null,null,null,null,null,null,null,null,null,null,null,null,null,null,null,null,null,null,null,"    {s2c_SE:}"]
[null,null,null,null,null,null,null,null,null,null,null,null,"           T97.0.0 - Activities of households as employers of domestic personnel    {s2c_NC:T9700}",null,null,null,null,null,null,null,null,null,null,null,null,null,null,null,null,null,null,null,null,null,null,null,null,null,null,null,null,null,"    {s2c_SE:}"]
[null,null,null,null,null,null,null,null,null,null,null,null,"     T98 - Undifferentiated goods- and services-producing activities of private households for own use    {s2c_NC:T98}",null,null,null,null,null,null,null,null,null,null,null,null,null,null,null,null,null,null,null,null,null,null,null,null,null,null,null,null,null,"    {s2c_SE:}"]
[null,null,null,null,null,null,null,null,null,null,null,null,"        T98.1 - Undifferentiated goods-producing activities of private households for own use    {s2c_NC:T981}",null,null,null,null,null,null,null,null,null,null,null,null,null,null,null,null,null,null,null,null,null,null,null,null,null,null,null,null,null,"    {s2c_SE:}"]
[null,null,null,null,null,null,null,null,null,null,null,null,"           T98.1.0 - Undifferentiated goods-producing activities of private households for own use    {s2c_NC:T9810}",null,null,null,null,null,null,null,null,null,null,null,null,null,null,null,null,null,null,null,null,null,null,null,null,null,null,null,null,null,"    {s2c_SE:}"]
[null,null,null,null,null,null,null,null,null,null,null,null,"        T98.2 - Undifferentiated service-producing activities of private households for own use    {s2c_NC:T982}",null,null,null,null,null,null,null,null,null,null,null,null,null,null,null,null,null,null,null,null,null,null,null,null,null,null,null,null,null,"    {s2c_SE:}"]
[null,null,null,null,null,null,null,null,null,null,null,null,"           T98.2.0 - Undifferentiated service-producing activities of private households for own use    {s2c_NC:T9820}",null,null,null,null,null,null,null,null,null,null,null,null,null,null,null,null,null,null,null,null,null,null,null,null,null,null,null,null,null,"    {s2c_SE:}"]
[null,null,null,null,null,null,null,null,null,null,null,null,"  U - Activities of extraterritorial organisations and bodies    {s2c_NC:U}",null,null,null,null,null,null,null,null,null,null,null,null,null,null,null,null,null,null,null,null,null,null,null,null,null,null,null,null,null,"    {s2c_SE:}"]
[null,null,null,null,null,null,null,null,null,null,null,null,"     U99 - Activities of extraterritorial organisations and bodies    {s2c_NC:U99}",null,null,null,null,null,null,null,null,null,null,null,null,null,null,null,null,null,null,null,null,null,null,null,null,null,null,null,null,null,"    {s2c_SE:}"]
[null,null,null,null,null,null,null,null,null,null,null,null,"        U99.0 - Activities of extraterritorial organisations and bodies    {s2c_NC:U990}",null,null,null,null,null,null,null,null,null,null,null,null,null,null,null,null,null,null,null,null,null,null,null,null,null,null,null,null,null,"    {s2c_SE:}"]
[null,null,null,null,null,null,null,null,null,null,null,null,"           U99.0.0 - Activities of extraterritorial organisations and bodie    {s2c_NC:U9900}",null,null,null,null,null,null,null,null,null,null,null,null,null,null,null,null,null,null,null,null,null,null,null,null,null,null,null,null,null,"    {s2c_SE:}"]

{"sheet":"data","index":7,"n_rows":171,"n_cols":15,"rows_kept":171,"cut":false,"hidden":true,"merged":[]}
["RowID","Footnote","Primary Item","Decimals","UnitRef","Fact",null,null,null,null,null,"Context"]
[{"$f":"IF(F2=\"\",\"/*\",\"\")","v":"/*"}]
["/*"]
["/*"]
["/*"]
["/*"]
[{"$f":"IF(F7=\"\",\"/*\",\"\")","v":""},null,"find:filingIndicator","","","S.01.01",null,null,null,null,null,"ctxInstant2017","/**Tuple","find:fIndicators","/**Unbounded"]
[{"$f":"IF(F8=\"\",\"/*\",\"\")","v":""},null,"find:filingIndicator","","",{"$f":"IF('S.01.01.02'!D9=\"Reported    {s2c_CN:x1}\",\"S.01.02\",\"\")","v":"S.01.02"},null,null,null,null,null,"ctxInstant2017","/**Tuple","find:fIndicators","/**Unbounded"]
["",null,"find:filingIndicator","","",{"$f":"IF('S.01.01.02'!D10=\"Reported    {s2c_CN:x1}\",\"S.02.01\",\"\")","v":"S.02.01"},null,null,null,null,null,"ctxInstant2017","/**Tuple","find:fIndicators","/**Unbounded"]
["/*",null,"find:filingIndicator","","",{"$f":"IF('S.01.01.02'!D11=\"Reported    {s2c_CN:x1}\",\"S.05.01\",\"\")","v":""},null,null,null,null,null,"ctxInstant2017","/**Tuple","find:fIndicators","/**Unbounded"]
[{"$f":"IF(F11=\"\",\"/*\",\"\")","v":""},null,"find:filingIndicator","","",{"$f":"IF('S.01.01.02'!D12=\"Reported    {s2c_CN:x1}\",\"S.06.02\",\"\")","v":"S.06.02"},null,null,null,null,null,"ctxInstant2017","/**Tuple","find:fIndicators","/**Unbounded"]
["/*",null,"find:filingIndicator","","",{"$f":"IF('S.01.01.02'!D13=\"Reported    {s2c_CN:x1}\",\"S.06.03\",\"\")","v":""},null,null,null,null,null,"ctxInstant2017","/**Tuple","find:fIndicators","/**Unbounded"]
["/*",null,"find:filingIndicator","","",{"$f":"IF('S.01.01.02'!D14=\"Reported    {s2c_CN:x1}\",\"S.08.01\",\"\")","v":""},null,null,null,null,null,"ctxInstant2017","/**Tuple","find:fIndicators","/**Unbounded"]
["/*",null,"find:filingIndicator","","",{"$f":"IF('S.01.01.02'!D15=\"Reported    {s2c_CN:x1}\",\"S.08.02\",\"\")","v":""},null,null,null,null,null,"ctxInstant2017","/**Tuple","find:fIndicators","/**Unbounded"]
["/*",null,"find:filingIndicator","","",{"$f":"IF('S.01.01.02'!D16=\"Reported    {s2c_CN:x1}\",\"S.12.01\",\"\")","v":""},null,null,null,null,null,"ctxInstant2017","/**Tuple","find:fIndicators","/**Unbounded"]
["/*",null,"find:filingIndicator","","",{"$f":"IF('S.01.01.02'!D17=\"Reported    {s2c_CN:x1}\",\"S.17.01\",\"\")","v":""},null,null,null,null,null,"ctxInstant2017","/**Tuple","find:fIndicators","/**Unbounded"]
[{"$f":"IF(F17=\"\",\"/*\",\"\")","v":"/*"},null,"find:filingIndicator","","",{"$f":"IF('S.01.01.02'!D18=\"Reported    {s2c_CN:x1}\",\"S.23.01\",\"\")","v":""},null,null,null,null,null,"ctxInstant2017","/**Tuple","find:fIndicators","/**Unbounded"]
["/*",null,"find:filingIndicator","","",{"$f":"IF('S.01.01.02'!D19=\"Reported    {s2c_CN:x1}\",\"S.28.01\",\"\")","v":""},null,null,null,null,null,"ctxInstant2017","/**Tuple","find:fIndicators","/**Unbounded"]
["/*",null,"find:filingIndicator","","",{"$f":"IF('S.01.01.02'!D20=\"Reported    {s2c_CN:x1}\",\"S.28.02\",\"\")","v":""},null,null,null,null,null,"ctxInstant2017","/**Tuple","find:fIndicators","/**Unbounded"]
["",null,"s2md_met:ei1633","","",{"$f":"SUBSTITUTE(SUBSTITUTE(TRIM(RIGHT(SUBSTITUTE('S.01.01.02'!D9,\" \",REPT(\" \",LEN('S.01.01.02'!D9))),LEN('S.01.01.02'!D9))),\"{\",\"\"),\"}\",\"\")","v":"s2c_CN:x1"},null,null,null,null,null,"ctxInstant2017"]
["",null,"s2md_met:ei1669","","",{"$f":"SUBSTITUTE(SUBSTITUTE(TRIM(RIGHT(SUBSTITUTE('S.01.01.02'!D10,\" \",REPT(\" \",LEN('S.01.01.02'!D10))),LEN('S.01.01.02'!D10))),\"{\",\"\"),\"}\",\"\")","v":"s2c_CN:x1"},null,null,null,null,null,"ctxInstant2017"]
["",null,"s2md_met:ei2444","","",{"$f":"SUBSTITUTE(SUBSTITUTE(TRIM(RIGHT(SUBSTITUTE('S.01.01.02'!D11,\" \",REPT(\" \",LEN('S.01.01.02'!D11))),LEN('S.01.01.02'!D11))),\"{\",\"\"),\"}\",\"\")","v":"s2c_CN:x2"},null,null,null,null,null,"ctxInstant2017"]
["",null,"s2md_met:ei1697","","",{"$f":"SUBSTITUTE(SUBSTITUTE(TRIM(RIGHT(SUBSTITUTE('S.01.01.02'!D12,\" \",REPT(\" \",LEN('S.01.01.02'!D12))),LEN('S.01.01.02'!D12))),\"{\",\"\"),\"}\",\"\")","v":"s2c_CN:x1"},null,null,null,null,null,"ctxInstant2017"]
["",null,"s2md_met:ei2456","","",{"$f":"SUBSTITUTE(SUBSTITUTE(TRIM(RIGHT(SUBSTITUTE('S.01.01.02'!D13,\" \",REPT(\" \",LEN('S.01.01.02'!D13))),LEN('S.01.01.02'!D13))),\"{\",\"\"),\"}\",\"\")","v":"s2c_CN:x2"},null,null,null,null,null,"ctxInstant2017"]
["",null,"s2md_met:ei1702","","",{"$f":"SUBSTITUTE(SUBSTITUTE(TRIM(RIGHT(SUBSTITUTE('S.01.01.02'!D14,\" \",REPT(\" \",LEN('S.01.01.02'!D14))),LEN('S.01.01.02'!D14))),\"{\",\"\"),\"}\",\"\")","v":"s2c_CN:x2"},null,null,null,null,null,"ctxInstant2017"]
["",null,"s2md_met:ei1704","","",{"$f":"SUBSTITUTE(SUBSTITUTE(TRIM(RIGHT(SUBSTITUTE('S.01.01.02'!D15,\" \",REPT(\" \",LEN('S.01.01.02'!D15))),LEN('S.01.01.02'!D15))),\"{\",\"\"),\"}\",\"\")","v":"s2c_CN:x2"},null,null,null,null,null,"ctxInstant2017"]
["",null,"s2md_met:ei1706","","",{"$f":"SUBSTITUTE(SUBSTITUTE(TRIM(RIGHT(SUBSTITUTE('S.01.01.02'!D16,\" \",REPT(\" \",LEN('S.01.01.02'!D16))),LEN('S.01.01.02'!D16))),\"{\",\"\"),\"}\",\"\")","v":"s2c_CN:x2"},null,null,null,null,null,"ctxInstant2017"]
["",null,"s2md_met:ei1708","","",{"$f":"SUBSTITUTE(SUBSTITUTE(TRIM(RIGHT(SUBSTITUTE('S.01.01.02'!D17,\" \",REPT(\" \",LEN('S.01.01.02'!D17))),LEN('S.01.01.02'!D17))),\"{\",\"\"),\"}\",\"\")","v":"s2c_CN:x2"},null,null,null,null,null,"ctxInstant2017"]
["",null,"s2md_met:ei2445","","",{"$f":"SUBSTITUTE(SUBSTITUTE(TRIM(RIGHT(SUBSTITUTE('S.01.01.02'!D18,\" \",REPT(\" \",LEN('S.01.01.02'!D18))),LEN('S.01.01.02'!D18))),\"{\",\"\"),\"}\",\"\")","v":"s2c_CN:x2"},null,null,null,null,null,"ctxInstant2017"]
["",null,"s2md_met:ei2291","","",{"$f":"SUBSTITUTE(SUBSTITUTE(TRIM(RIGHT(SUBSTITUTE('S.01.01.02'!D19,\" \",REPT(\" \",LEN('S.01.01.02'!D19))),LEN('S.01.01.02'!D19))),\"{\",\"\"),\"}\",\"\")","v":"s2c_CN:x2"},null,null,null,null,null,"ctxInstant2017"]
["",null,"s2md_met:ei2292","","",{"$f":"SUBSTITUTE(SUBSTITUTE(TRIM(RIGHT(SUBSTITUTE('S.01.01.02'!D20,\" \",REPT(\" \",LEN('S.01.01.02'!D20))),LEN('S.01.01.02'!D20))),\"{\",\"\"),\"}\",\"\")","v":"s2c_CN:x2"},null,null,null,null,null,"ctxInstant2017"]
["",null,"s2md_met:si1376","","",{"$f":"'S.01.02.01'!D9","v":"RECEX.eu test"},null,null,null,null,null,"ctxInstant2017"]
["",null,"s2md_met:si1899","","",{"$f":"'S.01.02.01'!D10","v":"LEI/969500X1Y8G7LA4DYS04"},null,null,null,null,null,"ctxInstant2017"]
["",null,"s2md_met:ei2499","","",{"$f":"SUBSTITUTE(SUBSTITUTE(TRIM(RIGHT(SUBSTITUTE('S.01.02.01'!D11,\" \",REPT(\" \",LEN('S.01.02.01'!D11))),LEN('S.01.02.01'!D11))),\"{\",\"\"),\"}\",\"\")","v":"s2c_SE:x129"},null,null,null,null,null,"ctxInstant2017"]
["",null,"s2md_met:ei2453","","",{"$f":"SUBSTITUTE(SUBSTITUTE(TRIM(RIGHT(SUBSTITUTE('S.01.02.01'!D12,\" \",REPT(\" \",LEN('S.01.02.01'!D12))),LEN('S.01.02.01'!D12))),\"{\",\"\"),\"}\",\"\")","v":"s2c_GA:PL"},null,null,null,null,null,"ctxInstant2017"]
["",null,"s2md_met:ei1683","","",{"$f":"SUBSTITUTE(SUBSTITUTE(TRIM(RIGHT(SUBSTITUTE('S.01.02.01'!D13,\" \",REPT(\" \",LEN('S.01.02.01'!D13))),LEN('S.01.02.01'!D13))),\"{\",\"\"),\"}\",\"\")","v":"s2c_LA:da"},null,null,null,null,null,"ctxInstant2017"]
["",null,"s2md_met:di1044","","",{"$f":"'S.01.02.01'!D14","v":"2017-12-31"},null,null,null,null,null,"ctxInstant2017"]
["",null,"s2md_met:di2502","","",{"$f":"'S.01.02.01'!D15","v":"2017-12-31"},null,null,null,null,null,"ctxInstant2017"]
["",null,"s2md_met:di1043","","",{"$f":"'S.01.02.01'!D16","v":"2017-12-31"},null,null,null,null,null,"ctxInstant2017"]
["",null,"s2md_met:ei1677","","",{"$f":"SUBSTITUTE(SUBSTITUTE(TRIM(RIGHT(SUBSTITUTE('S.01.02.01'!D17,\" \",REPT(\" \",LEN('S.01.02.01'!D17))),LEN('S.01.02.01'!D17))),\"{\",\"\"),\"}\",\"\")","v":"s2c_CS:x35"},null,null,null,null,null,"ctxInstant2017"]
["",null,"s2md_met:ei1930","","",{"$f":"SUBSTITUTE(SUBSTITUTE(TRIM(RIGHT(SUBSTITUTE('S.01.02.01'!D18,\" \",REPT(\" \",LEN('S.01.02.01'!D18))),LEN('S.01.02.01'!D18))),\"{\",\"\"),\"}\",\"\")","v":"s2c_CU:EUR"},null,null,null,null,null,"ctxInstant2017"]
["",null,"s2md_met:ei1687","","",{"$f":"SUBSTITUTE(SUBSTITUTE(TRIM(RIGHT(SUBSTITUTE('S.01.02.01'!D19,\" \",REPT(\" \",LEN('S.01.02.01'!D19))),LEN('S.01.02.01'!D19))),\"{\",\"\"),\"}\",\"\")","v":"s2c_AM:x50"},null,null,null,null,null,"ctxInstant2017"]
["",null,"s2md_met:ei1676","","",{"$f":"SUBSTITUTE(SUBSTITUTE(TRIM(RIGHT(SUBSTITUTE('S.01.02.01'!D20,\" \",REPT(\" \",LEN('S.01.02.01'!D20))),LEN('S.01.02.01'!D20))),\"{\",\"\"),\"}\",\"\")","v":"s2c_AP:x1"},null,null,null,null,null,"ctxInstant2017"]
["",null,"s2md_met:ei1678","","",{"$f":"SUBSTITUTE(SUBSTITUTE(TRIM(RIGHT(SUBSTITUTE('S.01.02.01'!D21,\" \",REPT(\" \",LEN('S.01.02.01'!D21))),LEN('S.01.02.01'!D21))),\"{\",\"\"),\"}\",\"\")","v":"s2c_AP:x6"},null,null,null,null,null,"ctxInstant2017"]
["",null,"s2md_met:ei1931","","",{"$f":"SUBSTITUTE(SUBSTITUTE(TRIM(RIGHT(SUBSTITUTE('S.01.02.01'!D22,\" \",REPT(\" \",LEN('S.01.02.01'!D22))),LEN('S.01.02.01'!D22))),\"{\",\"\"),\"}\",\"\")","v":"s2c_PU:x4"},null,null,null,null,null,"ctxInstant2017"]
["",null,"s2md_met:ei1679","","",{"$f":"SUBSTITUTE(SUBSTITUTE(TRIM(RIGHT(SUBSTITUTE('S.01.02.01'!D23,\" \",REPT(\" \",LEN('S.01.02.01'!D23))),LEN('S.01.02.01'!D23))),\"{\",\"\"),\"}\",\"\")","v":"s2c_PU:x51"},null,null,null,null,null,"ctxInstant2017"]
["",null,"s2md_met:ei1680","","",{"$f":"SUBSTITUTE(SUBSTITUTE(TRIM(RIGHT(SUBSTITUTE('S.01.02.01'!D24,\" \",REPT(\" \",LEN('S.01.02.01'!D24))),LEN('S.01.02.01'!D24))),\"{\",\"\"),\"}\",\"\")","v":"s2c_AP:x8"},null,null,null,null,null,"ctxInstant2017"]
["",null,"s2md_met:ei1681","","",{"$f":"SUBSTITUTE(SUBSTITUTE(TRIM(RIGHT(SUBSTITUTE('S.01.02.01'!D25,\" \",REPT(\" \",LEN('S.01.02.01'!D25))),LEN('S.01.02.01'!D25))),\"{\",\"\"),\"}\",\"\")","v":"s2c_AP:x9"},null,null,null,null,null,"ctxInstant2017"]
["",null,"s2md_met:ei1682","","",{"$f":"SUBSTITUTE(SUBSTITUTE(TRIM(RIGHT(SUBSTITUTE('S.01.02.01'!D26,\" \",REPT(\" \",LEN('S.01.02.01'!D26))),LEN('S.01.02.01'!D26))),\"{\",\"\"),\"}\",\"\")","v":"s2c_AP:x11"},null,null,null,null,null,"ctxInstant2017"]
["",null,"s2md_met:ei1684","","",{"$f":"SUBSTITUTE(SUBSTITUTE(TRIM(RIGHT(SUBSTITUTE('S.01.02.01'!D27,\" \",REPT(\" \",LEN('S.01.02.01'!D27))),LEN('S.01.02.01'!D27))),\"{\",\"\"),\"}\",\"\")","v":"s2c_CS:x38"},null,null,null,null,null,"ctxInstant2017"]
["",null,"s2md_met:mi251","2","uEUR",{"$f":"'S.02.01.02'!C13","v":0},null,null,null,null,null,"s2c_dim:VGs2c_AM:x80"]
["",null,"s2md_met:mi222","2","uEUR",{"$f":"'S.02.01.02'!C14","v":0},null,null,null,null,null,"s2c_dim:VGs2c_AM:x80"]
["",null,"s2md_met:mi256","2","uEUR",{"$f":"'S.02.01.02'!C15","v":0},null,null,null,null,null,"s2c_dim:VGs2c_AM:x80"]
["",null,"s2md_met:mi266","2","uEUR",{"$f":"'S.02.01.02'!C16","v":0},null,null,null,null,null,"s2c_dim:VGs2c_AM:x80"]
["",null,"s2md_met:mi263","2","uEUR",{"$f":"'S.02.01.02'!C17","v":0},null,null,null,null,null,"s2c_dim:VGs2c_AM:x80s2c_dim:BLs2c_LB:x91"]
["",null,"s2md_met:mi265","2","uEUR",{"$f":"'S.02.01.02'!C18","v":0},null,null,null,null,null,"s2c_dim:VGs2c_AM:x80s2c_dim:BLs2c_LB:x91"]
["",null,"s2md_met:mi243","2","uEUR",{"$f":"'S.02.01.02'!C19","v":0},null,null,null,null,null,"s2c_dim:VGs2c_AM:x80s2c_dim:BLs2c_LB:x91"]
["",null,"s2md_met:mi238","2","uEUR",{"$f":"'S.02.01.02'!C20","v":0},null,null,null,null,null,"s2c_dim:VGs2c_AM:x80s2c_dim:BLs2c_LB:x91"]
["",null,"s2md_met:mi226","2","uEUR",{"$f":"'S.02.01.02'!C21","v":0},null,null,null,null,null,"s2c_dim:VGs2c_AM:x80s2c_dim:BLs2c_LB:x91"]
["",null,"s2md_met:mi227","2","uEUR",{"$f":"'S.02.01.02'!C22","v":0},null,null,null,null,null,"s2c_dim:VGs2c_AM:x80s2c_dim:BLs2c_LB:x91"]
["",null,"s2md_met:mi213","2","uEUR",{"$f":"'S.02.01.02'!C23","v":0},null,null,null,null,null,"s2c_dim:VGs2c_AM:x80s2c_dim:BLs2c_LB:x91"]
["",null,"s2md_met:mi212","2","uEUR",{"$f":"'S.02.01.02'!C24","v":0},null,null,null,null,null,"s2c_dim:VGs2c_AM:x80s2c_dim:BLs2c_LB:x91"]
["",null,"s2md_met:mi211","2","uEUR",{"$f":"'S.02.01.02'!C25","v":0},null,null,null,null,null,"s2c_dim:VGs2c_AM:x80s2c_dim:BLs2c_LB:x91"]
["",null,"s2md_met:mi280","2","uEUR",{"$f":"'S.02.01.02'!C26","v":0},null,null,null,null,null,"s2c_dim:VGs2c_AM:x80s2c_dim:BLs2c_LB:x91"]
["",null,"s2md_met:mi220","2","uEUR",{"$f":"'S.02.01.02'!C27","v":0},null,null,null,null,null,"s2c_dim:VGs2c_AM:x80s2c_dim:BLs2c_LB:x91"]
["",null,"s2md_met:mi1964","2","uEUR",{"$f":"'S.02.01.02'!C28","v":0},null,null,null,null,null,"s2c_dim:VGs2c_AM:x80s2c_dim:BLs2c_LB:x91"]
["",null,"s2md_met:mi224","2","uEUR",{"$f":"'S.02.01.02'!C29","v":0},null,null,null,null,null,"s2c_dim:VGs2c_AM:x80s2c_dim:BLs2c_LB:x91"]
["",null,"s2md_met:mi223","2","uEUR",{"$f":"'S.02.01.02'!C30","v":0},null,null,null,null,null,"s2c_dim:VGs2c_AM:x80s2c_dim:BLs2c_LB:x91"]
["",null,"s2md_met:mi1965","2","uEUR",{"$f":"'S.02.01.02'!C31","v":0},null,null,null,null,null,"s2c_dim:VGs2c_AM:x80s2c_dim:BLs2c_LB:x91"]
["",null,"s2md_met:mi263","2","uEUR",{"$f":"'S.02.01.02'!C32","v":0},null,null,null,null,null,"s2c_dim:VGs2c_AM:x80s2c_dim:BLs2c_LB:x119"]
["",null,"s2md_met:mi252","2","uEUR",{"$f":"'S.02.01.02'!C33","v":0},null,null,null,null,null,"s2c_dim:VGs2c_AM:x80s2c_dim:BLs2c_LB:x91"]
["",null,"s2md_met:mi202","2","uEUR",{"$f":"'S.02.01.02'!C34","v":0},null,null,null,null,null,"s2c_dim:VGs2c_AM:x80s2c_dim:BLs2c_LB:x91"]
["",null,"s2md_met:mi203","2","uEUR",{"$f":"'S.02.01.02'!C35","v":0},null,null,null,null,null,"s2c_dim:VGs2c_AM:x80s2c_dim:BLs2c_LB:x91"]
["",null,"s2md_met:mi204","2","uEUR",{"$f":"'S.02.01.02'!C36","v":0},null,null,null,null,null,"s2c_dim:VGs2c_AM:x80s2c_dim:BLs2c_LB:x91"]
["",null,"s2md_met:mi276","2","uEUR",{"$f":"'S.02.01.02'!C37","v":0},null,null,null,null,null,"s2c_dim:VGs2c_AM:x80"]
["",null,"s2md_met:mi276","2","uEUR",{"$f":"'S.02.01.02'!C38","v":0},null,null,null,null,null,"s2c_dim:VGs2c_AM:x80s2c_dim:BLs2c_LB:x79"]
["",null,"s2md_met:mi276","2","uEUR",{"$f":"'S.02.01.02'!C39","v":0},null,null,null,null,null,"s2c_dim:VGs2c_AM:x80s2c_dim:BLs2c_LB:x75"]
["",null,"s2md_met:mi276","2","uEUR",{"$f":"'S.02.01.02'!C40","v":0},null,null,null,null,null,"s2c_dim:VGs2c_AM:x80s2c_dim:BLs2c_LB:x43"]
["",null,"s2md_met:mi276","2","uEUR",{"$f":"'S.02.01.02'!C41","v":0},null,null,null,null,null,"s2c_dim:VGs2c_AM:x80s2c_dim:BLs2c_LB:x64"]
["",null,"s2md_met:mi276","2","uEUR",{"$f":"'S.02.01.02'!C42","v":0},null,null,null,null,null,"s2c_dim:VGs2c_AM:x80s2c_dim:BLs2c_LB:x45"]
[{"$f":"IF(F81=\"\",\"/*\",\"\")","v":""},null,"s2md_met:mi276","2","uEUR",{"$f":"'S.02.01.02'!C43","v":0},null,null,null,null,null,"s2c_dim:VGs2c_AM:x80s2c_dim:BLs2c_LB:x63"]
["",null,"s2md_met:mi276","2","uEUR",{"$f":"'S.02.01.02'!C44","v":0},null,null,null,null,null,"s2c_dim:VGs2c_AM:x80s2c_dim:BLs2c_LB:x119"]
["",null,"s2md_met:mi278","2","uEUR",{"$f":"'S.02.01.02'!C45","v":0},null,null,null,null,null,"s2c_dim:VGs2c_AM:x80s2c_dim:TBs2c_LB:x109"]
["",null,"s2md_met:mi267","2","uEUR",{"$f":"'S.02.01.02'!C46","v":0},null,null,null,null,null,"s2c_dim:VGs2c_AM:x80"]
["",null,"s2md_met:mi268","2","uEUR",{"$f":"'S.02.01.02'!C47","v":0},null,null,null,null,null,"s2c_dim:VGs2c_AM:x80"]
["",null,"s2md_met:mi269","2","uEUR",{"$f":"'S.02.01.02'!C48","v":0},null,null,null,null,null,"s2c_dim:VGs2c_AM:x80"]
["",null,"s2md_met:mi279","2","uEUR",{"$f":"'S.02.01.02'!C49","v":0},null,null,null,null,null,"s2c_dim:VGs2c_AM:x80"]
["",null,"s2md_met:mi225","2","uEUR",{"$f":"'S.02.01.02'!C50","v":0},null,null,null,null,null,"s2c_dim:VGs2c_AM:x80"]
["",null,"s2md_met:mi239","2","uEUR",{"$f":"'S.02.01.02'!C51","v":0},null,null,null,null,null,"s2c_dim:VGs2c_AM:x80"]
["",null,"s2md_met:mi2301","2","uEUR",{"$f":"'S.02.01.02'!C52","v":0},null,null,null,null,null,"s2c_dim:VGs2c_AM:x80"]
["",null,"s2md_met:mi201","2","uEUR",{"$f":"'S.02.01.02'!C53","v":0},null,null,null,null,null,"s2c_dim:VGs2c_AM:x80"]
["",null,"s2md_met:mi363","2","uEUR",{"$f":"'S.02.01.02'!C55","v":0},null,null,null,null,null,"s2c_dim:VGs2c_AM:x80s2c_dim:BLs2c_LB:x79"]
["",null,"s2md_met:mi363","2","uEUR",{"$f":"'S.02.01.02'!C56","v":0},null,null,null,null,null,"s2c_dim:VGs2c_AM:x80s2c_dim:BLs2c_LB:x75"]
["",null,"s2md_met:mi363","2","uEUR",{"$f":"'S.02.01.02'!C57","v":0},null,null,null,null,null,"s2c_dim:VGs2c_AM:x80s2c_dim:BLs2c_LB:x75s2c_dim:VLs2c_VM:x8"]
["",null,"s2md_met:mi363","2","uEUR",{"$f":"'S.02.01.02'!C58","v":0},null,null,null,null,null,"s2c_dim:VGs2c_AM:x80s2c_dim:BLs2c_LB:x75s2c_dim:VLs2c_VM:x5"]
["",null,"s2md_met:mi363","2","uEUR",{"$f":"'S.02.01.02'!C59","v":0},null,null,null,null,null,"s2c_dim:VGs2c_AM:x80s2c_dim:BLs2c_LB:x75s2c_dim:VLs2c_VM:x47"]
["",null,"s2md_met:mi363","2","uEUR",{"$f":"'S.02.01.02'!C60","v":0},null,null,null,null,null,"s2c_dim:VGs2c_AM:x80s2c_dim:BLs2c_LB:x43"]
["",null,"s2md_met:mi363","2","uEUR",{"$f":"'S.02.01.02'!C61","v":0},null,null,null,null,null,"s2c_dim:VGs2c_AM:x80s2c_dim:BLs2c_LB:x43s2c_dim:VLs2c_VM:x8"]
["",null,"s2md_met:mi363","2","uEUR",{"$f":"'S.02.01.02'!C62","v":0},null,null,null,null,null,"s2c_dim:VGs2c_AM:x80s2c_dim:BLs2c_LB:x43s2c_dim:VLs2c_VM:x5"]
["",null,"s2md_met:mi363","2","uEUR",{"$f":"'S.02.01.02'!C63","v":0},null,null,null,null,null,"s2c_dim:VGs2c_AM:x80s2c_dim:BLs2c_LB:x43s2c_dim:VLs2c_VM:x47"]
["",null,"s2md_met:mi363","2","uEUR",{"$f":"'S.02.01.02'!C64","v":0},null,null,null,null,null,"s2c_dim:VGs2c_AM:x80s2c_dim:BLs2c_LB:x176"]
["",null,"s2md_met:mi363","2","uEUR",{"$f":"'S.02.01.02'!C65","v":0},null,null,null,null,null,"s2c_dim:VGs2c_AM:x80s2c_dim:BLs2c_LB:x46"]
["",null,"s2md_met:mi363","2","uEUR",{"$f":"'S.02.01.02'!C66","v":0},null,null,null,null,null,"s2c_dim:VGs2c_AM:x80s2c_dim:BLs2c_LB:x46s2c_dim:VLs2c_VM:x8"]
["",null,"s2md_met:mi363","2","uEUR",{"$f":"'S.02.01.02'!C67","v":0},null,null,null,null,null,"s2c_dim:VGs2c_AM:x80s2c_dim:BLs2c_LB:x46s2c_dim:VLs2c_VM:x5"]
["",null,"s2md_met:mi363","2","uEUR",{"$f":"'S.02.01.02'!C68","v":0},null,null,null,null,null,"s2c_dim:VGs2c_AM:x80s2c_dim:BLs2c_LB:x46s2c_dim:VLs2c_VM:x47"]
["",null,"s2md_met:mi363","2","uEUR",{"$f":"'S.02.01.02'!C69","v":0},null,null,null,null,null,"s2c_dim:VGs2c_AM:x80s2c_dim:BLs2c_LB:x173"]
["",null,"s2md_met:mi363","2","uEUR",{"$f":"'S.02.01.02'!C70","v":0},null,null,null,null,null,"s2c_dim:VGs2c_AM:x80s2c_dim:BLs2c_LB:x173s2c_dim:VLs2c_VM:x8"]
["",null,"s2md_met:mi363","2","uEUR",{"$f":"'S.02.01.02'!C71","v":0},null,null,null,null,null,"s2c_dim:VGs2c_AM:x80s2c_dim:BLs2c_LB:x173s2c_dim:VLs2c_VM:x5"]
["",null,"s2md_met:mi363","2","uEUR",{"$f":"'S.02.01.02'!C72","v":0},null,null,null,null,null,"s2c_dim:VGs2c_AM:x80s2c_dim:BLs2c_LB:x173s2c_dim:VLs2c_VM:x47"]
["",null,"s2md_met:mi363","2","uEUR",{"$f":"'S.02.01.02'!C73","v":0},null,null,null,null,null,"s2c_dim:VGs2c_AM:x80s2c_dim:BLs2c_LB:x119"]
["",null,"s2md_met:mi363","2","uEUR",{"$f":"'S.02.01.02'!C74","v":0},null,null,null,null,null,"s2c_dim:VGs2c_AM:x80s2c_dim:BLs2c_LB:x119s2c_dim:VLs2c_VM:x8"]
["",null,"s2md_met:mi363","2","uEUR",{"$f":"'S.02.01.02'!C75","v":0},null,null,null,null,null,"s2c_dim:VGs2c_AM:x80s2c_dim:BLs2c_LB:x119s2c_dim:VLs2c_VM:x5"]
["",null,"s2md_met:mi363","2","uEUR",{"$f":"'S.02.01.02'!C76","v":0},null,null,null,null,null,"s2c_dim:VGs2c_AM:x80s2c_dim:BLs2c_LB:x119s2c_dim:VLs2c_VM:x47"]
["",null,"s2md_met:mi355","2","uEUR",{"$f":"'S.02.01.02'!C78","v":0},null,null,null,null,null,"s2c_dim:VGs2c_AM:x80"]
["",null,"s2md_met:mi372","2","uEUR",{"$f":"'S.02.01.02'!C79","v":0},null,null,null,null,null,"s2c_dim:VGs2c_AM:x80"]
["",null,"s2md_met:mi369","2","uEUR",{"$f":"'S.02.01.02'!C80","v":0},null,null,null,null,null,"s2c_dim:VGs2c_AM:x80"]
["",null,"s2md_met:mi377","2","uEUR",{"$f":"'S.02.01.02'!C81","v":0},null,null,null,null,null,"s2c_dim:VGs2c_AM:x80"]
["",null,"s2md_met:mi359","2","uEUR",{"$f":"'S.02.01.02'!C82","v":0},null,null,null,null,null,"s2c_dim:VGs2c_AM:x80"]
["",null,"s2md_met:mi360","2","uEUR",{"$f":"'S.02.01.02'!C83","v":0},null,null,null,null,null,"s2c_dim:VGs2c_AM:x80"]
["",null,"s2md_met:mi357","2","uEUR",{"$f":"'S.02.01.02'!C84","v":0},null,null,null,null,null,"s2c_dim:VGs2c_AM:x80"]
["",null,"s2md_met:mi358","2","uEUR",{"$f":"'S.02.01.02'!C85","v":0},null,null,null,null,null,"s2c_dim:VGs2c_AM:x80"]
["",null,"s2md_met:mi373","2","uEUR",{"$f":"'S.02.01.02'!C86","v":0},null,null,null,null,null,"s2c_dim:VGs2c_AM:x80"]
["",null,"s2md_met:mi374","2","uEUR",{"$f":"'S.02.01.02'!C87","v":0},null,null,null,null,null,"s2c_dim:VGs2c_AM:x80"]
["",null,"s2md_met:mi375","2","uEUR",{"$f":"'S.02.01.02'!C88","v":0},null,null,null,null,null,"s2c_dim:VGs2c_AM:x80"]
["",null,"s2md_met:mi378","2","uEUR",{"$f":"'S.02.01.02'!C89","v":0},null,null,null,null,null,"s2c_dim:VGs2c_AM:x80"]
["",null,"s2md_met:mi348","2","uEUR",{"$f":"'S.02.01.02'!C90","v":0},null,null,null,null,null,"s2c_dim:VGs2c_AM:x80"]
["",null,"s2md_met:mi347","2","uEUR",{"$f":"'S.02.01.02'!C91","v":0},null,null,null,null,null,"s2c_dim:VGs2c_AM:x80"]
["",null,"s2md_met:mi367","2","uEUR",{"$f":"'S.02.01.02'!C92","v":0},null,null,null,null,null,"s2c_dim:VGs2c_AM:x80"]
["",null,"s2md_met:mi346","2","uEUR",{"$f":"'S.02.01.02'!C93","v":0},null,null,null,null,null,"s2c_dim:VGs2c_AM:x80"]
["",null,"s2md_met:mi294","2","uEUR",{"$f":"'S.02.01.02'!C94","v":0},null,null,null,null,null,"s2c_dim:VGs2c_AM:x80"]
["",null,"s2md_met:ei2426",null,null,{"$f":"SUBSTITUTE(SUBSTITUTE(TRIM(RIGHT(SUBSTITUTE('S.06.02.01'!E12,\" \",REPT(\" \",LEN('S.06.02.01'!E12))),LEN('S.06.02.01'!E12))),\"{\",\"\"),\"}\",\"\")","v":"s2c_PU:x3"},null,null,null,null,null,{"$f":"parameters!$B$40","v":"s2c_dim:MP1s2c_typ:IDs2c_dim:XA1s2c_typ:NBs2c_dim:NF1s2c_typ:IDs2c_dim:UIISIN/US0378331005s2c_typ:ID"}]
["",null,"s2md_met:ei1070",null,null,{"$f":"SUBSTITUTE(SUBSTITUTE(TRIM(RIGHT(SUBSTITUTE('S.06.02.01'!F12,\" \",REPT(\" \",LEN('S.06.02.01'!F12))),LEN('S.06.02.01'!F12))),\"{\",\"\"),\"}\",\"\")","v":"s2c_LB:x119"},null,null,null,null,null,{"$f":"parameters!$B$40","v":"s2c_dim:MP1s2c_typ:IDs2c_dim:XA1s2c_typ:NBs2c_dim:NF1s2c_typ:IDs2c_dim:UIISIN/US0378331005s2c_typ:ID"}]
["",null,"s2md_met:ei1007",null,null,{"$f":"SUBSTITUTE(SUBSTITUTE(TRIM(RIGHT(SUBSTITUTE('S.06.02.01'!G12,\" \",REPT(\" \",LEN('S.06.02.01'!G12))),LEN('S.06.02.01'!G12))),\"{\",\"\"),\"}\",\"\")","v":"s2c_CG:x4"},null,null,null,null,null,{"$f":"parameters!$B$40","v":"s2c_dim:MP1s2c_typ:IDs2c_dim:XA1s2c_typ:NBs2c_dim:NF1s2c_typ:IDs2c_dim:UIISIN/US0378331005s2c_typ:ID"}]
["",null,"s2md_met:ei1061",null,null,{"$f":"SUBSTITUTE(SUBSTITUTE(TRIM(RIGHT(SUBSTITUTE('S.06.02.01'!H12,\" \",REPT(\" \",LEN('S.06.02.01'!H12))),LEN('S.06.02.01'!H12))),\"{\",\"\"),\"}\",\"\")","v":"s2c_GA:KZ"},null,null,null,null,null,{"$f":"parameters!$B$40","v":"s2c_dim:MP1s2c_typ:IDs2c_dim:XA1s2c_typ:NBs2c_dim:NF1s2c_typ:IDs2c_dim:UIISIN/US0378331005s2c_typ:ID"}]
["",null,"s2md_met:si1780",null,null,{"$f":"'S.06.02.01'!I12","v":"abc"},null,null,null,null,null,{"$f":"parameters!$B$40","v":"s2c_dim:MP1s2c_typ:IDs2c_dim:XA1s2c_typ:NBs2c_dim:NF1s2c_typ:IDs2c_dim:UIISIN/US0378331005s2c_typ:ID"}]
["",null,"s2md_met:ri2265",4,"uPure",{"$f":"IF(ISBLANK('S.06.02.01'!J12),\"\",'S.06.02.01'!J12)","v":0},null,null,null,null,null,{"$f":"parameters!$B$40","v":"s2c_dim:MP1s2c_typ:IDs2c_dim:XA1s2c_typ:NBs2c_dim:NF1s2c_typ:IDs2c_dim:UIISIN/US0378331005s2c_typ:ID"}]
["",null,"s2md_met:mi1110","2","uEUR",{"$f":"IF(ISBLANK('S.06.02.01'!K12),\"\",'S.06.02.01'!K12)","v":0},null,null,null,null,null,{"$f":"parameters!$B$40","v":"s2c_dim:MP1s2c_typ:IDs2c_dim:XA1s2c_typ:NBs2c_dim:NF1s2c_typ:IDs2c_dim:UIISIN/US0378331005s2c_typ:ID"}]
["",null,"s2md_met:ei2218",null,null,{"$f":"SUBSTITUTE(SUBSTITUTE(TRIM(RIGHT(SUBSTITUTE('S.06.02.01'!L12,\" \",REPT(\" \",LEN('S.06.02.01'!L12))),LEN('S.06.02.01'!L12))),\"{\",\"\"),\"}\",\"\")","v":"s2c_VM:x2"},null,null,null,null,null,{"$f":"parameters!$B$40","v":"s2c_dim:MP1s2c_typ:IDs2c_dim:XA1s2c_typ:NBs2c_dim:NF1s2c_typ:IDs2c_dim:UIISIN/US0378331005s2c_typ:ID"}]
["",null,"s2md_met:mi1987","2","uEUR",{"$f":"IF(ISBLANK('S.06.02.01'!M12),\"\",'S.06.02.01'!M12)","v":0},null,null,null,null,null,{"$f":"parameters!$B$40","v":"s2c_dim:MP1s2c_typ:IDs2c_dim:XA1s2c_typ:NBs2c_dim:NF1s2c_typ:IDs2c_dim:UIISIN/US0378331005s2c_typ:ID"}]
["",null,"s2md_met:mi1131","2","uEUR",{"$f":"IF(ISBLANK('S.06.02.01'!N12),\"\",'S.06.02.01'!N12)","v":0},null,null,null,null,null,{"$f":"parameters!$B$40","v":"s2c_dim:MP1s2c_typ:IDs2c_dim:XA1s2c_typ:NBs2c_dim:NF1s2c_typ:IDs2c_dim:UIISIN/US0378331005s2c_typ:ID"}]
["",null,"s2md_met:mi1128","2","uEUR",{"$f":"IF(ISBLANK('S.06.02.01'!O12),\"\",'S.06.02.01'!O12)","v":0},null,null,null,null,null,{"$f":"parameters!$B$40","v":"s2c_dim:MP1s2c_typ:IDs2c_dim:XA1s2c_typ:NBs2c_dim:NF1s2c_typ:IDs2c_dim:UIISIN/US0378331005s2c_typ:ID"}]
["",null,"s2md_met:ei2426",null,null,{"$f":"SUBSTITUTE(SUBSTITUTE(TRIM(RIGHT(SUBSTITUTE('S.06.02.01'!E13,\" \",REPT(\" \",LEN('S.06.02.01'!E13))),LEN('S.06.02.01'!E13))),\"{\",\"\"),\"}\",\"\")","v":"s2c_PU:x3"},null,null,null,null,null,{"$f":"parameters!$B$41","v":"s2c_dim:MP1s2c_typ:IDs2c_dim:XA2s2c_typ:NBs2c_dim:NF1s2c_typ:IDs2c_dim:UIISIN/US0378331005s2c_typ:ID"}]
["",null,"s2md_met:ei1070",null,null,{"$f":"SUBSTITUTE(SUBSTITUTE(TRIM(RIGHT(SUBSTITUTE('S.06.02.01'!F13,\" \",REPT(\" \",LEN('S.06.02.01'!F13))),LEN('S.06.02.01'!F13))),\"{\",\"\"),\"}\",\"\")","v":"s2c_LB:x119"},null,null,null,null,null,{"$f":"parameters!$B$41","v":"s2c_dim:MP1s2c_typ:IDs2c_dim:XA2s2c_typ:NBs2c_dim:NF1s2c_typ:IDs2c_dim:UIISIN/US0378331005s2c_typ:ID"}]
["",null,"s2md_met:ei1007",null,null,{"$f":"SUBSTITUTE(SUBSTITUTE(TRIM(RIGHT(SUBSTITUTE('S.06.02.01'!G13,\" \",REPT(\" \",LEN('S.06.02.01'!G13))),LEN('S.06.02.01'!G13))),\"{\",\"\"),\"}\",\"\")","v":"s2c_CG:x4"},null,null,null,null,null,{"$f":"parameters!$B$41","v":"s2c_dim:MP1s2c_typ:IDs2c_dim:XA2s2c_typ:NBs2c_dim:NF1s2c_typ:IDs2c_dim:UIISIN/US0378331005s2c_typ:ID"}]
[{"$f":"IF(F145=\"\",\"/*\",\"\")","v":""},null,"s2md_met:ei1061",null,null,{"$f":"SUBSTITUTE(SUBSTITUTE(TRIM(RIGHT(SUBSTITUTE('S.06.02.01'!H13,\" \",REPT(\" \",LEN('S.06.02.01'!H13))),LEN('S.06.02.01'!H13))),\"{\",\"\"),\"}\",\"\")","v":"s2c_GA:KZ"},null,null,null,null,null,{"$f":"parameters!$B$41","v":"s2c_dim:MP1s2c_typ:IDs2c_dim:XA2s2c_typ:NBs2c_dim:NF1s2c_typ:IDs2c_dim:UIISIN/US0378331005s2c_typ:ID"}]
["",null,"s2md_met:si1780",null,null,{"$f":"IF(ISBLANK('S.06.02.01'!I13),\"\",'S.06.02.01'!I13)","v":"abc"},null,null,null,null,null,{"$f":"parameters!$B$41","v":"s2c_dim:MP1s2c_typ:IDs2c_dim:XA2s2c_typ:NBs2c_dim:NF1s2c_typ:IDs2c_dim:UIISIN/US0378331005s2c_typ:ID"}]
["",null,"s2md_met:ri2265",4,"uPure",{"$f":"IF(ISBLANK('S.06.02.01'!J13),\"\",'S.06.02.01'!J13)","v":0},null,null,null,null,null,{"$f":"parameters!$B$41","v":"s2c_dim:MP1s2c_typ:IDs2c_dim:XA2s2c_typ:NBs2c_dim:NF1s2c_typ:IDs2c_dim:UIISIN/US0378331005s2c_typ:ID"}]
["",null,"s2md_met:mi1110","2","uEUR",{"$f":"IF(ISBLANK('S.06.02.01'!K13),\"\",'S.06.02.01'!K13)","v":0},null,null,null,null,null,{"$f":"parameters!$B$41","v":"s2c_dim:MP1s2c_typ:IDs2c_dim:XA2s2c_typ:NBs2c_dim:NF1s2c_typ:IDs2c_dim:UIISIN/US0378331005s2c_typ:ID"}]
["",null,"s2md_met:ei2218",null,null,{"$f":"SUBSTITUTE(SUBSTITUTE(TRIM(RIGHT(SUBSTITUTE('S.06.02.01'!L13,\" \",REPT(\" \",LEN('S.06.02.01'!L13))),LEN('S.06.02.01'!L13))),\"{\",\"\"),\"}\",\"\")","v":"s2c_VM:x2"},null,null,null,null,null,{"$f":"parameters!$B$41","v":"s2c_dim:MP1s2c_typ:IDs2c_dim:XA2s2c_typ:NBs2c_dim:NF1s2c_typ:IDs2c_dim:UIISIN/US0378331005s2c_typ:ID"}]
["",null,"s2md_met:mi1987","2","uEUR",{"$f":"IF(ISBLANK('S.06.02.01'!M13),\"\",'S.06.02.01'!M13)","v":0},null,null,null,null,null,{"$f":"parameters!$B$41","v":"s2c_dim:MP1s2c_typ:IDs2c_dim:XA2s2c_typ:NBs2c_dim:NF1s2c_typ:IDs2c_dim:UIISIN/US0378331005s2c_typ:ID"}]
["",null,"s2md_met:mi1131","2","uEUR",{"$f":"IF(ISBLANK('S.06.02.01'!N13),\"\",'S.06.02.01'!N13)","v":0},null,null,null,null,null,{"$f":"parameters!$B$41","v":"s2c_dim:MP1s2c_typ:IDs2c_dim:XA2s2c_typ:NBs2c_dim:NF1s2c_typ:IDs2c_dim:UIISIN/US0378331005s2c_typ:ID"}]
["",null,"s2md_met:mi1128","2","uEUR",{"$f":"IF(ISBLANK('S.06.02.01'!O13),\"\",'S.06.02.01'!O13)","v":0},null,null,null,null,null,{"$f":"parameters!$B$41","v":"s2c_dim:MP1s2c_typ:IDs2c_dim:XA2s2c_typ:NBs2c_dim:NF1s2c_typ:IDs2c_dim:UIISIN/US0378331005s2c_typ:ID"}]
["",null,"s2md_met:si1338",null,null,{"$f":"IF(ISBLANK('S.06.02.01'!B27),\"\",'S.06.02.01'!B27)","v":"abc"},null,null,null,null,null,{"$f":"parameters!$B$42","v":"s2c_dim:UIISIN/US0378331005s2c_typ:ID"}]
["",null,"s2md_met:si1381",null,null,{"$f":"IF(ISBLANK('S.06.02.01'!C27),\"\",'S.06.02.01'!C27)","v":"abc"},null,null,null,null,null,{"$f":"parameters!$B$42","v":"s2c_dim:UIISIN/US0378331005s2c_typ:ID"}]
["",null,"s2md_met:si1552",null,null,{"$f":"IF(ISBLANK('S.06.02.01'!D27),\"\",'S.06.02.01'!D27)","v":"None"},null,null,null,null,null,{"$f":"parameters!$B$42","v":"s2c_dim:UIISIN/US0378331005s2c_typ:ID"}]
["",null,"s2md_met:ei1658",null,null,{"$f":"SUBSTITUTE(SUBSTITUTE(TRIM(RIGHT(SUBSTITUTE('S.06.02.01'!E27,\" \",REPT(\" \",LEN('S.06.02.01'!E27))),LEN('S.06.02.01'!E27))),\"{\",\"\"),\"}\",\"\")","v":"s2c_NC:A0111"},null,null,null,null,null,{"$f":"parameters!$B$42","v":"s2c_dim:UIISIN/US0378331005s2c_typ:ID"}]
["",null,"s2md_met:si1337",null,null,{"$f":"IF(ISBLANK('S.06.02.01'!F27),\"\",'S.06.02.01'!F27)","v":"abc"},null,null,null,null,null,{"$f":"parameters!$B$42","v":"s2c_dim:UIISIN/US0378331005s2c_typ:ID"}]
["",null,"s2md_met:si1553",null,null,{"$f":"IF(ISBLANK('S.06.02.01'!G27),\"\",'S.06.02.01'!G27)","v":"None"},null,null,null,null,null,{"$f":"parameters!$B$42","v":"s2c_dim:UIISIN/US0378331005s2c_typ:ID"}]
["",null,"s2md_met:ei1062",null,null,{"$f":"SUBSTITUTE(SUBSTITUTE(TRIM(RIGHT(SUBSTITUTE('S.06.02.01'!H27,\" \",REPT(\" \",LEN('S.06.02.01'!H27))),LEN('S.06.02.01'!H27))),\"{\",\"\"),\"}\",\"\")","v":"s2c_GA:KZ"},null,null,null,null,null,{"$f":"parameters!$B$42","v":"s2c_dim:UIISIN/US0378331005s2c_typ:ID"}]
["",null,"s2md_met:ei1024",null,null,{"$f":"SUBSTITUTE(SUBSTITUTE(TRIM(RIGHT(SUBSTITUTE('S.06.02.01'!I27,\" \",REPT(\" \",LEN('S.06.02.01'!I27))),LEN('S.06.02.01'!I27))),\"{\",\"\"),\"}\",\"\")","v":"s2c_CU:EUR"},null,null,null,null,null,{"$f":"parameters!$B$42","v":"s2c_dim:UIISIN/US0378331005s2c_typ:ID"}]
["",null,"s2md_met:si1554",null,null,{"$f":"IF(ISBLANK('S.06.02.01'!J27),\"\",'S.06.02.01'!J27)","v":"FR11"},null,null,null,null,null,{"$f":"parameters!$B$42","v":"s2c_dim:UIISIN/US0378331005s2c_typ:ID"}]
["",null,"s2md_met:ei2422",null,null,{"$f":"SUBSTITUTE(SUBSTITUTE(TRIM(RIGHT(SUBSTITUTE('S.06.02.01'!K27,\" \",REPT(\" \",LEN('S.06.02.01'!K27))),LEN('S.06.02.01'!K27))),\"{\",\"\"),\"}\",\"\")","v":"s2c_MC:x200"},null,null,null,null,null,{"$f":"parameters!$B$42","v":"s2c_dim:UIISIN/US0378331005s2c_typ:ID"}]
["",null,"s2md_met:ei2221",null,null,{"$f":"SUBSTITUTE(SUBSTITUTE(TRIM(RIGHT(SUBSTITUTE('S.06.02.01'!L27,\" \",REPT(\" \",LEN('S.06.02.01'!L27))),LEN('S.06.02.01'!L27))),\"{\",\"\"),\"}\",\"\")","v":"s2c_PU:x16"},null,null,null,null,null,{"$f":"parameters!$B$42","v":"s2c_dim:UIISIN/US0378331005s2c_typ:ID"}]
["",null,"s2md_met:si1555",null,null,{"$f":"SUBSTITUTE(SUBSTITUTE(TRIM(RIGHT(SUBSTITUTE('S.06.02.01'!M27,\" \",REPT(\" \",LEN('S.06.02.01'!M27))),LEN('S.06.02.01'!M27))),\"{\",\"\"),\"}\",\"\")","v":"abc"},null,null,null,null,null,{"$f":"parameters!$B$42","v":"s2c_dim:UIISIN/US0378331005s2c_typ:ID"}]
["",null,"s2md_met:ei2504",null,null,{"$f":"SUBSTITUTE(SUBSTITUTE(TRIM(RIGHT(SUBSTITUTE('S.06.02.01'!N27,\" \",REPT(\" \",LEN('S.06.02.01'!N27))),LEN('S.06.02.01'!N27))),\"{\",\"\"),\"}\",\"\")","v":"s2c_SE:x131"},null,null,null,null,null,{"$f":"parameters!$B$42","v":"s2c_dim:UIISIN/US0378331005s2c_typ:ID"}]
["",null,"s2md_met:ei1866",null,null,{"$f":"SUBSTITUTE(SUBSTITUTE(TRIM(RIGHT(SUBSTITUTE('S.06.02.01'!O27,\" \",REPT(\" \",LEN('S.06.02.01'!O27))),LEN('S.06.02.01'!O27))),\"{\",\"\"),\"}\",\"\")","v":"s2c_BR:x22"},null,null,null,null,null,{"$f":"parameters!$B$42","v":"s2c_dim:UIISIN/US0378331005s2c_typ:ID"}]
["",null,"s2md_met:si1782",null,null,{"$f":"IF(ISBLANK('S.06.02.01'!P27),\"\",'S.06.02.01'!P27)","v":"abc"},null,null,null,null,null,{"$f":"parameters!$B$42","v":"s2c_dim:UIISIN/US0378331005s2c_typ:ID"}]
["",null,"s2md_met:ri2266",4,"uPure",{"$f":"IF(ISBLANK('S.06.02.01'!Q27),\"\",'S.06.02.01'!Q27)","v":0},null,null,null,null,null,{"$f":"parameters!$B$42","v":"s2c_dim:UIISIN/US0378331005s2c_typ:ID"}]
["",null,"s2md_met:mi1126",2,"uEUR",{"$f":"IF(ISBLANK('S.06.02.01'!R27),\"\",'S.06.02.01'!R27)","v":0},null,null,null,null,null,{"$f":"parameters!$B$42","v":"s2c_dim:UIISIN/US0378331005s2c_typ:ID"}]
["",null,"s2md_met:pi1286",4,"uPure",{"$f":"IF(ISBLANK('S.06.02.01'!S27),\"\",'S.06.02.01'!S27)","v":0},null,null,null,null,null,{"$f":"parameters!$B$42","v":"s2c_dim:UIISIN/US0378331005s2c_typ:ID"}]
["",null,"s2md_met:di1041",null,null,{"$f":"IF(ISBLANK('S.06.02.01'!T27),\"\",'S.06.02.01'!T27)","v":"2017-12-31"},null,null,null,null,null,{"$f":"parameters!$B$42","v":"s2c_dim:UIISIN/US0378331005s2c_typ:ID"}]

{"sheet":"parameters","index":8,"n_rows":42,"n_cols":42,"rows_kept":42,"cut":false,"hidden":true,"merged":[[2,30,3,30],[2,41,3,41],[5,30,6,30],[5,41,6,41],[7,30,9,30],[7,41,9,41]]}
["RowID",null,"UnitIni","Unit","UnitEnd",null,"Identifier","IdentifierSchema","PeriodInitDuration","PeriodEndInstant","Dimension","DimensionMember","Dimension","DimensionMember","Dimension","DimensionMember","Dimension","DimensionMember","Dimension","DimensionMember","Dimension","DimensionMember","Dimension","DimensionMember","Dimension","DimensionMember","Dimension","DimensionMember"]
["/* ",null,null,null,null,null,null,null,null,null,null,null,null,null,null,null,null,null,null,null,null,null,null,null,null,null,null,null,null,null,null,null,null,null,null,1,null,"1º TRIM","2º TRIM","3º TRIM","4º TRIM"]
["/**OutputHeader","<?xml version=\"1.0\" encoding=\"UTF-8\"?>\n<?instance-generator id=\"RECEX-SolvencyII\" version=\"2018.04.09\" creationdate=\"2018-04-09T00:00:00+02:00\"?>\n<xbrli:xbrl\n xmlns:s2c_AP=\"http://eiopa.europa.eu/xbrl/s2c/dict/dom/AP\"\n xmlns:s2c_BR=\"http://eiopa.europa.eu/xbrl/s2c/dict/dom/BR\"\n xmlns:s2c_CG=\"http://eiopa.europa.eu/xbrl/s2c/dict/dom/CG\"\n xmlns:s2c_CN=\"http://eiopa.europa.eu/xbrl/s2c/dict/dom/CN\"\n xmlns:s2c_CS=\"http://eiopa.europa.eu/xbrl/s2c/dict/dom/CS\"\n xmlns:s2c_CU=\"http://eiopa.europa.eu/xbrl/s2c/dict/dom/CU\"\n xmlns:s2c_GA=\"http://eiopa.europa.eu/xbrl/s2c/dict/dom/GA\"\n xmlns:s2c_LA=\"http://eiopa.europa.eu/xbrl/s2c/dict/dom/LA\"\n xmlns:s2c_NC=\"http://eiopa.europa.eu/xbrl/s2c/dict/dom/NC\"\n xmlns:s2c_PU=\"http://eiopa.europa.eu/xbrl/s2c/dict/dom/PU\"\n xmlns:s2c_SE=\"http://eiopa.europa.eu/xbrl/s2c/dict/dom/SE\"\n xmlns:find=\"http://www.eurofiling.info/xbrl/ext/filing-indicators\"\n xmlns:iso4217=\"http://www.xbrl.org/2003/iso4217\"\n xmlns:link=\"http://www.xbrl.org/2003/linkbase\"\n xmlns:s2c_AM=\"http://eiopa.europa.eu/xbrl/s2c/dict/dom/AM\"\n xmlns:s2c_LB=\"http://eiopa.europa.eu/xbrl/s2c/dict/dom/LB\"\n xmlns:s2c_MC=\"http://eiopa.europa.eu/xbrl/s2c/dict/dom/MC\"\n xmlns:s2c_VM=\"http://eiopa.europa.eu/xbrl/s2c/dict/dom/VM\"\n xmlns:s2c_dim=\"http://eiopa.europa.eu/xbrl/s2c/dict/dim\"\n xmlns:s2c_typ=\"http://eiopa.europa.eu/xbrl/s2c/dict/typ\"\n xmlns:s2md_met=\"http://eiopa.europa.eu/xbrl/s2md/dict/met\"\n xmlns:xbrldi=\"http://xbrl.org/2006/xbrldi\"\n xmlns:xbrli=\"http://www.xbrl.org/2003/instance\"\n xmlns:xlink=\"http://www.w3.org/1999/xlink\"\n >\n\n<link:schemaRef xlink:href=\"http://eiopa.europa.eu/eu/xbrl/s2md/fws/solvency/solvency2/2017-07-15/mod/qrs.xsd\" xlink:type=\"simple\"/>\n",null,null,null,null,null,null,null,null,null,null,null,null,null,null,null,null,null,null,null,null,null,null,null,null,null,null,null,null,null,null,null,null,null,2,"Inicio trimestre actual",{"$f":"+#REF!&\"-\"&\"12-31\"","v":{"$error":"#REF!"}},{"$f":"+AL4","v":{"$error":"#REF!"}},{"$f":"+AM4","v":{"$error":"#REF!"}},{"$f":"+AN4","v":{"$error":"#REF!"}},"anual"]
["/**OutputMiddle",{"$f":"CONCATENATE(C4,D4,E4)","v":"<xbrli:unit id=\"uEUR\">\n<xbrli:measure>iso4217:EUR</xbrli:measure>\n</xbrli:unit>"},"<xbrli:unit id=\"uEUR\">\n<xbrli:measure>iso4217:","EUR","</xbrli:measure>\n</xbrli:unit>",null,null,null,null,null,null,null,null,null,null,null,null,null,null,null,null,null,null,null,null,null,null,null,null,null,null,null,null,null,null,3,"fin trimestre actual",{"$f":"+#REF!&\"-\"&\"03-31\"","v":{"$error":"#REF!"}},{"$f":"+#REF!&\"-\"&\"06-30\"","v":{"$error":"#REF!"}},{"$f":"+#REF!&\"-\"&\"09-30\"","v":{"$error":"#REF!"}},{"$f":"+#REF!&\"-\"&\"12-31\"","v":{"$error":"#REF!"}}]
["/**OutputMiddle",{"$f":"CONCATENATE(C5,D5,E5)","v":"<xbrli:unit id=\"uPure\">\n<xbrli:measure>xbrli:pure</xbrli:measure>\n</xbrli:unit>"},"<xbrli:unit id=\"uPure\">\n<xbrli:measure>","xbrli:pure","</xbrli:measure>\n</xbrli:unit>",null,null,null,null,null,null,null,null,null,null,null,null,null,null,null,null,null,null,null,null,null,null,null,null,null,null,null,null,null,null,3,"fin trimestre actual",{"$f":"+#REF!&\"-\"&\"03-31\"","v":{"$error":"#REF!"}},{"$f":"+#REF!&\"-\"&\"06-30\"","v":{"$error":"#REF!"}},{"$f":"+#REF!&\"-\"&\"09-30\"","v":{"$error":"#REF!"}},{"$f":"+#REF!&\"-\"&\"12-31\"","v":{"$error":"#REF!"}}]
["/**OutputTail","</xbrli:xbrl>",null,null,null,null,null,null,null,null,null,null,null,null,null,null,null,null,null,null,null,null,null,null,null,null,null,null,null,null,null,null,null,null,null,10,"fin acumulado comparativo semestral",{"$f":"+#REF!&\"-12-31\"","v":{"$error":"#REF!"}},{"$f":"+#REF!&\"-12-31\"","v":{"$error":"#REF!"}},{"$f":"+#REF!&\"-\"&\"06-30\"","v":{"$error":"#REF!"}},{"$f":"+#REF!&\"-\"&\"06-30\"","v":{"$error":"#REF!"}}]
["/* ",null,null,null,null,null,null,null,null,null,null,null,null,null,null,null,null,null,null,null,null,null,null,null,null,null,null,null,null,null,null,null,null,null,null,11,"inicio acumulado actual semestral",{"$f":"+AL6","v":{"$error":"#REF!"}},{"$f":"+AM6","v":{"$error":"#REF!"}},{"$f":"+#REF!&\"-\"&\"06-30\"","v":{"$error":"#REF!"}},{"$f":"+#REF!&\"-\"&\"06-30\"","v":{"$error":"#REF!"}}]
["/* ","Contexts",null,null,null,null,null,null,null,null,null,null,null,null,null,null,null,null,null,null,null,null,null,null,null,null,null,null,null,null,null,null,null,null,null,12,"Inicio trimestre actual",{"$f":"+#REF!&\"-01-01\"","v":{"$error":"#REF!"}},{"$f":"+#REF!&\"-04-01\"","v":{"$error":"#REF!"}},{"$f":"+#REF!&\"-07-01\"","v":{"$error":"#REF!"}},{"$f":"+#REF!&\"-10-01\"","v":{"$error":"#REF!"}},"anual"]
["/* ",null,null,null,null,null,null,null,null,null,null,null,null,null,null,null,null,null,null,null,null,null,null,null,null,null,null,null,null,null,null,null,null,null,null,13,"inicio trimestre comparativo",{"$f":"+#REF!&\"-01-01\"","v":{"$error":"#REF!"}},{"$f":"+#REF!&\"-04-01\"","v":{"$error":"#REF!"}},{"$f":"+#REF!&\"-07-01\"","v":{"$error":"#REF!"}},{"$f":"+#REF!&\"-10-01\"","v":{"$error":"#REF!"}}]
["/**Replace","ctxInstant2017",null,null,null,null,{"$f":"SUBSTITUTE('S.01.02.01'!D10,\"LEI/\",\"\")","v":"969500X1Y8G7LA4DYS04"},"LEI",null,{"$f":"'S.01.02.01'!D16","v":"2017-12-31"},null,null,null,null,null,null,null,null,null,null,null,null,null,null,null,null,null,null,null,null,null,null,null,null,null,14,"inicio acumulado comparativo anual",{"$f":"+#REF!&\"-01-01\"","v":{"$error":"#REF!"}},{"$f":"+#REF!&\"-01-01\"","v":{"$error":"#REF!"}},{"$f":"+#REF!&\"-01-01\"","v":{"$error":"#REF!"}},{"$f":"+#REF!&\"-01-01\"","v":{"$error":"#REF!"}}]
["/* "]
["/**Replace",{"$f":"_xlfn.CONCAT(K12:P12)","v":"s2c_dim:VGs2c_AM:x80"},null,null,null,null,null,null,"ctxInstant2017",null,"s2c_dim:VG","s2c_AM:x80","","","",""]
["/**Replace",{"$f":"_xlfn.CONCAT(K13:P13)","v":"s2c_dim:VGs2c_AM:x80s2c_dim:BLs2c_LB:x91"},null,null,null,null,null,null,"ctxInstant2017",null,"s2c_dim:VG","s2c_AM:x80","s2c_dim:BL","s2c_LB:x91","",""]
["/**Replace","s2c_dim:VGs2c_AM:x80s2c_dim:BLs2c_LB:x119",null,null,null,null,null,null,"ctxInstant2017",null,"s2c_dim:VG","s2c_AM:x80","s2c_dim:BL","s2c_LB:x119","",""]
["/**Replace","s2c_dim:VGs2c_AM:x80s2c_dim:BLs2c_LB:x79",null,null,null,null,null,null,"ctxInstant2017",null,"s2c_dim:VG","s2c_AM:x80","s2c_dim:BL","s2c_LB:x79","",""]
["/**Replace","s2c_dim:VGs2c_AM:x80s2c_dim:BLs2c_LB:x75",null,null,null,null,null,null,"ctxInstant2017",null,"s2c_dim:VG","s2c_AM:x80","s2c_dim:BL","s2c_LB:x75","",""]
["/**Replace","s2c_dim:VGs2c_AM:x80s2c_dim:BLs2c_LB:x43",null,null,null,null,null,null,"ctxInstant2017",null,"s2c_dim:VG","s2c_AM:x80","s2c_dim:BL","s2c_LB:x43","",""]
["/**Replace","s2c_dim:VGs2c_AM:x80s2c_dim:BLs2c_LB:x64",null,null,null,null,null,null,"ctxInstant2017",null,"s2c_dim:VG","s2c_AM:x80","s2c_dim:BL","s2c_LB:x64","",""]
["/**Replace","s2c_dim:VGs2c_AM:x80s2c_dim:BLs2c_LB:x45",null,null,null,null,null,null,"ctxInstant2017",null,"s2c_dim:VG","s2c_AM:x80","s2c_dim:BL","s2c_LB:x45","",""]
["/**Replace","s2c_dim:VGs2c_AM:x80s2c_dim:BLs2c_LB:x63",null,null,null,null,null,null,"ctxInstant2017",null,"s2c_dim:VG","s2c_AM:x80","s2c_dim:BL","s2c_LB:x63","",""]
["/**Replace","s2c_dim:VGs2c_AM:x80s2c_dim:TBs2c_LB:x109",null,null,null,null,null,null,"ctxInstant2017",null,"s2c_dim:VG","s2c_AM:x80","s2c_dim:TB","s2c_LB:x109","",""]
["/**Replace","s2c_dim:VGs2c_AM:x80s2c_dim:BLs2c_LB:x75s2c_dim:VLs2c_VM:x8",null,null,null,null,null,null,"ctxInstant2017",null,"s2c_dim:VG","s2c_AM:x80","s2c_dim:BL","s2c_LB:x75","s2c_dim:VL","s2c_VM:x8"]
["/**Replace","s2c_dim:VGs2c_AM:x80s2c_dim:BLs2c_LB:x75s2c_dim:VLs2c_VM:x5",null,null,null,null,null,null,"ctxInstant2017",null,"s2c_dim:VG","s2c_AM:x80","s2c_dim:BL","s2c_LB:x75","s2c_dim:VL","s2c_VM:x5"]
["/**Replace","s2c_dim:VGs2c_AM:x80s2c_dim:BLs2c_LB:x75s2c_dim:VLs2c_VM:x47",null,null,null,null,null,null,"ctxInstant2017",null,"s2c_dim:VG","s2c_AM:x80","s2c_dim:BL","s2c_LB:x75","s2c_dim:VL","s2c_VM:x47"]
["/**Replace","s2c_dim:VGs2c_AM:x80s2c_dim:BLs2c_LB:x43s2c_dim:VLs2c_VM:x8",null,null,null,null,null,null,"ctxInstant2017",null,"s2c_dim:VG","s2c_AM:x80","s2c_dim:BL","s2c_LB:x43","s2c_dim:VL","s2c_VM:x8"]
["/**Replace","s2c_dim:VGs2c_AM:x80s2c_dim:BLs2c_LB:x43s2c_dim:VLs2c_VM:x5",null,null,null,null,null,null,"ctxInstant2017",null,"s2c_dim:VG","s2c_AM:x80","s2c_dim:BL","s2c_LB:x43","s2c_dim:VL","s2c_VM:x5"]
["/**Replace","s2c_dim:VGs2c_AM:x80s2c_dim:BLs2c_LB:x43s2c_dim:VLs2c_VM:x47",null,null,null,null,null,null,"ctxInstant2017",null,"s2c_dim:VG","s2c_AM:x80","s2c_dim:BL","s2c_LB:x43","s2c_dim:VL","s2c_VM:x47"]
["/**Replace","s2c_dim:VGs2c_AM:x80s2c_dim:BLs2c_LB:x176",null,null,null,null,null,null,"ctxInstant2017",null,"s2c_dim:VG","s2c_AM:x80","s2c_dim:BL","s2c_LB:x176","",""]
["/**Replace","s2c_dim:VGs2c_AM:x80s2c_dim:BLs2c_LB:x46",null,null,null,null,null,null,"ctxInstant2017",null,"s2c_dim:VG","s2c_AM:x80","s2c_dim:BL","s2c_LB:x46","",""]
["/**Replace","s2c_dim:VGs2c_AM:x80s2c_dim:BLs2c_LB:x46s2c_dim:VLs2c_VM:x8",null,null,null,null,null,null,"ctxInstant2017",null,"s2c_dim:VG","s2c_AM:x80","s2c_dim:BL","s2c_LB:x46","s2c_dim:VL","s2c_VM:x8"]
["/**Replace","s2c_dim:VGs2c_AM:x80s2c_dim:BLs2c_LB:x46s2c_dim:VLs2c_VM:x5",null,null,null,null,null,null,"ctxInstant2017",null,"s2c_dim:VG","s2c_AM:x80","s2c_dim:BL","s2c_LB:x46","s2c_dim:VL","s2c_VM:x5"]
["/**Replace","s2c_dim:VGs2c_AM:x80s2c_dim:BLs2c_LB:x46s2c_dim:VLs2c_VM:x47",null,null,null,null,null,null,"ctxInstant2017",null,"s2c_dim:VG","s2c_AM:x80","s2c_dim:BL","s2c_LB:x46","s2c_dim:VL","s2c_VM:x47"]
["/**Replace","s2c_dim:VGs2c_AM:x80s2c_dim:BLs2c_LB:x173",null,null,null,null,null,null,"ctxInstant2017",null,"s2c_dim:VG","s2c_AM:x80","s2c_dim:BL","s2c_LB:x173","",""]
["/**Replace","s2c_dim:VGs2c_AM:x80s2c_dim:BLs2c_LB:x173s2c_dim:VLs2c_VM:x8",null,null,null,null,null,null,"ctxInstant2017",null,"s2c_dim:VG","s2c_AM:x80","s2c_dim:BL","s2c_LB:x173","s2c_dim:VL","s2c_VM:x8"]
["/**Replace","s2c_dim:VGs2c_AM:x80s2c_dim:BLs2c_LB:x173s2c_dim:VLs2c_VM:x5",null,null,null,null,null,null,"ctxInstant2017",null,"s2c_dim:VG","s2c_AM:x80","s2c_dim:BL","s2c_LB:x173","s2c_dim:VL","s2c_VM:x5"]
["/**Replace","s2c_dim:VGs2c_AM:x80s2c_dim:BLs2c_LB:x173s2c_dim:VLs2c_VM:x47",null,null,null,null,null,null,"ctxInstant2017",null,"s2c_dim:VG","s2c_AM:x80","s2c_dim:BL","s2c_LB:x173","s2c_dim:VL","s2c_VM:x47"]
["/**Replace","s2c_dim:VGs2c_AM:x80s2c_dim:BLs2c_LB:x119s2c_dim:VLs2c_VM:x8",null,null,null,null,null,null,"ctxInstant2017",null,"s2c_dim:VG","s2c_AM:x80","s2c_dim:BL","s2c_LB:x119","s2c_dim:VL","s2c_VM:x8"]
["/**Replace","s2c_dim:VGs2c_AM:x80s2c_dim:BLs2c_LB:x119s2c_dim:VLs2c_VM:x5",null,null,null,null,null,null,"ctxInstant2017",null,"s2c_dim:VG","s2c_AM:x80","s2c_dim:BL","s2c_LB:x119","s2c_dim:VL","s2c_VM:x5"]
["/**Replace","s2c_dim:VGs2c_AM:x80s2c_dim:BLs2c_LB:x119s2c_dim:VLs2c_VM:x47",null,null,null,null,null,null,"ctxInstant2017",null,"s2c_dim:VG","s2c_AM:x80","s2c_dim:BL","s2c_LB:x119","s2c_dim:VL","s2c_VM:x47"]
["/**Replace",{"$f":"SUBSTITUTE(_xlfn.CONCAT(M40:AB40),\"/**Typed\",\"\")","v":"s2c_dim:MP1s2c_typ:IDs2c_dim:XA1s2c_typ:NBs2c_dim:NF1s2c_typ:IDs2c_dim:UIISIN/US0378331005s2c_typ:ID"},null,null,null,null,null,null,"ctxInstant2017",null,"s2c_dim:SU","s2c_MC:x168","s2c_dim:MP",{"$f":"IF(ISBLANK('S.06.02.01'!D12),\"\",'S.06.02.01'!D12)","v":1},"/**Typed","s2c_typ:ID","s2c_dim:XA",{"$f":"IF(ISBLANK('S.06.02.01'!A12),\"\",'S.06.02.01'!A12)","v":1},"/**Typed","s2c_typ:NB","s2c_dim:NF",{"$f":"IF(ISBLANK('S.06.02.01'!C12),\"\",'S.06.02.01'!C12)","v":1},"/**Typed","s2c_typ:ID","s2c_dim:UI",{"$f":"IF(ISBLANK('S.06.02.01'!B12),\"\",'S.06.02.01'!B12)","v":"ISIN/US0378331005"},"/**Typed","s2c_typ:ID"]
[{"$f":"IF(R41=\"\",\"/*\",\"/**Replace\")","v":"/**Replace"},{"$f":"SUBSTITUTE(_xlfn.CONCAT(M41:AB41),\"/**Typed\",\"\")","v":"s2c_dim:MP1s2c_typ:IDs2c_dim:XA2s2c_typ:NBs2c_dim:NF1s2c_typ:IDs2c_dim:UIISIN/US0378331005s2c_typ:ID"},null,null,null,null,null,null,"ctxInstant2017",null,"s2c_dim:SU","s2c_MC:x168","s2c_dim:MP",{"$f":"IF(ISBLANK('S.06.02.01'!D13),\"\",'S.06.02.01'!D13)","v":1},"/**Typed","s2c_typ:ID","s2c_dim:XA",{"$f":"IF(ISBLANK('S.06.02.01'!A13),\"\",'S.06.02.01'!A13)","v":2},"/**Typed","s2c_typ:NB","s2c_dim:NF",{"$f":"IF(ISBLANK('S.06.02.01'!C13),\"\",'S.06.02.01'!C13)","v":1},"/**Typed","s2c_typ:ID","s2c_dim:UI",{"$f":"IF(ISBLANK('S.06.02.01'!B13),\"\",'S.06.02.01'!B13)","v":"ISIN/US0378331005"},"/**Typed","s2c_typ:ID"]
[{"$f":"IF(N42=\"\",\"/*\",\"/**Replace\")","v":"/**Replace"},{"$f":"SUBSTITUTE(_xlfn.CONCAT(M42:AB42),\"/**Typed\",\"\")","v":"s2c_dim:UIISIN/US0378331005s2c_typ:ID"},null,null,null,null,null,null,"ctxInstant2017",null,"s2c_dim:SU","s2c_MC:x168","s2c_dim:UI",{"$f":"IF(ISBLANK('S.06.02.01'!A27),\"\",'S.06.02.01'!A27)","v":"ISIN/US0378331005"},"/**Typed","s2c_typ:ID"]

{"sheet":"S.06.03.01","index":9,"n_rows":17,"n_cols":6,"rows_kept":17,"cut":false,"hidden":false,"merged":[]}
["S.06.03.01"]
["Collective investment undertakings - look-through approach"]
[]
["S.06.03.01.01"]
["Z Axis:"]
["SU/Assets other than derivatives and Assets held as collateral"]
[]
["Collective investment undertakings - look-through approach"]
[]
["Line identification","Collective Investments Undertaking ID Code and Type of code","Underlying asset category","Country of issue","Currency","Total amount"]
["C0100","C0010","C0030","C0040","C0050","C0060"]
[]
["*artificial key*|\"mandatory\"","\"mandatory\"","Metric: Underlying asset category","Metric: Issuer country (Full scope)","Metric: Currency of underlying","Metric: Monetary"]
["XE: S.06.03.zz.01 line identification","UI: URI",null,null,null,"BC/Assets"]
[null,null,null,null,null,"AS/Collective investments undertakings"]
[null,null,null,null,null,"IO/Investment"]
[null,null,null,null,null,"VG/Solvency II"]

{"sheet":"S.08.01.01","index":10,"n_rows":29,"n_cols":21,"rows_kept":29,"cut":false,"hidden":false,"merged":[]}
["S.08.01.01"]
["Open derivatives"]
[]
["S.08.01.01.01"]
["Z Axis:"]
["SU/Derivatives - Open"]
[]
["Information on positions held"]
[]
["Line identification","Derivative ID Code and Type of code","Fund number","Instrument underlying the derivative (code and type of code)","Portfolio","Derivatives held in index-linked and unit-linked contracts","Use of derivative","Delta","Notional amount of the derivative","Buyer / Seller","Premium paid to date","Premium received to date","Number of contracts","Contract size","Maximum loss under unwinding event","Swap outflow amount","Swap inflow amount","Initial date","Duration","Solvency II value","Valuation method"]
["C0440","C0040","C0070","C0090","C0060","C0080","C0110","C0120","C0130","C0140","C0150","C0160","C0170","C0180","C0190","C0200","C0210","C0220","C0230","C0240","C0250"]
[]
["*artificial key*|\"mandatory\"","*foreign key to S.08.01.01.02*|\"mandatory\"","\"optional\"","\"optional\"","Metric: Portfolio (investment, securities lending and repo)[210]","Metric: Held in unit linked and index linked funds","Metric: Use of derivative (Full scope)","Metric: Decimal","Metric: Monetary","Metric: Long or short position [open]","Metric: Monetary","Metric: Monetary","Metric: Integer","Metric: Integer","Metric: Monetary","Metric: Monetary","Metric: Monetary","Metric: Date","Metric: Decimal","Metric: Monetary","Metric: Valuation method (derivatives) (Full scope)"]
["XB: S.08.01.zz.01 line identification","UI: URI","NF: Number of fund","IW: Code of underlying derivative",null,null,null,"DC/Delta","TA/Notional amount",null,"BC/Premium paid","BC/Premium received","NT/Number of contracts","NT/Number of underlying assets","TA/Maximum loss under unwinding event","TA/Outflow amount","TA/Inflow amount","TD/Trade date","DC/Residual modified duration","VG/Solvency II"]
[null,null,null,null,null,null,null,null,"BC/Assets and/or liabilities",null,"AL/Derivatives","AL/Derivatives",null,null,"BC/Assets and/or liabilities","BC/Assets and/or liabilities","BC/Assets and/or liabilities",null,null,"BC/Assets and/or liabilities"]
[null,null,null,null,null,null,null,null,"AL/Derivatives",null,"DI/Year to Date","DI/Year to Date",null,null,"AL/Derivatives","DI/Year to Date","DI/Year to Date"]
[null,null,null,null,null,null,null,null,"VG/Solvency II",null,"VG/Solvency II","VG/Solvency II",null,null,null,"AL/Derivatives","AL/Derivatives",null,null,"AL/Derivatives"]
[null,null,null,null,null,null,null,null,null,null,null,null,null,null,"VG/Solvency II","VG/Solvency II","VG/Solvency II"]
["S.08.01.01.02"]
["Z Axis:"]
["SU/Derivatives - Open"]
[]
["Information on derivatives"]
[]
["Derivative ID Code and Type of code","Counterparty Name","Counterparty Code and Type of code","External rating","Nominated ECAI","Credit quality step","Internal rating","Counterparty Group","Counterparty group code and type of code","Contract name","Currency","CIC","Trigger value","Unwind trigger of contract","Swap delivered currency","Swap received currency","Maturity date"]
["C0040","C0260","C0270","C0290","C0300","C0310","C0320","C0330","C0340","C0360","C0370","C0380","C0390","C0400","C0410","C0420","C0430"]
[]
["*natural key*|\"mandatory\"","Metric: String","Metric: String","Metric: String","Metric: Nominated ECAI","Metric: Credit quality step (Full scope)","Metric: String","Metric: String","Metric: String","Metric: String","Metric: Original currency of exposure/transaction/instrument","Metric: String","Metric: String","Metric: Unwind trigger of contract (Full scope)","Metric: Swap delivered currency","Metric: Swap received currency","Metric: Date"]
["UI: URI","TS/Name of counterparty","TS/Counterparty code","TS/External rating",null,null,"TS/Internal rating","TS/Counterparty group","TS/Counterparty group code","TS/Contract name",null,"TS/CIC code","TS/Trigger value",null,null,null,"TD/Maturity date"]

{"sheet":"S.08.02.01","index":11,"n_rows":29,"n_cols":19,"rows_kept":29,"cut":false,"hidden":false,"merged":[]}
["S.08.02.01"]
["Derivatives Transactions"]
[]
["S.08.02.01.01"]
["Z Axis:"]
["SU/Derivatives - Transactions"]
[]
["Information on positions held"]
[]
["Line identification","Derivative ID Code and Type of code","Fund number","Instrument underlying the derivative (code and type of code)","Portfolio","Derivatives held in index-linked and unit-linked contracts","Use of derivative","Notional amount of the derivative","Buyer / Seller","Premium paid to date","Premium received to date","Profit and loss to date","Number of contracts","Contract size","Maximum loss under unwinding event","Swap outflow amount","Swap inflow amount","Initial date","Solvency II value"]
["C0440","C0040","C0070","C0090","C0060","C0080","C0110","C0120","C0130","C0140","C0150","C0160","C0170","C0180","C0190","C0200","C0210","C0220","C0230"]
[]
["*artificial key*|\"mandatory\"","*foreign key to S.08.02.01.02*|\"mandatory\"","\"optional\"","\"optional\"","Metric: Portfolio (investment, securities lending and repo)[210]","Metric: Held in unit linked and index linked funds","Metric: Use of derivative (Full scope)","Metric: Monetary","Metric: Long or short position [closed]","Metric: Monetary","Metric: Monetary","Metric: Monetary","Metric: Integer","Metric: Integer","Metric: Monetary","Metric: Monetary","Metric: Monetary","Metric: Date","Metric: Monetary"]
["XC: S.08.02.zz.01 line identification","UI: URI","NF: Number of fund","IW: Code of underlying derivative",null,null,null,"TA/Notional amount",null,"BC/Premium paid","BC/Premium received","BC/Profit/(loss)","NT/Number of contracts","NT/Number of underlying assets","TA/Maximum loss under unwinding event","TA/Outflow amount","TA/Inflow amount","TD/Trade date","VG/Solvency II"]
[null,null,null,null,null,null,null,"BC/Assets and/or liabilities",null,"AL/Derivatives","AL/Derivatives","DI/Year to Date",null,null,"BC/Assets and/or liabilities","BC/Assets and/or liabilities","BC/Assets and/or liabilities",null,"BC/Assets and/or liabilities"]
[null,null,null,null,null,null,null,"AL/Derivatives",null,"DI/Year to Date","DI/Year to Date",null,null,null,"AL/Derivatives","DI/Year to Date","DI/Year to Date"]
[null,null,null,null,null,null,null,"VG/Solvency II",null,"VG/Solvency II","VG/Solvency II","VG/Solvency II",null,null,null,"AL/Derivatives","AL/Derivatives",null,"AL/Derivatives"]
[null,null,null,null,null,null,null,null,null,null,null,null,null,null,"VG/Solvency II","VG/Solvency II","VG/Solvency II"]
["S.08.02.01.02"]
["Z Axis:"]
["SU/Derivatives - Transactions"]
[]
["Information on derivatives"]
[]
["Derivative ID Code and Type of code","Counterparty Name","Counterparty Code and Type of code","Counterparty group","Counterparty Group Code and Type of code","Contract name","Currency","CIC","Trigger value","Unwind trigger of contract","Swap delivered currency","Swap received currency","Maturity date"]
["C0040","C0240","C0250","C0270","C0280","C0300","C0310","C0320","C0330","C0340","C0350","C0360","C0370"]
[]
["*natural key*|\"mandatory\"","Metric: String","Metric: String","Metric: String","Metric: String","Metric: String","Metric: Original currency of exposure/transaction/instrument","Metric: String","Metric: String","Metric: Unwind trigger of contract (Full scope)","Metric: Swap delivered currency","Metric: Swap received currency","Metric: Date"]
["UI: URI","TS/Name of counterparty","TS/Counterparty code","TS/Counterparty group","TS/Counterparty group code","TS/Contract name",null,"TS/CIC code","TS/Trigger value",null,null,null,"TD/Maturity date"]

{"sheet":"S.12.01.02","index":12,"n_rows":26,"n_cols":28,"rows_kept":26,"cut":false,"hidden":false,"merged":[[7,12,7,14],[7,15,8,15],[7,16,8,16],[7,17,8,17],[7,2,8,2],[7,3,7,5],[7,6,7,8],[7,9,8,9],[7,10,8,10],[7,11,8,11]]}
["S.12.01.02"]
["Life and Health SLT Technical Provisions"]
[]
["S.12.01.02.01"]
[]
["Life and Health SLT Technical Provisions"]
[]
[null,null,"Insurance with profit participation","Index-linked and unit-linked insurance",null,null,"Other life insurance",null,null,"Annuities stemming from non-life insurance contracts and relating to insurance obligation other than health insurance obligations","Accepted reinsurance","Total (Life other than health insurance, incl. Unit-Linked)","Health insurance (direct business)",null,null,"Annuities stemming from non-life insurance contracts and relating to health insurance obligations","Health reinsurance (reinsurance accepted)","Total (Health similar to life insurance)"]
[null,null,null,null,"Contracts without options and guarantees","Contracts with options or guarantees",null,"Contracts without options and guarantees","Contracts with options or guarantees",null,null,null,null,"Contracts without options and guarantees","Contracts with options or guarantees"]
[null,null,"C0020","C0030","C0040","C0050","C0060","C0070","C0080","C0090","C0100","C0150","C0160","C0170","C0180","C0190","C0200","C0210"]
["Technical provisions calculated as a whole","R0010",null,null,null,null,null,null,null,null,null,null,null,null,null,null,null,null,"VG/Solvency II","VL/Calculated as a whole",null,"Metric: Monetary","BC/Liability","LB/Gross technical provisions [other than local GAAP specific]",null,"VV/Amount before transitional on Technical Provisions"]
["Total Recoverables from reinsurance/SPV and Finite Re after the adjustment for expected losses due to counterparty default associated to TP calculated as a whole","R0020",null,null,null,null,null,null,null,null,null,null,null,null,null,null,null,null,"VG/Solvency II","VL/Calculated as a whole",null,"Metric: Monetary","BC/Assets","AS/Recoverables recognised for TP calculation","IO/Other than investment, own use, own instruments held directly and cash and cash equivalents",null,"CT/Reinsurance counterparties","CC/Ceded"]
["Technical provisions calculated as a sum of BE and RM"]
["Best Estimate"]
["Gross Best Estimate","R0030",null,null,null,null,null,null,null,null,null,null,null,null,null,null,null,null,"VG/Solvency II","VL/Best estimate",null,"Metric: Monetary","BC/Liability","LB/Gross technical provisions [other than local GAAP specific]",null,"VV/Amount before transitional on Technical Provisions"]
["Total Recoverables from reinsurance/SPV and Finite Re after the adjustment for expected losses due to counterparty default","R0080",null,null,null,null,null,null,null,null,null,null,null,null,null,null,null,null,"VG/Solvency II","VL/Best estimate",null,"Metric: Monetary","BC/Assets","AS/Recoverables recognised for TP calculation","IO/Other than investment, own use, own instruments held directly and cash and cash equivalents",null,"CT/Reinsurance counterparties","CC/Ceded"]
["Best estimate minus recoverables from reinsurance/SPV and Finite Re - total","R0090",null,null,null,null,null,null,null,null,null,null,null,null,null,null,null,null,"VG/Solvency II","VL/Best estimate",null,"Metric: Monetary","BC/Liability","LB/Gross technical provisions [other than local GAAP specific]","IT/After risk mitigation effect","VV/Amount before transitional on Technical Provisions"]
["Risk Margin","R0100",null,null,null,null,null,null,null,null,null,null,null,null,null,null,null,null,"VG/Solvency II","VL/Risk margin",null,"Metric: Monetary","BC/Liability","LB/Gross technical provisions [other than local GAAP specific]","IT/After risk mitigation effect","VV/Amount before transitional on Technical Provisions"]
["Amount of the transitional on Technical Provisions"]
["Technical Provisions calculated as a whole","R0110",null,null,null,null,null,null,null,null,null,null,null,null,null,null,null,null,"VG/Solvency II","VL/Calculated as a whole",null,"Metric: Monetary","BC/Liability","LB/Gross technical provisions [other than local GAAP specific]",null,"VV/Amount of the transitional on Technical Provisions"]
["Best estimate","R0120",null,null,null,null,null,null,null,null,null,null,null,null,null,null,null,null,"VG/Solvency II","VL/Best estimate",null,"Metric: Monetary","BC/Liability","LB/Gross technical provisions [other than local GAAP specific]",null,"VV/Amount of the transitional on Technical Provisions"]
["Risk margin","R0130",null,null,null,null,null,null,null,null,null,null,null,null,null,null,null,null,"VG/Solvency II","VL/Risk margin",null,"Metric: Monetary","BC/Liability","LB/Gross technical provisions [other than local GAAP specific]",null,"VV/Amount of the transitional on Technical Provisions"]
["Technical provisions - total","R0200",null,null,null,null,null,null,null,null,null,null,null,null,null,null,null,null,"VG/Solvency II",null,null,"Metric: Monetary","BC/Liability","LB/Gross technical provisions [other than local GAAP specific]"]
[null,null,"BL/Insurance with profit participation","BL/Unit-linked or index-linked","BL/Unit-linked or index-linked","BL/Unit-linked or index-linked","BL/Other life","BL/Other life","BL/Other life","BL/Annuities stemming from non-life insurance contracts and relating to insurance obligations other than health insurance obligations","BL/Life and annuities stemming from non-life insurance contracts and relating to insurance obligations other than health insurance obligations","BL/Life and annuities stemming from non-life insurance contracts and relating to insurance obligations other than health insurance obligations","BL/Health SLT","BL/Health SLT","BL/Health SLT","BL/Annuities stemming from non-life insurance contracts and relating to health insurance obligations","BL/Health SLT and annuities stemming from non-life insurance contracts and relating to health insurance obligations","BL/Health SLT and annuities stemming from non-life insurance contracts and relating to health insurance obligations"]
[null,null,null,null,"RZ/Contracts without options and guarantees","RZ/Contracts with options and guarantees",null,"RZ/Contracts without options and guarantees","RZ/Contracts with options and guarantees",null,null,null,null,"RZ/Contracts without options and guarantees","RZ/Contracts with options and guarantees"]
[null,null,"TB/Direct Business","TB/Direct Business","TB/Direct Business","TB/Direct Business","TB/Direct Business","TB/Direct Business","TB/Direct Business","TB/Direct Business","TB/Reinsurance accepted",null,"TB/Direct Business","TB/Direct Business","TB/Direct Business","TB/Direct Business","TB/Reinsurance accepted"]

{"sheet":"S.17.01.02","index":13,"n_rows":34,"n_cols":27,"rows_kept":34,"cut":false,"hidden":false,"merged":[[7,2,7,13],[7,14,7,17],[7,18,8,18]]}
["S.17.01.02"]
["Non-Life Technical Provisions"]
[]
["S.17.01.02.01"]
[]
["Non-Life Technical Provisions"]
[]
[null,null,"Direct business and accepted proportional reinsurance",null,null,null,null,null,null,null,null,null,null,null,"Accepted non-proportional reinsurance",null,null,null,"Total Non-Life obligation"]
[null,null,"Medical expense insurance","Income protection insurance","Workers' compensation insurance","Motor vehicle liability insurance","Other motor insurance","Marine, aviation and transport insurance","Fire and other damage to property insurance","General liability insurance","Credit and suretyship insurance","Legal expenses insurance","Assistance","Miscellaneous financial loss","Non-proportional health reinsurance","Non-proportional casualty reinsurance","Non-proportional marine, aviation and transport reinsurance","Non-proportional property reinsurance"]
[null,null,"C0020","C0030","C0040","C0050","C0060","C0070","C0080","C0090","C0100","C0110","C0120","C0130","C0140","C0150","C0160","C0170","C0180"]
["Technical provisions calculated as a whole","R0010",null,null,null,null,null,null,null,null,null,null,null,null,null,null,null,null,null,"VL/Calculated as a whole","VG/Solvency II","Metric: Monetary","BC/Liability","LB/Gross technical provisions [other than local GAAP specific]",null,null,"VV/Amount before transitional on Technical Provisions"]
["Total Recoverables from reinsurance/SPV and Finite Re after the adjustment for expected losses due to counterparty default associated to TP calculated as a whole","R0050",null,null,null,null,null,null,null,null,null,null,null,null,null,null,null,null,null,"VL/Calculated as a whole","VG/Solvency II","Metric: Monetary","BC/Assets","AS/Recoverables recognised for TP calculation","IO/Other than investment, own use, own instruments held directly and cash and cash equivalents","CT/Reinsurance counterparties","CC/Ceded"]
["Technical provisions calculated as a sum of BE and RM"]
["Best estimate"]
["Premium provisions"]
["Gross","R0060",null,null,null,null,null,null,null,null,null,null,null,null,null,null,null,null,null,"VL/Best estimate","VG/Solvency II","Metric: Monetary","BC/Liability","LB/Premium provisions [other than local GAAP specific]",null,null,"VV/Amount before transitional on Technical Provisions"]
["Total recoverable from reinsurance/SPV and Finite Re after the adjustment for expected losses due to counterparty default","R0140",null,null,null,null,null,null,null,null,null,null,null,null,null,null,null,null,null,"VL/Best estimate","VG/Solvency II","Metric: Monetary","BC/Assets","AS/Premium recoverables recognised for TP calculation","IO/Other than investment, own use, own instruments held directly and cash and cash equivalents","CT/Reinsurance counterparties","CC/Ceded"]
["Net Best Estimate of Premium Provisions","R0150",null,null,null,null,null,null,null,null,null,null,null,null,null,null,null,null,null,"VL/Best estimate","VG/Solvency II","Metric: Monetary","BC/Liability","LB/Premium provisions [other than local GAAP specific]","IT/After risk mitigation effect",null,"VV/Amount before transitional on Technical Provisions"]
["Claims provisions"]
["Gross","R0160",null,null,null,null,null,null,null,null,null,null,null,null,null,null,null,null,null,"VL/Best estimate","VG/Solvency II","Metric: Monetary","BC/Liability","LB/Claim provisions [other than local GAAP specific]",null,null,"VV/Amount before transitional on Technical Provisions"]
["Total recoverable from reinsurance/SPV and Finite Re after the adjustment for expected losses due to counterparty default","R0240",null,null,null,null,null,null,null,null,null,null,null,null,null,null,null,null,null,"VL/Best estimate","VG/Solvency II","Metric: Monetary","BC/Assets","AS/Claims recoverables recognised for TP calculation","IO/Other than investment, own use, own instruments held directly and cash and cash equivalents","CT/Reinsurance counterparties","CC/Ceded"]
["Net Best Estimate of Claims Provisions","R0250",null,null,null,null,null,null,null,null,null,null,null,null,null,null,null,null,null,"VL/Best estimate","VG/Solvency II","Metric: Monetary","BC/Liability","LB/Claim provisions [other than local GAAP specific]","IT/After risk mitigation effect",null,"VV/Amount before transitional on Technical Provisions"]
["Total Best estimate - gross","R0260",null,null,null,null,null,null,null,null,null,null,null,null,null,null,null,null,null,"VL/Best estimate","VG/Solvency II","Metric: Monetary","BC/Liability","LB/Gross technical provisions [other than local GAAP specific]",null,null,"VV/Amount before transitional on Technical Provisions"]
["Total Best estimate - net","R0270",null,null,null,null,null,null,null,null,null,null,null,null,null,null,null,null,null,"VL/Best estimate","VG/Solvency II","Metric: Monetary","BC/Liability","LB/Gross technical provisions [other than local GAAP specific]","IT/After risk mitigation effect",null,"VV/Amount before transitional on Technical Provisions"]
["Risk margin","R0280",null,null,null,null,null,null,null,null,null,null,null,null,null,null,null,null,null,"VL/Risk margin","VG/Solvency II","Metric: Monetary","BC/Liability","LB/Gross technical provisions [other than local GAAP specific]","IT/After risk mitigation effect",null,"VV/Amount before transitional on Technical Provisions"]
["Amount of the transitional on Technical Provisions"]
["Technical Provisions calculated as a whole","R0290",null,null,null,null,null,null,null,null,null,null,null,null,null,null,null,null,null,"VL/Calculated as a whole","VG/Solvency II","Metric: Monetary","BC/Liability","LB/Gross technical provisions [other than local GAAP specific]",null,null,"VV/Amount of the transitional on Technical Provisions"]
["Best estimate","R0300",null,null,null,null,null,null,null,null,null,null,null,null,null,null,null,null,null,"VL/Best estimate","VG/Solvency II","Metric: Monetary","BC/Liability","LB/Gross technical provisions [other than local GAAP specific]",null,null,"VV/Amount of the transitional on Technical Provisions"]
["Risk margin","R0310",null,null,null,null,null,null,null,null,null,null,null,null,null,null,null,null,null,"VL/Risk margin","VG/Solvency II","Metric: Monetary","BC/Liability","LB/Gross technical provisions [other than local GAAP specific]",null,null,"VV/Amount of the transitional on Technical Provisions"]
["Technical provisions - total"]
["Technical provisions - total","R0320",null,null,null,null,null,null,null,null,null,null,null,null,null,null,null,null,null,null,"VG/Solvency II","Metric: Monetary","BC/Liability","LB/Gross technical provisions [other than local GAAP specific]"]
["Recoverable from reinsurance contract/SPV and Finite Re after the adjustment for expected losses due to counterparty default - total","R0330",null,null,null,null,null,null,null,null,null,null,null,null,null,null,null,null,null,null,"VG/Solvency II","Metric: Monetary","BC/Assets","AS/Recoverables recognised for TP calculation","IO/Other than investment, own use, own instruments held directly and cash and cash equivalents","CC/Ceded"]
["Technical provisions minus recoverables from reinsurance/SPV and Finite Re - total","R0340",null,null,null,null,null,null,null,null,null,null,null,null,null,null,null,null,null,null,"VG/Solvency II","Metric: Monetary","BC/Liability","LB/Gross technical provisions [other than local GAAP specific]","IT/After risk mitigation effect"]
[null,null,"BL/Medical expense insurance [direct business and accepted proportional reinsurance]","BL/Income protection insurance [direct business and accepted proportional reinsurance]","BL/Workers' compensation insurance [direct business and accepted proportional reinsurance]","BL/Motor vehicle liability insurance [direct business and accepted proportional reinsurance]","BL/Other motor insurance [direct business and accepted proportional reinsurance]","BL/Marine, aviation and transport insurance [direct business and accepted proportional reinsurance]","BL/Fire and other damage to property insurance [direct business and accepted proportional reinsurance]","BL/General liability insurance [direct business and accepted proportional reinsurance]","BL/Credit and suretyship insurance [direct business and accepted proportional reinsurance]","BL/Legal expenses insurance [direct business and accepted proportional reinsurance]","BL/Assistance [direct business and accepted proportional reinsurance]","BL/Miscellaneous financial loss [direct business and accepted proportional reinsurance]","BL/Health [accepted non-proportional reinsurance]","BL/Casualty [accepted non-proportional reinsurance]","BL/Marine, aviation, transport [accepted non-proportional reinsurance]","BL/Property [accepted non-proportional reinsurance]","BL/Non-life and Health non-SLT"]

{"sheet":"S.23.01.01","index":14,"n_rows":69,"n_cols":13,"rows_kept":69,"cut":false,"hidden":false,"merged":[]}
["S.23.01.01"]
["Own funds"]
[]
["S.23.01.01.01"]
["Z Axis:"]
["VG/Solvency II"]
[]
["Own funds"]
[]
[null,null,null,"Total","Tier 1 - unrestricted","Tier 1 - restricted","Tier 2","Tier 3"]
[null,null,null,"C0010","C0020","C0030","C0040","C0050"]
[null,"Basic own funds before deduction for participations in other financial sector as foreseen in article 68 of Delegated Regulation 2015/35"]
[null,"Ordinary share capital (gross of own shares)","R0010",null,null,null,null,null,"Metric: Monetary","BC/Own funds","BE/Basic own funds","OF/Ordinary shares"]
[null,"Share premium account related to ordinary share capital","R0030",null,null,null,null,null,"Metric: Monetary","BC/Own funds","BE/Basic own funds","OF/Share premium related to ordinary shares"]
[null,"Initial funds, members' contributions or the equivalent basic own - fund item for mutual and mutual-type undertakings","R0040",null,null,null,null,null,"Metric: Monetary","BC/Own funds","BE/Basic own funds","OF/Initial funds [members' contributions or the equivalent basic own fund item for mutual and mutual-type undertakings]"]
[null,"Subordinated mutual member accounts","R0050",null,null,null,null,null,"Metric: Monetary","BC/Own funds","BE/Basic own funds","OF/Subordinated mutual member accounts"]
[null,"Surplus funds","R0070",null,null,null,null,null,"Metric: Monetary","BC/Own funds","BE/Basic own funds","OF/Surplus funds"]
[null,"Preference shares","R0090",null,null,null,null,null,"Metric: Monetary","BC/Own funds","BE/Basic own funds","OF/Preference shares"]
[null,"Share premium account related to preference shares","R0110",null,null,null,null,null,"Metric: Monetary","BC/Own funds","BE/Basic own funds","OF/Share premium related to preference shares"]
[null,"Reconciliation reserve","R0130",null,null,null,null,null,"Metric: Monetary","BC/Own funds","BE/Basic own funds","OF/Reconciliation reserve"]
[null,"Subordinated liabilities","R0140",null,null,null,null,null,"Metric: Monetary","BC/Own funds","BE/Basic own funds","OF/Subordinated debt instruments"]
[null,"An amount equal to the value of net deferred tax assets","R0160",null,null,null,null,null,"Metric: Monetary","BC/Own funds","BE/Basic own funds","OF/Own funds equivalent to the value of net deferred tax assets"]
[null,"Other own fund items approved by the supervisory authority as basic own funds not specified above","R0180",null,null,null,null,null,"Metric: Monetary","BC/Own funds","BE/Basic own funds","OF/Other items approved by supervisory authority"]
[null,"Own funds from the financial statements that should not be represented by the reconciliation reserve and do not meet the criteria to be classified as Solvency II own funds"]
[null,"Own funds from the financial statements that should not be represented by the reconciliation reserve and do not meet the criteria to be classified as Solvency II own funds","R0220",null,null,null,null,null,"Metric: Monetary","BC/Own funds","BE/Not basic nor ancillary own funds"]
[null,"Deductions"]
[null,"Deductions for participations in financial and credit institutions","R0230",null,null,null,null,null,"Metric: Monetary","BC/Own funds","BE/Basic own funds","OF/Deductions"]
[null,"Total basic own funds after deductions","R0290",null,null,null,null,null,"Metric: Monetary","BC/Own funds","BE/Basic own funds"]
[null,"Ancillary own funds"]
[null,"Unpaid and uncalled ordinary share capital callable on demand","R0300",null,null,null,null,null,"Metric: Monetary","BC/Own funds","BE/Ancillary own funds","OF/Ordinary shares","SY/Callable on demand"]
[null,"Unpaid and uncalled initial funds, members' contributions or the equivalent basic own fund item for mutual and mutual - type undertakings, callable on demand","R0310",null,null,null,null,null,"Metric: Monetary","BC/Own funds","BE/Ancillary own funds","OF/Initial funds [members' contributions or the equivalent basic own fund item for mutual and mutual-type undertakings]","SY/Callable on demand"]
[null,"Unpaid and uncalled preference shares callable on demand","R0320",null,null,null,null,null,"Metric: Monetary","BC/Own funds","BE/Ancillary own funds","OF/Preference shares","SY/Callable on demand"]
[null,"A legally binding commitment to subscribe and pay for subordinated liabilities on demand","R0330",null,null,null,null,null,"Metric: Monetary","BC/Own funds","BE/Ancillary own funds","OF/Legally binding commitment to subscribe and pay for subordinated liabilities","SY/Callable on demand"]
[null,"Letters of credit and guarantees under Article 96(2) of the Directive 2009/138/EC","R0340",null,null,null,null,null,"Metric: Monetary","BC/Own funds","BE/Ancillary own funds","OF/Letters of credit and guarantees under Article 96[2] of the Framework Directive [received]"]
[null,"Letters of credit and guarantees other than under Article 96(2) of the Directive 2009/138/EC","R0350",null,null,null,null,null,"Metric: Monetary","BC/Own funds","BE/Ancillary own funds","OF/Letters of credit and guarantees other than under Article 96[2] of the Framework Directive [received]"]
[null,"Supplementary members calls under first subparagraph of Article 96(3) of the Directive 2009/138/EC","R0360",null,null,null,null,null,"Metric: Monetary","BC/Own funds","BE/Ancillary own funds","OF/Supplementary members calls under Article 96[3] of the Framework Directive"]
[null,"Supplementary members calls - other than under first subparagraph of Article 96(3) of the Directive 2009/138/EC","R0370",null,null,null,null,null,"Metric: Monetary","BC/Own funds","BE/Ancillary own funds","OF/Supplementary members calls - other than under Article 96[3] of the Framework Directive"]
[null,"Other ancillary own funds","R0390",null,null,null,null,null,"Metric: Monetary","BC/Own funds","BE/Ancillary own funds","OF/Other items of own funds"]
[null,"Total ancillary own funds","R0400",null,null,null,null,null,"Metric: Monetary","BC/Own funds","BE/Ancillary own funds"]
[null,"Available and eligible own funds"]
[null,"Total available own funds to meet the SCR","R0500",null,null,null,null,null,"Metric: Monetary","BC/Own funds","BE/Basic or ancillary own funds","MS/Available to meet SCR criteria"]
[null,"Total available own funds to meet the MCR","R0510",null,null,null,null,null,"Metric: Monetary","BC/Own funds","BE/Basic own funds","MX/Available to meet MCR criteria"]
[null,"Total eligible own funds to meet the SCR","R0540",null,null,null,null,null,"Metric: Monetary","BC/Own funds","BE/Basic or ancillary own funds","MS/Eligible to meet SCR criteria"]
[null,"Total eligible own funds to meet the MCR","R0550",null,null,null,null,null,"Metric: Monetary","BC/Own funds","BE/Basic own funds","MX/Eligible to meet MCR criteria"]
[null,"SCR","R0580",null,null,null,null,null,"Metric: Monetary","BC/Solvency capital requirement [SCR]","UG/Before diversification effect"]
[null,"MCR","R0600",null,null,null,null,null,"Metric: Monetary","BC/Minimum capital requirement [MCR]","UG/Before diversification effect"]
[null,"Ratio of Eligible own funds to SCR","R0620",null,null,null,null,null,"Metric: Pure","PP/Ratio of Eligible own funds to SCR"]
[null,"Ratio of Eligible own funds to MCR","R0640",null,null,null,null,null,"Metric: Pure","PP/Ratio of Eligible own funds to MCR"]
[null,null,null,null,"TX/Tier 1 – unrestricted","TX/Tier 1 – restricted","TX/Tier 2","TX/Tier 3"]
[]
[]
["S.23.01.01.02"]
["Z Axis:"]
["VG/Solvency II"]
[]
["Reconciliation reserve"]
[]
[null,null,null,"C0060"]
[null,"Reconciliation reserve"]
[null,"Excess of assets over liabilities","R0700",null,null,"Metric: Monetary","BC/Excess of assets over liabilities"]
[null,"Own shares (held directly and indirectly)","R0710",null,null,"Metric: Monetary","BC/Assets",null,"AS/Shares","IO/Own instruments held directly or indirectly"]
[null,"Foreseeable dividends, distributions and charges","R0720",null,null,"Metric: Monetary","BC/Foreseeable dividends, distributions and charges"]
[null,"Other basic own fund items","R0730",null,null,"Metric: Monetary","BC/Own funds","BE/Basic own funds","OF/Own funds [before deductions] other than reconciliation reserve","IO/Other than own instruments held directly or indirectly"]
[null,"Adjustment for restricted own fund items in respect of matching adjustment portfolios and ring fenced funds","R0740",null,null,"Metric: Monetary","BC/Adjustment for restricted own fund items in respect of matching adjustment portfolios and ring fenced funds"]
[null,"Reconciliation reserve","R0760",null,null,"Metric: Monetary","BC/Own funds","BE/Basic own funds","OF/Reconciliation reserve"]
[null,"Expected profits"]
[null,"Expected profits included in future premiums (EPIFP) - Life business","R0770",null,"BL/Life and Health SLT","Metric: Monetary","BC/Expected profits included in future premiums","BE/Basic own funds"]
[null,"Expected profits included in future premiums (EPIFP) - Non-life business","R0780",null,"BL/Non-life and Health non-SLT","Metric: Monetary","BC/Expected profits included in future premiums","BE/Basic own funds"]
[null,"Total Expected profits included in future premiums (EPIFP)","R0790",null,null,"Metric: Monetary","BC/Expected profits included in future premiums","BE/Basic own funds"]

{"sheet":"S.28.01.01","index":15,"n_rows":83,"n_cols":10,"rows_kept":83,"cut":false,"hidden":false,"merged":[[17,2,17,3]]}
["S.28.01.01"]
["Minimum Capital Requirement - Only life or only non-life insurance or reinsurance activity"]
[]
["S.28.01.01.01"]
[]
["Linear formula component for non-life insurance and reinsurance obligations"]
[]
[null,null,"MCR components"]
[null,null,"C0010"]
["MCRNL Result","R0010",null,null,"VG/Solvency II","BL/Non-life and Health non-SLT","TA/Linear","Metric: Monetary","UG/Before diversification effect","BC/Minimum capital requirement [MCR]"]
[]
["S.28.01.01.02"]
["Z Axis:"]
["VG/Solvency II"]
[]
["Background information"]
[]
[null,null,"Background information"]
[null,null,"Net (of reinsurance/SPV) best estimate and TP calculated as a whole","Net (of reinsurance) written premiums in the last 12 months"]
[null,null,"C0020","C0030"]
["Medical expense insurance and proportional reinsurance","R0020",null,null,"BL/Medical expense insurance [direct business and accepted proportional reinsurance]"]
["Income protection insurance and proportional reinsurance","R0030",null,null,"BL/Income protection insurance [direct business and accepted proportional reinsurance]"]
["Workers' compensation insurance and proportional reinsurance","R0040",null,null,"BL/Workers' compensation insurance [direct business and accepted proportional reinsurance]"]
["Motor vehicle liability insurance and proportional reinsurance","R0050",null,null,"BL/Motor vehicle liability insurance [direct business and accepted proportional reinsurance]"]
["Other motor insurance and proportional reinsurance","R0060",null,null,"BL/Other motor insurance [direct business and accepted proportional reinsurance]"]
["Marine, aviation and transport insurance and proportional reinsurance","R0070",null,null,"BL/Marine, aviation and transport insurance [direct business and accepted proportional reinsurance]"]
["Fire and other damage to property insurance and proportional reinsurance","R0080",null,null,"BL/Fire and other damage to property insurance [direct business and accepted proportional reinsurance]"]
["General liability insurance and proportional reinsurance","R0090",null,null,"BL/General liability insurance [direct business and accepted proportional reinsurance]"]
["Credit and suretyship insurance and proportional reinsurance","R0100",null,null,"BL/Credit and suretyship insurance [direct business and accepted proportional reinsurance]"]
["Legal expenses insurance and proportional reinsurance","R0110",null,null,"BL/Legal expenses insurance [direct business and accepted proportional reinsurance]"]
["Assistance and proportional reinsurance","R0120",null,null,"BL/Assistance [direct business and accepted proportional reinsurance]"]
["Miscellaneous financial loss insurance and proportional reinsurance","R0130",null,null,"BL/Miscellaneous financial loss [direct business and accepted proportional reinsurance]"]
["Non-proportional health reinsurance","R0140",null,null,"BL/Health [accepted non-proportional reinsurance]"]
["Non-proportional casualty reinsurance","R0150",null,null,"BL/Casualty [accepted non-proportional reinsurance]"]
["Non-proportional marine, aviation and transport reinsurance","R0160",null,null,"BL/Marine, aviation, transport [accepted non-proportional reinsurance]"]
["Non-proportional property reinsurance","R0170",null,null,"BL/Property [accepted non-proportional reinsurance]"]
[null,null,null,"DI/12 Months"]
[null,null,"VL/Calculated as a whole and best estimate","IZ/Accepted during the period"]
[null,null,"Metric: Monetary","Metric: Monetary"]
[null,null,"BC/Liability","BC/Premiums written"]
[null,null,"LB/Gross technical provisions [other than local GAAP specific]","CC/Not ceded"]
[null,null,"IT/After risk mitigation effect other than from finite reinsurance"]
[]
["S.28.01.01.03"]
[]
["Linear formula component for life insurance and reinsurance obligations"]
[]
[null,null,"C0040"]
["MCRL Result","R0200",null,"TA/Linear","VG/Solvency II",null,"BL/Life and Health SLT","Metric: Monetary","UG/Before diversification effect","BC/Minimum capital requirement [MCR]"]
[]
["S.28.01.01.04"]
["Z Axis:"]
["VG/Solvency II"]
[]
["Total capital at risk for all life (re)insurance obligations"]
[]
[null,null,"Net (of reinsurance/SPV) best estimate and TP calculated as a whole","Net (of reinsurance/SPV) total capital at risk"]
[null,null,"C0050","C0060"]
["Obligations with profit participation - guaranteed benefits","R0210",null,null,"BL/Insurance with profit participation [guaranteed benefits]","TA/Amount calculated based on obligations"]
["Obligations with profit participation - future discretionary benefits","R0220",null,null,"BL/Insurance with profit participation [future discretionary benefits]","TA/Amount calculated based on obligations"]
["Index-linked and unit-linked insurance obligations","R0230",null,null,"BL/Unit-linked or index-linked","TA/Amount calculated based on obligations"]
["Other life (re)insurance and health (re)insurance obligations","R0240",null,null,"BL/Other life, annuities and Health SLT","TA/Amount calculated based on obligations"]
["Total capital at risk for all life (re)insurance obligations","R0250",null,null,"BL/Life and Health SLT","TA/Amount calculated based on obligations"]
[null,null,"VL/Calculated as a whole and best estimate"]
[null,null,"Metric: Monetary","Metric: Monetary"]
[null,null,"BC/Liability","BC/Exposure"]
[null,null,"LB/Gross technical provisions [other than local GAAP specific]"]
[null,null,"IT/After risk mitigation effect other than from finite reinsurance","IT/After risk mitigation effect other than from finite reinsurance"]
[]
["S.28.01.01.05"]
["Z Axis:"]
["VG/Solvency II"]
[]
["Overall MCR calculation"]
[]
[null,null,"C0070"]
["Linear MCR","R0300",null,"TA/Linear","Metric: Monetary","BC/Minimum capital requirement [MCR]","UG/Before diversification effect"]
["SCR","R0310",null,null,"Metric: Monetary","BC/Solvency capital requirement [SCR]","UG/Before diversification effect"]
["MCR cap","R0320",null,"TA/Cap","Metric: Monetary","BC/Minimum capital requirement [MCR]","UG/Before diversification effect"]
["MCR floor","R0330",null,"TA/Floor","Metric: Monetary","BC/Minimum capital requirement [MCR]","UG/Before diversification effect"]
["Combined MCR","R0340",null,"TA/Combined","Metric: Monetary","BC/Minimum capital requirement [MCR]","UG/Before diversification effect"]
["Absolute floor of the MCR","R0350",null,"TA/Absolute floor","Metric: Monetary","BC/Minimum capital requirement [MCR]","UG/Before diversification effect"]
["Minimum Capital Requirement","R0400",null,null,"Metric: Monetary","BC/Minimum capital requirement [MCR]","UG/Before diversification effect"]

{"sheet":"S.28.02.01","index":16,"n_rows":113,"n_cols":10,"rows_kept":113,"cut":false,"hidden":false,"merged":[[7,2,7,3],[20,2,20,5],[21,2,21,3],[21,4,21,5],[66,2,66,3],[66,4,66,5]]}
["S.28.02.01"]
["Minimum Capital Requirement - Both life and non-life insurance activity"]
[]
["S.28.02.01.01"]
[]
["MCR components"]
[]
[null,null,"MCR components"]
[null,null,"Non-life activities","Life activities"]
[null,null,"MCR(NL, NL) Result","MCR(NL, L)Result"]
[null,null,"C0010","C0020"]
["Linear formula component for non-life insurance and reinsurance obligations","R0010",null,null,"TA/Linear","BL/Non-life and Health non-SLT","VG/Solvency II","Metric: Monetary","UG/Before diversification effect","BC/Minimum capital requirement [MCR]"]
[null,null,"LE/Non-life activity","LE/Life activity"]
[]
["S.28.02.01.02"]
["Z Axis:"]
["VG/Solvency II"]
[]
["Background information"]
[]
[null,null,"Background information"]
[null,null,"Non-life activities",null,"Life activities"]
[null,null,"Net (of reinsurance/ SPV) best estimate and TP calculated as a whole","Net (of reinsurance) written premiums in the last 12 months","Net (of reinsurance/SPV) best estimate and TP calculated as a whole","Net (of reinsurance) written premiums in the last 12 months"]
[null,null,"C0030","C0040","C0050","C0060"]
["Medical expense insurance and proportional reinsurance","R0020",null,null,null,null,"BL/Medical expense insurance [direct business and accepted proportional reinsurance]"]
["Income protection insurance and proportional reinsurance","R0030",null,null,null,null,"BL/Income protection insurance [direct business and accepted proportional reinsurance]"]
["Workers' compensation insurance and proportional reinsurance","R0040",null,null,null,null,"BL/Workers' compensation insurance [direct business and accepted proportional reinsurance]"]
["Motor vehicle liability insurance and proportional reinsurance","R0050",null,null,null,null,"BL/Motor vehicle liability insurance [direct business and accepted proportional reinsurance]"]
["Other motor insurance and proportional reinsurance","R0060",null,null,null,null,"BL/Other motor insurance [direct business and accepted proportional reinsurance]"]
["Marine, aviation and transport insurance and proportional reinsurance","R0070",null,null,null,null,"BL/Marine, aviation and transport insurance [direct business and accepted proportional reinsurance]"]
["Fire and other damage to property insurance and proportional reinsurance","R0080",null,null,null,null,"BL/Fire and other damage to property insurance [direct business and accepted proportional reinsurance]"]
["General liability insurance and proportional reinsurance","R0090",null,null,null,null,"BL/General liability insurance [direct business and accepted proportional reinsurance]"]
["Credit and suretyship insurance and proportional reinsurance","R0100",null,null,null,null,"BL/Credit and suretyship insurance [direct business and accepted proportional reinsurance]"]
["Legal expenses insurance and proportional reinsurance","R0110",null,null,null,null,"BL/Legal expenses insurance [direct business and accepted proportional reinsurance]"]
["Assistance and proportional reinsurance","R0120",null,null,null,null,"BL/Assistance [direct business and accepted proportional reinsurance]"]
["Miscellaneous financial loss insurance and proportional reinsurance","R0130",null,null,null,null,"BL/Miscellaneous financial loss [direct business and accepted proportional reinsurance]"]
["Non-proportional health reinsurance","R0140",null,null,null,null,"BL/Health [accepted non-proportional reinsurance]"]
["Non-proportional casualty reinsurance","R0150",null,null,null,null,"BL/Casualty [accepted non-proportional reinsurance]"]
["Non-proportional marine, aviation and transport reinsurance","R0160",null,null,null,null,"BL/Marine, aviation, transport [accepted non-proportional reinsurance]"]
["Non-proportional property reinsurance","R0170",null,null,null,null,"BL/Property [accepted non-proportional reinsurance]"]
[null,null,"VL/Calculated as a whole and best estimate","IZ/Accepted during the period","VL/Calculated as a whole and best estimate","IZ/Accepted during the period"]
[null,null,null,"DI/12 Months",null,"DI/12 Months"]
[null,null,"LE/Non-life activity","LE/Non-life activity","LE/Life activity","LE/Life activity"]
[null,null,"Metric: Monetary","Metric: Monetary","Metric: Monetary","Metric: Monetary"]
[null,null,"BC/Liability","BC/Premiums written","BC/Liability","BC/Premiums written"]
[null,null,"LB/Gross technical provisions [other than local GAAP specific]",null,"LB/Gross technical provisions [other than local GAAP specific]"]
[null,null,"CC/Not ceded","CC/Not ceded","CC/Not ceded","CC/Not ceded"]
[null,null,"IT/After risk mitigation effect other than from finite reinsurance",null,"IT/After risk mitigation effect other than from finite reinsurance"]
[]
[]
["S.28.02.01.03"]
[]
["Linear formula component for life insurance and reinsurance obligations"]
[]
[null,null,"Non-life activities","Life activities"]
[null,null,"MCR(L, NL) Result","MCR(L, L) Result"]
[null,null,"C0070","C0080"]
["Linear formula component for life insurance and reinsurance obligations","R0200",null,null,"VG/Solvency II","BL/Life and Health SLT","TA/Linear","Metric: Monetary","UG/Before diversification effect","BC/Minimum capital requirement [MCR]"]
[null,null,"LE/Non-life activity","LE/Life activity"]
[]
["S.28.02.01.04"]
["Z Axis:"]
["VG/Solvency II"]
[]
["Total capital at risk for all life (re)insurance obligations"]
[]
[null,null,"Non-life activities",null,"Life activities"]
[null,null,"Net (of reinsurance/SPV) best estimate and TP calculated as a whole","Net (of reinsurance/SPV) total capital at risk","Net (of reinsurance/SPV) best estimate and TP calculated as a whole","Net (of reinsurance/SPV) total capital at risk"]
[null,null,"C0090","C0100","C0110","C0120"]
["Obligations with profit participation - guaranteed benefits","R0210",null,null,null,null,"BL/Insurance with profit participation [guaranteed benefits]","TA/Amount calculated based on obligations"]
["Obligations with profit participation - future discretionary benefits","R0220",null,null,null,null,"BL/Insurance with profit participation [future discretionary benefits]","TA/Amount calculated based on obligations"]
["Index-linked and unit-linked insurance obligations","R0230",null,null,null,null,"BL/Unit-linked or index-linked","TA/Amount calculated based on obligations"]
["Other life (re)insurance and health (re)insurance obligations","R0240",null,null,null,null,"BL/Other life, annuities and Health SLT","TA/Amount calculated based on obligations"]
["Total capital at risk for all life (re)insurance obligations","R0250",null,null,null,null,"BL/Life and Health SLT","TA/Amount calculated based on obligations"]
[null,null,"VL/Calculated as a whole and best estimate",null,"VL/Calculated as a whole and best estimate"]
[null,null,"LE/Non-life activity","LE/Non-life activity","LE/Life activity","LE/Life activity"]
[null,null,"Metric: Monetary","Metric: Monetary","Metric: Monetary","Metric: Monetary"]
[null,null,"BC/Liability","BC/Exposure","BC/Liability","BC/Exposure"]
[null,null,"LB/Gross technical provisions [other than local GAAP specific]",null,"LB/Gross technical provisions [other than local GAAP specific]"]
[null,null,"IT/After risk mitigation effect other than from finite reinsurance","IT/After risk mitigation effect other than from finite reinsurance","IT/After risk mitigation effect other than from finite reinsurance","IT/After risk mitigation effect other than from finite reinsurance"]
[]
[]
["S.28.02.01.05"]
["Z Axis:"]
["VG/Solvency II"]
[]
["Overall MCR calculation"]
[]
[null,null,"C0130"]
["Linear MCR","R0300",null,"TA/Linear","Metric: Monetary","BC/Minimum capital requirement [MCR]","UG/Before diversification effect"]
["SCR","R0310",null,"TA/Amount where national supervisor could require standard formula reference even when undertakings is using internal models or partial internal model to calculate the SCR","Metric: Monetary","BC/Solvency capital requirement [SCR]","UG/Before diversification effect"]
["MCR cap","R0320",null,"TA/Cap","Metric: Monetary","BC/Minimum capital requirement [MCR]","UG/Before diversification effect"]
["MCR floor","R0330",null,"TA/Floor","Metric: Monetary","BC/Minimum capital requirement [MCR]","UG/Before diversification effect"]
["Combined MCR","R0340",null,"TA/Combined","Metric: Monetary","BC/Minimum capital requirement [MCR]","UG/Before diversification effect"]
["Absolute floor of the MCR","R0350",null,"TA/Absolute floor","Metric: Monetary","BC/Minimum capital requirement [MCR]","UG/Before diversification effect"]
["Minimum Capital Requirement","R0400",null,null,"Metric: Monetary","BC/Minimum capital requirement [MCR]","UG/Before diversification effect"]
[]
["S.28.02.01.06"]
["Z Axis:"]
["VG/Solvency II"]
[]
["Notional non-life and life MCR calculation"]
[]
[null,null,"Non-life activities","Life activities"]
[null,null,"C0140","C0150"]
["Notional linear MCR","R0500",null,null,"TA/Linear","Metric: Monetary","BC/Minimum capital requirement [MCR]","UG/Before diversification effect"]
["Notional SCR excluding add-on (annual or latest calculation)","R0510",null,null,"EA/SCR before capital add-on","Metric: Monetary","BC/Solvency capital requirement [SCR]","UG/Before diversification effect"]
["Notional MCR cap","R0520",null,null,"TA/Cap","Metric: Monetary","BC/Minimum capital requirement [MCR]","UG/Before diversification effect"]
["Notional MCR floor","R0530",null,null,"TA/Floor","Metric: Monetary","BC/Minimum capital requirement [MCR]","UG/Before diversification effect"]
["Notional Combined MCR","R0540",null,null,"TA/Combined","Metric: Monetary","BC/Minimum capital requirement [MCR]","UG/Before diversification effect"]
["Absolute floor of the notional MCR","R0550",null,null,"TA/Absolute floor before considering article 253 of the Delegated Regulation (EU) 2015/35","Metric: Monetary","BC/Minimum capital requirement [MCR]","UG/Before diversification effect"]
["Notional MCR","R0560",null,null,null,"Metric: Monetary","BC/Minimum capital requirement [MCR]","UG/Before diversification effect"]
[null,null,"LE/Non-life activity","LE/Life activity"]